Workbook

Sheet Title
B2: Central Hydrogen Production - Project Information
B5: Title: | C5: Current Central Hydrogen Production from Grid PEM Electrolysis
B6: Authors: | C6: G. Saur, T. Ramsden, B. James, W. Colella
B7: Contact: | C7: Michael Penev
B8: Contact phone: | C8: 303 275 3880
B9: Contact e-mail: | C9: mike.penev@nrel.gov
B10: Organization: | C10: NREL
B11: Date: | C11: 2018-02-21
B12: Web Site: | C12: www.nrel.gov
B14: Plant Design Capacity (kg/day): | C14: 50000
B15: Start-up Year: | C15: 2015
B16: Primary Product Feedstock Source: | C16: Process Water
B17: Secondary Feedstock Source:
B18: Process Energy Source: | C18: Grid Electricity (industrial)
B19: Conversion Technology: | C19: PEM electrolysis
B20: Primary By-Product: | C20: none
B21: Secondary By-Product: | C21: none
B22: Based on Number of Plants Installed per Year (per manufacturer):
B23: H2 Onsite Storage Type | C23: none
B24: Assumed plant location: | C24: USA
B26: Reporting Spreadsheet Change History:
B27: Date spreadsheet created / modified | C27: Name | D27: Comments
B28: H2A Version 3
B29: 2018-02-06 | C29: M. Penev | D29: Case was ported to H2A version 3
B31: 2013-09-30 | C31: Genevieve Saur | D31: PEM electrolysis case study

Sheet Description
B2: Central Hydrogen Production - Description
B6: Purpose:
B7: The purpose of this analysis was to analyze the technical and economic aspects of a process for production of hydrogen from the electrolysis of water using grid-based electricity.
B10: System Description:
B11: The system modeled is a standalone grid powered PEM electrolyzer system with a total hydrogen production capacity of 50,000 kg/day. The system is based on a generic system using input from several key industry collaborators (KIC) with commercial experience in PEM electrolysis. The electrolyzer units use process water and grid electricity for electrolysis.
D12: ;
B14: Analysis Methodology Summary:
B15: Energy balances done manually from generic system estimates, equipment costing and performance from input from key industry collaborators (KIC).
B18: Plant Ownership and Entity Type Assumptions:
B19: Corporate ownership, 100% equity financed.
B21: References:
B22: PEP Yearbook 2002
B23: Plant Design and Economics for Chemical Engineers, Max S. Peters, Klaus D. Timmerhaus, Ronald E. West
B24: Johanna Ivy, "Summary of Electrolytic Hydrogen Production," September, 2004. NREL Report: NREL/MP-560-36734.
B25: Cost and performance projections based on input from H2A development team and key industrial collaborators (KIC) collected during H2A model development meetings, May-September 2013
B26: Plant Design and Economics for Chemical Engineers, Max S. Peters, Klaus D. Timmerhaus, Ronald E. West
B27: Norsk Hydro Electrolysers presentation, 2/13/2004.

Sheet ProcessFlow
B2: Central Hydrogen Production - Process Flow Diagram
B6: Process Flow Diagram
D7: Energy Efficiency Calculations | G7: Central | H7: Basis for Assumptions
G8: Current
E9: H2 Outlet Pressure | F9: psi | G9: 450 | H9: Industry feedback
D10: Stack Electrical Usage
E11: Cell voltage | F11: volts/cell | G11: 1.75 | H11: Based on literature and industry input (assuming 1.5A/cm2 current density).
E12: Voltage Efficiency | F12: % LHV | G12: =1.23/G11 -> 0.7028571429 | H12: Equation: 1.23/cell voltage
E13: Dryer Loss | F13: % of gross H2 | G13: 0.03 | H13: The 3% Dryer loss comes from industry input ("3-4%").
E14: Permeation Loss | F14: % of gross H2 | G14: 0.007 | H14: Based on back diffusion model (1.85x10-7cm2/s back diffusion coefficient): Industry input is 0.7% at 450psi, model says 0.5% at 450psi for a 3µm thick membrane.
E15: Total Stack Energy Usage per mass net H2 | F15: kWhelec/kgNet H2 | G15: =1/(1-G13)/(1-G14)/G12*33.33 -> 49.23197611 | H15: Based on 33.33 kWh/kg H2
D16: BOP Loads
E17: Power Inverter Efficiency | F17: % | G17: 0.95 | H17: Based on industry input.
E18: Inverter Electrical Load | F18: kWhelec/kgNet H2 | G18: =G15/G17-G15 -> 2.591156637
E19: Dryer Thermal Load | F19: kWhtherm/kgNet H2 | G19: =21.3/(1500/24) -> 0.3408 | H19: Based on Hysys Simulation.
E20: Dryer Efficiency | F20: kWhelec/kWhtherm | G20: 3.67 | H20: Based on industry input for the ratio of net electrical energy for the chiller.
E21: Dryer Electrical Load | F21: kWhelec/kgNet H2 | G21: =G19*G20 -> 1.250736
E22: Misc Electrical Load | F22: kWhelec/kgNet H2 | G22: 1.2 | H22: Based on industry input for current.
E23: Total BOP Electrical Load | F23: kWhelec/kgNet H2 | G23: =G18+G21+G22 -> 5.041892637
D24: Summary
E25: Stack Electrical Usage | F25: kWhelec/kgH2 | G25: =G15 -> 49.23197611
E26: BOP Electrical Usage | F26: kWhelec/kgH2 | G26: =G23 -> 5.041892637
D27: Total System Electral Usage per mass net H2 | F27: kWhelec/kgNet H2 | G27: =G15+G23 -> 54.27386875
B30: Stream Summaries

Sheet Input_Sheet_Template
A1: a
B2: H2A Hydrogen Production Cash Flow Analysis Tool v3.2018
A3: title | B3: Central Proton Exchange Membrane (PEM) Electrolysis - Current Timeframe
B5: Table of Contents
B6: View and edit project information
B8: H2A cell color coding
B10: Use H2A default values
B14: Technical Operating Parameters and Specifications
B15: Financial Input Values
B16: Energy Feedstocks, Utilities and Byproducts | H16: Cash Flow NPV (Error if not 0)
B17: Capital Cost | H17: =+NPV -> 6.954115561e-07
B18: Fixed Operating Costs
B19: Variable Operating Costs - Other Materials and Byproducts
B20: Variable Operating Costs - Other Variable Operating Costs
B24: Technical Operating Parameters and Specifications | E24: Notes
A25: cap_factor | B25: Operating Capacity Factor (%) | C25: =0.97*sensitivity_01 -> 0.97
A26: design_cap | B26: Plant Design Capacity (kg of H2/day) | C26: =50000*sensitivity_02 -> 50000
B27: Plant Output (kg/day) | C27: =design_cap*cap_factor -> 48500
A28: Soutput_kgyear | B28: Plant Output (kg/year) | C28: =output_kgpday*365 -> 17702500
B29: Financial Input Values | E29: Notes
A30: ref_year | B30: Reference year | C30: 2016
A31: startup_year | B31: Assumed start-up year | C31: 2015
B32: Basis year | C32: 2012 | D32: Costs must be entered in basis year dollars
A33: construct | B33: Length of Construction Period (years) | C33: 1
A34: percent_cap1 | B34: % of Capital Spent in 1st Year of Construction | C34: 1
A35: percent_cap2 | B35: % of Capital Spent in 2nd Year of Construction | C35: 0
A36: percent_cap3 | B36: % of Capital Spent in 3rd Year of Construction | C36: 0
A37: percent_cap4 | B37: % of Capital Spent in 4th Year of Construction
A38: start_time | B38: Start-up Time (years) | C38: 0
A39: plant_life | B39: Plant life (years) | C39: 40
A40: anal_period | B40: Analysis period (years) | C40: 40
A41: depr_length | B41: Depreciation Schedule Length (years) | C41: 20
A42: depr_type | B42: Depreciation Type | C42: MACRS
A43: equity | B43: % Equity Financing | C43: 0.4
A44: debt_interest | B44: Interest rate on debt, if applicable (%) | C44: 0.037
A45: debt_period | B45: Debt period (years) | C45: 0 | E45: Enter 0 to enable constant outstanding debt.
A46: percnt_fixed | B46: % of Fixed Operating Costs During Start-up (%) | C46: 1
A47: percnt_revs | B47: % of Revenues During Start-up (%) | C47: 0.5
A48: percnt_var | B48: % of Variable Operating Costs During Start-up (%) | C48: 0.75
A49: decom_percent | B49: Decommissioning costs (% of depreciable capital investment) | C49: 0.1
A50: salvage_perct | B50: Salvage value (% of total capital investment) | C50: 0.1
A51: inflation_rate | B51: Inflation rate (%) | C51: 0.019
A52: real_irr | B52: After-tax Real IRR (%) | C52: =0.08*sensitivity_03 -> 0.08
A53: state_tax_rate | B53: State Taxes (%) | C53: 0.06
A54: fed_tax_rate | B54: Federal Taxes (%) | C54: 0.21
A55: Stotal_tax_rate | B55: Total Tax Rate (%) | C55: =fed_tax_rate+state_tax_rate*(1-fed_tax_rate) -> 0.2574
A56: WorkingCap | B56: WORKING CAPITAL (% of yearly change in operating costs) | C56: 0.05
B57: Energy Feedstocks, Utilities, and Byproducts
B58: Select the Price Table to Use
B59: AEO_2017_Reference_Case | F59: To use a new feedstock, utility or byproduct, select the price table and product from the dropdown lists and enter the usage (or byproduct) amount. Click the "Add" button to add the product to the "In Use" list. Important; only materials on the "In Use" list will be used in H2A calculations. To delete materials from the list, click the "Delete" button below
B60: Select the Use
B61: feedstock | C61: =IF(OR(TMP_FeedType="Feedstock",TMP_FeedType = "Utility")," Enter usage in","Enter production in") -> Enter usage in | D61: =VLOOKUP(TMP_FeedName,INDIRECT(TMP_PriceTable),4,FALSE) -> kWh
B62: Select the Feed Type
B63: Industrial Electricity
B65: =SELECTED_FEED -> feedstock | C65: =TMP_FeedName -> Industrial Electricity
B66: ="Price Conversion Factor (GJ/"&TMP_Units&")" -> Price Conversion Factor (GJ/kWh) | C66: =VLOOKUP(TMP_FeedName,MASTER_PROPERTY_TABLE,9,FALSE) -> 0.0036
B67: ="Price in Startup Year ($" & ref_year & ")/" & TMP_Units -> Price in Startup Year ($2016)/kWh | C67: =HLOOKUP(startup_year,INDIRECT(TMP_PriceTable),MATCH(TMP_FeedName,INDIRECT(Energy_Feed_List),0),FALSE)*TMP_Conversion -> 0.06998061126
B68: =IF(OR(TMP_FeedType="Feedstock",TMP_FeedType = "Utility"),"Usage ("&TMP_Units&"/kg H2)","Production ("&TMP_Units&"/kg H2)") -> Usage (kWh/kg H2) | C68: 54.3
B69: =IF(OR(TMP_FeedType = "Feedstock",TMP_FeedType = "Utility"), "Cost in Startup Year","Income in Startup Year") -> Cost in Startup Year | C69: =design_cap*365*cap_factor*TMP_Usage*TMP_StartPrice -> 67268565.15
B70: Lookup Prices | C70: yes
B72: Energy feedstocks, utilities, and byproducts currently in use
A73: START_TOP
B74: feedstock | C74: Price Conversion Factor (GJ/kWh) | D74: Price in Startup Year ($2016)/kWh | E74: Usage (kWh/kg H2) | F74: Cost in Startup Year | G74: Lookup Prices
B75: Industrial Electricity | C75: 0.0036 | D75: 0.06998061126 | E75: 54.3 | F75: =feedstockIndustrial_Electricity_Price*feedstockIndustrial_Electricity_Usage*output_kgyear*IF(start_time,percnt_var,1)*'Cash Flow Analysis'!E68/'Cash Flow Analysis'!E69 -> 66014293.58 | G75: yes
A76: START_TOP
A77: START_UTILITY
A78: START_BYPROD
F79: Total
A80: Total_Energy_Feed_Cost | B80: Total Energy Feedstock Cost ($/year) | F80: =SUM(Dynamic_Feed_Total) -> 66014293.58
A81: Total_Energy_Utilities_Cost | B81: Total Energy Utilities Cost ($/year) | F81: =SUM(Dynamic_Utilities_Total) -> 0
A82: Total_Energy_Byproduct_Credit | B82: Total Energy Byproduct Credit ($/year) | F82: =SUM(Dynamic_Byproduct_Total) -> 0
D83: Notes:
B85: Capital Costs | E85: Notes
A86: direct_cap | B86: H2A Total Direct Capital Cost | C86: =Det_scaled_cap -> 118258605.7 | E86: Click to enter details on the Cost Detail Sheet
B87: H2A Carbon Sequestration Total Direct Capital Cost | C87: =Det_CO2_seq -> 0 | E87: Click to enter details on the Carbon Sequestration calculation sheet.
B89: Indirect Depreciable Capital Costs | C89: ="Enter values in basis year (" & BasisYear & ") dollars" -> Enter values in basis year (2012) dollars | D89: Combined Plant Scaling and Escalation Factor | E89: ="Reference Year ("& ref_year & ") Dollars" -> Reference Year (2016) Dollars
A90: Site_prep | B90: Site Preparation ($) (may change to construction costs) | C90: =0.02*(direct_cap+CO2_seq)/(CEPCIinflator*CPIinflator) -> 2280600 | D90: =CEPCIinflator*CPIinflator -> 1.037083274 | E90: =C90*D90 -> 2365172.115
A91: Engin | B91: Engineering & design ($) | C91: =0.08*(direct_cap+CO2_seq)/(CEPCIinflator*CPIinflator) -> 9122400 | D91: 1.037083274 | E91: =C91*D91 -> 9460688.459
A92: Process_cont | B92: Process contingency ($) | D92: 1.037083274 | E92: 0
A93: Project_cont | B93: Project contingency ($) | C93: =0.15*(direct_cap+CO2_seq)/(CEPCIinflator*CPIinflator) -> 17104500 | D93: 1.037083274 | E93: 17738790.86
A94: Other_indirect | B94: Other (Depreciable) capital ($) | D94: 1.037083274 | E94: 0
A95: Fees | B95: One-time Licensing Fees ($) | D95: 1.037083274 | E95: 0
A96: Permitting | B96: Up-Front Permitting Costs ($) (legal and contractors fees included here) | C96: =0.15*(direct_cap+CO2_seq)/(CEPCIinflator*CPIinflator) -> 17104500 | D96: 1.037083274 | E96: 17738790.86
A97: Sdepr_cap | B97: Total Depreciable Capital Costs | E97: =direct_cap+CO2_seq+SUM($E$90:$E$96) -> 165562048
D98: Combined Plant Scaling and Escalation Factor
B99: Non-Depreciable Capital Costs | C99: ="Enter values in basis year (" & BasisYear & ") dollars" -> Enter values in basis year (2012) dollars | E99: ="Reference Year ("& ref_year & ") Dollars" -> Reference Year (2016) Dollars
A100: acre_cost | B100: Cost of land ($/acre) | C100: 50000 | D100: =CPIinflator -> 1.100724187 | E100: =C100*D100 -> 55036.20933
A101: acres | B101: Land required (acres) | C101: 5 | D101: =Scale_Factor *1 -> 1 | E101: =C101*D101 -> 5
A102: Sland_cost | B102: Land Cost ($) | E102: =acre_cost*acres -> 275181.0467
B103: Other non depreciable capital costs | D103: =CPIinflator -> 1.100724187 | E103: =C103*D103 -> 0
A104: Snon_dep_cap | B104: Total Non-Depreciable Capital Costs | E104: =land_cost+$E$103 -> 275181.0467
A106: Stotal_cap | B106: Total Capital Costs | C106: =(depr_cap+non_dep_cap)*sensitivity_06 -> 165837229.1
B108: Fixed Operating Costs | C108: ="Enter values in basis year (" & BasisYear & ") dollars" -> Enter values in basis year (2012) dollars | D108: Combined Plant Scaling and Escalation Factor | E108: ="Reference Year ("& ref_year & ") Dollars" -> Reference Year (2016) Dollars
A109: FTEs | B109: Total plant staff (number of FTEs employed by plant) | C109: 10 | D109: =Scale_Ratio^0.25 -> 1 | E109: =C109*D109 -> 10
A110: FTE_cost | B110: Burdened labor cost, including overhead ($/man-hr) | C110: 50 | D110: =VLOOKUP(ref_year,Tbl_labor_indexes,2,FALSE)/VLOOKUP(BasisYear,Tbl_labor_indexes,2,FALSE) -> 1.058974359 | E110: =C110*D110 -> 52.94871795
A111: Slabor_cost | B111: Labor cost, $/year | E111: =FTEs*2080*FTE_cost -> 1101333.333
A112: overhead_rate | B112: G&A rate (% of labor cost) | C112: 0.2
A113: Soverhead_GA | B113: G&A ($/year) | E113: =labor_cost*overhead_rate -> 220266.6667
A114: licensing | B114: Licensing, Permits and Fees ($/year) | C114: 0 | D114: =Scale_Factor *CEPCIinflator*CPIinflator -> 1.037083274 | E114: =C114*D114 -> 0
A115: tax_ins_rate | B115: Property tax and insurance rate (% of total capital investment per year) | C115: 0.02
A116: Stax_insurance | B116: Property taxes and insurance ($/year) | E116: =tax_ins_rate*total_cap -> 3316744.582
A117: rent | B117: Rent ($/year) | D117: =Scale_Factor *CPIinflator -> 1.100724187 | E117: =C117*D117 -> 0
A118: material | B118: Material costs for maintenance and repairs ($/year) | D118: =Scale_Factor *CEPCIinflator*CPIinflator -> 1.037083274 | E118: =C118*D118 -> 0
A119: prod_maint | B119: Production Maintenance and Repairs ($/year) | C119: =0.03*direct_cap/(CEPCIinflator*CPIinflator) -> 3420900 | D119: =Scale_Factor *CEPCIinflator*CPIinflator -> 1.037083274 | E119: =C119*D119 -> 3547758.172
A120: other_fees | B120: Other Fees ($/year) | C120: 0 | D120: =Scale_Ratio * CEPCIinflator*CPIinflator -> 1.037083274 | E120: =C120*D120 -> 0
A121: other_fixed | B121: Other Fixed O&M Costs ($/year) | C121: 0 | D121: =Scale_Factor *CEPCIinflator*CPIinflator -> 1.037083274 | E121: =C121*D121 -> 0
A122: Sfixed | B122: Total Fixed Operating Costs | E122: =(labor_cost+overhead_GA+tax_insurance+licensing+SUM(E117:E121))*sensitivity_07 -> 8186102.754
B124: Variable Operating Costs
B125: Other Materials and Byproducts
B127: Select the Material
B128: Process Water
B129: Feed or utility | C129: =B128 -> Process Water
B130: ="$(" & ref_year & ")/ " & VLOOKUP(TMP_NonE_Feed,Tbl_Other_Inputs_and_Byproducts,2,FALSE) -> $(2016)/ gal | C130: =HLOOKUP(startup_year,Tbl_Other_Inputs_and_Byproducts,MATCH(TMP_NonE_Feed,Other_Inputs_List,0),FALSE) -> 0.002374951095
B131: =IF(TMP_NonE_Type="Feed or utility","Usage per kg H2","Production per kg H2") -> Usage per kg H2
B132: =IF(TMP_NonE_Type = "Feed or utility", "Cost in Startup Year","Income in Startup Year") -> Cost in Startup Year | C132: =design_cap*365*cap_factor*TMP_NonE_Usage*TMP_NonE_StartPrice -> 0
B133: Lookup Prices | C133: Yes
A134: START_NONE_TOP
B135: Feed or utility | C135: $(2016)/ gal | D135: Usage per kg H2 | E135: Cost in Startup Year | F135: Lookup Prices
B136: Process Water | C136: 0.002374951095 | D136: 4.76 | E136: 200122.6415 | F136: Yes
A137: START_NONE_FEED
A138: START_NONE_BYPROD
B139: Total Non Energy Utility and Material Costs ($/year) | C139: =SUM(Dynamic_NonE_Feed_Total) -> 200122.6415
A140: total_non_energy_byproduct_credit | B140: Total Non Energy Byproduct Credits ($/year) | C140: =SUM(Dynamic_NonE_Byprod_Total) -> 0
A142: Stotal_feedstock | B142: Total Feedstock Costs ($/year) | C142: =Total_Energy_Feed_Cost -> 66014293.58
A143: Stotal_utilities | B143: Total Utility Costs ($/year) | C143: =Total_Energy_Utilities_Cost+Total_Non_Energy_Feed_Cost -> 200122.6415
A144: Stotal_byproducts | B144: Total Byproduct Credits ($/year) | C144: =Total_Energy_Byproduct_Credit+total_non_energy_byproduct_credit -> 0
B145: Other Variable operating costs (for the first year) | C145: ="Enter values in basis year (" & BasisYear & ") dollars" -> Enter values in basis year (2012) dollars | D145: Combined Plant Scaling and Escalation Factor | E145: ="Reference Year ("& ref_year & ") Dollars" -> Reference Year (2016) Dollars
A146: var_misc | B146: Other variable operating costs (e.g. environmental surcharges) ($/year) | D146: =Scale_Ratio * VLOOKUP(ref_year,Chemical_price_indexes,2,FALSE)/VLOOKUP(BasisYear,Chemical_price_indexes,2,FALSE) -> 1.026123703 | E146: =C146*D146 -> 0
A147: total_other_raw | B147: Other Material Costs ($/year) | C147: 0 | D147: =Scale_Ratio * VLOOKUP(ref_year,Chemical_price_indexes,2,FALSE)/VLOOKUP(BasisYear,Chemical_price_indexes,2,FALSE) -> 1.026123703 | E147: =C147*D147 -> 0
A148: waste_treat | B148: Waste treatment costs ($/year) | C148: 0 | D148: =Scale_Ratio * VLOOKUP(ref_year,Chemical_price_indexes,2,FALSE)/VLOOKUP(BasisYear,Chemical_price_indexes,2,FALSE) -> 1.026123703 | E148: =C148*D148 -> 0
A149: solidwaste_treat | B149: Solid waste disposal costs ($/year) | C149: 0 | D149: =Scale_Ratio * VLOOKUP(ref_year,Chemical_price_indexes,2,FALSE)/VLOOKUP(BasisYear,Chemical_price_indexes,2,FALSE) -> 1.026123703 | E149: =C149*D149 -> 0
A150: replace_factor | B150: Total Unplanned Replacement Capital Cost Factor (% of total direct depreciable costs/year) | C150: 0.005 | E150: Value added to match other central cases. Use this value for all central cases
A151: royalties | B151: Royalties ($/year) | C151: 0 | D151: =Scale_Ratio * CPIinflator -> 1.100724187 | E151: 0
A152: operator_profit | B152: Operator Profit ($/year) | C152: 0 | D152: =Scale_Ratio * CPIinflator -> 1.100724187 | E152: 0
A153: tax_credit | B153: Subsidies, Tax Incentives ($/year) | C153: 0 | D153: =Scale_Ratio * CPIinflator -> 1.100724187 | E153: 0
A154: CO2_seq | B154: CO2 sequestration O&M costs and credits ($/year) | E154: =Det_CO2_OandMcost -> 0
B155: Process Carbon Tax ($/metric ton carbon produced as CO2) | C155: 0 | D155: =CPIinflator -> 1.100724187 | E155: 0
B156: Process Carbon Tax ($/year) | E156: =ROUND(Proc_CO2_tax*12/44*Proc_CO2_MTpY,-2) -> 0
B157: Upstream Carbon Tax ($/metric ton upstream GHG CO2 eq) | C157: 0 | D157: =CPIinflator -> 1.100724187 | E157: 0
B158: Upstream Carbon Tax ($/year) | E158: =ROUND(Upstream_CO2_tax/1000*Upstream_GHG_total*output_kgyear,2) -> 0
A159: Stotal_var | B159: Total Variable Operating Costs ($/year) | E159: =ROUND(total_feedstock+total_utilities+total_other_raw-total_byproducts+var_misc+waste_treat+solidwaste_treat+royalties+operator_profit-tax_credit+CO2_OandMcost+Proc_CO2_taxpYear + Upstream_CO2_taxpYear,-2) -> 66214400

Sheet Replacement Costs
A2: Replacement Costs
C5: Color Key
A9: ="NOTE: Enter costs in year "&TEXT(BasisYear,"0")&" $ - Do not inflate" -> NOTE: Enter costs in year 2012 $ - Do not inflate
A10: NOTE: All replacement costs are assumed to be equity financed.
A13: Unplanned Yearly Replacement Capital (Depreciable)
C14: Comments | F14: Source | G14: Information
A15: Total Unplanned Replacement Capital Cost Factor (% of total depreciable capital costs/year) | B15: =replace_factor -> 0.005 | G15: Enter a fixed percentage. This input is meant to include, in the Cash Flow Analysis, a factor for unplanned capital expenditures.
A16: Actual Year | B16: Analysis Year | C16: Operations Year | D16: Specified Yearly Replacement Costs | E16: Carbon Sequestration Related Replacement Costs | F16: Specified Yearly Replacement Costs | G16: Unplanned Replacement Costs | H16: Total Yearly Replacement Costs | I16: Uninstalled costs | J16: Installation factor | K16: Comments: | L16: Data source:
D17: ="Year "&TEXT(BasisYear,"0")&" $" -> Year 2012 $ | E17: ="Year "&TEXT(ref_year,"0")&" $" -> Year 2016 $ | F17: ="Year "&TEXT(ref_year,"0")&" $" -> Year 2016 $ | G17: ="Year "&TEXT(ref_year,"0")&" $" -> Year 2016 $ | H17: Inflated to Start-up Year
A18: =IF(C18<>"",'Cash Flow Analysis'!A65,"") -> 2014 | B18: =construct+1 -> 2 | C18: 1 | E18: =+'Carbon Sequestration'!$C$100*(C18<=anal_period) -> 0 | F18: =(D18)*CPIinflator*CEPCIinflator+E18 -> 0 | G18: =IF(C18>anal_period,0,IF(replace_factor<>"",replace_factor*depr_cap,0)) -> 827810.2402 | H18: =(F18+G18)*((1+inflation_rate)^(startup_year-ref_year)) -> 812375.113
A19: =IF(C19<>"",'Cash Flow Analysis'!A66,"") -> 2015 | B19: =IF(B18<anal_period+construct,B18+1,"") -> 3 | C19: =IF(B19="","",C18+1) -> 2 | E19: =+'Carbon Sequestration'!$C$100*(C19<=anal_period) -> 0 | F19: 0 | G19: =IF(C19>anal_period,0,IF(replace_factor<>"",replace_factor*depr_cap,0)) -> 827810.2402 | H19: =(F19+G19)*((1+inflation_rate)^(startup_year-ref_year)) -> 812375.113
A20: =IF(C20<>"",'Cash Flow Analysis'!A67,"") -> 2016 | B20: 4 | C20: 3 | E20: =+'Carbon Sequestration'!$C$100*(C20<=anal_period) -> 0 | F20: 0 | G20: 827810.2402 | H20: 812375.113
A21: =IF(C21<>"",'Cash Flow Analysis'!A68,"") -> 2017 | B21: 5 | C21: 4 | E21: =+'Carbon Sequestration'!$C$100*(C21<=anal_period) -> 0 | F21: 0 | G21: 827810.2402 | H21: 812375.113
A22: =IF(C22<>"",'Cash Flow Analysis'!A69,"") -> 2018 | B22: 6 | C22: 5 | E22: =+'Carbon Sequestration'!$C$100*(C22<=anal_period) -> 0 | F22: 0 | G22: 827810.2402 | H22: 812375.113
A23: =IF(C23<>"",'Cash Flow Analysis'!A70,"") -> 2019 | B23: 7 | C23: 6 | E23: =+'Carbon Sequestration'!$C$100*(C23<=anal_period) -> 0 | F23: 0 | G23: 827810.2402 | H23: 812375.113
A24: =IF(C24<>"",'Cash Flow Analysis'!A71,"") -> 2020 | B24: 8 | C24: 7 | E24: =+'Carbon Sequestration'!$C$100*(C24<=anal_period) -> 0 | F24: 0 | G24: 827810.2402 | H24: 812375.113
A25: =IF(C25<>"",'Cash Flow Analysis'!A72,"") -> 2021 | B25: 9 | C25: 8 | D25: =0.15*direct_cap/(CPIinflator*CEPCIinflator) -> 17104500 | E25: =+'Carbon Sequestration'!$C$100*(C25<=anal_period) -> 0 | F25: 17738790.86 | G25: 827810.2402 | H25: 18220413.25 | K25: 15% of direct capital cost based on industry input. 15% is less than the full replacement cost of stack or stack refurbishment. Lower replacement cost given a seven year design advancement.
A26: =IF(C26<>"",'Cash Flow Analysis'!A73,"") -> 2022 | B26: 10 | C26: 9 | E26: =+'Carbon Sequestration'!$C$100*(C26<=anal_period) -> 0 | F26: 0 | G26: 827810.2402 | H26: 812375.113
A27: =IF(C27<>"",'Cash Flow Analysis'!A74,"") -> 2023 | B27: 11 | C27: 10 | E27: =+'Carbon Sequestration'!$C$100*(C27<=anal_period) -> 0 | F27: 0 | G27: 827810.2402 | H27: 812375.113
A28: =IF(C28<>"",'Cash Flow Analysis'!A75,"") -> 2024 | B28: 12 | C28: 11 | E28: =+'Carbon Sequestration'!$C$100*(C28<=anal_period) -> 0 | F28: 0 | G28: 827810.2402 | H28: 812375.113
A29: =IF(C29<>"",'Cash Flow Analysis'!A76,"") -> 2025 | B29: 13 | C29: 12 | E29: =+'Carbon Sequestration'!$C$100*(C29<=anal_period) -> 0 | F29: 0 | G29: 827810.2402 | H29: 812375.113
A30: =IF(C30<>"",'Cash Flow Analysis'!A77,"") -> 2026 | B30: 14 | C30: 13 | E30: =+'Carbon Sequestration'!$C$100*(C30<=anal_period) -> 0 | F30: 0 | G30: 827810.2402 | H30: 812375.113
A31: =IF(C31<>"",'Cash Flow Analysis'!A78,"") -> 2027 | B31: 15 | C31: 14 | E31: =+'Carbon Sequestration'!$C$100*(C31<=anal_period) -> 0 | F31: 0 | G31: 827810.2402 | H31: 812375.113
A32: =IF(C32<>"",'Cash Flow Analysis'!A79,"") -> 2028 | B32: 16 | C32: 15 | D32: =0.15*direct_cap/(CPIinflator*CEPCIinflator) -> 17104500 | E32: =+'Carbon Sequestration'!$C$100*(C32<=anal_period) -> 0 | F32: 17738790.86 | G32: 827810.2402 | H32: 18220413.25 | K32: 15% of direct capital cost based on industry input. 15% is less than the full replacement cost of stack or stack refurbishment. Lower replacement cost given a seven year design advancement.
A33: =IF(C33<>"",'Cash Flow Analysis'!A80,"") -> 2029 | B33: 17 | C33: 16 | E33: =+'Carbon Sequestration'!$C$100*(C33<=anal_period) -> 0 | F33: 0 | G33: 827810.2402 | H33: 812375.113
A34: =IF(C34<>"",'Cash Flow Analysis'!A81,"") -> 2030 | B34: 18 | C34: 17 | E34: =+'Carbon Sequestration'!$C$100*(C34<=anal_period) -> 0 | F34: 0 | G34: 827810.2402 | H34: 812375.113
A35: =IF(C35<>"",'Cash Flow Analysis'!A82,"") -> 2031 | B35: 19 | C35: 18 | E35: =+'Carbon Sequestration'!$C$100*(C35<=anal_period) -> 0 | F35: 0 | G35: 827810.2402 | H35: 812375.113
A36: =IF(C36<>"",'Cash Flow Analysis'!A83,"") -> 2032 | B36: 20 | C36: 19 | E36: =+'Carbon Sequestration'!$C$100*(C36<=anal_period) -> 0 | F36: 0 | G36: 827810.2402 | H36: 812375.113
A37: =IF(C37<>"",'Cash Flow Analysis'!A84,"") -> 2033 | B37: 21 | C37: 20 | E37: =+'Carbon Sequestration'!$C$100*(C37<=anal_period) -> 0 | F37: 0 | G37: 827810.2402 | H37: 812375.113
A38: =IF(C38<>"",'Cash Flow Analysis'!A85,"") -> 2034 | B38: 22 | C38: 21 | E38: =+'Carbon Sequestration'!$C$100*(C38<=anal_period) -> 0 | F38: 0 | G38: 827810.2402 | H38: 812375.113
A39: =IF(C39<>"",'Cash Flow Analysis'!A86,"") -> 2035 | B39: 23 | C39: 22 | D39: =0.15*direct_cap/(CPIinflator*CEPCIinflator) -> 17104500 | E39: =+'Carbon Sequestration'!$C$100*(C39<=anal_period) -> 0 | F39: 17738790.86 | G39: 827810.2402 | H39: 18220413.25 | K39: 15% of direct capital cost based on industry input. 15% is less than the full replacement cost of stack or stack refurbishment. Lower replacement cost given a seven year design advancement.
A40: =IF(C40<>"",'Cash Flow Analysis'!A87,"") -> 2036 | B40: 24 | C40: 23 | E40: =+'Carbon Sequestration'!$C$100*(C40<=anal_period) -> 0 | F40: 0 | G40: 827810.2402 | H40: 812375.113
A41: =IF(C41<>"",'Cash Flow Analysis'!A88,"") -> 2037 | B41: 25 | C41: 24 | E41: =+'Carbon Sequestration'!$C$100*(C41<=anal_period) -> 0 | F41: 0 | G41: 827810.2402 | H41: 812375.113
A42: =IF(C42<>"",'Cash Flow Analysis'!A89,"") -> 2038 | B42: 26 | C42: 25 | E42: =+'Carbon Sequestration'!$C$100*(C42<=anal_period) -> 0 | F42: 0 | G42: 827810.2402 | H42: 812375.113
A43: =IF(C43<>"",'Cash Flow Analysis'!A90,"") -> 2039 | B43: 27 | C43: 26 | E43: =+'Carbon Sequestration'!$C$100*(C43<=anal_period) -> 0 | F43: 0 | G43: 827810.2402 | H43: 812375.113
A44: =IF(C44<>"",'Cash Flow Analysis'!A91,"") -> 2040 | B44: 28 | C44: 27 | E44: =+'Carbon Sequestration'!$C$100*(C44<=anal_period) -> 0 | F44: 0 | G44: 827810.2402 | H44: 812375.113
A45: =IF(C45<>"",'Cash Flow Analysis'!A92,"") -> 2041 | B45: 29 | C45: 28 | E45: =+'Carbon Sequestration'!$C$100*(C45<=anal_period) -> 0 | F45: 0 | G45: 827810.2402 | H45: 812375.113
A46: =IF(C46<>"",'Cash Flow Analysis'!A93,"") -> 2042 | B46: 30 | C46: 29 | D46: =0.15*direct_cap/(CPIinflator*CEPCIinflator) -> 17104500 | E46: =+'Carbon Sequestration'!$C$100*(C46<=anal_period) -> 0 | F46: 17738790.86 | G46: 827810.2402 | H46: 18220413.25 | K46: 15% of direct capital cost based on industry input. 15% is less than the full replacement cost of stack or stack refurbishment. Lower replacement cost given a seven year design advancement.
A47: =IF(C47<>"",'Cash Flow Analysis'!A94,"") -> 2043 | B47: 31 | C47: 30 | E47: =+'Carbon Sequestration'!$C$100*(C47<=anal_period) -> 0 | F47: 0 | G47: 827810.2402 | H47: 812375.113
A48: =IF(C48<>"",'Cash Flow Analysis'!A95,"") -> 2044 | B48: 32 | C48: 31 | E48: =+'Carbon Sequestration'!$C$100*(C48<=anal_period) -> 0 | F48: 0 | G48: 827810.2402 | H48: 812375.113
A49: =IF(C49<>"",'Cash Flow Analysis'!A96,"") -> 2045 | B49: 33 | C49: 32 | E49: =+'Carbon Sequestration'!$C$100*(C49<=anal_period) -> 0 | F49: 0 | G49: 827810.2402 | H49: 812375.113
A50: =IF(C50<>"",'Cash Flow Analysis'!A97,"") -> 2046 | B50: 34 | C50: 33 | E50: =+'Carbon Sequestration'!$C$100*(C50<=anal_period) -> 0 | F50: 0 | G50: 827810.2402 | H50: 812375.113
A51: =IF(C51<>"",'Cash Flow Analysis'!A98,"") -> 2047 | B51: 35 | C51: 34 | E51: =+'Carbon Sequestration'!$C$100*(C51<=anal_period) -> 0 | F51: 0 | G51: 827810.2402 | H51: 812375.113
A52: =IF(C52<>"",'Cash Flow Analysis'!A99,"") -> 2048 | B52: 36 | C52: 35 | E52: =+'Carbon Sequestration'!$C$100*(C52<=anal_period) -> 0 | F52: 0 | G52: 827810.2402 | H52: 812375.113
A53: =IF(C53<>"",'Cash Flow Analysis'!A100,"") -> 2049 | B53: 37 | C53: 36 | D53: =0.15*direct_cap/(CPIinflator*CEPCIinflator) -> 17104500 | E53: =+'Carbon Sequestration'!$C$100*(C53<=anal_period) -> 0 | F53: 17738790.86 | G53: 827810.2402 | H53: 18220413.25 | K53: 15% of direct capital cost based on industry input. 15% is less than the full replacement cost of stack or stack refurbishment. Lower replacement cost given a seven year design advancement.
A54: =IF(C54<>"",'Cash Flow Analysis'!A101,"") -> 2050 | B54: 38 | C54: 37 | E54: =+'Carbon Sequestration'!$C$100*(C54<=anal_period) -> 0 | F54: 0 | G54: 827810.2402 | H54: 812375.113
A55: =IF(C55<>"",'Cash Flow Analysis'!A102,"") -> 2051 | B55: 39 | C55: 38 | E55: =+'Carbon Sequestration'!$C$100*(C55<=anal_period) -> 0 | F55: 0 | G55: 827810.2402 | H55: 812375.113
A56: =IF(C56<>"",'Cash Flow Analysis'!A103,"") -> 2052 | B56: 40 | C56: 39 | E56: =+'Carbon Sequestration'!$C$100*(C56<=anal_period) -> 0 | F56: 0 | G56: 827810.2402 | H56: 812375.113
A57: =IF(C57<>"",'Cash Flow Analysis'!A104,"") -> 2053 | B57: 41 | C57: 40 | E57: =+'Carbon Sequestration'!$C$100*(C57<=anal_period) -> 0 | F57: 0 | G57: 827810.2402 | H57: 812375.113

Sheet Capital Costs
B2: Capital Costs
C4: Color Key
B7: Design Plant Hydrogen Production (kg/day) | C7: 50000 | D7: Capital costs for the design plant (baseline) are entered on this sheet. Use the Plant Scaling sheet to set scaling parameters for scaling up or down in size from the baseline plant. Enter the output kg/day for the plant you wish to analyze on the Input Sheet
D8: Comments
B9: Basis year for capital costs | C9: =BasisYear -> 2012
B10: Enter current year for capital costs | C10: 2010
B11: ="CEPCI Inflator ("&BasisYear&" to "&CurrentYear&")" -> CEPCI Inflator (2012 to 2010) | C11: =VLOOKUP(CurrentYear,Tbl_PlantCostIndexes,2,FALSE)/VLOOKUP(BasisYear,Tbl_PlantCostIndexes,2,FALSE) -> 0.942182689 | D11: The Chemical Engineering Plant Cost Index (CEPCI) is used to adjust the capital cost of the H2 Production facility from the basis year to the current year.
B12: ="Consumer Price Inflator ("&CurrentYear&" to "&ref_year&")" -> Consumer Price Inflator (2010 to 2016) | C12: =VLOOKUP(ref_year,DeflatorTable,2,FALSE)/VLOOKUP(CurrentYear,DeflatorTable,2,FALSE) -> 1.100724187 | D12: The Consumer Price Inflator (CPI) is used to deflate all dollars from the current year to the Reference Year.
B14: ="CAPITAL INVESTMENT (Inputs REQUIRED in Basis Year, (" & BasisYear & ") $)" -> CAPITAL INVESTMENT (Inputs REQUIRED in Basis Year, (2012) $)
B15: Major pieces/systems of equipment | C15: ="Baseline Uninstalled Costs $"&BasisYear&" Dollars" -> Baseline Uninstalled Costs $2012 Dollars | D15: ="Baseline Uninstalled Costs $"&ref_year&" Dollars" -> Baseline Uninstalled Costs $2016 Dollars | E15: Installation Cost Factor | F15: Baseline Installed Costs | G15: Comments | H15: Data Source
B16: Stacks | C16: =$C$39*$C$41*C42 -> 47851875 | D16: =C16*CEPCIinflator*CPIinflator -> 49626379.19 | E16: 1.12 | F16: =D16*E16 -> 55581544.7
B17: BoP Breakdown | D17: =C17*CEPCIinflator*CPIinflator -> 0 | E17: 1.12 | F17: =D17*E17 -> 0
B18: =B44 -> Hydrogen Gas Management System-Cathode system side | C18: =$C$39*$C$41*C44 -> 9163125 | D18: 9502923.675 | E18: 1.12 | F18: 10643274.52
B19: =B45 -> Oxygen Gas Management System-Anode system side | C19: 3054375 | D19: 3167641.225 | E19: 1.12 | F19: 3547758.172
B20: Water Reacant Delivery Management System | C20: 5090625 | D20: 5279402.042 | E20: 1.12 | F20: 5912930.287
B21: Thermal Management System | C21: 5090625 | D21: 5279402.042 | E21: 1.12 | F21: 5912930.287
B22: Power Electronics | C22: 21380625 | D22: 22173488.58 | E22: 1.12 | F22: 24834307.21
B23: Controls & Sensors | C23: 2036250 | D23: 2111760.817 | E23: 1.12 | F23: 2365172.115
B24: Mechanical Balance of Plant-ss plumbing/copper cabling/Dryer valves... | C24: 5090625 | D24: 5279402.042 | E24: 1.12 | F24: 5912930.287
B25: Item Breakdown- Other | C25: 1018125 | D25: 1055880.408 | E25: 1.12 | F25: 1182586.057
B26: Item Breakdown-Assembly Labor | C26: 2036250 | D26: 2111760.817 | E26: 1.12 | F26: 2365172.115
D27: 0 | F27: 0
D28: 0 | F28: 0
D29: 0 | F29: 0
D30: 0 | F30: 0
D31: 0 | F31: 0
D32: 0 | F32: 0
D33: 0 | F33: 0
D34: 0 | F34: 0
D35: 0 | F35: 0
C36: =SUM(C16:C35) -> 101812500 | D36: =SUM(D16:D35) -> 105588040.8 | F36: =SUM(F16:F35) -> 118258605.7
B39: Uninstalled Cost - ($/kW) (with suggested subsystem breakdown, further breakdown desirable if available ) | C39: 900
B40: Electricity Usage (kWh/kg) | C40: =feedstockIndustrial_Electricity_Usage -> 54.3
B41: System Power (kW) | C41: =50000*C40/24 -> 113125
B42: Stacks | C42: 0.47
B43: BoP Total | C43: 0.53
B44: Hydrogen Gas Management System-Cathode system side | C44: 0.09
B45: Oxygen Gas Management System-Anode system side | C45: 0.03
B46: Water Reacant Delivery Management System | C46: 0.05
B47: Thermal Management System | C47: 0.05
B48: Power Electronics | C48: 0.21
B49: Controls & Sensors | C49: 0.02
B50: Mechanical Balance of Plant-ss plumbing/copper cabling/Dryer valves... | C50: 0.05
B51: Item Breakdown- Other | C51: 0.01
B52: Item Breakdown-Assembly Labor | C52: 0.02

Sheet Plant Scaling
B1: leave this sheet as is for scaled costs
B2: Plant Scaling Factors
B3: Baseline Design Capacity (kg H2/day) | C3: =Baseline_Design_Capacity -> 50000 | D3: Design capacity for original H2A case. Imported from capital cost sheet
B4: Scale Ratio | C4: =design_cap/Baseline_Design_Capacity -> 1 | D4: Ratio of new design capacity (enter on Input Sheet) to the Baseline Design Capacity. Used for linear scaling
B5: Scale Factor | C5: =$G$27/Det_direct_cap -> 1 | D5: Ratio of total scaled installed capital capital cost to total baseline installed capital costs. Used for exponential scaling.
B6: Default Scaling Factor Exponent | C6: 0.6 | D6: Scaling factor exponent used for scaling all capital equipment where an individual factor has not been entered below.
B7: Lower Limit for Scaling Capacity (kg H2/day) | C7: 30000 | D7: http://www.chemicals-technology.com/projects/air-products-plant/
B8: Upper Limit for Scaling Capacity (kg H2/day) | C8: 70000 | D8: http://hydrogen.pnl.gov/filedownloads/hydrogen/datasheets/hydrogen_production_capacity_by_state.xls
B11: ="CAPITAL INVESTMENT (Inputs REQUIRED in Reference Year, (" & ref_year & ") $)" -> CAPITAL INVESTMENT (Inputs REQUIRED in Reference Year, (2016) $)
B12: Major pieces/systems of equipment | C12: Baseline Uninstalled Costs | D12: Scaling Factor Exponent | E12: Scaled Uninstalled Costs | F12: Installation Cost Factor | G12: Installed Cost (scaled) | H12: Installed Cost (baseline) | I12: Comments | J12: Data Source
B13: ='Capital Costs'!B16 -> Stacks | C13: ='Capital Costs'!D16 -> 49626379.19 | E13: =IF($D13="",$C13*Scale_Ratio^Scaling_Factor_Exponent,$C13*Scale_Ratio^$D13) -> 49626379.19 | F13: ='Capital Costs'!E16 -> 1.12 | G13: =$E13*$F13 -> 55581544.7 | H13: =C13*F13 -> 55581544.7
B14: ='Capital Costs'!B17 -> BoP Breakdown | C14: ='Capital Costs'!D17 -> 0 | E14: =IF($D14="",$C14*Scale_Ratio^Scaling_Factor_Exponent,$C14*Scale_Ratio^$D14) -> 0 | F14: ='Capital Costs'!E17 -> 1.12 | G14: =$E14*$F14 -> 0 | H14: =C14*F14 -> 0
B15: ='Capital Costs'!B18 -> Hydrogen Gas Management System-Cathode system side | C15: ='Capital Costs'!D18 -> 9502923.675 | E15: 9502923.675 | F15: ='Capital Costs'!E18 -> 1.12 | G15: 10643274.52 | H15: 10643274.52
B16: ='Capital Costs'!B19 -> Oxygen Gas Management System-Anode system side | C16: ='Capital Costs'!D19 -> 3167641.225 | E16: 3167641.225 | F16: ='Capital Costs'!E19 -> 1.12 | G16: 3547758.172 | H16: 3547758.172
B17: ='Capital Costs'!B20 -> Water Reacant Delivery Management System | C17: ='Capital Costs'!D20 -> 5279402.042 | E17: 5279402.042 | F17: ='Capital Costs'!E20 -> 1.12 | G17: 5912930.287 | H17: 5912930.287
B18: ='Capital Costs'!B21 -> Thermal Management System | C18: ='Capital Costs'!D21 -> 5279402.042 | E18: 5279402.042 | F18: ='Capital Costs'!E21 -> 1.12 | G18: 5912930.287 | H18: 5912930.287
B19: ='Capital Costs'!B22 -> Power Electronics | C19: ='Capital Costs'!D22 -> 22173488.58 | E19: 22173488.58 | F19: ='Capital Costs'!E22 -> 1.12 | G19: 24834307.21 | H19: 24834307.21
B20: ='Capital Costs'!B23 -> Controls & Sensors | C20: ='Capital Costs'!D23 -> 2111760.817 | E20: 2111760.817 | F20: ='Capital Costs'!E23 -> 1.12 | G20: 2365172.115 | H20: 2365172.115
B21: ='Capital Costs'!B24 -> Mechanical Balance of Plant-ss plumbing/copper cabling/Dryer valves... | C21: ='Capital Costs'!D24 -> 5279402.042 | E21: 5279402.042 | F21: ='Capital Costs'!E24 -> 1.12 | G21: 5912930.287 | H21: 5912930.287
B22: ='Capital Costs'!B25 -> Item Breakdown- Other | C22: ='Capital Costs'!D25 -> 1055880.408 | E22: 1055880.408 | F22: ='Capital Costs'!E25 -> 1.12 | G22: 1182586.057 | H22: 1182586.057
B23: ='Capital Costs'!B26 -> Item Breakdown-Assembly Labor | C23: ='Capital Costs'!D26 -> 2111760.817 | E23: 2111760.817 | F23: ='Capital Costs'!E26 -> 1.12 | G23: 2365172.115 | H23: 2365172.115
B24: ='Capital Costs'!B27 -> 0 | C24: ='Capital Costs'!D27 -> 0 | E24: 0 | F24: ='Capital Costs'!E27 -> 0 | G24: 0 | H24: 0
B25: ='Capital Costs'!B28 -> 0 | C25: ='Capital Costs'!D28 -> 0 | E25: 0 | F25: ='Capital Costs'!E28 -> 0 | G25: 0 | H25: 0
B26: ='Capital Costs'!B29 -> 0 | C26: ='Capital Costs'!D29 -> 0 | E26: 0 | F26: ='Capital Costs'!E29 -> 0 | G26: 0 | H26: 0
B27: TOTALS (including scaling) | C27: =SUM(C13:C26) -> 105588040.8 | E27: =SUM(E13:E26) -> 105588040.8 | G27: =SUM(G13:G26) -> 118258605.7 | H27: =SUM(H13:H26) -> 118258605.7

Sheet Carbon Sequestration
A1: a
B2: Carbon Sequestration
B4: Carbon Sequestration Calculation Information
B5: Costs for carbon (CO2) compression, transport to the sequestration site and injection are calculated in this section. Capital and operating costs for carbon capture are assumed to be included in the capital and operating costs for the production facility and are not included here. For H2A analysis of hydrogen production processes, it is assumed that only carbon contained in the process feedstock can be captured. Carbon contained in fuels such as natural gas used for steam generation (i.e., as a utility) cannot be captured. Therefore, only CO2 emissions from feedstocks are shown below. CO2 emissions from fuels used as utilities are included in the total emissions from the process shown on the Results sheet. All feedstocks and utilities should be specified before completing this section. See the QuickStart Guide for information on the derivation of the equations used in this section.
B7: Table of Contents
B8: Color Key
B11: Use default values (checkboxes)
B15: Carbon Sequestration Input Values
B16: Summary of Output Values
B17: Carbon Sequestration Calculations
B20: Carbon Sequestration Information | H20: Summary of Output Values (CO2 Seq. costs are reported on Results Tab as part of total H2 Production cost)
B21: CO2 Produced from Feedstock (metric tons CO2/year) | C21: =Feed_CO2_MTpY -> 0 | D21: CO2 emissions are based on the carbon content of the feed. See the Physical Properties Table for specific values | H21: Capital Costs
B22: CO2 Produced from Feedstock (kg CO2/kg H2) | C22: =Feed_CO2_kgpkgH2 -> 0 | H22: CO2 Pipeline | J22: =SUM(C54:C57) -> 
B23: CO2 Mass Flowrate (metric tons/day) | C23: =Feed_CO2_MTpY/365*CO2_Capture_Efficiency -> 0 | H23: CO2 Pumps | J23: =C71 -> 80988.89364
B24: CO2 Mass Flowrate (G metric tons/year) | C24: =CO2_flowrate*365/1000000 -> 0 | H24: CO2 Other Equipment | J24: =SUM(C82:C83) -> 0
B25: Electricity Cost ($/kWh) | C25: =HLOOKUP(startup_year,INDIRECT(TMP_PriceTable),MATCH("Industrial Electricity",INDIRECT(Energy_Feed_List),0),FALSE)*VLOOKUP("kWh",CC_feedconversion,2,FALSE) -> 0.06998061126 | D25: Price for industrial electricity in the startup year | H25: CO2 Storage (annualized) | J25: =SUM(C93:C95) -> 39831626.15
B26: Carbon Sequestration Electricity Usage (kWh/kg H2) | C26: =IF(C21=0,0,(pump_power)*cap_factor*24*365/output_kgyear) -> 0 | J26: =IF(CO2_Capture_Efficiency,SUM(J22:J25),0) -> 0 | K26: ="Total ("&ref_year&"$)" -> Total (2016$)
H27: Approx. Uninstalled Equipment Cost | J27: =IFERROR(IF(CO2_inUse = "To Use Carbon Sequestration Click 'Link to Detail Sheet' in the Input Sheet Capital Cost Section",0,(J23+J24)/1.2+J25/1.5+J22),0) -> 0
B28: Carbon Sequestration Input Values
B29: Process Design Parameters
B30: Carbon Capture Efficiency (%) | C30: 0 | E30: Set to 0 to turn off CCS | H30: Electrical Costs (annual cost)
B31: CO2 capture process outlet pressure (psia) | C31: 14.7 | E31: Inlet pressure for CO2 transport (pump suction pressure) | H31: CO2 Compressor | J31: =C74 -> 0
B32: Number of Pumps (H2 Production Site + Booster Pumps) | C32: 1 | H32: CO2 Injection (Site and wells) | J32: 0
B33: Pump Efficiency | C33: 0.75 | H33: CO2 Pipeline | J33: 0
B34: Pipeline Control System | C34: Yes | J34: =SUM(J31:J33) -> 0 | K34: ="Total ("&ref_year&"$)" -> Total (2016$)
B35: CO2 Surge Tank | C35: Yes | H35: O&M (annual cost)
B36: Pipeline length (miles) | C36: 100 | H36: CO2 Capture Credit | J36: =-Feed_CO2_MTpY*CO2_Capture_Efficiency*CO2_credit -> 0
B37: Pipeline Elevation Change (ft) | C37: 0 | H37: CO2 Pipeline | J37: =+C61 -> 693420.3789
B38: Pipeline Nominal Diameter (in) | C38: =Pipe_Diameter(CO2_PipeLength, C67, C66, C37, 0.5, CO2_flowrate, CO2_Pipeline_Temp, n_CO2_pumps) ->  | H38: CO2 Pumps | J38: =C78 -> 3239.555745
B39: Process Conditions | H39: CO2 Other Equipment | J39: =C86 -> 0
B40: Pipeline Temperature (°F) | C40: 53 | E40: Ground temperature | H40: CO2 Storage | J40: =SUM(C103:C107) -> 2016053.226
B41: CO2 Density (kg/m3) | C41: =denPRCO2(0.00005,AVERAGE(C66:C67)/MPa_to_psi,CO2_Pipeline_Temp) -> 865.7947105 | E41: PR Equation of state: ρCO2 = denPRCO2(vCO2-init, Pave, TPipeline) | J41: =IF(CO2_Capture_Efficiency>0,SUM(J36:J40),0) -> 0 | K41: ="Total ("&ref_year&"$)" -> Total (2016$)
B42: Other Considerations
B43: CO2 capture credit ($/metric ton CO2 captured) | C43: 0 | H43: Property tax and insurance | J43: =Det_CO2_seq*tax_ins_rate -> 0 | K43: =+K41 -> Total (2016$)
B44: Operation and maintenance factor for equipment (pumps, etc.) | C44: 0.04
B45: Finance Parameters | H45: Carbon Sequestration Energy Charge ($/tonne CO2) | K45: =ROUND(CO2_eCostpY/(Feed_CO2_MTpY*CO2_Capture_Efficiency),1) -> 
B46: After Tax Real Capital Recovery Factor | C46: =(real_irr*(1+real_irr)^anal_period)/(((real_irr+1)^anal_period)-1) -> 0.0838601615 | H46: Carbon Sequestration O&M Charge ($/tonne CO2) | K46: =ROUND((Det_CO2_OandMcost+ CCS_tax_insurance)/(Feed_CO2_MTpY*CO2_Capture_Efficiency),1) -> 
B47: Real Present Value of Depreciation | C47: =INDEX(MACRS_Table,MATCH("NPV - Real IRR",recovery_year,0),MATCH(depr_length,recovery_period,0))*(1+real_irr) -> 0.5467411219 | H47: Approx Carbon Seq. Cap. Charge ($/tonne CO2) | K47: =ROUND((Det_CO2_seq+(-PV(nominal_irr,plant_life,C100)*(1+nominal_irr)))*CO2_cap_charge_rate/(Feed_CO2_MTpY*CO2_Capture_Efficiency),1) -> 
B48: Approx Capital Charge Rate | C48: =(CO2_cap_rec*(1-total_tax_rate*CO2_depr_factor))/(1-total_tax_rate) -> 0.09703531281 | H48: Total transportation and storage cost (w/o capture) | K48: =SUM(K45:K47) -> 
B50: Carbon Transport Calculations
B51: ="CO2 Pipeline Costs ("&ref_year&" USD)" -> CO2 Pipeline Costs (2016 USD) | D51: Units | E51: Notes / References
B52: Capital Costs
B53: Adjustment factor (Natural Gas Pipeline -> CO2 Pipeline) | C53: =IF(CO2_PipeDia>20,1.25, IF(CO2_PipeDia>16,1.18,IF(CO2_PipeDia>12,1.12,1))) ->  | E53: CCost_Type = a0 + L * (a1 * D2 + a2 * D + a3) based on NETL CO2 Transport Model which uses Parker (2004) UCD-ITS-RR-04-35 basis
B54: Material Capital | C54: =(35000+CO2_PipeLength*(330.5*CO2_PipeDia^2+687*CO2_PipeDia+26960))*NG_to_CO2Pipeline*VLOOKUP(ref_year,Tbl_PlantCostIndexes,2)/VLOOKUP(2000,Tbl_PlantCostIndexes,2) ->  | D54: =ref_year&"$" -> 2016$ | E54: a0 = 35,000 $; a1 = 330.5 $/mi-in2; a2 = 687 $/mi-in; a3 = 26,960 $/mi (coefficient basis is 2000$)
B55: Labor | C55: =(185000+CO2_PipeLength*(343*CO2_PipeDia^2+2074*CO2_PipeDia+170013))*NG_to_CO2Pipeline*VLOOKUP(ref_year,Tbl_labor_indexes,2)/VLOOKUP(2000,Tbl_labor_indexes,2) ->  | D55: =ref_year&"$" -> 2016$ | E55: a0 = 185,000 $; a1 = 343 $/mi-in2; a2 = 2,074 $/mi-in; a3 = 170,013 $/mi (coefficient basis is 2000$)
B56: Right of Way and Damages | C56: =(40000+CO2_PipeLength*(0*CO2_PipeDia^2+577*CO2_PipeDia+29788))*NG_to_CO2Pipeline*(VLOOKUP(ref_year,DeflatorTable,2)/VLOOKUP(2000,DeflatorTable,2)) ->  | D56: =ref_year&"$" -> 2016$ | E56: a0 = 40,000 $; a1 = 0 $/mi-in2; a2 = 577 $/mi-in; a3 = 29,788 $/mi (coefficient basis is 2000$)
B57: Miscellaneous (Surveying, engineering, supervision, etc.) | C57: =(95000+CO2_PipeLength*(0*CO2_PipeDia^2+8417*CO2_PipeDia+7324))*NG_to_CO2Pipeline*VLOOKUP(ref_year,DeflatorTable,2)/VLOOKUP(2000,DeflatorTable,2) ->  | D57: =ref_year&"$" -> 2016$ | E57: a0 = 95,000 $; a1 = 0 $/mi-in2; a2 = 8,417 $/mi-in; a3 = 7,324 $/mi (coefficient basis is 2000$)
B58: Pipeline Capital Cost Per Mile | C58: =SUM(C54:C57)/CO2_PipeLength ->  | D58: =ref_year&"$/mile" -> 2016$/mile
B60: O&M Costs
B61: Pipeline cost of $5000/mi-yr | C61: =5000*CO2_PipeLength*(VLOOKUP(ref_year,Tbl_PlantCostIndexes,2)/VLOOKUP(1999,Tbl_PlantCostIndexes,2)) -> 693420.3789 | D61: =ref_year&"$/year" -> 2016$/year | E61: Based on NETL CO2 Transport Model which uses Bock (2003) basis. $5000/mi-yr is based in 1999$
B64: CO2 Pump Costs
B65: Capital Costs
B66: Inlet Pressure | C66: =CO2_Pin_psia -> 14.7 | D66: psia
B67: Outlet Pressure | C67: =15*MPa_to_psi -> 2175.57 | D67: psia
B68: Pump Power | C68: =(1000*1000000*0.001/ (24*3600))*(CO2_flowrate/cap_factor*(C67-C66)/MPa_to_psi)/(C41*Pump_Eff) -> 0 | D68: kW | E68: Wpump = ((1e3 kg/t * 1e6 Pa/MPa * 1e-3 kW/W) / (24*3600 s/day))*qmax*dPpump/(ηpump*ρCO2) from NETL CO2 Transport Model
B69: Pump Fixed Cost | C69: =70000*VLOOKUP(ref_year,Tbl_PlantCostIndexes,2)/VLOOKUP(2005,Tbl_PlantCostIndexes,2) -> 80988.89364 | D69: =ref_year&"$" -> 2016$ | E69: Fixed cost of $70,000 (2005$) from NETL CO2 Transport Model which uses McCollum & Ogden (2006) UCD-ITS-RR-06-14 basis
B70: Pump Variable Cost | C70: =1110*C68*VLOOKUP(ref_year,Tbl_PlantCostIndexes,2)/VLOOKUP(2005,Tbl_PlantCostIndexes,2) -> 0 | D70: =ref_year&"$" -> 2016$ | E70: Cost of $1,110/kW (2005$) from NETL CO2 Transport Model which uses McCollum & Ogden (2006) UCD-ITS-RR-06-14 basis
B71: Pump Capital Cost | C71: =SUM(C69:C70) -> 80988.89364 | D71: =ref_year&"$" -> 2016$ | E71: Cpump = (Cpump_fix + Cpump_var * Wpump)
B73: Electricity Costs
B74: Ecomp = elec cost*Wcomp*(capacity factor*24*365)*n_pumps | C74: =CO2_eCost*pump_power*cap_factor*24*365*n_CO2_pumps -> 0 | D74: =startup_year&"$/year" -> 2015$/year | E74: $/yr (start-up year electricity cost)
B75: Electricity consumption | C75: =pump_power*cap_factor*24*365*n_CO2_pumps/output_kgyear -> 0 | D75: kWh/kg H2
B77: O&M Costs
B78: (Total Other Equipment Cost) * O&M Factor | C78: =C71*CO2_MaintFactor -> 3239.555745 | D78: =ref_year&"$/year" -> 2016$/year
B80: CO2 Other Equipment Costs
B81: Capital Costs
B82: CO2 Surge Tank | C82: =IF(C35="yes",701600*(CO2_flowrate_GTpY/3.2)^Scaling_Factor_Exponent*(VLOOKUP(ref_year,Tbl_PlantCostIndexes,2)/VLOOKUP(2000,Tbl_PlantCostIndexes,2)),0) -> 0 | D82: =ref_year&"$" -> 2016$ | E82: Based on NETL CO2 Transport Model which uses NETL (2010) DOE/NETL-2010/1447 basis. Original cost is in 2000$
B83: Pipeline Process Control System | C83: =IF(C34="yes",94000*(CO2_flowrate_GTpY/3.2)^Scaling_Factor_Exponent*(VLOOKUP(ref_year,Tbl_PlantCostIndexes,2)/VLOOKUP(2000,Tbl_PlantCostIndexes,2)),0) -> 0 | D83: =ref_year&"$" -> 2016$ | E83: Based on NETL CO2 Transport Model which uses NETL (2010) DOE/NETL-2010/1447 basis. Original cost is in 2000$
B85: O&M Costs
B86: (Total Other Equipment Cost) * O&M Factor | C86: =SUM(C82:C83)*CO2_MaintFactor -> 0 | D86: =ref_year&"$/year" -> 2016$/year
B89: Carbon Storage (Saline) Calculations
B90: CO2 Storage Cost Breakdown (2007 USD) | D90: Units | E90: Notes / References
B91: CEPC Inflation Adj: 2008->2005 | C91: =VLOOKUP(2005,DeflatorTable,2)/VLOOKUP(2008,DeflatorTable,2) -> 0.9267607053
B92: ="Capital Costs by Stage (Annual Cost of "&plant_life&" year project in "&ref_year&"$)" -> Capital Costs by Stage (Annual Cost of 40 year project in 2016$) | E92: Based on NETL CO2 Saline Storage Cost Model -- P50 correlation determined (2008$) as function of CO2 flowrate for each stage of cost
B93: Regional Evaluation | C93: =94000*VLOOKUP(ref_year,Tbl_labor_indexes,2)/VLOOKUP(2008,Tbl_labor_indexes,2) -> 109497.9487 | D93: =ref_year&"$" -> 2016$
B94: Site Characterization | C94: =(-16600*CO2_flowrate_GTpY^2+53500*CO2_flowrate_GTpY+20300)*1000*VLOOKUP(ref_year,Tbl_labor_indexes,2)/VLOOKUP(2008,Tbl_labor_indexes,2) -> 23646897.44 | D94: =ref_year&"$" -> 2016$
B95: Permitting | C95: =(-400*CO2_flowrate_GTpY^2 + 2200*CO2_flowrate_GTpY + 13800)*1000*VLOOKUP(ref_year,Tbl_labor_indexes,2)/VLOOKUP(2008,Tbl_labor_indexes,2) -> 16075230.77 | D95: =ref_year&"$" -> 2016$
B97: Ongoing Capital Expences
B98: Operations | C98: =(-36000*CO2_flowrate_GTpY^2+224000*CO2_flowrate_GTpY+47000)*1000*(VLOOKUP(ref_year,Tbl_labor_indexes,2)/VLOOKUP(2008,Tbl_labor_indexes,2))/plant_life -> 1368724.359 | D98: =ref_year&"$/year" -> 2016$/year
B99: Post Injection Site Care & Site Closure | C99: =(-18000*CO2_flowrate_GTpY^2 + 183000*CO2_flowrate_GTpY+ 40000)*1000*(VLOOKUP(ref_year,Tbl_labor_indexes,2)/VLOOKUP(2008,Tbl_labor_indexes,2))/plant_life -> 1164871.795 | D99: =ref_year&"$/year" -> 2016$/year
B100: Total ongoing capital expenses | C100: =+IF(CO2_Capture_Efficiency,SUM(C98:C99),0) -> 0 | D100: =ref_year&"$/year" -> 2016$/year
B102: Expense Costs by Stage
B103: Regional Evaluation | C103: =0*(VLOOKUP(ref_year,Tbl_labor_indexes,2)/VLOOKUP(2008,Tbl_labor_indexes,2)) -> 0 | D103: =ref_year&"$/year" -> 2016$/year
B104: Site Characterization | C104: =395000*(VLOOKUP(ref_year,Tbl_labor_indexes,2)/VLOOKUP(2008,Tbl_labor_indexes,2))/plant_life -> 11503.10897 | D104: =ref_year&"$/year" -> 2016$/year
B105: Permitting | C105: =100000*(VLOOKUP(ref_year,Tbl_labor_indexes,2)/VLOOKUP(2008,Tbl_labor_indexes,2))/plant_life -> 2912.179487 | D105: =ref_year&"$/year" -> 2016$/year
B106: Operations | C106: =(-30000*CO2_flowrate_GTpY^2 + 143000*CO2_flowrate_GTpY + 41000)*1000*(VLOOKUP(ref_year,Tbl_labor_indexes,2)/VLOOKUP(2008,Tbl_labor_indexes,2))/plant_life -> 1193993.59 | D106: =ref_year&"$/year" -> 2016$/year
B107: Post Injection Site Care & Site Closure | C107: =(111200*CO2_flowrate_GTpY+27733.33)*1000*(VLOOKUP(ref_year,Tbl_labor_indexes,2)/VLOOKUP(2008,Tbl_labor_indexes,2))/plant_life -> 807644.3474 | D107: =ref_year&"$/year" -> 2016$/year

Sheet Results
B2: Table of Contents
B3: Specific Item Cost Calculation
B4: Energy Data
B5: Production Process Energy Efficiency
B6: Upstream Energy Usage
B7: Emissions Summary
B8: Production Process GHG Emissions Summary
B9: Production Process GHG Emissions
B10: Upstream GHG Emissions
B12: H2a Analysis Results
B14: COST RESULTS
B15: Lang Factor | C15: =total_cap/(ProcEqpCap+CCSEqpCap) -> 1.570606176
B17: Specific Item Cost Calculation | F17: =IF(CO2_inUse = "Carbon Sequestration","Approximate Carbon Sequestration Costs*","Carbon Sequestration is not included in this case") -> Approximate Carbon Sequestration Costs*
B18: Cost Component | C18: Cost Contribution ($/kg) | D18: Percentage of H2 Cost | F18: Cost Component | G18: Cost Contribution ($/ kg H2) | H18: Cost Contribution ($/ tonne CO2 Sequestered)
B19: Capital Costs | C19: ='Cash Flow Analysis'!D119 -> 0.7027555823 | D19: ='Cash Flow Analysis'!C119 -> 0.1357869571 | F19: Capital Costs | G19: =IF(CO2_inUse = "Carbon Sequestration",ROUND((Det_CO2_seq+CO2_aprx_indCap)*CO2_cap_charge_rate/output_kgyear,2),"") -> 0 | H19: =IF(CO2_inUse = "Carbon Sequestration",CO2_capptonneCO2,"") -> 
B20: Decommissioning Costs | C20: ='Cash Flow Analysis'!D120 -> 0.003610203326 | D20: ='Cash Flow Analysis'!C120 -> 0.0006975661757 | F20: O&M Cost | G20: =IF(CO2_inUse = "Carbon Sequestration",ROUND(Det_CO2_OandMcost/output_kgyear,2),"") -> 0 | H20: =IF(CO2_inUse = "Carbon Sequestration",CO2_OandMptonneCO2,"") -> 
B21: Fixed O&M | C21: ='Cash Flow Analysis'!D121 -> 0.4624263665 | D21: ='Cash Flow Analysis'!C121 -> 0.08935036698 | F21: Energy Cost | G21: =IF(CO2_inUse = "Carbon Sequestration",ROUND(CO2_eCostpY/output_kgyear,2),"") -> 0 | H21: =IF(CO2_inUse = "Carbon Sequestration",CO2_energyptonneCO2,"") -> 
B22: Feedstock Costs | C22: ='Cash Flow Analysis'!D122 -> 3.995330806 | D22: ='Cash Flow Analysis'!C122 -> 0.7719807943 | F22: Total | G22: =SUM(G19:G21) -> 0 | H22: =SUM(H19:H21) -> 
B23: Other Raw Material Costs | C23: ='Cash Flow Analysis'!D123 -> 0 | D23: ='Cash Flow Analysis'!C123 -> 0 | F23: *Carbon sequestration costs presented in this table do not include carbon capture capital and operating costs.
B24: Byproduct Credits | C24: ='Cash Flow Analysis'!D124 -> 0 | D24: ='Cash Flow Analysis'!C124 -> 0
B25: Other Variable Costs (including utilities) | C25: ='Cash Flow Analysis'!D125 -> 0.01130476721 | D25: ='Cash Flow Analysis'!C125 -> 0.00218431554
B26: Total | C26: =SUM(C19:C25) -> 5.175427726
B28: ENERGY
B30: Energy Data
B31: Feedstock | C31: Energy Input (GJ/kg H2) | D31: Energy Input (kWh/kg H2) | E31: LHV (GJ/usage unit) | F31: Usage (/kg H2) | G31: Unit | H31: Unit System Conversion Factor | I31: Real levelized cost
B32: =IF('Cash Flow Analysis'!$B$131=0,"",'Cash Flow Analysis'!$B$131) -> Industrial Electricity | C32: =IF($B$32="","",$E$32*$F$32*$H$32) -> 0.19548 | D32: =IF($B32="","",$C32*1000*MJ_to_kWh) -> 54.3 | E32: =IF($B$32<>"",VLOOKUP($B$32,MASTER_PROPERTY_TABLE,MATCH("H2A LHV (GJ/ H2A usage input unit)",key_MPTable,0),FALSE),"") -> 0.0036 | F32: =IF('Cash Flow Analysis'!$B$133="","",'Cash Flow Analysis'!$B$133) -> 54.3 | G32: =IF($B$32<>"",VLOOKUP($B$32,MASTER_PROPERTY_TABLE,MATCH("H2A Usage Input Unit/ kg H2",key_MPTable,0),FALSE),"") -> kWh | H32: =IF($B32="","",IF(VLOOKUP($B32,MASTER_PROPERTY_TABLE,MATCH("Unit System",key_MPTable,0),FALSE)="English",mmBTU_to_GJ,1)) -> 1 | I32: =+'Cash Flow Analysis'!$B$233 -> 0.0749768341
B33: =IF('Cash Flow Analysis'!$C$131=0,"",'Cash Flow Analysis'!$C$131) ->  | C33: =IF($B$33="","",$E$33*$F$33*$H$33) ->  | D33: =IF($B33="","",$C33*1000*MJ_to_kWh) ->  | E33: =IF($B$33<>"",VLOOKUP($B$33,MASTER_PROPERTY_TABLE,MATCH("H2A LHV (GJ/ H2A usage input unit)",key_MPTable,0),FALSE),"") ->  | F33: =IF('Cash Flow Analysis'!$C$133="","",'Cash Flow Analysis'!$C$133) ->  | G33: =IF($B$33<>"",VLOOKUP($B$33,MASTER_PROPERTY_TABLE,MATCH("H2A Usage Input Unit/ kg H2",key_MPTable,0),FALSE),"") ->  | H33: =IF($B$33="","",IF(VLOOKUP($B$33,MASTER_PROPERTY_TABLE,MATCH("Unit System",key_MPTable,0),FALSE)="English",mmBTU_to_GJ,1)) ->  | I33: =+'Cash Flow Analysis'!$C$233 -> 
B34: =IF('Cash Flow Analysis'!$D$131=0,"",'Cash Flow Analysis'!$D$131) ->  | C34: =IF($B$34="","",$E$34*$F$34*$H$34) ->  | D34: =IF($B34="","",$C34*1000*MJ_to_kWh) ->  | E34: =IF($B$34<>"",VLOOKUP($B$34,MASTER_PROPERTY_TABLE,MATCH("H2A LHV (GJ/ H2A usage input unit)",key_MPTable,0),FALSE),"") ->  | F34: =IF('Cash Flow Analysis'!$D$133="","",'Cash Flow Analysis'!$D$133) ->  | G34: =IF($B$34<>"",VLOOKUP($B$34,MASTER_PROPERTY_TABLE,MATCH("H2A Usage Input Unit/ kg H2",key_MPTable,0),FALSE),"") ->  | H34: =IF($B$34="","",IF(VLOOKUP($B$34,MASTER_PROPERTY_TABLE,MATCH("Unit System",key_MPTable,0),FALSE)="English",mmBTU_to_GJ,1)) ->  | I34: =+'Cash Flow Analysis'!$D$233 -> 
B35: =IF('Cash Flow Analysis'!$E$131=0,"",'Cash Flow Analysis'!$E$131) ->  | C35: =IF($B$35="","",$E$35*$F$35*$H$35) ->  | D35: =IF($B35="","",$C35*1000*MJ_to_kWh) ->  | E35: =IF($B$35<>"",VLOOKUP($B$35,MASTER_PROPERTY_TABLE,MATCH("H2A LHV (GJ/ H2A usage input unit)",key_MPTable,0),FALSE),"") ->  | F35: =IF('Cash Flow Analysis'!$E$133="","",'Cash Flow Analysis'!$E$133) ->  | G35: =IF($B$35<>"",VLOOKUP($B$35,MASTER_PROPERTY_TABLE,MATCH("H2A Usage Input Unit/ kg H2",key_MPTable,0),FALSE),"") ->  | H35: =IF($B$35="","",IF(VLOOKUP($B$35,MASTER_PROPERTY_TABLE,MATCH("Unit System",key_MPTable,0),FALSE)="English",mmBTU_to_GJ,1)) ->  | I35: =+'Cash Flow Analysis'!$E$233 -> 
B36: Utility
B37: =IF('Cash Flow Analysis'!$F$131=0,"",'Cash Flow Analysis'!$F$131) ->  | C37: =IF($B$37="","",$E$37*$F$37*$H$37) ->  | D37: =IF($B37="","",$C37*1000*MJ_to_kWh) ->  | E37: =IF($B37<>"",VLOOKUP($B37,MASTER_PROPERTY_TABLE,MATCH("H2A LHV (GJ/ H2A usage input unit)",key_MPTable,0),FALSE),"") ->  | F37: =IF('Cash Flow Analysis'!$F$133="","",'Cash Flow Analysis'!$F$133) ->  | G37: =IF($B$37<>"",VLOOKUP($B$37,MASTER_PROPERTY_TABLE,MATCH("H2A Usage Input Unit/ kg H2",key_MPTable,0),FALSE),"") ->  | H37: =IF($B$37="","",IF(VLOOKUP($B$37,MASTER_PROPERTY_TABLE,MATCH("Unit System",key_MPTable,0),FALSE)="English",mmBTU_to_GJ,1)) ->  | I37: =+'Cash Flow Analysis'!$F$233 -> 
B38: =IF('Cash Flow Analysis'!$G$131=0,"",'Cash Flow Analysis'!$G$131) ->  | C38: =IF($B$38="","",$E$38*$F$38*$H$38) ->  | D38: =IF($B38="","",$C38*1000*MJ_to_kWh) ->  | E38: =IF($B38<>"",VLOOKUP($B38,MASTER_PROPERTY_TABLE,MATCH("H2A LHV (GJ/ H2A usage input unit)",key_MPTable,0),FALSE),"") ->  | F38: =IF('Cash Flow Analysis'!$G$133="","",'Cash Flow Analysis'!$G$133) ->  | G38: =IF($B$38<>"",VLOOKUP($B$38,MASTER_PROPERTY_TABLE,MATCH("H2A Usage Input Unit/ kg H2",key_MPTable,0),FALSE),"") ->  | H38: =IF($B$38="","",IF(VLOOKUP($B$38,MASTER_PROPERTY_TABLE,MATCH("Unit System",key_MPTable,0),FALSE)="English",mmBTU_to_GJ,1)) ->  | I38: =+'Cash Flow Analysis'!$G$233 -> 
B39: =IF('Cash Flow Analysis'!$H$131=0,"",'Cash Flow Analysis'!$H$131) ->  | C39: =IF($B$39="","",$E$39*$F$39*$H$39) ->  | D39: =IF($B39="","",$C39*1000*MJ_to_kWh) ->  | E39: =IF($B39<>"",VLOOKUP($B39,MASTER_PROPERTY_TABLE,MATCH("H2A LHV (GJ/ H2A usage input unit)",key_MPTable,0),FALSE),"") ->  | F39: =IF('Cash Flow Analysis'!$H$133="","",'Cash Flow Analysis'!$H$133) ->  | G39: =IF($B$39<>"",VLOOKUP($B$39,MASTER_PROPERTY_TABLE,MATCH("H2A Usage Input Unit/ kg H2",key_MPTable,0),FALSE),"") ->  | H39: =IF($B$39="","",IF(VLOOKUP($B$39,MASTER_PROPERTY_TABLE,MATCH("Unit System",key_MPTable,0),FALSE)="English",mmBTU_to_GJ,1)) ->  | I39: =+'Cash Flow Analysis'!$H$233 -> 
B40: =IF('Cash Flow Analysis'!$I$131=0,"",'Cash Flow Analysis'!$I$131) ->  | C40: =IF($B$40="","",$E$40*$F$40*$H$40) ->  | D40: =IF($B40="","",$C40*1000*MJ_to_kWh) ->  | E40: =IF($B40<>"",VLOOKUP($B40,MASTER_PROPERTY_TABLE,MATCH("H2A LHV (GJ/ H2A usage input unit)",key_MPTable,0),FALSE),"") ->  | F40: =IF('Cash Flow Analysis'!$I$133="","",'Cash Flow Analysis'!$I$133) ->  | G40: =IF($B$40<>"",VLOOKUP($B$40,MASTER_PROPERTY_TABLE,MATCH("H2A Usage Input Unit/ kg H2",key_MPTable,0),FALSE),"") ->  | H40: =IF($B$40="","",IF(VLOOKUP($B$40,MASTER_PROPERTY_TABLE,MATCH("Unit System",key_MPTable,0),FALSE)="English",mmBTU_to_GJ,1)) ->  | I40: =+'Cash Flow Analysis'!$I$233 -> 
B41: Carbon Sequestration
B42: =IF('Cash Flow Analysis'!$J$131=0,"",'Cash Flow Analysis'!$J$131) ->  | C42: =IF($B$42="","",$E$42*$F$42*$H$42) ->  | D42: =IF($B42="","",$C42*1000*MJ_to_kWh) ->  | E42: =IF($B42<>"",VLOOKUP($B42,MASTER_PROPERTY_TABLE,MATCH("H2A LHV (GJ/ H2A usage input unit)",key_MPTable,0),FALSE),"") ->  | F42: =CO2_CashFlow_eUse -> 0 | G42: =IF($B$42<>"",VLOOKUP($B$42,MASTER_PROPERTY_TABLE,MATCH("H2A Usage Input Unit/ kg H2",key_MPTable,0),FALSE),"") ->  | H42: =IF($B42="","",IF(VLOOKUP($B42,MASTER_PROPERTY_TABLE,MATCH("Unit System",key_MPTable,0),FALSE)="English",mmBTU_to_GJ,1)) -> 
C43: Energy Output (GJ/kg H2) | D43: Energy Output (kWh/kg H2) | E43: LHV (GJ/usage unit) | F43: Production (/kg H2) | G43: Unit | H43: Unit System Conversion Factor
B44: Hydrogen (1 kg) | C44: =kgH2_to_GJ -> 0.1202116383 | D44: =IF($B44="","",$C44*1000*MJ_to_kWh) -> 33.39212175 | E44: =kgH2_to_GJ -> 0.1202116383 | F44: 1 | G44: kg | H44: 1
B46: Byproducts
B47: =IF('Cash Flow Analysis'!$K$131=0,"",'Cash Flow Analysis'!$K$131) ->  | C47: =IF($B$47="","",$E$47*$F$47*$H$47) ->  | D47: =IF($B47="","",$C47*1000*MJ_to_kWh) ->  | E47: =IF($B47<>"",VLOOKUP($B47,MASTER_PROPERTY_TABLE,MATCH("H2A LHV (GJ/ H2A usage input unit)",key_MPTable,0),FALSE),"") ->  | F47: =IF('Cash Flow Analysis'!$K$133="","",'Cash Flow Analysis'!$K$133) ->  | G47: =IF($B$47<>"",VLOOKUP($B$47,MASTER_PROPERTY_TABLE,MATCH("H2A Usage Input Unit/ kg H2",key_MPTable,0),FALSE),"") ->  | H47: =IF($B$47="","",IF(VLOOKUP($B$47,MASTER_PROPERTY_TABLE,MATCH("Unit System",key_MPTable,0),FALSE)="English",mmBTU_to_GJ,1)) ->  | I47: =+'Cash Flow Analysis'!$K$233 -> 
B48: =IF('Cash Flow Analysis'!$L$131=0,"",'Cash Flow Analysis'!$L$131) ->  | C48: =IF($B$48="","",$E$48*$F$48*$H$48) ->  | D48: =IF($B48="","",$C48*1000*MJ_to_kWh) ->  | E48: =IF($B48<>"",VLOOKUP($B48,MASTER_PROPERTY_TABLE,MATCH("H2A LHV (GJ/ H2A usage input unit)",key_MPTable,0),FALSE),"") ->  | F48: =IF('Cash Flow Analysis'!$L$133="","",'Cash Flow Analysis'!$L$133) ->  | G48: =IF($B$48<>"",VLOOKUP($B$48,MASTER_PROPERTY_TABLE,MATCH("H2A Usage Input Unit/ kg H2",key_MPTable,0),FALSE),"") ->  | H48: =IF($B$48="","",IF(VLOOKUP($B$48,MASTER_PROPERTY_TABLE,MATCH("Unit System",key_MPTable,0),FALSE)="English",mmBTU_to_GJ,1)) ->  | I48: =+'Cash Flow Analysis'!$L$233 -> 
B49: =IF('Cash Flow Analysis'!$M$131=0,"",'Cash Flow Analysis'!$M$131) ->  | C49: =IF($B$49="","",$E$49*$F$49*$H$49) ->  | D49: =IF($B49="","",$C49*1000*MJ_to_kWh) ->  | E49: =IF($B49<>"",VLOOKUP($B49,MASTER_PROPERTY_TABLE,MATCH("H2A LHV (GJ/ H2A usage input unit)",key_MPTable,0),FALSE),"") ->  | F49: =IF('Cash Flow Analysis'!$M$133="","",'Cash Flow Analysis'!$M$133) ->  | G49: =IF($B$49<>"",VLOOKUP($B$49,MASTER_PROPERTY_TABLE,MATCH("H2A Usage Input Unit/ kg H2",key_MPTable,0),FALSE),"") ->  | H49: =IF($B$49="","",IF(VLOOKUP($B$49,MASTER_PROPERTY_TABLE,MATCH("Unit System",key_MPTable,0),FALSE)="English",mmBTU_to_GJ,1)) ->  | I49: =+'Cash Flow Analysis'!$M$233 -> 
B50: =IF('Cash Flow Analysis'!$N$131=0,"",'Cash Flow Analysis'!$N$131) ->  | C50: =IF($B$50="","",$E$50*$F$50*$H$50) ->  | D50: =IF($B50="","",$C50*1000*MJ_to_kWh) ->  | E50: =IF($B50<>"",VLOOKUP($B50,MASTER_PROPERTY_TABLE,MATCH("H2A LHV (GJ/ H2A usage input unit)",key_MPTable,0),FALSE),"") ->  | F50: =IF('Cash Flow Analysis'!$N$133="","",'Cash Flow Analysis'!$N$133) ->  | G50: =IF($B$50<>"",VLOOKUP($B$50,MASTER_PROPERTY_TABLE,MATCH("H2A Usage Input Unit/ kg H2",key_MPTable,0),FALSE),"") ->  | H50: =IF($B$50="","",IF(VLOOKUP($B$50,MASTER_PROPERTY_TABLE,MATCH("Unit System",key_MPTable,0),FALSE)="English",mmBTU_to_GJ,1)) ->  | I50: =+'Cash Flow Analysis'!$N$233 -> 
B52: Production Process Energy Efficiency | D52: =(C56+C57)/(C53+C54+C55) -> 0.6149562016
B53: Feedstock energy input (GJ)/kg H2 | C53: =SUM(C32:C35) -> 0.19548
B54: Utility energy input (GJ/kg H2) | C54: =SUM(C37:C40) -> 0
B55: Carbon sequestration energy input (GJ/kg H2) | C55: =IF(C42="",0,C42) -> 0
B56: Hydrogen energy output (GJ/kg) | C56: =C44 -> 0.1202116383
B57: Byproduct energy output (GJ/kg H2) | C57: =SUM(C47:C50) -> 0
B59: Upstream Energy Usage (GJ/kg H2)
B60: Feedstock | C60: Total Energy | D60: Fossil Fuels | E60: Petroleum
B61: =B32 -> Industrial Electricity | C61: =IF($B61="","",$C32/1000000*VLOOKUP($B61,Tbl_Emissions,3,FALSE)) -> 0.34932276 | D61: =IF($B61="","",$C32/1000000*VLOOKUP($B61,Tbl_Emissions,4,FALSE)) -> 0.26782932 | E61: =IF($B61="","",$C32/1000000*VLOOKUP($B61,Tbl_Emissions,5,FALSE)) -> 0.004127886
B62: =B33 ->  | C62: =IF($B62="","",$C33/1000000*VLOOKUP($B62,Tbl_Emissions,3,FALSE)) ->  | D62: =IF($B62="","",$C33/1000000*VLOOKUP($B62,Tbl_Emissions,4,FALSE)) ->  | E62: =IF($B62="","",$C33/1000000*VLOOKUP($B62,Tbl_Emissions,5,FALSE)) -> 
B63: =B34 ->  | C63: =IF($B63="","",$C34/1000000*VLOOKUP($B63,Tbl_Emissions,3,FALSE)) ->  | D63: =IF($B63="","",$C34/1000000*VLOOKUP($B63,Tbl_Emissions,4,FALSE)) ->  | E63: =IF($B63="","",$C34/1000000*VLOOKUP($B63,Tbl_Emissions,5,FALSE)) -> 
B64: =B35 ->  | C64: =IF($B64="","",$C35/1000000*VLOOKUP($B64,Tbl_Emissions,3,FALSE)) ->  | D64: =IF($B64="","",$C35/1000000*VLOOKUP($B64,Tbl_Emissions,4,FALSE)) ->  | E64: =IF($B64="","",$C35/1000000*VLOOKUP($B64,Tbl_Emissions,5,FALSE)) -> 
B65: Utility
B66: =B37 ->  | C66: =IF($B66="","",$C37/1000000*VLOOKUP($B66,Tbl_Emissions,3,FALSE)) ->  | D66: =IF($B66="","",$C37/1000000*VLOOKUP($B66,Tbl_Emissions,4,FALSE)) ->  | E66: =IF($B66="","",$C37/1000000*VLOOKUP($B66,Tbl_Emissions,5,FALSE)) -> 
B67: =B38 ->  | C67: =IF($B67="","",$C38/1000000*VLOOKUP($B67,Tbl_Emissions,3,FALSE)) ->  | D67: =IF($B67="","",$C38/1000000*VLOOKUP($B67,Tbl_Emissions,4,FALSE)) ->  | E67: =IF($B67="","",$C38/1000000*VLOOKUP($B67,Tbl_Emissions,5,FALSE)) -> 
B68: =B39 ->  | C68: =IF($B68="","",$C39/1000000*VLOOKUP($B68,Tbl_Emissions,3,FALSE)) ->  | D68: =IF($B68="","",$C39/1000000*VLOOKUP($B68,Tbl_Emissions,4,FALSE)) ->  | E68: =IF($B68="","",$C39/1000000*VLOOKUP($B68,Tbl_Emissions,5,FALSE)) -> 
B69: =B40 ->  | C69: =IF($B69="","",$C40/1000000*VLOOKUP($B69,Tbl_Emissions,3,FALSE)) ->  | D69: =IF($B69="","",$C40/1000000*VLOOKUP($B69,Tbl_Emissions,4,FALSE)) ->  | E69: =IF($B69="","",$C40/1000000*VLOOKUP($B69,Tbl_Emissions,5,FALSE)) -> 
B70: Carbon Sequestration
B71: =B42 ->  | C71: =IF($B71="","",$C42/1000000*VLOOKUP($B71,Tbl_Emissions,3,FALSE)) ->  | D71: =IF($B71="","",$C42/1000000*VLOOKUP($B71,Tbl_Emissions,4,FALSE)) ->  | E71: =IF($B71="","",$C42/1000000*VLOOKUP($B71,Tbl_Emissions,5,FALSE)) -> 
B74: EMISSIONS
B76: Emissions Summary | D76: CO2 | E76: CH4 | F76: N2O | G76: Total GHG (CO2 eq)
B77: Total upstream emissions (kg/kg H2) | D77: =C121 -> 27.3908748 | E77: =D121 -> 0.04155261888 | F77: =E121 -> 0.000400699248 | G77: =F121 -> 28.54909865
B78: Total process emissions (kg/kg H2) | D78: =D89 -> 0 | E78: =E89 -> 0 | F78: =F89 -> 0 | G78: =G89 -> 0
B80: Total well to pump emissions (kg/kg H2) | D80: =SUM(D77:D79) -> 27.3908748 | E80: =SUM(E77:E79) -> 0.04155261888 | F80: =SUM(F77:F79) -> 0.000400699248 | G80: =SUM(G77:G79) -> 28.54909865
B82: Production Process GHG Emissions Summary | D82: CO2 | E82: CH4 | F82: N2O | G82: Total GHG (CO2 eq)
B83: Total Process Pollutants Produced (kg /kg H2) | D83: =SUM(C95:C105) -> 0 | E83: =SUM(D95:D105) -> 0 | F83: =SUM(E95:E105) -> 0 | G83: =SUM(F95:F105) -> 0
B84: Total Process Pollutants Produced (metric tons/year) | D84: =ROUND(D83*output_kgyear/1000,-2) -> 0 | E84: =ROUND(E83*output_kgyear/1000,-2) -> 0 | F84: =ROUND(F83*output_kgyear/1000,-2) -> 0 | G84: =ROUND(G83*output_kgyear/1000,-2) -> 0
B85: Total Feedstock Pollutants Produced (kg /kg H2) | D85: =SUM(C95:C98) -> 0 | E85: =SUM(D95:D98) -> 0 | F85: =SUM(E95:E98) -> 0 | G85: =SUM(F95:F98) -> 0
B86: Total Feedstock Pollutants Produced (metric tons /year) | D86: =ROUND(D85*output_kgyear/1000,-2) -> 0 | E86: =ROUND(E85*output_kgyear/1000,-2) -> 0 | F86: =ROUND(F85*output_kgyear/1000,-2) -> 0 | G86: =ROUND(G85*output_kgyear/1000,-2) -> 0
B87: CO2 Captured (kg/kg H2)* | D87: =IF(CO2_CashFlow_eUse>0,D85*CO2_Capture_Efficiency,0) -> 0
B88: CO2 Captured (metric tons/year)* | D88: =ROUND(D87*output_kgyear/1000,-2) -> 0
B89: Total Process Emissions (kg/kg H2) | D89: =D83-D87 -> 0 | E89: =E83-E87 -> 0 | F89: =F83-F87 -> 0 | G89: =D89*GHG_CO2_factor + E89*GHG_CH4_factor + F89*GHG_N2O_factor -> 0
B90: Total Process Emissions (metric tons/year) | D90: =ROUND(D89*output_kgyear/1000,-2) -> 0 | E90: =ROUND(E89*output_kgyear/1000,-2) -> 0 | F90: =ROUND(F89*output_kgyear/1000,-2) -> 0 | G90: =ROUND(G89*output_kgyear/1000,-2) -> 0
B91: *Carbon sequestration values are only calculated if the detailed Carbon Sequestration sheet is used.
B93: Production Process GHG Emissions (/kg H2)
B94: Feedstock | C94: CO2 | D94: CH4 | E94: N2O | F94: Total GHG (CO2 eq)
B95: =B32 -> Industrial Electricity | C95: =IF($B95="","",VLOOKUP($B95,MASTER_PROPERTY_TABLE,MATCH("CO2 Emissions Factor (kg CO2 produced/GJ feed)",key_MPTable,0),FALSE)*$E32*$F32) -> 0 | D95: =IF($B95="","",VLOOKUP($B95,MASTER_PROPERTY_TABLE,MATCH("CH4 Emissions Factor (kg CH4 produced/GJ or mmBtu feed)",key_MPTable,0),FALSE)*$E32*$F32) -> 0 | E95: =IF($B95="","",VLOOKUP($B95,MASTER_PROPERTY_TABLE,MATCH("N2O Emissions Factor (kg N2O produced/GJ or mmBtu feed)",key_MPTable,0),FALSE)*$E32*$F32) -> 0 | F95: =IF($B95="","",$C95*GHG_CO2_factor+$D95*GHG_CH4_factor+$E95*GHG_N2O_factor) -> 0
B96: =B33 ->  | C96: =IF($B96="","",VLOOKUP($B96,MASTER_PROPERTY_TABLE,MATCH("CO2 Emissions Factor (kg CO2 produced/GJ feed)",key_MPTable,0),FALSE)*$E33*$F33) ->  | D96: =IF($B96="","",VLOOKUP($B96,MASTER_PROPERTY_TABLE,MATCH("CH4 Emissions Factor (kg CH4 produced/GJ or mmBtu feed)",key_MPTable,0),FALSE)*$E33*$F33) ->  | E96: =IF($B96="","",VLOOKUP($B96,MASTER_PROPERTY_TABLE,MATCH("N2O Emissions Factor (kg N2O produced/GJ or mmBtu feed)",key_MPTable,0),FALSE)*$E33*$F33) ->  | F96: =IF($B96="","",$C96*GHG_CO2_factor+$D96*GHG_CH4_factor+$E96*GHG_N2O_factor) -> 
B97: =B34 ->  | C97: =IF($B97="","",VLOOKUP($B97,MASTER_PROPERTY_TABLE,MATCH("CO2 Emissions Factor (kg CO2 produced/GJ feed)",key_MPTable,0),FALSE)*$E34*$F34) ->  | D97: =IF($B97="","",VLOOKUP($B97,MASTER_PROPERTY_TABLE,MATCH("CH4 Emissions Factor (kg CH4 produced/GJ or mmBtu feed)",key_MPTable,0),FALSE)*$E34*$F34) ->  | E97: =IF($B97="","",VLOOKUP($B97,MASTER_PROPERTY_TABLE,MATCH("N2O Emissions Factor (kg N2O produced/GJ or mmBtu feed)",key_MPTable,0),FALSE)*$E34*$F34) ->  | F97: =IF($B97="","",$C97*GHG_CO2_factor+$D97*GHG_CH4_factor+$E97*GHG_N2O_factor) -> 
B98: =B35 ->  | C98: =IF($B98="","",VLOOKUP($B98,MASTER_PROPERTY_TABLE,MATCH("CO2 Emissions Factor (kg CO2 produced/GJ feed)",key_MPTable,0),FALSE)*$E35*$F35) ->  | D98: =IF($B98="","",VLOOKUP($B98,MASTER_PROPERTY_TABLE,MATCH("CH4 Emissions Factor (kg CH4 produced/GJ or mmBtu feed)",key_MPTable,0),FALSE)*$E35*$F35) ->  | E98: =IF($B98="","",VLOOKUP($B98,MASTER_PROPERTY_TABLE,MATCH("N2O Emissions Factor (kg N2O produced/GJ or mmBtu feed)",key_MPTable,0),FALSE)*$E35*$F35) ->  | F98: =IF($B98="","",$C98*GHG_CO2_factor+$D98*GHG_CH4_factor+$E98*GHG_N2O_factor) -> 
B99: Utility
B100: =B37 ->  | C100: =IF($B100="","",VLOOKUP($B100,MASTER_PROPERTY_TABLE,MATCH("CO2 Emissions Factor (kg CO2 produced/GJ feed)",key_MPTable,0),FALSE)*$E37*$F37) ->  | D100: =IF($B100="","",VLOOKUP($B100,MASTER_PROPERTY_TABLE,MATCH("CH4 Emissions Factor (kg CH4 produced/GJ or mmBtu feed)",key_MPTable,0),FALSE)*$E37*$F37) ->  | E100: =IF($B100="","",VLOOKUP($B100,MASTER_PROPERTY_TABLE,MATCH("N2O Emissions Factor (kg N2O produced/GJ or mmBtu feed)",key_MPTable,0),FALSE)*$E37*$F37) ->  | F100: =IF($B100="","",$C100*GHG_CO2_factor+$D100*GHG_CH4_factor+$E100*GHG_N2O_factor) -> 
B101: =B38 ->  | C101: =IF($B101="","",VLOOKUP($B101,MASTER_PROPERTY_TABLE,MATCH("CO2 Emissions Factor (kg CO2 produced/GJ feed)",key_MPTable,0),FALSE)*$E38*$F38) ->  | D101: =IF($B101="","",VLOOKUP($B101,MASTER_PROPERTY_TABLE,MATCH("CH4 Emissions Factor (kg CH4 produced/GJ or mmBtu feed)",key_MPTable,0),FALSE)*$E38*$F38) ->  | E101: =IF($B101="","",VLOOKUP($B101,MASTER_PROPERTY_TABLE,MATCH("N2O Emissions Factor (kg N2O produced/GJ or mmBtu feed)",key_MPTable,0),FALSE)*$E38*$F38) ->  | F101: =IF($B101="","",$C101*GHG_CO2_factor+$D101*GHG_CH4_factor+$E101*GHG_N2O_factor) -> 
B102: =B39 ->  | C102: =IF($B102="","",VLOOKUP($B102,MASTER_PROPERTY_TABLE,MATCH("CO2 Emissions Factor (kg CO2 produced/GJ feed)",key_MPTable,0),FALSE)*$E39*$F39) ->  | D102: =IF($B102="","",VLOOKUP($B102,MASTER_PROPERTY_TABLE,MATCH("CH4 Emissions Factor (kg CH4 produced/GJ or mmBtu feed)",key_MPTable,0),FALSE)*$E39*$F39) ->  | E102: =IF($B102="","",VLOOKUP($B102,MASTER_PROPERTY_TABLE,MATCH("N2O Emissions Factor (kg N2O produced/GJ or mmBtu feed)",key_MPTable,0),FALSE)*$E39*$F39) ->  | F102: =IF($B102="","",$C102*GHG_CO2_factor+$D102*GHG_CH4_factor+$E102*GHG_N2O_factor) -> 
B103: =B40 ->  | C103: =IF($B103="","",VLOOKUP($B103,MASTER_PROPERTY_TABLE,MATCH("CO2 Emissions Factor (kg CO2 produced/GJ feed)",key_MPTable,0),FALSE)*$E40*$F40) ->  | D103: =IF($B103="","",VLOOKUP($B103,MASTER_PROPERTY_TABLE,MATCH("CH4 Emissions Factor (kg CH4 produced/GJ or mmBtu feed)",key_MPTable,0),FALSE)*$E40*$F40) ->  | E103: =IF($B103="","",VLOOKUP($B103,MASTER_PROPERTY_TABLE,MATCH("N2O Emissions Factor (kg N2O produced/GJ or mmBtu feed)",key_MPTable,0),FALSE)*$E40*$F40) ->  | F103: =IF($B103="","",$C103*GHG_CO2_factor+$D103*GHG_CH4_factor+$E103*GHG_N2O_factor) -> 
B104: Carbon Sequestration
B105: =B42 ->  | C105: =IF($B105="","",VLOOKUP($B105,MASTER_PROPERTY_TABLE,MATCH("CO2 Emissions Factor (kg CO2 produced/GJ feed)",key_MPTable,0),FALSE)*$E42*$F42) ->  | D105: =IF($B105="","",VLOOKUP($B105,MASTER_PROPERTY_TABLE,MATCH("CH4 Emissions Factor (kg CH4 produced/GJ or mmBtu feed)",key_MPTable,0),FALSE)*$E42*$F42) ->  | E105: =IF($B105="","",VLOOKUP($B105,MASTER_PROPERTY_TABLE,MATCH("N2O Emissions Factor (kg N2O produced/GJ or mmBtu feed)",key_MPTable,0),FALSE)*$E42*$F42) ->  | F105: =IF($B105="","",$C105*GHG_CO2_factor+$D105*GHG_CH4_factor+$E105*GHG_N2O_factor) -> 
B108: Upstream GHG Emissions (kg/kg H2) based on GREET.NET 2017
B109: Feedstock | C109: CO2 | D109: CH4 | E109: N2O | F109: Total GHG (CO2 eq)
B110: =B32 -> Industrial Electricity | C110: =IF($B110="","",$C32*VLOOKUP($B110,Tbl_Emissions,6,FALSE)) -> 27.3908748 | D110: =IF($B110="","",$C32*VLOOKUP($B110,Tbl_Emissions,7,FALSE)) -> 0.04155261888 | E110: =IF($B110="","",$C32*VLOOKUP($B110,Tbl_Emissions,8,FALSE)) -> 0.000400699248 | F110: =IF($B110="","",$C110*GHG_CO2_factor+$D110*GHG_CH4_factor+$E110*GHG_N2O_factor) -> 28.54909865
B111: =B33 ->  | C111: =IF($B111="","",$C33*VLOOKUP($B111,Tbl_Emissions,6,FALSE)) ->  | D111: =IF($B111="","",$C33*VLOOKUP($B111,Tbl_Emissions,7,FALSE)) ->  | E111: =IF($B111="","",$C33*VLOOKUP($B111,Tbl_Emissions,8,FALSE)) ->  | F111: =IF($B111="","",$C111*GHG_CO2_factor+$D111*GHG_CH4_factor+$E111*GHG_N2O_factor) -> 
B112: =B34 ->  | C112: =IF($B112="","",$C34*VLOOKUP($B112,Tbl_Emissions,6,FALSE)) ->  | D112: =IF($B112="","",$C34*VLOOKUP($B112,Tbl_Emissions,7,FALSE)) ->  | E112: =IF($B112="","",$C34*VLOOKUP($B112,Tbl_Emissions,8,FALSE)) ->  | F112: =IF($B112="","",$C112*GHG_CO2_factor+$D112*GHG_CH4_factor+$E112*GHG_N2O_factor) -> 
B113: =B35 ->  | C113: =IF($B113="","",$C35*VLOOKUP($B113,Tbl_Emissions,6,FALSE)) ->  | D113: =IF($B113="","",$C35*VLOOKUP($B113,Tbl_Emissions,7,FALSE)) ->  | E113: =IF($B113="","",$C35*VLOOKUP($B113,Tbl_Emissions,8,FALSE)) ->  | F113: =IF($B113="","",$C113*GHG_CO2_factor+$D113*GHG_CH4_factor+$E113*GHG_N2O_factor) -> 
B114: Utility
B115: =B37 ->  | C115: =IF($B115="","",$C37*VLOOKUP($B115,Tbl_Emissions,6,FALSE)) ->  | D115: =IF($B115="","",$C37*VLOOKUP($B115,Tbl_Emissions,7,FALSE)) ->  | E115: =IF($B115="","",$C37*VLOOKUP($B115,Tbl_Emissions,8,FALSE)) ->  | F115: =IF($B115="","",$C115*GHG_CO2_factor+$D115*GHG_CH4_factor+$E115*GHG_N2O_factor) -> 
B116: =B38 ->  | C116: =IF($B116="","",$C38*VLOOKUP($B116,Tbl_Emissions,6,FALSE)) ->  | D116: =IF($B116="","",$C38*VLOOKUP($B116,Tbl_Emissions,7,FALSE)) ->  | E116: =IF($B116="","",$C38*VLOOKUP($B116,Tbl_Emissions,8,FALSE)) ->  | F116: =IF($B116="","",$C116*GHG_CO2_factor+$D116*GHG_CH4_factor+$E116*GHG_N2O_factor) -> 
B117: =B39 ->  | C117: =IF($B117="","",$C39*VLOOKUP($B117,Tbl_Emissions,6,FALSE)) ->  | D117: =IF($B117="","",$C39*VLOOKUP($B117,Tbl_Emissions,7,FALSE)) ->  | E117: =IF($B117="","",$C39*VLOOKUP($B117,Tbl_Emissions,8,FALSE)) ->  | F117: =IF($B117="","",$C117*GHG_CO2_factor+$D117*GHG_CH4_factor+$E117*GHG_N2O_factor) -> 
B118: =B40 ->  | C118: =IF($B118="","",$C40*VLOOKUP($B118,Tbl_Emissions,6,FALSE)) ->  | D118: =IF($B118="","",$C40*VLOOKUP($B118,Tbl_Emissions,7,FALSE)) ->  | E118: =IF($B118="","",$C40*VLOOKUP($B118,Tbl_Emissions,8,FALSE)) ->  | F118: =IF($B118="","",$C118*GHG_CO2_factor+$D118*GHG_CH4_factor+$E118*GHG_N2O_factor) -> 
B119: Carbon Sequestration
B120: =B42 ->  | C120: =IF($B120="","",$C42*VLOOKUP($B120,Tbl_Emissions,6,FALSE)) ->  | D120: =IF($B120="","",$C42*VLOOKUP($B120,Tbl_Emissions,7,FALSE)) ->  | E120: =IF($B120="","",$C42*VLOOKUP($B120,Tbl_Emissions,8,FALSE)) ->  | F120: =IF($B120="","",$C120*GHG_CO2_factor+$D120*GHG_CH4_factor+$E120*GHG_N2O_factor) -> 
B121: TOTAL | C121: =SUM(C110:C120) -> 27.3908748 | D121: =SUM(D110:D120) -> 0.04155261888 | E121: =SUM(E110:E120) -> 0.000400699248 | F121: =SUM(F110:F120) -> 28.54909865

Sheet Tornado Charts & Risk Analysis
B2: Parameter | C2: Nominal | D2: Enter deviation % for lowering H2 cost | E2: Enter deviation % for increasing H2 cost | F2: Price-decreasing factor | G2: Price-increasing factor | H2: Price-decreasing value | I2: Price-increasing value
B3: Operating Capacity Factor | C3: =+cap_factor -> 0.97 | D3: 0.05 | E3: 0.05 | F3: =1+D3 -> 1.05 | G3: =1-E3 -> 0.95 | H3: =+C3*F3 -> 1.0185 | I3: =+C3*G3 -> 0.9215
B4: =+Input_Sheet_Template!B26 -> Plant Design Capacity (kg of H2/day) | C4: =+design_cap -> 50000 | D4: 0.05 | E4: 0.05 | F4: =1+D4 -> 1.05 | G4: =1-E4 -> 0.95 | H4: 52500 | I4: 47500
B5: After-tax Real IRR | C5: =+real_irr -> 0.08 | D5: 0.05 | E5: 0.05 | F5: =1-D5 -> 0.95 | G5: =1+E5 -> 1.05 | H5: 0.076 | I5: 0.084
B6: Feedstock Consumption (% of baseline) | C6: 1 | D6: 0.05 | E6: 0.05 | F6: =1-D6 -> 0.95 | G6: =1+E6 -> 1.05 | H6: 0.95 | I6: 1.05
B7: Utilities Consumption (% of baseline) | C7: 1 | D7: 0.05 | E7: 0.05 | F7: =1-D7 -> 0.95 | G7: 1.05 | H7: 0.95 | I7: 1.05
B8: Total Capital Investment | C8: =+total_cap -> 165837229.1 | D8: 0.05 | E8: 0.05 | F8: =1-D8 -> 0.95 | G8: 1.05 | H8: 157545367.6 | I8: 174129090.5
B9: Total Fixed Operating Cost | C9: =+fixed -> 8186102.754 | D9: 0.05 | E9: 0.05 | F9: =1-D9 -> 0.95 | G9: 1.05 | H9: 7776797.616 | I9: 8595407.891
B11: Run Risk Analysis? | D11: Yes | E11: =IF(RunRiskAnalysis="Yes"," Please click Update Charts and Risk Analysis button before using results below","") -> Please click Update Charts and Risk Analysis button before using results below
P12: Risk variable to plot | R12: Cost of hydrogen ($/kg)
V13: Percentile | W13: Value
V14: 0 | W14: =+MIN(OFFSET($B$251:$B$2250,0,$C$194))*$C$198 -> 4.898995892
V15: 0.05 | W15: =+PERCENTILE(OFFSET($B$251:$B$2250,0,$C$194),V15)*$C$198 -> 4.992973903
V16: =+V15+0.05 -> 0.1 | W16: 5.03136315
V17: 0.15 | W17: 5.055387723
V18: 0.2 | W18: 5.080935013
V19: 0.25 | W19: 5.098404698
V20: 0.3 | W20: 5.116161316
V21: 0.35 | W21: 5.1347034
V22: 0.4 | W22: 5.147392763
V23: 0.45 | W23: 5.161672943
V24: 0.5 | W24: 5.17667698
V25: 0.55 | W25: 5.192496741
V26: 0.6 | W26: 5.207291796
V27: 0.65 | W27: 5.224226513
V28: 0.7 | W28: 5.240646468
V29: 0.75 | W29: 5.258228555
V30: 0.8 | W30: 5.276960365
V31: 0.85 | W31: 5.300354028
V32: 0.9 | W32: 5.326037829
V33: 0.95 | W33: 5.3536462
V34: 1 | W34: =+MAX(OFFSET($B$251:$B$2250,0,$C$194))*$C$198 -> 5.460673613
B45: No user interactions below this row
B47: Displayed case
B48: 1 | C48: =+OFFSET(C50,$B$48,0) -> 1 | D48: 1 | E48: 1 | F48: =+OFFSET(F50,$B$48,0) -> 1 | G48: =+OFFSET(G50,$B$48,0) -> 1 | H48: =+OFFSET(H50,$B$48,0) -> 1 | I48: =+OFFSET(I50,$B$48,0) -> 1 | K48: =+'Cash Flow Analysis'!F118 -> 5.175427726 | L48: =+'Cash Flow Analysis'!Q118 -> 0 | M48: =+'Cash Flow Analysis'!L118 -> 0.003616203853 | N48: =+'Cash Flow Analysis'!H117 -> 0.3137197591 | O48: =+'Cash Flow Analysis'!I117 -> 0.148390999 | P48: =+'Cash Flow Analysis'!J117 -> 0.02032506299 | Q48: =+'Cash Flow Analysis'!K117 -> 0.001303585766 | R48: =+'Cash Flow Analysis'!M117 -> 0.003610203326 | S48: =+'Cash Flow Analysis'!N117 -> 0.4624263665 | T48: =+'Cash Flow Analysis'!O117 -> 3.995330806 | U48: =+'Cash Flow Analysis'!P117 -> 0 | V48: =+'Cash Flow Analysis'!R117 -> 0.01130476721 | W48: =+'Cash Flow Analysis'!S117 -> 0.1868697271 | X48: =+'Cash Flow Analysis'!X117 -> 0.02555994204 | Y48: =+'Cash Flow Analysis'!Z117 -> 0.01020271023
B50: Case | C50: Operating capacity factor | D50: Plant design capacity (kg of H2/day) | E50: After-tax real IRR (%) | F50: Feedstock consumption (% of most likely value) | G50: Utilities consumption (% of most likely value) | H50: Total capital investment ($) | I50: Total fixed operating cost ($/year) | K50: Cost of hydrogen ($/kg) | L50: Revenue from byproduct sales ($/kg) | M50: Salvage value ($/kg) | N50: Initial equity depreciable capital ($/kg) | O50: Yearly replacement costs ($/kg) | P50: Cash from working capital reserve ($/kg) | Q50: Other non-depreciable capital costs ($/kg) | R50: Decommissioning costs ($/kg) | S50: Fixed operating cost ($/kg) | T50: Feedstock cost ($/kg) | U50: Other raw material cost ($/kg) | V50: Other variable operating costs ($/kg) | W50: Debt interest ($/kg) | X50: Taxes ($/kg) | Y50: Principal payment ($/kg)
B51: 1 | C51: 1 | D51: 1 | E51: 1 | F51: 1 | G51: 1 | H51: 1 | I51: 1 | K51: 5.175427726 | L51: 0 | M51: 0.003616203853 | N51: 0.3137197591 | O51: 0.148390999 | P51: 0.02032506299 | Q51: 0.001303585766 | R51: 0.003610203326 | S51: 0.4624263665 | T51: 3.995330806 | U51: 0 | V51: 0.01130476721 | W51: 0.1868697271 | X51: 0.02555994204 | Y51: 0.01020271023
B52: =+B51+1 -> 2 | C52: =+F3 -> 1.05 | D52: 1 | E52: 1 | F52: 1 | G52: 1 | H52: 1 | I52: 1 | K52: 5.120939396 | L52: 0 | M52: 0.003444003669 | N52: 0.2987807229 | O52: 0.141324761 | P52: 0.02022488596 | Q52: 0.001241510253 | R52: 0.003438288882 | S52: 0.4404060634 | T52: 3.995330806 | U52: 0 | V52: 0.01130476721 | W52: 0.1779711686 | X52: 0.02464355825 | Y52: 0.009716866881
B53: =+B52+1 -> 3 | C53: =+G3 -> 0.95 | D53: 1 | E53: 1 | F53: 1 | G53: 1 | H53: 1 | I53: 1 | K53: 5.235651669 | L53: 0 | M53: 0.003806530372 | N53: 0.3302313253 | O53: 0.1562010516 | P53: 0.02043578497 | Q53: 0.001372195543 | R53: 0.003800214027 | S53: 0.4867645964 | T53: 3.995330806 | U53: 0 | V53: 0.01130476721 | W53: 0.1967049759 | X53: 0.02657278728 | Y53: 0.01073969497
B54: 4 | C54: 1 | D54: =+F4 -> 1.05 | E54: 1 | F54: 1 | G54: 1 | H54: 1 | I54: 1 | K54: 5.157939904 | L54: 0 | M54: 0.003546313987 | N54: 0.3076565412 | O54: 0.145523067 | P54: 0.02030532635 | Q54: 0.001278391546 | R54: 0.003540429431 | S54: 0.458087977 | T54: 3.995330806 | U54: 0 | V54: 0.01130476721 | W54: 0.183258122 | X54: 0.02519526664 | Y54: 0.01000552387
B55: 5 | C55: 1 | D55: =+G4 -> 0.95 | E55: 1 | F55: 1 | G55: 1 | H55: 1 | I55: 1 | K55: 5.194298378 | L55: 0 | M55: 0.003691165028 | N55: 0.3202229327 | O55: 0.1514670324 | P55: 0.02034674672 | Q55: 0.001330608114 | R55: 0.003685040115 | S55: 0.4671927518 | T55: 3.995330806 | U55: 0 | V55: 0.01130476721 | W55: 0.1907433954 | X55: 0.02595125731 | Y55: 0.0104142047
B56: 6 | C56: 1 | D56: 1 | E56: =+F5 -> 0.95 | F56: 1 | G56: 1 | H56: 1 | I56: 1 | K56: 5.165555418 | L56: 0 | M56: 0.004016075394 | N56: 0.3003526438 | O56: 0.1497817 | P56: 0.01959229088 | Q56: 0.001248041986 | R56: 0.004009411342 | S56: 0.4624263665 | T56: 4.001681849 | U56: 0 | V56: 0.01130476721 | W56: 0.185164536 | X56: 0.02267898442 | Y56: 0.01133090256
B57: 7 | C57: 1 | D57: 1 | E57: =+G5 -> 1.05 | F57: 1 | G57: 1 | H57: 1 | I57: 1 | K57: 5.18578878 | L57: 0 | M57: 0.00325349451 | N57: 0.3272352764 | O57: 0.1469989549 | P57: 0.02105063651 | Q57: 0.001359746194 | R57: 0.003248095843 | S57: 0.4624263665 | T57: 3.989127346 | U57: 0 | V57: 0.01130476721 | W57: 0.1885497301 | X57: 0.0285619875 | Y57: 0.009179366832
B58: 8 | C58: 1 | D58: 1 | E58: 1 | F58: =+F6 -> 0.95 | G58: 1 | H58: 1 | I58: 1 | K58: 4.921083826 | L58: 0 | M58: 0.003435693687 | N58: 0.2980337711 | O58: 0.1409714491 | P58: 0.01932843367 | Q58: 0.001303585766 | R58: 0.00342969316 | S58: 0.4430533991 | T58: 3.795564266 | U58: 0 | V58: 0.01130476721 | W58: 0.1775262407 | X58: 0.02431133939 | Y58: 0.009692574714
B59: 9 | C59: 1 | D59: 1 | E59: 1 | F59: =+G6 -> 1.05 | G59: 1 | H59: 1 | I59: 1 | K59: 5.429771625 | L59: 0 | M59: 0.003796714019 | N59: 0.329405747 | O59: 0.155810549 | P59: 0.02132169232 | Q59: 0.001303585766 | R59: 0.003790713492 | S59: 0.481799334 | T59: 4.195097347 | U59: 0 | V59: 0.01130476721 | W59: 0.1962132134 | X59: 0.02680854469 | Y59: 0.01071284574
B60: 10 | C60: 1 | D60: 1 | E60: 1 | F60: 1 | G60: =+F7 -> 0.95 | H60: 1 | I60: 1 | K60: 5.175427726 | L60: 0 | M60: 0.003616203853 | N60: 0.3137197591 | O60: 0.148390999 | P60: 0.02032506299 | Q60: 0.001303585766 | R60: 0.003610203326 | S60: 0.4624263665 | T60: 3.995330806 | U60: 0 | V60: 0.01130476721 | W60: 0.1868697271 | X60: 0.02555994204 | Y60: 0.01020271023
B61: 11 | C61: 1 | D61: 1 | E61: 1 | F61: 1 | G61: =+G6 -> 1.05 | H61: 1 | I61: 1 | K61: 5.175427726 | L61: 0 | M61: 0.003616203853 | N61: 0.3137197591 | O61: 0.148390999 | P61: 0.02032506299 | Q61: 0.001303585766 | R61: 0.003610203326 | S61: 0.4624263665 | T61: 3.995330806 | U61: 0 | V61: 0.01130476721 | W61: 0.1868697271 | X61: 0.02555994204 | Y61: 0.01020271023
B62: 12 | C62: 1 | D62: 1 | E62: 1 | F62: 1 | G62: 1 | H62: =+F8 -> 0.95 | I62: 1 | K62: 5.140800609 | L62: 0 | M62: 0.00343539366 | N62: 0.2980076994 | O62: 0.148390999 | P62: 0.02028244507 | Q62: 0.001303585766 | R62: 0.003429393133 | S62: 0.4530583547 | T62: 3.995330806 | U62: 0 | V62: 0.01130476721 | W62: 0.1775107109 | X62: 0.02592551483 | Y62: 0.009691726817
B63: 13 | C63: 1 | D63: 1 | E63: 1 | F63: 1 | G63: 1 | H63: =+G8 -> 1.05 | I63: 1 | K63: 5.210054842 | L63: 0 | M63: 0.003797014046 | N63: 0.3294318187 | O63: 0.148390999 | P63: 0.02036768092 | Q63: 0.001303585766 | R63: 0.003791013519 | S63: 0.4717943784 | T63: 3.995330806 | U63: 0 | V63: 0.01130476721 | W63: 0.1962287432 | X63: 0.02519436925 | Y63: 0.01071369363
B64: 14 | C64: 1 | D64: 1 | E64: 1 | F64: 1 | G64: 1 | H64: 1 | I64: =+F9 -> 0.95 | K64: 5.152164762 | L64: 0 | M64: 0.003616203853 | N64: 0.3137197591 | O64: 0.148390999 | P64: 0.02021987711 | Q64: 0.001303585766 | R64: 0.003610203326 | S64: 0.4393050482 | T64: 3.995330806 | U64: 0 | V64: 0.01130476721 | W64: 0.1868697271 | X64: 0.02552348251 | Y64: 0.01020271023
B65: 15 | C65: 1 | D65: 1 | E65: 1 | F65: 1 | G65: 1 | H65: 1 | I65: =+G9 -> 1.05 | K65: 5.198690689 | L65: 0 | M65: 0.003616203853 | N65: 0.3137197591 | O65: 0.148390999 | P65: 0.02043024887 | Q65: 0.001303585766 | R65: 0.003610203326 | S65: 0.4855476849 | T65: 3.995330806 | U65: 0 | V65: 0.01130476721 | W65: 0.1868697271 | X65: 0.02559640157 | Y65: 0.01020271023
B66: 16 | C66: =(C$72=1)*$F$3 +(C$72=2) +(C$72=3) +(C$72=4) +(C$72=5) -> 1 | D66: 1 | E66: 1 | F66: =(F$72=1)*$F$6 +(F$72=2) +(F$72=3) +(F$72=4) +(F$72=5) -> 0.95 | G66: =(G$72=1)*$F$7 +(G$72=2) +(G$72=3) +(G$72=4) +(G$72=5) -> 1 | H66: =(H$72=1)*$F$8 +(H$72=2) +(H$72=3) +(H$72=4) +(H$72=5) -> 1 | I66: =(I$72=1)*$F$9 +(I$72=2) +(I$72=3) +(I$72=4) +(I$72=5) -> 1 | K66: 4.921083826 | L66: 0 | M66: 0.003435693687 | N66: 0.2980337711 | O66: 0.1409714491 | P66: 0.01932843367 | Q66: 0.001303585766 | R66: 0.00342969316 | S66: 0.4430533991 | T66: 3.795564266 | U66: 0 | V66: 0.01130476721 | W66: 0.1775262407 | X66: 0.02431133939 | Y66: 0.009692574714
B67: 17 | C67: =(C$72=1)*$F$3 +(C$72=2)*$F$3 +(C$72=3) +(C$72=4) +(C$72=5) -> 1.05 | D67: 1 | E67: 1 | F67: =(F$72=1)*$F$6 +(F$72=2)*$F$6 +(F$72=3) +(F$72=4) +(F$72=5) -> 0.95 | G67: =(G$72=1)*$F$7 +(G$72=2)*$F$7 +(G$72=3) +(G$72=4) +(G$72=5) -> 1 | H67: =(H$72=1)*$F$8 +(H$72=2)*$F$8 +(H$72=3) +(H$72=4) +(H$72=5) -> 1 | I67: =(I$72=1)*$F$9 +(I$72=2)*$F$9 +(I$72=3) +(I$72=4) +(I$72=5) -> 1 | K67: 4.869136161 | L67: 0 | M67: 0.003272089225 | N67: 0.2838416868 | O67: 0.1342585229 | P67: 0.01923245347 | Q67: 0.001241510253 | R67: 0.003266374438 | S67: 0.4219556182 | T67: 3.795564266 | U67: 0 | V67: 0.01130476721 | W67: 0.1690726102 | X67: 0.0234394175 | Y67: 0.009231023537
B68: 18 | C68: =(C$72=1)*$F$3 +(C$72=2)*$F$3 +(C$72=3)*$F$3 +(C$72=4) +(C$72=5) -> 1.05 | D68: 1 | E68: 1 | F68: =(F$72=1)*$F$6 +(F$72=2)*$F$6 +(F$72=3)*$F$6 +(F$72=4) +(F$72=5) -> 0.95 | G68: =(G$72=1)*$F$7 +(G$72=2)*$F$7 +(G$72=3)*$F$7 +(G$72=4) +(G$72=5) -> 1 | H68: =(H$72=1)*$F$8 +(H$72=2)*$F$8 +(H$72=3)*$F$8 +(H$72=4) +(H$72=5) -> 0.95 | I68: =(I$72=1)*$F$9 +(I$72=2)*$F$9 +(I$72=3)*$F$9 +(I$72=4) +(I$72=5) -> 1 | K68: 4.837804129 | L68: 0 | M68: 0.003108484764 | N68: 0.2696247722 | O68: 0.1342585229 | P68: 0.01919389103 | Q68: 0.001241510253 | R68: 0.003102769977 | S68: 0.4134790577 | T68: 3.795564266 | U68: 0 | V68: 0.01130476721 | W68: 0.1606041894 | X68: 0.02377020272 | Y68: 0.008768664839
B69: 19 | C69: =(C$72=1)*$F$3 +(C$72=2)*$F$3 +(C$72=3)*$F$3 +(C$72=4)*$F$3 +(C$72=5) -> 1.05 | D69: 1 | E69: 1 | F69: =(F$72=1)*$F$6 +(F$72=2)*$F$6 +(F$72=3)*$F$6 +(F$72=4)*$F$6 +(F$72=5) -> 0.95 | G69: =(G$72=1)*$F$7 +(G$72=2)*$F$7 +(G$72=3)*$F$7 +(G$72=4)*$F$7 +(G$72=5) -> 1 | H69: =(H$72=1)*$F$8 +(H$72=2)*$F$8 +(H$72=3)*$F$8 +(H$72=4)*$F$8 +(H$72=5) -> 0.95 | I69: =(I$72=1)*$F$9 +(I$72=2)*$F$9 +(I$72=3)*$F$9 +(I$72=4)*$F$9 +(I$72=5) -> 0.95 | K69: 4.817003524 | L69: 0 | M69: 0.003108484764 | N69: 0.2696247722 | O69: 0.1342585229 | P69: 0.01909983896 | Q69: 0.001241510253 | R69: 0.003102769977 | S69: 0.3928051048 | T69: 3.795564266 | U69: 0 | V69: 0.01130476721 | W69: 0.1606041894 | X69: 0.02373760239 | Y69: 0.008768664839
B70: 20 | C70: =(C$72=1)*$F$3 +(C$72=2)*$F$3 +(C$72=3)*$F$3 +(C$72=4)*$F$3 +(C$72=5)*$F$3 -> 1.05 | D70: 1 | E70: 1 | F70: =(F$72=1)*$F$6 +(F$72=2)*$F$6 +(F$72=3)*$F$6 +(F$72=4)*$F$6 +(F$72=5)*$F$6 -> 0.95 | G70: =(G$72=1)*$F$7 +(G$72=2)*$F$7 +(G$72=3)*$F$7 +(G$72=4)*$F$7 +(G$72=5)*$F$7 -> 0.95 | H70: =(H$72=1)*$F$8 +(H$72=2)*$F$8 +(H$72=3)*$F$8 +(H$72=4)*$F$8 +(H$72=5)*$F$8 -> 0.95 | I70: =(I$72=1)*$F$9 +(I$72=2)*$F$9 +(I$72=3)*$F$9 +(I$72=4)*$F$9 +(I$72=5)*$F$9 -> 0.95 | K70: 4.817003524 | L70: 0 | M70: 0.003108484764 | N70: 0.2696247722 | O70: 0.1342585229 | P70: 0.01909983896 | Q70: 0.001241510253 | R70: 0.003102769977 | S70: 0.3928051048 | T70: 3.795564266 | U70: 0 | V70: 0.01130476721 | W70: 0.1606041894 | X70: 0.02373760239 | Y70: 0.008768664839
B72: Waterfall Chart Priority | C72: =6-RANK($N$101,($N$101,$N$104:$N$107)) -> 2 | F72: =6-RANK($N$104,($N$101,$N$104:$N$107)) -> 1 | G72: =6-RANK($N$105,($N$101,$N$104:$N$107)) -> 5 | H72: =6-RANK($N$106,($N$101,$N$104:$N$107)) -> 3 | I72: =6-RANK($N$107,($N$101,$N$104:$N$107)) -> 4
B74: Visualization data formatting
B76: parameter | C76: level | D76: Chart titles | E76: Revenue from Hydrogen Sales | F76: Revenue from Byproduct Sales | G76: Salvage Value | H76: Initial Equity Depreciable Capital | I76: Yearly Replacement Costs | J76: Cash for Working Capital Reserve | K76: Other Non-Depreciable Capital Costs | L76: Decommissioning Costs | M76: Fixed Operating Cost | N76: Feedstock Cost | O76: Other Raw Material Cost | P76: Other Variable Operating Costs | Q76: Debt Interest | R76: Taxes | S76: Principal Payment
B77: =+$B$3 -> Operating Capacity Factor | C77: =+H3 -> 1.0185 | D77: =+B77&" = "&C77*100&"%" -> Operating Capacity Factor = 101.85% | E77: =+K52 -> 5.120939396 | F77: 0 | G77: 0.003444003669 | H77: 0.2987807229 | I77: 0.141324761 | J77: 0.02022488596 | K77: 0.001241510253 | L77: 0.003438288882 | M77: 0.4404060634 | N77: 3.995330806 | O77: 0 | P77: 0.01130476721 | Q77: 0.1779711686 | R77: 0.02464355825 | S77: 0.009716866881
B78: =+$B$3 -> Operating Capacity Factor | C78: =+C3 -> 0.97 | D78: =+B78&" = "&C78*100&"%" -> Operating Capacity Factor = 97% | E78: =+K$51 -> 5.175427726 | F78: 0 | G78: 0.003616203853 | H78: 0.3137197591 | I78: 0.148390999 | J78: 0.02032506299 | K78: 0.001303585766 | L78: 0.003610203326 | M78: 0.4624263665 | N78: 3.995330806 | O78: 0 | P78: 0.01130476721 | Q78: 0.1868697271 | R78: 0.02555994204 | S78: 0.01020271023
B79: Operating Capacity Factor | C79: =+I3 -> 0.9215 | D79: Operating Capacity Factor = 92.15% | E79: =+K53 -> 5.235651669 | F79: 0 | G79: 0.003806530372 | H79: 0.3302313253 | I79: 0.1562010516 | J79: 0.02043578497 | K79: 0.001372195543 | L79: 0.003800214027 | M79: 0.4867645964 | N79: 3.995330806 | O79: 0 | P79: 0.01130476721 | Q79: 0.1967049759 | R79: 0.02657278728 | S79: 0.01073969497
B80: =+$B$4 -> Plant Design Capacity (kg of H2/day) | C80: =ROUND(H4,0) -> 52500 | D80: =+B80&" = "&TEXT(C80,"0,000") -> Plant Design Capacity (kg of H2/day) = 52,500 | E80: 5.157939904 | F80: 0 | G80: 0.003546313987 | H80: 0.3076565412 | I80: 0.145523067 | J80: 0.02030532635 | K80: 0.001278391546 | L80: 0.003540429431 | M80: 0.458087977 | N80: 3.995330806 | O80: 0 | P80: 0.01130476721 | Q80: 0.183258122 | R80: 0.02519526664 | S80: 0.01000552387
B81: =+$B$4 -> Plant Design Capacity (kg of H2/day) | C81: =+ROUND(C4,0) -> 50000 | D81: =+B81&" = "&TEXT(C81,"0,000") -> Plant Design Capacity (kg of H2/day) = 50,000 | E81: =+K$51 -> 5.175427726 | F81: 0 | G81: 0.003616203853 | H81: 0.3137197591 | I81: 0.148390999 | J81: 0.02032506299 | K81: 0.001303585766 | L81: 0.003610203326 | M81: 0.4624263665 | N81: 3.995330806 | O81: 0 | P81: 0.01130476721 | Q81: 0.1868697271 | R81: 0.02555994204 | S81: 0.01020271023
B82: Plant Design Capacity (kg of H2/day) | C82: =ROUND(I4,0) -> 47500 | D82: Plant Design Capacity (kg of H2/day) = 47,500 | E82: =+K55 -> 5.194298378 | F82: 0 | G82: 0.003691165028 | H82: 0.3202229327 | I82: 0.1514670324 | J82: 0.02034674672 | K82: 0.001330608114 | L82: 0.003685040115 | M82: 0.4671927518 | N82: 3.995330806 | O82: 0 | P82: 0.01130476721 | Q82: 0.1907433954 | R82: 0.02595125731 | S82: 0.0104142047
B83: =+$B$5 -> After-tax Real IRR | C83: =+ROUND(H5,2) -> 0.08 | D83: =+B83&" = "&C83*100&"%" -> After-tax Real IRR = 8% | E83: 5.165555418 | F83: 0 | G83: 0.004016075394 | H83: 0.3003526438 | I83: 0.1497817 | J83: 0.01959229088 | K83: 0.001248041986 | L83: 0.004009411342 | M83: 0.4624263665 | N83: 4.001681849 | O83: 0 | P83: 0.01130476721 | Q83: 0.185164536 | R83: 0.02267898442 | S83: 0.01133090256
B84: =+$B$5 -> After-tax Real IRR | C84: =ROUND(C5,2) -> 0.08 | D84: After-tax Real IRR = 8% | E84: =+K$51 -> 5.175427726 | F84: 0 | G84: 0.003616203853 | H84: 0.3137197591 | I84: 0.148390999 | J84: 0.02032506299 | K84: 0.001303585766 | L84: 0.003610203326 | M84: 0.4624263665 | N84: 3.995330806 | O84: 0 | P84: 0.01130476721 | Q84: 0.1868697271 | R84: 0.02555994204 | S84: 0.01020271023
B85: After-tax Real IRR | C85: =ROUND(I5,2) -> 0.08 | D85: After-tax Real IRR = 8% | E85: =+K57 -> 5.18578878 | F85: 0 | G85: 0.00325349451 | H85: 0.3272352764 | I85: 0.1469989549 | J85: 0.02105063651 | K85: 0.001359746194 | L85: 0.003248095843 | M85: 0.4624263665 | N85: 3.989127346 | O85: 0 | P85: 0.01130476721 | Q85: 0.1885497301 | R85: 0.0285619875 | S85: 0.009179366832
B86: =+$B$6 -> Feedstock Consumption (% of baseline) | C86: =+ROUND(H6,3) -> 0.95 | D86: =+B86&" = "&C86*100&"%" -> Feedstock Consumption (% of baseline) = 95% | E86: 4.921083826 | F86: 0 | G86: 0.003435693687 | H86: 0.2980337711 | I86: 0.1409714491 | J86: 0.01932843367 | K86: 0.001303585766 | L86: 0.00342969316 | M86: 0.4430533991 | N86: 3.795564266 | O86: 0 | P86: 0.01130476721 | Q86: 0.1775262407 | R86: 0.02431133939 | S86: 0.009692574714
B87: =+$B$6 -> Feedstock Consumption (% of baseline) | C87: =+ROUND(C6,3) -> 1 | D87: =+B87&" = "&C87*100&"%" -> Feedstock Consumption (% of baseline) = 100% | E87: =+K$51 -> 5.175427726 | F87: 0 | G87: 0.003616203853 | H87: 0.3137197591 | I87: 0.148390999 | J87: 0.02032506299 | K87: 0.001303585766 | L87: 0.003610203326 | M87: 0.4624263665 | N87: 3.995330806 | O87: 0 | P87: 0.01130476721 | Q87: 0.1868697271 | R87: 0.02555994204 | S87: 0.01020271023
B88: Feedstock Consumption (% of baseline) | C88: =+ROUND(I6,3) -> 1.05 | D88: =+B88&" = "&C88*100&"%" -> Feedstock Consumption (% of baseline) = 105% | E88: =+K59 -> 5.429771625 | F88: 0 | G88: 0.003796714019 | H88: 0.329405747 | I88: 0.155810549 | J88: 0.02132169232 | K88: 0.001303585766 | L88: 0.003790713492 | M88: 0.481799334 | N88: 4.195097347 | O88: 0 | P88: 0.01130476721 | Q88: 0.1962132134 | R88: 0.02680854469 | S88: 0.01071284574
B89: =+$B$7 -> Utilities Consumption (% of baseline) | C89: =+ROUND(H7,3) -> 0.95 | D89: =+B89&" = "&C89*100&"%" -> Utilities Consumption (% of baseline) = 95% | E89: 5.175427726 | F89: 0 | G89: 0.003616203853 | H89: 0.3137197591 | I89: 0.148390999 | J89: 0.02032506299 | K89: 0.001303585766 | L89: 0.003610203326 | M89: 0.4624263665 | N89: 3.995330806 | O89: 0 | P89: 0.01130476721 | Q89: 0.1868697271 | R89: 0.02555994204 | S89: 0.01020271023
B90: =+$B$7 -> Utilities Consumption (% of baseline) | C90: =+ROUND(C7,3) -> 1 | D90: Utilities Consumption (% of baseline) = 100% | E90: =+K$51 -> 5.175427726 | F90: =+L$51 -> 0 | G90: 0.003616203853 | H90: 0.3137197591 | I90: 0.148390999 | J90: 0.02032506299 | K90: 0.001303585766 | L90: 0.003610203326 | M90: 0.4624263665 | N90: 3.995330806 | O90: 0 | P90: 0.01130476721 | Q90: 0.1868697271 | R90: 0.02555994204 | S90: 0.01020271023
B91: Utilities Consumption (% of baseline) | C91: =+ROUND(I7,3) -> 1.05 | D91: Utilities Consumption (% of baseline) = 105% | E91: =+K61 -> 5.175427726 | F91: 0 | G91: 0.003616203853 | H91: 0.3137197591 | I91: 0.148390999 | J91: 0.02032506299 | K91: 0.001303585766 | L91: 0.003610203326 | M91: 0.4624263665 | N91: 3.995330806 | O91: 0 | P91: 0.01130476721 | Q91: 0.1868697271 | R91: 0.02555994204 | S91: 0.01020271023
B92: =+$B$8 -> Total Capital Investment | C92: =+ROUND(H8,0) -> 157545368 | D92: =+B92&" = "&TEXT(C92/1000,"$0,000K") -> Total Capital Investment = $157,545K | E92: 5.140800609 | F92: 0 | G92: 0.00343539366 | H92: 0.2980076994 | I92: 0.148390999 | J92: 0.02028244507 | K92: 0.001303585766 | L92: 0.003429393133 | M92: 0.4530583547 | N92: 3.995330806 | O92: 0 | P92: 0.01130476721 | Q92: 0.1775107109 | R92: 0.02592551483 | S92: 0.009691726817
B93: =+$B$8 -> Total Capital Investment | C93: =+ROUND(C8,0) -> 165837229 | D93: Total Capital Investment = $165,837K | E93: =+K$51 -> 5.175427726 | F93: 0 | G93: 0.003616203853 | H93: 0.3137197591 | I93: 0.148390999 | J93: 0.02032506299 | K93: 0.001303585766 | L93: 0.003610203326 | M93: 0.4624263665 | N93: 3.995330806 | O93: 0 | P93: 0.01130476721 | Q93: 0.1868697271 | R93: 0.02555994204 | S93: 0.01020271023
B94: Total Capital Investment | C94: =+ROUND(I8,0) -> 174129091 | D94: Total Capital Investment = $174,129K | E94: =+K63 -> 5.210054842 | F94: 0 | G94: 0.003797014046 | H94: 0.3294318187 | I94: 0.148390999 | J94: 0.02036768092 | K94: 0.001303585766 | L94: 0.003791013519 | M94: 0.4717943784 | N94: 3.995330806 | O94: 0 | P94: 0.01130476721 | Q94: 0.1962287432 | R94: 0.02519436925 | S94: 0.01071369363
B95: =+$B$9 -> Total Fixed Operating Cost | C95: =+ROUND(H9,0) -> 7776798 | D95: Total Fixed Operating Cost = $7,777K | E95: 5.152164762 | F95: 0 | G95: 0.003616203853 | H95: 0.3137197591 | I95: 0.148390999 | J95: 0.02021987711 | K95: 0.001303585766 | L95: 0.003610203326 | M95: 0.4393050482 | N95: 3.995330806 | O95: 0 | P95: 0.01130476721 | Q95: 0.1868697271 | R95: 0.02552348251 | S95: 0.01020271023
B96: =+$B$9 -> Total Fixed Operating Cost | C96: =+ROUND(C9,0) -> 8186103 | D96: Total Fixed Operating Cost = $8,186K | E96: =+K$51 -> 5.175427726 | F96: 0 | G96: 0.003616203853 | H96: 0.3137197591 | I96: 0.148390999 | J96: 0.02032506299 | K96: 0.001303585766 | L96: 0.003610203326 | M96: 0.4624263665 | N96: 3.995330806 | O96: 0 | P96: 0.01130476721 | Q96: 0.1868697271 | R96: 0.02555994204 | S96: 0.01020271023
B97: Total Fixed Operating Cost | C97: =+ROUND(I9,0) -> 8595408 | D97: Total Fixed Operating Cost = $8,595K | E97: =+K65 -> 5.198690689 | F97: 0 | G97: 0.003616203853 | H97: 0.3137197591 | I97: 0.148390999 | J97: 0.02043024887 | K97: 0.001303585766 | L97: 0.003610203326 | M97: 0.4855476849 | N97: 3.995330806 | O97: 0 | P97: 0.01130476721 | Q97: 0.1868697271 | R97: 0.02559640157 | S97: 0.01020271023
B100: Standard Toranado | C100: Rank | D100: Titles | E100: Low cost price | F100: Default price | G100: High price | H100: dL0 | I100: dL1 | J100: dL2 | L100: Unsorted titles | M100: Results spread ($/kg) | N100: Importance ranking
C101: 1 | D101: =OFFSET(L$100,MATCH($C101,$N$101:$N$107,0),0) -> Feedstock Consumption (% of baseline) (95%, 100%, 105%) | E101: =OFFSET(E$76,MATCH($C101,$N$101:$N$107,0)*3-2,0) -> 4.921083826 | F101: =+$K$51 -> 5.175427726 | G101: =OFFSET(E$76,MATCH($C101,$N$101:$N$107,0)*3,0) -> 5.429771625 | H101: =+E101 -> 4.921083826 | I101: =+F101-E101 -> 0.2543438995 | J101: =+G101-F101 -> 0.2543438995 | L101: =+B3&" ("&TEXT(H3,"0%, ")&TEXT(C3,"0%, ")&TEXT(I3,"0%)") -> Operating Capacity Factor (102%, 97%, 92%) | M101: =ABS(K52-K53)+0.000000001 -> 0.1147122741 | N101: =+RANK(M101,$M$101:$M$107) -> 2
C102: 2 | D102: Operating Capacity Factor (102%, 97%, 92%) | E102: 5.120939396 | F102: 5.175427726 | G102: 5.235651669 | H102: =+E102 -> 5.120939396 | I102: =+F102-E102 -> 0.05448832973 | J102: =+G102-F102 -> 0.06022394339 | L102: =+B4&" ("&TEXT(H4,"0,000")&", "&TEXT(C4,"0,000")&", "&TEXT(I4,"0,000")&") " -> Plant Design Capacity (kg of H2/day) (52,500, 50,000, 47,500) | M102: =+ABS(K54-K55)+0.000000002 -> 0.03635847528 | N102: 5
C103: 3 | D103: Total Capital Investment ($157,545K, $165,837K, $174,129K) | E103: 5.140800609 | F103: 5.175427726 | G103: 5.210054842 | H103: 5.140800609 | I103: 0.0346271162 | J103: 0.0346271162 | L103: =+B5&" ("&TEXT(H5,"0%, ")&TEXT(C5,"0%, ")&TEXT(I5,"0%)") -> After-tax Real IRR (8%, 8%, 8%) | M103: =+ABS(K56-K57)+0.000000003 -> 0.0202333643 | N103: 6
C104: 4 | D104: Total Fixed Operating Cost ($7,777K, $8,186K, $8,595K) | E104: 5.152164762 | F104: 5.175427726 | G104: 5.198690689 | H104: 5.152164762 | I104: 0.02326296374 | J104: 0.02326296374 | L104: =+B6&" ("&TEXT(H6,"0%, ")&TEXT(C6,"0%, ")&TEXT(I6,"0%)") -> Feedstock Consumption (% of baseline) (95%, 100%, 105%) | M104: =+ABS(K58-K59)+0.000000004 -> 0.5086878031 | N104: 1
C105: 5 | D105: Plant Design Capacity (kg of H2/day) (52,500, 50,000, 47,500) | E105: 5.157939904 | F105: 5.175427726 | G105: 5.194298378 | H105: =+E105 -> 5.157939904 | I105: =+F105-E105 -> 0.01748782123 | J105: =+G105-F105 -> 0.01887065206 | L105: =+B7&" ("&TEXT(H7,"0%, ")&TEXT(C7,"0%, ")&TEXT(I7,"0%)") -> Utilities Consumption (% of baseline) (95%, 100%, 105%) | M105: =+ABS(K60-K61)+0.000000004 -> 4e-09 | N105: 7
C106: 6 | D106: After-tax Real IRR (8%, 8%, 8%) | E106: 5.165555418 | F106: 5.175427726 | G106: 5.18578878 | H106: 5.165555418 | I106: 0.009872307343 | J106: 0.01036105396 | L106: =+B8&" ("&TEXT(H8/1000,"$0,000K")&", "&TEXT(C8/1000,"$0,000K")&", "&TEXT(I8/1000,"$0,000K")&") " -> Total Capital Investment ($157,545K, $165,837K, $174,129K) | M106: =+ABS(K62-K63)+0.000000006 -> 0.0692542384 | N106: 3
C107: 7 | D107: Utilities Consumption (% of baseline) (95%, 100%, 105%) | E107: 5.175427726 | F107: 5.175427726 | G107: 5.175427726 | H107: 5.175427726 | I107: 0 | J107: 0 | L107: =+B9&" ("&TEXT(H9/1000,"$0,000K")&", "&TEXT(C9/1000,"$0,000K")&", "&TEXT(I9/1000,"$0,000K")&") " -> Total Fixed Operating Cost ($7,777K, $8,186K, $8,595K) | M107: =+ABS(K64-K65)+0.00000007 -> 0.04652599747 | N107: 4
B110: Simple bar chart | C110: Rank | D110: =+D76 -> Chart titles | E110: Hydrogen Sales | F110: Byproduct Sales | G110: Salvage Value | H110: =+H76 -> Initial Equity Depreciable Capital | I110: Yearly Replacement Costs | J110: Cash for Working Capital Reserve | K110: Other Non-Depreciable Capital Costs | L110: Decommissioning Costs | M110: Fixed Operating Cost | N110: Feedstock Cost | O110: Other Raw Material Cost | P110: Other Variable Operating Costs | Q110: Debt Interest | R110: Taxes | S110: Principal Payment
C111: 1 | D111: Base case | E111: =OFFSET(E$76,MATCH($C111,$N$101:$N$107,0)*3-1,0) -> 5.175427726 | F111: =OFFSET(F$76,MATCH($C111,$N$101:$N$107,0)*3-1,0) -> 0 | G111: =OFFSET(G$76,MATCH($C111,$N$101:$N$107,0)*3-1,0) -> 0.003616203853
H112: =OFFSET(H$76,MATCH($C111,$N$101:$N$107,0)*3-1,0) -> 0.3137197591 | I112: 0.148390999 | J112: 0.02032506299 | K112: 0.001303585766 | L112: 0.003610203326 | M112: 0.4624263665 | N112: 3.995330806 | O112: 0 | P112: 0.01130476721 | Q112: 0.1868697271 | R112: 0.02555994204 | S112: 0.01020271023
C115: 1 | D115: =OFFSET(D$76,MATCH($C115,$N$101:$N$107,0)*3-2,0) -> Feedstock Consumption (% of baseline) = 95% | E115: 4.921083826 | F115: 0 | G115: 0.003435693687
H116: =OFFSET(H$76,MATCH($C115,$N$101:$N$107,0)*3-2,0) -> 0.2980337711 | I116: 0.1409714491 | J116: 0.01932843367 | K116: 0.001303585766 | L116: 0.00342969316 | M116: 0.4430533991 | N116: 3.795564266 | O116: 0 | P116: 0.01130476721 | Q116: 0.1775262407 | R116: 0.02431133939 | S116: 0.009692574714
C117: 1 | D117: =OFFSET(D$76,MATCH($C117,$N$101:$N$107,0)*3,0) -> Feedstock Consumption (% of baseline) = 105% | E117: 5.429771625 | F117: 0 | G117: 0.003796714019
H118: =OFFSET(H$76,MATCH($C117,$N$101:$N$107,0)*3,0) -> 0.329405747 | I118: 0.155810549 | J118: 0.02132169232 | K118: 0.001303585766 | L118: 0.003790713492 | M118: 0.481799334 | N118: 4.195097347 | O118: 0 | P118: 0.01130476721 | Q118: 0.1962132134 | R118: 0.02680854469 | S118: 0.01071284574
C120: 2 | D120: =OFFSET(D$76,MATCH($C120,$N$101:$N$107,0)*3-2,0) -> Operating Capacity Factor = 101.85% | E120: 5.120939396 | F120: 0 | G120: 0.003444003669
H121: =OFFSET(H$76,MATCH($C120,$N$101:$N$107,0)*3-2,0) -> 0.2987807229 | I121: 0.141324761 | J121: 0.02022488596 | K121: 0.001241510253 | L121: 0.003438288882 | M121: 0.4404060634 | N121: 3.995330806 | O121: 0 | P121: 0.01130476721 | Q121: 0.1779711686 | R121: 0.02464355825 | S121: 0.009716866881
C122: 2 | D122: =OFFSET(D$76,MATCH($C122,$N$101:$N$107,0)*3,0) -> Operating Capacity Factor = 92.15% | E122: 5.235651669 | F122: 0 | G122: 0.003806530372
H123: =OFFSET(H$76,MATCH($C122,$N$101:$N$107,0)*3,0) -> 0.3302313253 | I123: 0.1562010516 | J123: 0.02043578497 | K123: 0.001372195543 | L123: 0.003800214027 | M123: 0.4867645964 | N123: 3.995330806 | O123: 0 | P123: 0.01130476721 | Q123: 0.1967049759 | R123: 0.02657278728 | S123: 0.01073969497
C125: 3 | D125: =OFFSET(D$76,MATCH($C125,$N$101:$N$107,0)*3-2,0) -> Total Capital Investment = $157,545K | E125: 5.140800609 | F125: 0 | G125: 0.00343539366
H126: =OFFSET(H$76,MATCH($C125,$N$101:$N$107,0)*3-2,0) -> 0.2980076994 | I126: 0.148390999 | J126: 0.02028244507 | K126: 0.001303585766 | L126: 0.003429393133 | M126: 0.4530583547 | N126: 3.995330806 | O126: 0 | P126: 0.01130476721 | Q126: 0.1775107109 | R126: 0.02592551483 | S126: 0.009691726817
C127: 3 | D127: =OFFSET(D$76,MATCH($C127,$N$101:$N$107,0)*3,0) -> Total Capital Investment = $174,129K | E127: 5.210054842 | F127: 0 | G127: 0.003797014046
H128: =OFFSET(H$76,MATCH($C127,$N$101:$N$107,0)*3,0) -> 0.3294318187 | I128: 0.148390999 | J128: 0.02036768092 | K128: 0.001303585766 | L128: 0.003791013519 | M128: 0.4717943784 | N128: 3.995330806 | O128: 0 | P128: 0.01130476721 | Q128: 0.1962287432 | R128: 0.02519436925 | S128: 0.01071369363
C130: 4 | D130: =OFFSET(D$76,MATCH($C130,$N$101:$N$107,0)*3-2,0) -> Total Fixed Operating Cost = $7,777K | E130: 5.152164762 | F130: 0 | G130: 0.003616203853
H131: =OFFSET(H$76,MATCH($C130,$N$101:$N$107,0)*3-2,0) -> 0.3137197591 | I131: 0.148390999 | J131: 0.02021987711 | K131: 0.001303585766 | L131: 0.003610203326 | M131: 0.4393050482 | N131: 3.995330806 | O131: 0 | P131: 0.01130476721 | Q131: 0.1868697271 | R131: 0.02552348251 | S131: 0.01020271023
C132: 4 | D132: =OFFSET(D$76,MATCH($C132,$N$101:$N$107,0)*3,0) -> Total Fixed Operating Cost = $8,595K | E132: 5.198690689 | F132: 0 | G132: 0.003616203853
H133: =OFFSET(H$76,MATCH($C132,$N$101:$N$107,0)*3,0) -> 0.3137197591 | I133: 0.148390999 | J133: 0.02043024887 | K133: 0.001303585766 | L133: 0.003610203326 | M133: 0.4855476849 | N133: 3.995330806 | O133: 0 | P133: 0.01130476721 | Q133: 0.1868697271 | R133: 0.02559640157 | S133: 0.01020271023
C135: 5 | D135: =OFFSET(D$76,MATCH($C135,$N$101:$N$107,0)*3-2,0) -> Plant Design Capacity (kg of H2/day) = 52,500 | E135: 5.157939904 | F135: 0 | G135: 0.003546313987
H136: =OFFSET(H$76,MATCH($C135,$N$101:$N$107,0)*3-2,0) -> 0.3076565412 | I136: 0.145523067 | J136: 0.02030532635 | K136: 0.001278391546 | L136: 0.003540429431 | M136: 0.458087977 | N136: 3.995330806 | O136: 0 | P136: 0.01130476721 | Q136: 0.183258122 | R136: 0.02519526664 | S136: 0.01000552387
C137: 5 | D137: =OFFSET(D$76,MATCH($C137,$N$101:$N$107,0)*3,0) -> Plant Design Capacity (kg of H2/day) = 47,500 | E137: 5.194298378 | F137: 0 | G137: 0.003691165028
H138: =OFFSET(H$76,MATCH($C137,$N$101:$N$107,0)*3,0) -> 0.3202229327 | I138: 0.1514670324 | J138: 0.02034674672 | K138: 0.001330608114 | L138: 0.003685040115 | M138: 0.4671927518 | N138: 3.995330806 | O138: 0 | P138: 0.01130476721 | Q138: 0.1907433954 | R138: 0.02595125731 | S138: 0.0104142047
C140: 6 | D140: =OFFSET(D$76,MATCH($C140,$N$101:$N$107,0)*3-2,0) -> After-tax Real IRR = 8% | E140: 5.165555418 | F140: 0 | G140: 0.004016075394
H141: =OFFSET(H$76,MATCH($C140,$N$101:$N$107,0)*3-2,0) -> 0.3003526438 | I141: 0.1497817 | J141: 0.01959229088 | K141: 0.001248041986 | L141: 0.004009411342 | M141: 0.4624263665 | N141: 4.001681849 | O141: 0 | P141: 0.01130476721 | Q141: 0.185164536 | R141: 0.02267898442 | S141: 0.01133090256
C142: 6 | D142: =OFFSET(D$76,MATCH($C142,$N$101:$N$107,0)*3,0) -> After-tax Real IRR = 8% | E142: 5.18578878 | F142: 0 | G142: 0.00325349451
H143: =OFFSET(H$76,MATCH($C142,$N$101:$N$107,0)*3,0) -> 0.3272352764 | I143: 0.1469989549 | J143: 0.02105063651 | K143: 0.001359746194 | L143: 0.003248095843 | M143: 0.4624263665 | N143: 3.989127346 | O143: 0 | P143: 0.01130476721 | Q143: 0.1885497301 | R143: 0.0285619875 | S143: 0.009179366832
C145: 7 | D145: =OFFSET(D$76,MATCH($C145,$N$101:$N$107,0)*3-2,0) -> Utilities Consumption (% of baseline) = 95% | E145: 5.175427726 | F145: 0 | G145: 0.003616203853
H146: =OFFSET(H$76,MATCH($C145,$N$101:$N$107,0)*3-2,0) -> 0.3137197591 | I146: 0.148390999 | J146: 0.02032506299 | K146: 0.001303585766 | L146: 0.003610203326 | M146: 0.4624263665 | N146: 3.995330806 | O146: 0 | P146: 0.01130476721 | Q146: 0.1868697271 | R146: 0.02555994204 | S146: 0.01020271023
C147: 7 | D147: =OFFSET(D$76,MATCH($C147,$N$101:$N$107,0)*3,0) -> Utilities Consumption (% of baseline) = 105% | E147: 5.175427726 | F147: 0 | G147: 0.003616203853
H148: =OFFSET(H$76,MATCH($C147,$N$101:$N$107,0)*3,0) -> 0.3137197591 | I148: 0.148390999 | J148: 0.02032506299 | K148: 0.001303585766 | L148: 0.003610203326 | M148: 0.4624263665 | N148: 3.995330806 | O148: 0 | P148: 0.01130476721 | Q148: 0.1868697271 | R148: 0.02555994204 | S148: 0.01020271023
B152: Parado chart
D153: Unsorted
D154: Title | E154: Unsorted values | F154: Unsorted Ranking | G154: Sorted ranking | H154: Sorted titles | I154: Sorted values | K154: Grayed Titles | L154: Revenues $/kg H2 | M154: Expenses $/kg H2 | N154: Colored titles
B155: Revenues | C155: 1 | D155: Cost of Hydrogen | E155: =+K48+C155/10000000000 -> 5.175427726 | F155: =+RANK(E155,$E$155:$E$157) -> 1 | G155: 1 | H155: =OFFSET($D$154,MATCH($G155,$F$155:$F$157,0),0) -> Cost of Hydrogen | I155: =OFFSET($E$154,MATCH($G155,$F$155:$F$157,0),0)-OFFSET($C$154,MATCH($G155,$F$155:$F$157,0),0)/10000000000 -> 5.175427726 | K155: =+H155 -> Cost of Hydrogen | L155: =+I155 -> 5.175427726 | N155: =+IF(L155>0,K155,"") -> Cost of Hydrogen
C156: 2 | D156: =+F110 -> Byproduct Sales | E156: =+L48+C156/10000000000 -> 2e-10 | F156: =+RANK(E156,$E$155:$E$157) -> 3 | G156: 2 | H156: =OFFSET($D$154,MATCH($G156,$F$155:$F$157,0),0) -> Salvage Value | I156: =OFFSET($E$154,MATCH($G156,$F$155:$F$157,0),0)-OFFSET($C$154,MATCH($G156,$F$155:$F$157,0),0)/10000000000 -> 0.003616203853 | K156: =+H156 -> Salvage Value | L156: =+I156 -> 0.003616203853 | N156: =+IF(L156>0,K156,"") -> Salvage Value
C157: 3 | D157: =+G110 -> Salvage Value | E157: =+M48+C157/10000000000 -> 0.003616204153 | F157: =+RANK(E157,$E$155:$E$157) -> 2 | G157: 3 | H157: =OFFSET($D$154,MATCH($G157,$F$155:$F$157,0),0) -> Byproduct Sales | I157: =OFFSET($E$154,MATCH($G157,$F$155:$F$157,0),0)-OFFSET($C$154,MATCH($G157,$F$155:$F$157,0),0)/10000000000 -> 0 | K157: Byproduct Sales | L157: 0
N158: =+IF(L158>0.01,K158,"") -> 
B159: Expenses | C159: 1 | D159: =+H110 -> Initial Equity Depreciable Capital | E159: =+N48+C159/10000000000 -> 0.3137197592 | F159: =+RANK(E159,$E$159:$E$170) -> 3 | G159: 1 | H159: =OFFSET($D$158,MATCH($G159,$F$159:$F$170,0),0) -> Feedstock Cost | I159: =OFFSET($E$158,MATCH($G159,$F$159:$F$170,0),0)-OFFSET($C$158,MATCH($G159,$F$159:$F$170,0),0)/10000000000 -> 3.995330806 | K159: Feedstock Cost | M159: =+I159 -> 3.995330806 | N159: =+IF(M159>0,K159,"") -> Feedstock Cost
C160: =+C159+1 -> 2 | D160: =+I110 -> Yearly Replacement Costs | E160: =+O48+C160/10000000000 -> 0.1483909992 | F160: 5 | G160: 2 | H160: Fixed Operating Cost | I160: 0.4624263665 | K160: Fixed Operating Cost | M160: =+I160 -> 0.4624263665 | N160: =+IF(M160>0,K160,"") -> Fixed Operating Cost
C161: =+C160+1 -> 3 | D161: =+J110 -> Cash for Working Capital Reserve | E161: =+P48+C161/10000000000 -> 0.02032506329 | F161: 7 | G161: 3 | H161: Initial Equity Depreciable Capital | I161: 0.3137197591 | K161: Initial Equity Depreciable Capital | M161: 0.3137197591 | N161: Initial Equity Depreciable Capital
C162: 4 | D162: =+K110 -> Other Non-Depreciable Capital Costs | E162: =+Q48+C162/10000000000 -> 0.001303586166 | F162: 11 | G162: 4 | H162: Debt Interest | I162: 0.1868697271 | K162: Debt Interest | M162: 0.1868697271 | N162: Debt Interest
C163: 5 | D163: =+L110 -> Decommissioning Costs | E163: =+R48+C163/10000000000 -> 0.003610203826 | F163: 10 | G163: 5 | H163: Yearly Replacement Costs | I163: 0.148390999 | K163: Yearly Replacement Costs | M163: 0.148390999 | N163: Yearly Replacement Costs
C164: 6 | D164: =+M110 -> Fixed Operating Cost | E164: =+S48+C164/10000000000 -> 0.4624263671 | F164: 2 | G164: 6 | H164: Taxes | I164: 0.02555994204 | K164: Taxes | M164: 0.02555994204 | N164: Taxes
C165: 7 | D165: =+N110 -> Feedstock Cost | E165: =+T48+C165/10000000000 -> 3.995330807 | F165: 1 | G165: 7 | H165: Cash for Working Capital Reserve | I165: 0.02032506299 | K165: Cash for Working Capital Reserve | M165: 0.02032506299 | N165: Cash for Working Capital Reserve
C166: 8 | D166: =+O110 -> Other Raw Material Cost | E166: =+U48+C166/10000000000 -> 8e-10 | F166: 12 | G166: 8 | H166: Other Variable Operating Costs | I166: 0.01130476721 | K166: Other Variable Operating Costs | M166: 0.01130476721 | N166: Other Variable Operating Costs
C167: 9 | D167: =+P110 -> Other Variable Operating Costs | E167: =+V48+C167/10000000000 -> 0.01130476811 | F167: 8 | G167: 9 | H167: Principal Payment | I167: 0.01020271023 | K167: Principal Payment | M167: 0.01020271023 | N167: Principal Payment
C168: 10 | D168: =+Q110 -> Debt Interest | E168: =+W48+C168/10000000000 -> 0.1868697281 | F168: 4 | G168: 10 | H168: Decommissioning Costs | I168: 0.003610203326 | K168: Decommissioning Costs | M168: 0.003610203326 | N168: Decommissioning Costs
C169: 11 | D169: =+R110 -> Taxes | E169: =+X48+C169/10000000000 -> 0.02555994314 | F169: 6 | G169: 11 | H169: Other Non-Depreciable Capital Costs | I169: 0.001303585766 | K169: Other Non-Depreciable Capital Costs | M169: 0.001303585766 | N169: Other Non-Depreciable Capital Costs
C170: 12 | D170: =+S110 -> Principal Payment | E170: =+Y48+C170/10000000000 -> 0.01020271143 | F170: 9 | G170: 12 | H170: Other Raw Material Cost | I170: 0 | K170: Other Raw Material Cost | M170: 0
K171: Total | L171: =+SUM(L155:L170) -> 5.17904393 | M171: =+SUM(M155:M170) -> 5.17904393 | N171: =+IF(M171<0.01,K171,"") -> 
B174: Waterfall Chart | D174: Values | E174: Base | F174: Decrease | G174: Increase
B175: 0 | C175: Baseline | D175: =+K51 -> 5.175427726 | E175: =+D175 -> 5.175427726
B176: 1 | C176: =OFFSET($B$50,0,MATCH($B176,$C$72:$I$72,0))& IF(OFFSET($F$2,MATCH($B176,$C$72:$I$72,0),0)<1, " = "&OFFSET($F$2,MATCH($B176,$C$72:$I$72,0),0)*100-100, " = +"&OFFSET($F$2,MATCH($B176,$C$72:$I$72,0),0)*100-100) &"%" -> Feedstock consumption (% of most likely value) = -5% | D176: =+K66 -> 4.921083826 | E176: =+E175+G175-F176 -> 4.921083826 | F176: =+MAX(D175-D176,0) -> 0.2543438995 | G176: =+MAX(D176-D175,0) -> 0
B177: 2 | C177: =OFFSET($B$50,0,MATCH($B177,$C$72:$I$72,0))& IF(OFFSET($F$2,MATCH($B177,$C$72:$I$72,0),0)<1, " = "&OFFSET($F$2,MATCH($B177,$C$72:$I$72,0),0)*100-100, " = +"&OFFSET($F$2,MATCH($B177,$C$72:$I$72,0),0)*100-100) &"%" -> Operating capacity factor = +5% | D177: =+K67 -> 4.869136161 | E177: 4.869136161 | F177: =+MAX(D176-D177,0) -> 0.05194766494 | G177: =+MAX(D177-D176,0) -> 0
B178: 3 | C178: =OFFSET($B$50,0,MATCH($B178,$C$72:$I$72,0))& IF(OFFSET($F$2,MATCH($B178,$C$72:$I$72,0),0)<1, " = "&OFFSET($F$2,MATCH($B178,$C$72:$I$72,0),0)*100-100, " = +"&OFFSET($F$2,MATCH($B178,$C$72:$I$72,0),0)*100-100) &"%" -> Total capital investment ($) = -5% | D178: =+K68 -> 4.837804129 | E178: 4.837804129 | F178: =+MAX(D177-D178,0) -> 0.03133203172 | G178: =+MAX(D178-D177,0) -> 0
B179: 4 | C179: =OFFSET($B$50,0,MATCH($B179,$C$72:$I$72,0))& IF(OFFSET($F$2,MATCH($B179,$C$72:$I$72,0),0)<1, " = "&OFFSET($F$2,MATCH($B179,$C$72:$I$72,0),0)*100-100, " = +"&OFFSET($F$2,MATCH($B179,$C$72:$I$72,0),0)*100-100) &"%" -> Total fixed operating cost ($/year) = -5% | D179: =+K69 -> 4.817003524 | E179: 4.817003524 | F179: =+MAX(D178-D179,0) -> 0.02080060529 | G179: =+MAX(D179-D178,0) -> 0
B180: 5 | C180: =OFFSET($B$50,0,MATCH($B180,$C$72:$I$72,0))& IF(OFFSET($F$2,MATCH($B180,$C$72:$I$72,0),0)<1, " = "&OFFSET($F$2,MATCH($B180,$C$72:$I$72,0),0)*100-100, " = +"&OFFSET($F$2,MATCH($B180,$C$72:$I$72,0),0)*100-100) &"%" -> Utilities consumption (% of most likely value) = -5% | D180: =+K70 -> 4.817003524 | E180: 4.817003524 | F180: =+MAX(D179-D180,0) -> 0 | G180: =+MAX(D180-D179,0) -> 0
B181: 6 | C181: Adjusted | D181: =+K70 -> 4.817003524 | E181: 4.817003524
B189: Min factor | C189: =+MIN(F3:G3) -> 0.95 | D189: =+MIN(F4:G4) -> 0.95 | E189: =+MIN(F5:G5) -> 0.95 | F189: =+MIN(F6:G6) -> 0.95 | G189: =+MIN(F7:G7) -> 0.95 | H189: =+MIN(F8:G8) -> 0.95 | I189: =+MIN(F9:G9) -> 0.95
B190: Nominal factor | C190: 1 | D190: 1 | E190: 1 | F190: 1 | G190: 1 | H190: 1 | I190: 1
B191: Max factor | C191: =+MAX(F3:G3) -> 1.05 | D191: =+MAX(F4:G4) -> 1.05 | E191: =+MAX(F5:G5) -> 1.05 | F191: =+MAX(F6:G6) -> 1.05 | G191: =+MAX(F7:G7) -> 1.05 | H191: =+MAX(F8:G8) -> 1.05 | I191: =+MAX(F9:G9) -> 1.05
B194: Variable | C194: =+MATCH(R12,C50:Y50,0) -> 9
B195: Min | C195: =+MIN(OFFSET($B$251:$B$2250,0,C194)) -> 4.898995892
B196: max | C196: =+MAX(OFFSET($B$251:$B$2250,0,C194)) -> 5.460673613
B197: max-min | C197: =+C196-C195 -> 0.5616777208
B198: gain | C198: =+OFFSET(B199,0,C194) -> 1
B199: gain | C199: =+C3 -> 0.97 | D199: =+C4 -> 50000 | E199: =+C5 -> 0.08 | F199: =+C6 -> 1 | G199: =+C7 -> 1 | H199: =+C8 -> 165837229.1 | I199: =+C9 -> 8186102.754 | K199: 1 | L199: 1 | M199: 1 | N199: 1 | O199: 1 | P199: 1 | Q199: 1 | R199: 1 | S199: 1 | T199: 1 | U199: 1 | V199: 1 | W199: 1 | X199: 1
B200: Range to plot
B201: Min | C201: Max | E201: Min*gain | F201: Max*gain | G201: Average | H201: Probability | I201: Cumulative probability
B202: =+C195 -> 4.898995892 | C202: =+B202+($C$197/20) -> 4.927079778 | D202: =+COUNTIFS(OFFSET(B$251:B$2250,0,$C$194),">="&$B202, OFFSET(B$251:B$2250,0,$C$194),"<="&$C202) -> 8 | E202: =+B202*$C$198 -> 4.898995892 | F202: =+C202*$C$198 -> 4.927079778 | G202: =+AVERAGE(E202:F202) -> 4.913037835 | H202: =+D202/$D$223 -> 0.004 | I202: =+H202 -> 0.004
B203: =+C202 -> 4.927079778 | C203: =+B203+($C$197/20) -> 4.955163664 | D203: 20 | E203: =+B203*$C$198 -> 4.927079778 | F203: =+C203*$C$198 -> 4.955163664 | G203: =+AVERAGE(E203:F203) -> 4.941121721 | H203: =+D203/$D$223 -> 0.01 | I203: =+I202+H203 -> 0.014
B204: =+C203 -> 4.955163664 | C204: 4.98324755 | D204: 45 | E204: 4.955163664 | F204: 4.98324755 | G204: 4.969205607 | H204: 0.0225 | I204: =+I203+H204 -> 0.0365
B205: 4.98324755 | C205: 5.011331436 | D205: 73 | E205: 4.98324755 | F205: 5.011331436 | G205: 4.997289493 | H205: 0.0365 | I205: 0.073
B206: 5.011331436 | C206: 5.039415322 | D206: 78 | E206: 5.011331436 | F206: 5.039415322 | G206: 5.025373379 | H206: 0.039 | I206: 0.112
B207: 5.039415322 | C207: 5.067499208 | D207: 121 | E207: 5.039415322 | F207: 5.067499208 | G207: 5.053457265 | H207: 0.0605 | I207: 0.1725
B208: 5.067499208 | C208: 5.095583094 | D208: 137 | E208: 5.067499208 | F208: 5.095583094 | G208: 5.081541151 | H208: 0.0685 | I208: 0.241
B209: 5.095583094 | C209: 5.12366698 | D209: 158 | E209: 5.095583094 | F209: 5.12366698 | G209: 5.109625037 | H209: 0.079 | I209: 0.32
B210: 5.12366698 | C210: 5.151750866 | D210: 191 | E210: 5.12366698 | F210: 5.151750866 | G210: 5.137708923 | H210: 0.0955 | I210: 0.4155
B211: 5.151750866 | C211: 5.179834752 | D211: 191 | E211: 5.151750866 | F211: 5.179834752 | G211: 5.165792809 | H211: 0.0955 | I211: 0.511
B212: 5.179834752 | C212: 5.207918639 | D212: 182 | E212: 5.179834752 | F212: 5.207918639 | G212: 5.193876696 | H212: 0.091 | I212: 0.602
B213: 5.207918639 | C213: 5.236002525 | D213: 170 | E213: 5.207918639 | F213: 5.236002525 | G213: 5.221960582 | H213: 0.085 | I213: 0.687
B214: 5.236002525 | C214: 5.264086411 | D214: 160 | E214: 5.236002525 | F214: 5.264086411 | G214: 5.250044468 | H214: 0.08 | I214: 0.767
B215: 5.264086411 | C215: 5.292170297 | D215: 130 | E215: 5.264086411 | F215: 5.292170297 | G215: 5.278128354 | H215: 0.065 | I215: 0.832
B216: 5.292170297 | C216: 5.320254183 | D216: 109 | E216: 5.292170297 | F216: 5.320254183 | G216: 5.30621224 | H216: 0.0545 | I216: 0.8865
B217: 5.320254183 | C217: 5.348338069 | D217: 111 | E217: 5.320254183 | F217: 5.348338069 | G217: 5.334296126 | H217: 0.0555 | I217: 0.942
B218: 5.348338069 | C218: 5.376421955 | D218: 49 | E218: 5.348338069 | F218: 5.376421955 | G218: 5.362380012 | H218: 0.0245 | I218: 0.9665
B219: 5.376421955 | C219: 5.404505841 | D219: 39 | E219: 5.376421955 | F219: 5.404505841 | G219: 5.390463898 | H219: 0.0195 | I219: 0.986
B220: 5.404505841 | C220: 5.432589727 | D220: 20 | E220: 5.404505841 | F220: 5.432589727 | G220: 5.418547784 | H220: 0.01 | I220: 0.996
B221: 5.432589727 | C221: =+B221+($C$197/20)+0.000001 -> 5.460674613 | D221: 8 | E221: 5.432589727 | F221: 5.460674613 | G221: 5.44663217 | H221: 0.004 | I221: 1
F222: 0 | G222: 0
B223: Variable to plot | D223: =+SUM(D202:D221) -> 2000
B224: =+TRANSPOSE(Sensitivity_output) -> Cost of hydrogen ($/kg)
B225: Revenue from byproduct sales ($/kg)
B226: Salvage value ($/kg)
B227: Initial equity depreciable capital ($/kg)
B228: Yearly replacement costs ($/kg)
B229: Cash from working capital reserve ($/kg)
B230: Other non-depreciable capital costs ($/kg)
B231: Decommissioning costs ($/kg)
B232: Fixed operating cost ($/kg)
B233: Feedstock cost ($/kg)
B234: Other raw material cost ($/kg)
B235: Other variable operating costs ($/kg)
B236: Debt interest ($/kg)
B237: Taxes ($/kg)
B238: Principal payment ($/kg)
B239: =+TRANSPOSE(C50:I50) -> Operating capacity factor
B240: Plant design capacity (kg of H2/day)
B241: After-tax real IRR (%)
B242: Feedstock consumption (% of most likely value)
B243: Utilities consumption (% of most likely value)
... 2004 more rows

Sheet Cash Flow Analysis
A2: TABLE OF CONTENTS
A3: DCF Calculations
A4: Yearly Cash Flow Calculations
A5: Specific Item Cost Calculation
A6: Feedstock, Utility, and Byproduct Cost Information
A15: DCF CALCULATION INPUTS: | D15: DCF CALCULATION OUTPUTS:
A16: Process | D16: ="Hydrogen Cost (Year "&TEXT(ref_year,"0")&" Real $/kg)" -> Hydrogen Cost (Year 2016 Real $/kg) | E16: =H2_price_nominal/INFLATION_FACTOR -> 5.175427726
A17: Actual Hydrogen Produced (kg/yr) | B17: =output_kgyear -> 17702500 | D17: Hydrogen Cost (Start-up Year Nominal $/kg) | E17: =+SUM(X57:AB57)/AC57*(1+inflation_rate)^construct -> 5.078928092
A18: Actual Hydrogen Energy Produced (MMBtu(LHV)/yr) | B18: =B17*H2_LHV_MJ_p_kg/1000/mmBTU_to_GJ -> 2017105.713 | D18: After Tax Real IRR | E18: =((E20+1)/(1+B30))-1 -> 0.08
A19: Actual Hydrogen Energy Produced (MJ(LHV)/yr) | B19: =B17*H2_LHV_MJ_p_kg -> 2128046527 | D19: Pre Tax Real IRR | E19: =((E21+1)/(1+B30))-1 -> 0.09318501498
A20: Design Capacity (kg/day) | B20: =design_cap -> 50000 | D20: After Tax Nominal IRR | E20: =IRR(AA65:AA113) -> 0.10052
A21: Design Capacity (kg/yr) | B21: =B20*365 -> 18250000 | D21: Pre Tax Nominal IRR | E21: =IRR(AC65:AC113) -> 0.1139555303
A22: Capacity Factor | B22: =cap_factor -> 0.97 | D22: After Tax Real Capital Recovery Factor | E22: =(real_irr*(1+real_irr)^anal_period)/(((1+real_irr)^anal_period)-1) -> 0.0838601615
D23: After Tax Nominal Capital Recovery Factor | E23: =(nominal_irr*(1+nominal_irr)^anal_period)/(((1+nominal_irr)^anal_period)-1) -> 0.1027476886
A24: Financial | D24: Total Real Fixed Charge Rate | E24: =(E22*(1-total_tax_rate*INDEX(Depreciation!B12:H37,MATCH("NPV - Real IRR",Depreciation!B12:B37,0),MATCH(depr_length,recovery_period,0))))/(1-total_tax_rate) -> 0.09821253181
A25: Start-up Year | B25: =startup_year -> 2015 | D25: Total Nominal Fixed Charge Rate | E25: =(E23*(1-total_tax_rate*INDEX(Depreciation!B12:H37,MATCH("NPV - Nominal IRR",Depreciation!B12:B37,0),MATCH(depr_length,recovery_period,0))))/(1-total_tax_rate) -> 0.1226581394
A26: After-Tax Real IRR | B26: =real_irr -> 0.08 | D26: NPV | E26: =NPV(nominal_irr,AA65:AA113) -> 6.954115561e-07
A27: After-Tax Nominal IRR | B27: =((1+B26)*(1+B30))-1 -> 0.10052
A28: Analysis Period (yrs) | B28: =anal_period -> 40
A29: Plant Life (yrs) | B29: =plant_life -> 40
A30: Inflation Rate | B30: =inflation_rate -> 0.019
A31: Debt Financing | B31: =100%-equity -> 0.6
A32: Equity Financing | B32: =equity -> 0.4
A33: Total Tax Rate | B33: =total_tax_rate -> 0.2574
A35: Cost of Debt Financing
A36: Debt Financing Period (yrs) | B36: =debt_period -> 0
A37: Interest Rate on Debt | B37: =debt_interest -> 0.037
A39: Construction/Start Up Information
A40: Construction Period (yrs) | B40: =construct -> 1
A41: Start-up Period (yrs) | B41: =start_time -> 0
A42: % Revenue During Start-up | B42: =percnt_revs -> 0.5
A43: % Variable Costs During Start-up | B43: =percnt_var -> 0.75
A44: % Fixed Costs During Start-up | B44: =percnt_fixed -> 1
A46: Depreciation Parameters
A47: Depreciation Type | B47: =depr_type -> MACRS
A48: Depreciation Period (yrs) | B48: =depr_length -> 20 | R48: =inflated_othervar -> 0
A50: Plant Costs (Inflated to Start-up Year $) | R50: =IF(C66="","", IF(C66<0,0, IF(AND(C66=1,start_time<1), -((SUM(F140:J140,P140:R140)*output_kgyear+inflated_othervar)*E66*percnt_var*start_time+(SUM(F140:J140,P140:R140)*output_kgyear+inflated_othervar)*E66*(1-start_time)), IF(C66<=start_time,-(SUM(F140:J140,P140:R140)*output_kgyear+inflated_othervar)*E66*percnt_var,-E66*(SUM(F140:J140,P140:R140)*output_kgyear+inflated_othervar))))) -> -196391.2086
A51: Total Depreciable Capital Costs | B51: =(total_cap-non_dep_cap)*INFLATION_FACTOR -> 162475022.6
A52: Total Non-Depreciable Capital Costs | B52: =non_dep_cap*INFLATION_FACTOR -> 270050.0949
A53: Total Capital Investment | B53: =SUM(B51:B52) -> 162745072.7 | W53: Closed form formulas for calculating price of hydrogen.
A54: Decommissioning | B54: =decom_percent*depr_cap_infl -> 16247502.26 | X54: Capital Costs | Y54: Depr | Z54: Principal | AA54: Op costs | AB54: Tax incentives | AC54: H2 sales (kg)
A55: Salvage Value | B55: =salvage_perct*B53 -> 16274507.27 | W55: Discounted values | X55: =-SUM(H116:K116) -> 98342672.98 | Y55: =-U116 -> 85425637.18 | Z55: =-Z116 -> 2074178.33 | AA55: =-SUM(L116:S116) -> 946534784.5 | AB55: =+AF116 -> 0 | AC55: =+AE116 -> 211095467.5
A56: Fixed Operating Costs ($/year) | B56: =fixed*INFLATION_FACTOR -> 8033466.883 | W56: Tax coefficient | X56: 1 | Y56: =-total_tax_rate -> -0.2574 | Z56: 1 | AA56: =1-total_tax_rate -> 0.7426 | AB56: -1 | AC56: =1-total_tax_rate -> 0.7426
A57: Other Raw Material ($/year) | B57: =total_other_raw*INFLATION_FACTOR -> 0 | E57: =CO2_OandMcost -> 0 | W57: LCOE cost contribution factors | X57: =+X55*X56 -> 98342672.98 | Y57: -21988559.01 | Z57: 2074178.33 | AA57: =+AA55*AA56 -> 702896731 | AB57: =+AB55*AB56 -> 0 | AC57: =+AC55*AC56 -> 156759494.2
A58: Other Variable O&M Costs (not including tax credits and incentives) | B58: =(var_misc+royalties+operator_profit+CO2_OandMcost+waste_treat+solidwaste_treat)*INFLATION_FACTOR -> 0 | D58: =(var_misc+royalties+operator_profit+CO2_OandMcost+waste_treat+solidwaste_treat)*INFLATION_FACTOR -> 0
W59: Target after-tax nominal IRR | X59: =+(1+real_irr)*(1+inflation_rate)-1 -> 0.10052
W60: =+D16 -> Hydrogen Cost (Year 2016 Real $/kg) | X60: =+SUM(X57:AB57)/AC57*(1+inflation_rate)^construct/INFLATION_FACTOR -> 5.175427726
A63: CASH FLOW ANALYSIS
A64: Actual Year (beginning of year) | B64: Analysis Year | C64: Operation Year | D64: Plant Life | E64: Inflation Price Increase Factor | F64: Revenue from Hydrogen Sales | G64: Portion of Initial Depreciable Capital Investment Financed with Debt (value ONLY used in debt financing calculations) | H64: Initial Equity Depreciable Capital | I64: Yearly Replacement Costs | J64: Cash from Working Capital Reserve | K64: Other Non-Depreciable Capital Costs | L64: Salvage Value | M64: Decommissioning Costs | N64: Fixed Operating Cost | O64: Feedstock Cost | P64: Other Raw Material Cost | Q64: Revenue from Byproduct Sales | R64: Other Variable Operating Costs | S64: Debt Interest | T64: Pre-Depreciation Income | U64: Depreciation Charge | V64: Taxable Income | W64: Tax Rate | X64: Total Taxes | Y64: After-Tax Income | Z64: Principal Payment | AA64: After-Tax Post-Depreciation Cash Flow | AB64: Cumulative Cash Flow | AC64: Pre-Tax Cash Flow | AE64: H2 sales (kg/year) | AF64: Tax Credit
A65: =startup_year-construct -> 2014 | B65: 1 | C65: =IF(construct=0,1,-construct) -> -1 | D65: =IF(C65="","",IF(C65<=plant_life,C65,IF(D64=plant_life,1,D64+1))) -> -1 | E65: =IF(C65="","",(1+inflation_rate)^(A65-$B$25)) -> 0.9813542689 | F65: =IF(C65="","",IF(C65<0,0,IF(AND(C65=1,start_time<1),E65*(H2_price_nominal*output_kgyear*start_time*percnt_revs+H2_price_nominal*output_kgyear*(1-start_time)),IF(C65<=start_time,H2_price_nominal*E65*output_kgyear*percnt_revs,H2_price_nominal*output_kgyear*E65)))) -> 0 | G65: =-$B$31*depr_cap_infl*E65 -> -95667334.21 | H65: =IF(C65<0,-E65*equity*depr_cap_infl*percent_cap1,IF(C65=1,-E65*equity*depr_cap_infl,0)) -> -63778222.81 | I65: =IF(OR(C65<0,C65=""),"",-E65*INDEX('Replacement Costs'!$A$16:$H$57,MATCH(C65,'Replacement Costs'!$C$16:$C$57,0),MATCH("Total Yearly Replacement Costs",'Replacement Costs'!$A$16:$H$16,0))) ->  | J65: =IF(AND(C65>=1,C65<anal_period),WorkingCap*SUM(N65:R65)-WorkingCap*SUM(N64:R64),0) -> 0 | K65: =IF(C65=-construct,-E65*non_dep_infl,"") -> -265014.8134 | L65: =IF(C65=anal_period,salvage*E65,"") ->  | M65: =IF(D65=plant_life,-E65*decom,"") ->  | N65: =IF(C65="","",IF(C65<0,0,IF(AND(C65=1,start_time<1),-(inflated_fixed*percnt_fixed*start_time+(inflated_fixed*(1-start_time))),IF(C65<=start_time,-inflated_fixed*percnt_fixed*E65,-inflated_fixed*E65)))) -> 0 | O65: =IF(C65="","",IF(C65<0,0,IF(AND(C65=1,start_time<1),-(SUM(B139:E139)*output_kgyear*E65*percnt_var*start_time+SUM(B139:E139)*output_kgyear*E65*(1-start_time)),IF(C65<=start_time,-SUM(B139:E139)*output_kgyear*E65*percnt_var,-SUM(B139:E139)*output_kgyear*E65)))) -> 0 | P65: =IF(C65="","",IF(C65<0,0,IF(AND(C65=1,start_time<1),-(inflated_otherraw*E65*percnt_var*start_time+inflated_otherraw*E65*(1-start_time)),IF(C65<=start_time,-inflated_otherraw*E65*percnt_var,-(inflated_otherraw*E65))))) -> 0 | Q65: =IF(C65="","",IF(C65<0,0,IF(AND(C65=1,start_time<1),SUM(K139:N139,T139:V139)*output_kgyear*E65*percnt_revs*start_time+SUM(K139:N139,T139:V139)*output_kgyear*E65*(1-start_time),IF(C65<=start_time,SUM(K139:N139,T139:V139)*output_kgyear*E65*percnt_revs,SUM(K139:N139,T139:V139)*output_kgyear*E65)))) -> 0 | R65: =IF(C65="","",IF(C65<0,0,IF(AND(C65=1,start_time<1),-((SUM(F139:J139,P139:R139)*output_kgyear+inflated_othervar)*E65*percnt_var*start_time+(SUM(F139:J139,P139:R139)*output_kgyear+inflated_othervar)*E65*(1-start_time)),IF(C65<=start_time,-(SUM(F139:J139,P139:R139)*output_kgyear+inflated_othervar)*E65*percnt_var,-E65*(SUM(F139:J139,P139:R139)*output_kgyear+inflated_othervar))))) -> 0 | S65: =IF(B65="","",IF($B$31=0,"",-'Debt Financing Calculations'!E14)) -> -3539691.366 | T65: =IF(C65="","",F65+SUM(L65:S65)) -> -3539691.366 | U65: =IF(C65="","",IF(C65<-1,0,IF(C65=anal_period,-LOOKUP(C65,depr_yr,depr_cost)-Depreciation!$C$141-Depreciation!$B$166,-LOOKUP(C65,depr_yr,depr_cost)))) -> 0 | V65: =IF(C65="","",SUM(T65:U65)) -> -3539691.366 | W65: =IF(C65="","",$B$33) -> 0.2574 | X65: =IF(C65="","",tax_credit-(V65*W65 +Upstream_CO2_taxpYear + Proc_CO2_taxpYear)) -> 911116.5576 | Y65: =IF(C65="","",SUM(T65,X65)) -> -2628574.808 | Z65: =IF(C65="","",IF($B$31=0,"",-'Debt Financing Calculations'!F14)) -> 0 | AA65: =IF(C65="","",SUM(H65,I65,J65,K65,T65,X65,Z65)) -> -66671812.43 | AB65: =AA65 -> -66671812.43 | AC65: =IF(C65="","",SUM(H65,I65,J65,K65,T65,Z65)) -> -67582928.99 | AE65: =IF(C65="","",IF(C65<0,0,IF(AND(C65=1,start_time<1),(output_kgyear*start_time*percnt_revs+output_kgyear*(1-start_time)),IF(C65<=start_time,output_kgyear*percnt_revs,output_kgyear)))) -> 0 | AF65: =IF(C65="","",tax_credit) -> 0
A66: =IF(B66<>"",A65+1,"") -> 2015 | B66: =IF(MAX($B$65:B65)<(construct+anal_period),B65+1,"") -> 2 | C66: =IF(B66="","",IF(C65=-1,1,C65+1)) -> 1 | D66: 1 | E66: 1 | F66: 89909724.55 | H66: =IF(C66<0,-E66*equity*depr_cap_infl*percent_cap2,0) -> 0 | I66: =IF(OR(C66<0,C66=""),"",-E66*INDEX('Replacement Costs'!$A$16:$H$57,MATCH(C66,'Replacement Costs'!$C$16:$C$57,0),MATCH("Total Yearly Replacement Costs",'Replacement Costs'!$A$16:$H$16,0))) -> -812375.113 | J66: =IF(AND(C66>=1,C66<anal_period),WorkingCap*SUM(N66:R66)-WorkingCap*SUM(N65:R65),IF(C66<0,0,IF(B66="","",-SUM(J$65:J65)))) -> -3712207.583 | N66: -8033466.883 | O66: -66014293.58 | P66: 0 | Q66: 0 | R66: -196391.2086 | S66: =IF(B66="","",IF($B$31=0,"",-'Debt Financing Calculations'!E15)) -> -3539691.366 | T66: 12125881.51 | U66: =IF(C66="","",IF(C66<-1,0,IF(C66=anal_period,-LOOKUP(C66,depr_yr,depr_cost)-Depreciation!$C$141-Depreciation!$B$166,-LOOKUP(C66,depr_yr,depr_cost)))) -> -6009672.455 | V66: 6116209.059 | W66: 0.2574 | X66: -1574312.212 | Y66: 10551569.3 | Z66: =IF(C66="","",IF($B$31=0,"",-'Debt Financing Calculations'!F15)) -> 0 | AA66: 6026986.606 | AB66: =IF(C66="","",AB65+AA66) -> -60644825.82 | AC66: 7601298.818 | AE66: 17702500 | AF66: 0
A67: 2016 | B67: =IF(MAX($B$65:B66)<(construct+anal_period),B66+1,"") -> 3 | C67: 2 | D67: 2 | E67: 1.019 | F67: 91618009.31 | H67: =IF(C67<0,-E67*equity*depr_cap_infl*percent_cap3,0) -> 0 | I67: =IF(OR(C67<0,C67=""),"",-E67*INDEX('Replacement Costs'!$A$16:$H$57,MATCH(C67,'Replacement Costs'!$C$16:$C$57,0),MATCH("Total Yearly Replacement Costs",'Replacement Costs'!$A$16:$H$16,0))) -> -827810.2402 | J67: =IF(AND(C67>=1,C67<anal_period),WorkingCap*SUM(N67:R67)-WorkingCap*SUM(N66:R66),IF(C67<0,0,IF(B67="","",-SUM(J$65:J66)))) -> 43886.58831 | N67: -8186102.754 | O67: -64980194.51 | P67: 0 | Q67: 0 | R67: -200122.6415 | S67: =IF(B67="","",IF($B$31=0,"",-'Debt Financing Calculations'!E16)) -> -3539691.366 | T67: 14711898.05 | U67: =IF(C67="","",IF(C67<-1,0,IF(C67=anal_period,-LOOKUP(C67,depr_yr,depr_cost)-Depreciation!$C$141-Depreciation!$B$166,-LOOKUP(C67,depr_yr,depr_cost)))) -> -11600063 | V67: 3111835.042 | W67: 0.2574 | X67: -800986.3398 | Y67: 13910911.71 | Z67: =IF(C67="","",IF($B$31=0,"",-'Debt Financing Calculations'!F16)) -> 0 | AA67: 13126988.06 | AB67: -47517837.77 | AC67: 13927974.39 | AE67: 17702500 | AF67: 0
A68: 2017 | B68: =IF(MAX($B$65:B67)<(construct+anal_period),B67+1,"") -> 4 | C68: 3 | D68: 3 | E68: 1.038361 | F68: 93358751.49 | H68: =IF(C68<0,-E68*equity*depr_cap_infl*percent_cap4,0) -> 0 | I68: =IF(OR(C68<0,C68=""),"",-E68*INDEX('Replacement Costs'!$A$16:$H$57,MATCH(C68,'Replacement Costs'!$C$16:$C$57,0),MATCH("Total Yearly Replacement Costs",'Replacement Costs'!$A$16:$H$16,0))) -> -843538.6347 | J68: =IF(AND(C68>=1,C68<anal_period),WorkingCap*SUM(N68:R68)-WorkingCap*SUM(N67:R67),IF(C68<0,0,IF(B68="","",-SUM(J$65:J67)))) -> -203645.8361 | N68: -8341638.706 | O68: -68893772.94 | P68: 0 | Q68: 0 | R68: -203924.9717 | S68: =IF(B68="","",IF($B$31=0,"",-'Debt Financing Calculations'!E17)) -> -3539691.366 | T68: 12379723.5 | U68: =IF(C68="","",IF(C68<-1,0,IF(C68=anal_period,-LOOKUP(C68,depr_yr,depr_cost)-Depreciation!$C$141-Depreciation!$B$166,-LOOKUP(C68,depr_yr,depr_cost)))) -> -10791814.45 | V68: 1587909.054 | W68: 0.2574 | X68: -408727.7904 | Y68: =IF(C68="","",SUM(T68,X68)) -> 11970995.71 | Z68: =IF(C68="","",IF($B$31=0,"",-'Debt Financing Calculations'!F17)) -> 0 | AA68: 10923811.24 | AB68: -36594026.53 | AC68: 11332539.03 | AE68: 17702500 | AF68: 0
A69: 2018 | B69: =IF(MAX($B$65:B68)<(construct+anal_period),B68+1,"") -> 5 | C69: 4 | D69: 4 | E69: 1.058089859 | F69: 95132567.77 | H69: =IF(C69="","",0) -> 0 | I69: =IF(OR(C69<0,C69=""),"",-E69*INDEX('Replacement Costs'!$A$16:$H$57,MATCH(C69,'Replacement Costs'!$C$16:$C$57,0),MATCH("Total Yearly Replacement Costs",'Replacement Costs'!$A$16:$H$16,0))) -> -859565.8688 | J69: =IF(AND(C69>=1,C69<anal_period),WorkingCap*SUM(N69:R69)-WorkingCap*SUM(N68:R68),IF(C69<0,0,IF(B69="","",-SUM(J$65:J68)))) -> 5987.680551 | N69: -8500129.842 | O69: -68611653.62 | P69: 0 | Q69: 0 | R69: -207799.5462 | S69: =IF(B69="","",IF($B$31=0,"",-'Debt Financing Calculations'!E18)) -> -3539691.366 | T69: 14273293.39 | U69: =IF(C69="","",IF(C69<-1,0,IF(C69=anal_period,-LOOKUP(C69,depr_yr,depr_cost)-Depreciation!$C$141-Depreciation!$B$166,-LOOKUP(C69,depr_yr,depr_cost)))) -> -10047534.13 | V69: 4225759.26 | W69: 0.2574 | X69: -1087710.433 | Y69: 13185582.96 | Z69: =IF(C69="","",IF($B$31=0,"",-'Debt Financing Calculations'!F18)) -> 0 | AA69: 12332004.77 | AB69: -24262021.76 | AC69: 13419715.2 | AE69: 17702500 | AF69: 0
A70: 2019 | B70: =IF(MAX($B$65:B69)<(construct+anal_period),B69+1,"") -> 6 | C70: 5 | D70: 5 | E70: 1.078193566 | F70: 96940086.56 | H70: 0 | I70: =IF(OR(C70<0,C70=""),"",-E70*INDEX('Replacement Costs'!$A$16:$H$57,MATCH(C70,'Replacement Costs'!$C$16:$C$57,0),MATCH("Total Yearly Replacement Costs",'Replacement Costs'!$A$16:$H$16,0))) -> -875897.6203 | J70: =IF(AND(C70>=1,C70<anal_period),WorkingCap*SUM(N70:R70)-WorkingCap*SUM(N69:R69),IF(C70<0,0,IF(B70="","",-SUM(J$65:J69)))) -> -118525.1905 | N70: -8661632.309 | O70: -70816706.77 | P70: 0 | Q70: 0 | R70: -211747.7376 | S70: =IF(B70="","",IF($B$31=0,"",-'Debt Financing Calculations'!E19)) -> -3539691.366 | T70: 13710308.37 | U70: =IF(C70="","",IF(C70<-1,0,IF(C70=anal_period,-LOOKUP(C70,depr_yr,depr_cost)-Depreciation!$C$141-Depreciation!$B$166,-LOOKUP(C70,depr_yr,depr_cost)))) -> -9357890.797 | V70: 4352417.573 | W70: 0.2574 | X70: -1120312.283 | Y70: 12589996.09 | Z70: =IF(C70="","",IF($B$31=0,"",-'Debt Financing Calculations'!F19)) -> 0 | AA70: 11595573.28 | AB70: -12666448.48 | AC70: 12715885.56 | AE70: 17702500 | AF70: 0
A71: 2020 | B71: =IF(MAX($B$65:B70)<(construct+anal_period),B70+1,"") -> 7 | C71: 6 | D71: 6 | E71: 1.098679244 | F71: 98781948.2 | H71: 0 | I71: =IF(OR(C71<0,C71=""),"",-E71*INDEX('Replacement Costs'!$A$16:$H$57,MATCH(C71,'Replacement Costs'!$C$16:$C$57,0),MATCH("Total Yearly Replacement Costs",'Replacement Costs'!$A$16:$H$16,0))) -> -892539.6751 | J71: =IF(AND(C71>=1,C71<anal_period),WorkingCap*SUM(N71:R71)-WorkingCap*SUM(N70:R70),IF(C71<0,0,IF(B71="","",-SUM(J$65:J70)))) -> -142836.2117 | N71: -8826203.322 | O71: -73504836.79 | P71: 0 | Q71: 0 | R71: -215770.9446 | S71: =IF(B71="","",IF($B$31=0,"",-'Debt Financing Calculations'!E20)) -> -3539691.366 | T71: 12695445.78 | U71: =IF(C71="","",IF(C71<-1,0,IF(C71=anal_period,-LOOKUP(C71,depr_yr,depr_cost)-Depreciation!$C$141-Depreciation!$B$166,-LOOKUP(C71,depr_yr,depr_cost)))) -> -8723124.394 | V71: 3972321.387 | W71: 0.2574 | X71: -1022475.525 | Y71: 11672970.26 | Z71: =IF(C71="","",IF($B$31=0,"",-'Debt Financing Calculations'!F20)) -> 0 | AA71: 10637594.37 | AB71: -2028854.114 | AC71: 11660069.89 | AE71: 17702500 | AF71: 0
A72: 2021 | B72: =IF(MAX($B$65:B71)<(construct+anal_period),B71+1,"") -> 8 | C72: 7 | D72: 7 | E72: 1.11955415 | F72: 100658805.2 | H72: 0 | I72: =IF(OR(C72<0,C72=""),"",-E72*INDEX('Replacement Costs'!$A$16:$H$57,MATCH(C72,'Replacement Costs'!$C$16:$C$57,0),MATCH("Total Yearly Replacement Costs",'Replacement Costs'!$A$16:$H$16,0))) -> -909497.9289 | J72: =IF(AND(C72>=1,C72<anal_period),WorkingCap*SUM(N72:R72)-WorkingCap*SUM(N71:R71),IF(C72<0,0,IF(B72="","",-SUM(J$65:J71)))) -> -99046.09551 | N72: -8993901.186 | O72: -75313961.19 | P72: 0 | Q72: 0 | R72: -219870.5925 | S72: =IF(B72="","",IF($B$31=0,"",-'Debt Financing Calculations'!E21)) -> -3539691.366 | T72: 12591380.89 | U72: =IF(C72="","",IF(C72<-1,0,IF(C72=anal_period,-LOOKUP(C72,depr_yr,depr_cost)-Depreciation!$C$141-Depreciation!$B$166,-LOOKUP(C72,depr_yr,depr_cost)))) -> -8135466.535 | V72: 4455914.351 | W72: 0.2574 | X72: -1146952.354 | Y72: 11444428.53 | Z72: =IF(C72="","",IF($B$31=0,"",-'Debt Financing Calculations'!F21)) -> 0 | AA72: 10435884.51 | AB72: 8407030.394 | AC72: 11582836.86 | AE72: 17702500 | AF72: 0
A73: 2022 | B73: =IF(MAX($B$65:B72)<(construct+anal_period),B72+1,"") -> 9 | C73: 8 | D73: 8 | E73: 1.140825679 | F73: 102571322.5 | H73: 0 | I73: =IF(OR(C73<0,C73=""),"",-E73*INDEX('Replacement Costs'!$A$16:$H$57,MATCH(C73,'Replacement Costs'!$C$16:$C$57,0),MATCH("Total Yearly Replacement Costs",'Replacement Costs'!$A$16:$H$16,0))) -> -20786315.31 | J73: =IF(AND(C73>=1,C73<anal_period),WorkingCap*SUM(N73:R73)-WorkingCap*SUM(N72:R72),IF(C73<0,0,IF(B73="","",-SUM(J$65:J72)))) -> -204158.8216 | N73: -9164785.308 | O73: -79222075.96 | P73: 0 | Q73: 0 | R73: -224048.1338 | S73: =IF(B73="","",IF($B$31=0,"",-'Debt Financing Calculations'!E22)) -> -3539691.366 | T73: 10420721.75 | U73: =IF(C73="","",IF(C73<-1,0,IF(C73=anal_period,-LOOKUP(C73,depr_yr,depr_cost)-Depreciation!$C$141-Depreciation!$B$166,-LOOKUP(C73,depr_yr,depr_cost)))) -> -8339857.62 | V73: 2080864.132 | W73: 0.2574 | X73: -535614.4276 | Y73: 9885107.325 | Z73: =IF(C73="","",IF($B$31=0,"",-'Debt Financing Calculations'!F22)) -> 0 | AA73: -11105366.81 | AB73: -2698336.411 | AC73: -10569752.38 | AE73: 17702500 | AF73: 0
A74: 2023 | B74: =IF(MAX($B$65:B73)<(construct+anal_period),B73+1,"") -> 10 | C74: 9 | D74: 9 | E74: 1.162501366 | F74: 104520177.6 | H74: 0 | I74: =IF(OR(C74<0,C74=""),"",-E74*INDEX('Replacement Costs'!$A$16:$H$57,MATCH(C74,'Replacement Costs'!$C$16:$C$57,0),MATCH("Total Yearly Replacement Costs",'Replacement Costs'!$A$16:$H$16,0))) -> -944387.179 | J74: =IF(AND(C74>=1,C74<anal_period),WorkingCap*SUM(N74:R74)-WorkingCap*SUM(N73:R73),IF(C74<0,0,IF(B74="","",-SUM(J$65:J73)))) -> -96973.20805 | N74: -9338916.229 | O74: -80983152.28 | P74: 0 | Q74: 0 | R74: -228305.0483 | S74: =IF(B74="","",IF($B$31=0,"",-'Debt Financing Calculations'!E23)) -> -3539691.366 | T74: 10430112.72 | U74: =IF(C74="","",IF(C74<-1,0,IF(C74=anal_period,-LOOKUP(C74,depr_yr,depr_cost)-Depreciation!$C$141-Depreciation!$B$166,-LOOKUP(C74,depr_yr,depr_cost)))) -> -8976680.74 | V74: 1453431.979 | W74: 0.2574 | X74: -374113.3914 | Y74: 10055999.33 | Z74: =IF(C74="","",IF($B$31=0,"",-'Debt Financing Calculations'!F23)) -> 0 | AA74: 9014638.941 | AB74: 6316302.53 | AC74: 9388752.332 | AE74: 17702500 | AF74: 0
A75: 2024 | B75: =IF(MAX($B$65:B74)<(construct+anal_period),B74+1,"") -> 11 | C75: 10 | D75: 10 | E75: 1.184588892 | F75: 106506061 | H75: 0 | I75: =IF(OR(C75<0,C75=""),"",-E75*INDEX('Replacement Costs'!$A$16:$H$57,MATCH(C75,'Replacement Costs'!$C$16:$C$57,0),MATCH("Total Yearly Replacement Costs",'Replacement Costs'!$A$16:$H$16,0))) -> -962330.5354 | J75: =IF(AND(C75>=1,C75<anal_period),WorkingCap*SUM(N75:R75)-WorkingCap*SUM(N74:R74),IF(C75<0,0,IF(B75="","",-SUM(J$65:J74)))) -> -75145.80811 | N75: -9516355.637 | O75: -82304291.24 | P75: 0 | Q75: 0 | R75: -232642.8442 | S75: =IF(B75="","",IF($B$31=0,"",-'Debt Financing Calculations'!E24)) -> -3539691.366 | T75: 10913079.93 | U75: =IF(C75="","",IF(C75<-1,0,IF(C75=anal_period,-LOOKUP(C75,depr_yr,depr_cost)-Depreciation!$C$141-Depreciation!$B$166,-LOOKUP(C75,depr_yr,depr_cost)))) -> -8911830.289 | V75: 2001249.644 | W75: 0.2574 | X75: -515121.6583 | Y75: 10397958.27 | Z75: =IF(C75="","",IF($B$31=0,"",-'Debt Financing Calculations'!F24)) -> 0 | AA75: 9360481.931 | AB75: 15676784.46 | AC75: 9875603.589 | AE75: 17702500 | AF75: 0
A76: 2025 | B76: =IF(MAX($B$65:B75)<(construct+anal_period),B75+1,"") -> 12 | C76: 11 | D76: 11 | E76: 1.207096081 | F76: 108529676.2 | H76: 0 | I76: =IF(OR(C76<0,C76=""),"",-E76*INDEX('Replacement Costs'!$A$16:$H$57,MATCH(C76,'Replacement Costs'!$C$16:$C$57,0),MATCH("Total Yearly Replacement Costs",'Replacement Costs'!$A$16:$H$16,0))) -> -980614.8155 | J76: =IF(AND(C76>=1,C76<anal_period),WorkingCap*SUM(N76:R76)-WorkingCap*SUM(N75:R75),IF(C76<0,0,IF(B76="","",-SUM(J$65:J75)))) -> -188140.7767 | N76: -9697166.394 | O76: -85881875.8 | P76: 0 | Q76: 0 | R76: -237063.0583 | S76: =IF(B76="","",IF($B$31=0,"",-'Debt Financing Calculations'!E25)) -> -3539691.366 | T76: 9173879.557 | U76: =IF(C76="","",IF(C76<-1,0,IF(C76=anal_period,-LOOKUP(C76,depr_yr,depr_cost)-Depreciation!$C$141-Depreciation!$B$166,-LOOKUP(C76,depr_yr,depr_cost)))) -> -8859361.149 | V76: 314518.4081 | W76: 0.2574 | X76: -80957.03823 | Y76: 9092922.519 | Z76: =IF(C76="","",IF($B$31=0,"",-'Debt Financing Calculations'!F25)) -> 0 | AA76: 7924166.926 | AB76: 23600951.39 | AC76: 8005123.965 | AE76: 17702500 | AF76: 0
A77: 2026 | B77: =IF(MAX($B$65:B76)<(construct+anal_period),B76+1,"") -> 13 | C77: 12 | D77: 12 | E77: 1.230030907 | F77: 110591740 | H77: 0 | I77: =IF(OR(C77<0,C77=""),"",-E77*INDEX('Replacement Costs'!$A$16:$H$57,MATCH(C77,'Replacement Costs'!$C$16:$C$57,0),MATCH("Total Yearly Replacement Costs",'Replacement Costs'!$A$16:$H$16,0))) -> -999246.497 | J77: =IF(AND(C77>=1,C77<anal_period),WorkingCap*SUM(N77:R77)-WorkingCap*SUM(N76:R76),IF(C77<0,0,IF(B77="","",-SUM(J$65:J76)))) -> -135462.1414 | N77: -9881412.556 | O77: -88402368.27 | P77: 0 | Q77: 0 | R77: -241567.2564 | S77: =IF(B77="","",IF($B$31=0,"",-'Debt Financing Calculations'!E26)) -> -3539691.366 | T77: 8526700.577 | U77: =IF(C77="","",IF(C77<-1,0,IF(C77=anal_period,-LOOKUP(C77,depr_yr,depr_cost)-Depreciation!$C$141-Depreciation!$B$166,-LOOKUP(C77,depr_yr,depr_cost)))) -> -8811703.855 | V77: -285003.2779 | W77: 0.2574 | X77: 73359.84373 | Y77: 8600060.421 | Z77: =IF(C77="","",IF($B$31=0,"",-'Debt Financing Calculations'!F26)) -> 0 | AA77: 7465351.782 | AB77: 31066303.17 | AC77: 7391991.939 | AE77: 17702500 | AF77: 0
A78: 2027 | B78: =IF(MAX($B$65:B77)<(construct+anal_period),B77+1,"") -> 14 | C78: 13 | D78: 13 | E78: 1.253401494 | F78: 112692983.1 | H78: 0 | I78: =IF(OR(C78<0,C78=""),"",-E78*INDEX('Replacement Costs'!$A$16:$H$57,MATCH(C78,'Replacement Costs'!$C$16:$C$57,0),MATCH("Total Yearly Replacement Costs",'Replacement Costs'!$A$16:$H$16,0))) -> -1018232.18 | J78: =IF(AND(C78>=1,C78<anal_period),WorkingCap*SUM(N78:R78)-WorkingCap*SUM(N77:R77),IF(C78<0,0,IF(B78="","",-SUM(J$65:J77)))) -> -119550.4702 | N78: -10069159.39 | O78: -90601041.06 | P78: 0 | Q78: 0 | R78: -246157.0343 | S78: =IF(B78="","",IF($B$31=0,"",-'Debt Financing Calculations'!E27)) -> -3539691.366 | T78: 8236934.233 | U78: =IF(C78="","",IF(C78<-1,0,IF(C78=anal_period,-LOOKUP(C78,depr_yr,depr_cost)-Depreciation!$C$141-Depreciation!$B$166,-LOOKUP(C78,depr_yr,depr_cost)))) -> -8775268.652 | V78: -538334.4188 | W78: 0.2574 | X78: 138567.2794 | Y78: 8375501.513 | Z78: =IF(C78="","",IF($B$31=0,"",-'Debt Financing Calculations'!F27)) -> 0 | AA78: 7237718.862 | AB78: 38304022.03 | AC78: 7099151.583 | AE78: 17702500 | AF78: 0
A79: 2028 | B79: =IF(MAX($B$65:B78)<(construct+anal_period),B78+1,"") -> 15 | C79: 14 | D79: 14 | E79: 1.277216123 | F79: 114834149.8 | H79: 0 | I79: =IF(OR(C79<0,C79=""),"",-E79*INDEX('Replacement Costs'!$A$16:$H$57,MATCH(C79,'Replacement Costs'!$C$16:$C$57,0),MATCH("Total Yearly Replacement Costs",'Replacement Costs'!$A$16:$H$16,0))) -> -1037578.592 | J79: =IF(AND(C79>=1,C79<anal_period),WorkingCap*SUM(N79:R79)-WorkingCap*SUM(N78:R78),IF(C79<0,0,IF(B79="","",-SUM(J$65:J78)))) -> -125863.8602 | N79: -10260473.42 | O79: -92922327.25 | P79: 0 | Q79: 0 | R79: -250834.0179 | S79: =IF(B79="","",IF($B$31=0,"",-'Debt Financing Calculations'!E28)) -> -3539691.366 | T79: 7860823.707 | U79: =IF(C79="","",IF(C79<-1,0,IF(C79=anal_period,-LOOKUP(C79,depr_yr,depr_cost)-Depreciation!$C$141-Depreciation!$B$166,-LOOKUP(C79,depr_yr,depr_cost)))) -> -8742685.285 | V79: -881861.5775 | W79: 0.2574 | X79: 226991.17 | Y79: 8087814.877 | Z79: =IF(C79="","",IF($B$31=0,"",-'Debt Financing Calculations'!F28)) -> 0 | AA79: 6924372.425 | AB79: 45228394.46 | AC79: 6697381.255 | AE79: 17702500 | AF79: 0
A80: 2029 | B80: =IF(MAX($B$65:B79)<(construct+anal_period),B79+1,"") -> 16 | C80: 15 | D80: 15 | E80: 1.301483229 | F80: 117015998.6 | H80: 0 | I80: =IF(OR(C80<0,C80=""),"",-E80*INDEX('Replacement Costs'!$A$16:$H$57,MATCH(C80,'Replacement Costs'!$C$16:$C$57,0),MATCH("Total Yearly Replacement Costs",'Replacement Costs'!$A$16:$H$16,0))) -> -23713562.27 | J80: =IF(AND(C80>=1,C80<anal_period),WorkingCap*SUM(N80:R80)-WorkingCap*SUM(N79:R79),IF(C80<0,0,IF(B80="","",-SUM(J$65:J79)))) -> -122274.3648 | N80: -10455422.42 | O80: -95168099.71 | P80: 0 | Q80: 0 | R80: -255599.8643 | S80: =IF(B80="","",IF($B$31=0,"",-'Debt Financing Calculations'!E29)) -> -3539691.366 | T80: 7597185.256 | U80: =IF(C80="","",IF(C80<-1,0,IF(C80=anal_period,-LOOKUP(C80,depr_yr,depr_cost)-Depreciation!$C$141-Depreciation!$B$166,-LOOKUP(C80,depr_yr,depr_cost)))) -> -9569974.737 | V80: -1972789.481 | W80: 0.2574 | X80: 507796.0124 | Y80: 8104981.269 | Z80: =IF(C80="","",IF($B$31=0,"",-'Debt Financing Calculations'!F29)) -> 0 | AA80: -15730855.36 | AB80: 29497539.09 | AC80: -16238651.38 | AE80: 17702500 | AF80: 0
A81: 2030 | B81: =IF(MAX($B$65:B80)<(construct+anal_period),B80+1,"") -> 17 | C81: 16 | D81: 16 | E81: 1.32621141 | F81: 119239302.6 | H81: 0 | I81: =IF(OR(C81<0,C81=""),"",-E81*INDEX('Replacement Costs'!$A$16:$H$57,MATCH(C81,'Replacement Costs'!$C$16:$C$57,0),MATCH("Total Yearly Replacement Costs",'Replacement Costs'!$A$16:$H$16,0))) -> -1077381.144 | J81: =IF(AND(C81>=1,C81<anal_period),WorkingCap*SUM(N81:R81)-WorkingCap*SUM(N80:R80),IF(C81<0,0,IF(B81="","",-SUM(J$65:J80)))) -> -117584.3673 | N81: -10654075.44 | O81: -97316277.63 | P81: 0 | Q81: 0 | R81: -260456.2617 | S81: =IF(B81="","",IF($B$31=0,"",-'Debt Financing Calculations'!E30)) -> -3539691.366 | T81: 7468801.884 | U81: =IF(C81="","",IF(C81<-1,0,IF(C81=anal_period,-LOOKUP(C81,depr_yr,depr_cost)-Depreciation!$C$141-Depreciation!$B$166,-LOOKUP(C81,depr_yr,depr_cost)))) -> -10392099.87 | V81: -2923297.981 | W81: 0.2574 | X81: 752456.9003 | Y81: 8221258.785 | Z81: =IF(C81="","",IF($B$31=0,"",-'Debt Financing Calculations'!F30)) -> 0 | AA81: 7026293.273 | AB81: 36523832.37 | AC81: 6273836.373 | AE81: 17702500 | AF81: 0
A82: 2031 | B82: =IF(MAX($B$65:B81)<(construct+anal_period),B81+1,"") -> 18 | C82: 17 | D82: 17 | E82: 1.351409427 | F82: 121504849.3 | H82: 0 | I82: =IF(OR(C82<0,C82=""),"",-E82*INDEX('Replacement Costs'!$A$16:$H$57,MATCH(C82,'Replacement Costs'!$C$16:$C$57,0),MATCH("Total Yearly Replacement Costs",'Replacement Costs'!$A$16:$H$16,0))) -> -1097851.386 | J82: =IF(AND(C82>=1,C82<anal_period),WorkingCap*SUM(N82:R82)-WorkingCap*SUM(N81:R81),IF(C82<0,0,IF(B82="","",-SUM(J$65:J81)))) -> -109100.6683 | N82: -10856502.88 | O82: -99290914.89 | P82: 0 | Q82: 0 | R82: -265404.9306 | S82: =IF(B82="","",IF($B$31=0,"",-'Debt Financing Calculations'!E31)) -> -3539691.366 | T82: 7552335.267 | U82: =IF(C82="","",IF(C82<-1,0,IF(C82=anal_period,-LOOKUP(C82,depr_yr,depr_cost)-Depreciation!$C$141-Depreciation!$B$166,-LOOKUP(C82,depr_yr,depr_cost)))) -> -10321340.27 | V82: -2769005.008 | W82: 0.2574 | X82: 712741.889 | Y82: 8265077.156 | Z82: =IF(C82="","",IF($B$31=0,"",-'Debt Financing Calculations'!F31)) -> 0 | AA82: 7058125.102 | AB82: 43581957.47 | AC82: 6345383.213 | AE82: 17702500 | AF82: 0
A83: 2032 | B83: =IF(MAX($B$65:B82)<(construct+anal_period),B82+1,"") -> 19 | C83: 18 | D83: 18 | E83: 1.377086206 | F83: 123813441.5 | H83: 0 | I83: =IF(OR(C83<0,C83=""),"",-E83*INDEX('Replacement Costs'!$A$16:$H$57,MATCH(C83,'Replacement Costs'!$C$16:$C$57,0),MATCH("Total Yearly Replacement Costs",'Replacement Costs'!$A$16:$H$16,0))) -> -1118710.562 | J83: =IF(AND(C83>=1,C83<anal_period),WorkingCap*SUM(N83:R83)-WorkingCap*SUM(N82:R82),IF(C83<0,0,IF(B83="","",-SUM(J$65:J82)))) -> -93350.40487 | N83: -11062776.43 | O83: -100946606.7 | P83: 0 | Q83: 0 | R83: -270447.6243 | S83: =IF(B83="","",IF($B$31=0,"",-'Debt Financing Calculations'!E32)) -> -3539691.366 | T83: 7993919.307 | U83: =IF(C83="","",IF(C83<-1,0,IF(C83=anal_period,-LOOKUP(C83,depr_yr,depr_cost)-Depreciation!$C$141-Depreciation!$B$166,-LOOKUP(C83,depr_yr,depr_cost)))) -> -10258258.66 | V83: -2264339.356 | W83: 0.2574 | X83: 582840.9502 | Y83: 8576760.257 | Z83: =IF(C83="","",IF($B$31=0,"",-'Debt Financing Calculations'!F32)) -> 0 | AA83: 7364699.29 | AB83: 50946656.76 | AC83: 6781858.34 | AE83: 17702500 | AF83: 0
A84: 2033 | B84: =IF(MAX($B$65:B83)<(construct+anal_period),B83+1,"") -> 20 | C84: 19 | D84: 19 | E84: 1.403250844 | F84: 126165896.9 | H84: 0 | I84: =IF(OR(C84<0,C84=""),"",-E84*INDEX('Replacement Costs'!$A$16:$H$57,MATCH(C84,'Replacement Costs'!$C$16:$C$57,0),MATCH("Total Yearly Replacement Costs",'Replacement Costs'!$A$16:$H$16,0))) -> -1139966.063 | J84: =IF(AND(C84>=1,C84<anal_period),WorkingCap*SUM(N84:R84)-WorkingCap*SUM(N83:R83),IF(C84<0,0,IF(B84="","",-SUM(J$65:J83)))) -> -88281.91171 | N84: -11272969.18 | O84: -102496913.7 | P84: 0 | Q84: 0 | R84: -275586.1292 | S84: =IF(B84="","",IF($B$31=0,"",-'Debt Financing Calculations'!E33)) -> -3539691.366 | T84: 8580736.461 | U84: =IF(C84="","",IF(C84<-1,0,IF(C84=anal_period,-LOOKUP(C84,depr_yr,depr_cost)-Depreciation!$C$141-Depreciation!$B$166,-LOOKUP(C84,depr_yr,depr_cost)))) -> -10207113.47 | V84: -1626377.007 | W84: 0.2574 | X84: 418629.4417 | Y84: 8999365.902 | Z84: =IF(C84="","",IF($B$31=0,"",-'Debt Financing Calculations'!F33)) -> 0 | AA84: 7771117.928 | AB84: 58717774.69 | AC84: 7352488.486 | AE84: 17702500 | AF84: 0
A85: 2034 | B85: =IF(MAX($B$65:B84)<(construct+anal_period),B84+1,"") -> 21 | C85: 20 | D85: 20 | E85: 1.42991261 | F85: 128563048.9 | H85: 0 | I85: =IF(OR(C85<0,C85=""),"",-E85*INDEX('Replacement Costs'!$A$16:$H$57,MATCH(C85,'Replacement Costs'!$C$16:$C$57,0),MATCH("Total Yearly Replacement Costs",'Replacement Costs'!$A$16:$H$16,0))) -> -1161625.418 | J85: =IF(AND(C85>=1,C85<anal_period),WorkingCap*SUM(N85:R85)-WorkingCap*SUM(N84:R84),IF(C85<0,0,IF(B85="","",-SUM(J$65:J84)))) -> -93165.88895 | N85: -11487155.6 | O85: -104140808.9 | P85: 0 | Q85: 0 | R85: -280822.2656 | S85: =IF(B85="","",IF($B$31=0,"",-'Debt Financing Calculations'!E34)) -> -3539691.366 | T85: 9114570.722 | U85: =IF(C85="","",IF(C85<-1,0,IF(C85=anal_period,-LOOKUP(C85,depr_yr,depr_cost)-Depreciation!$C$141-Depreciation!$B$166,-LOOKUP(C85,depr_yr,depr_cost)))) -> -10162323.78 | V85: -1047753.061 | W85: 0.2574 | X85: 269691.6379 | Y85: 9384262.36 | Z85: =IF(C85="","",IF($B$31=0,"",-'Debt Financing Calculations'!F34)) -> 0 | AA85: 8129471.053 | AB85: 66847245.74 | AC85: 7859779.415 | AE85: 17702500 | AF85: 0
A86: 2035 | B86: =IF(MAX($B$65:B85)<(construct+anal_period),B85+1,"") -> 22 | C86: 21 | D86: 21 | E86: 1.45708095 | F86: 131005746.8 | H86: 0 | I86: =IF(OR(C86<0,C86=""),"",-E86*INDEX('Replacement Costs'!$A$16:$H$57,MATCH(C86,'Replacement Costs'!$C$16:$C$57,0),MATCH("Total Yearly Replacement Costs",'Replacement Costs'!$A$16:$H$16,0))) -> -1183696.301 | J86: =IF(AND(C86>=1,C86<anal_period),WorkingCap*SUM(N86:R86)-WorkingCap*SUM(N85:R85),IF(C86<0,0,IF(B86="","",-SUM(J$65:J85)))) -> -128875.3748 | N86: -11705411.56 | O86: -106494724.9 | P86: 0 | Q86: 0 | R86: -286157.8887 | S86: =IF(B86="","",IF($B$31=0,"",-'Debt Financing Calculations'!E35)) -> -3539691.366 | T86: 8979761.155 | U86: =IF(C86="","",IF(C86<-1,0,IF(C86=anal_period,-LOOKUP(C86,depr_yr,depr_cost)-Depreciation!$C$141-Depreciation!$B$166,-LOOKUP(C86,depr_yr,depr_cost)))) -> -6553020.845 | V86: 2426740.31 | W86: 0.2574 | X86: -624642.9558 | Y86: 8355118.199 | Z86: =IF(C86="","",IF($B$31=0,"",-'Debt Financing Calculations'!F35)) -> 0 | AA86: 7042546.523 | AB86: 73889792.26 | AC86: 7667189.479 | AE86: 17702500 | AF86: 0
A87: 2036 | B87: =IF(MAX($B$65:B86)<(construct+anal_period),B86+1,"") -> 23 | C87: 22 | D87: 22 | E87: 1.484765488 | F87: 133494856 | H87: 0 | I87: =IF(OR(C87<0,C87=""),"",-E87*INDEX('Replacement Costs'!$A$16:$H$57,MATCH(C87,'Replacement Costs'!$C$16:$C$57,0),MATCH("Total Yearly Replacement Costs",'Replacement Costs'!$A$16:$H$16,0))) -> -27053040.76 | J87: =IF(AND(C87>=1,C87<anal_period),WorkingCap*SUM(N87:R87)-WorkingCap*SUM(N86:R86),IF(C87<0,0,IF(B87="","",-SUM(J$65:J86)))) -> -132290.0582 | N87: -11927814.37 | O87: -108912686.2 | P87: 0 | Q87: 0 | R87: -291594.8886 | S87: =IF(B87="","",IF($B$31=0,"",-'Debt Financing Calculations'!E36)) -> -3539691.366 | T87: 8823069.18 | U87: =IF(C87="","",IF(C87<-1,0,IF(C87=anal_period,-LOOKUP(C87,depr_yr,depr_cost)-Depreciation!$C$141-Depreciation!$B$166,-LOOKUP(C87,depr_yr,depr_cost)))) -> -3901370.093 | V87: 4921699.087 | W87: 0.2574 | X87: -1266845.345 | Y87: 7556223.835 | Z87: =IF(C87="","",IF($B$31=0,"",-'Debt Financing Calculations'!F36)) -> 0 | AA87: -19629106.99 | AB87: 54260685.27 | AC87: -18362261.64 | AE87: 17702500 | AF87: 0
A88: 2037 | B88: =IF(MAX($B$65:B87)<(construct+anal_period),B87+1,"") -> 24 | C88: 23 | D88: 23 | E88: 1.512976032 | F88: 136031258.3 | H88: 0 | I88: =IF(OR(C88<0,C88=""),"",-E88*INDEX('Replacement Costs'!$A$16:$H$57,MATCH(C88,'Replacement Costs'!$C$16:$C$57,0),MATCH("Total Yearly Replacement Costs",'Replacement Costs'!$A$16:$H$16,0))) -> -1229104.075 | J88: =IF(AND(C88>=1,C88<anal_period),WorkingCap*SUM(N88:R88)-WorkingCap*SUM(N87:R87),IF(C88<0,0,IF(B88="","",-SUM(J$65:J87)))) -> -110879.8357 | N88: -12154442.85 | O88: -110898114.1 | P88: 0 | Q88: 0 | R88: -297135.1915 | S88: =IF(B88="","",IF($B$31=0,"",-'Debt Financing Calculations'!E37)) -> -3539691.366 | T88: 9141874.731 | U88: =IF(C88="","",IF(C88<-1,0,IF(C88=anal_period,-LOOKUP(C88,depr_yr,depr_cost)-Depreciation!$C$141-Depreciation!$B$166,-LOOKUP(C88,depr_yr,depr_cost)))) -> -4803612.925 | V88: 4338261.805 | W88: 0.2574 | X88: -1116668.589 | Y88: 8025206.142 | Z88: =IF(C88="","",IF($B$31=0,"",-'Debt Financing Calculations'!F37)) -> 0 | AA88: 6685222.231 | AB88: 60945907.51 | AC88: 7801890.82 | AE88: 17702500 | AF88: 0
A89: 2038 | B89: =IF(MAX($B$65:B88)<(construct+anal_period),B88+1,"") -> 25 | C89: 24 | D89: 24 | E89: 1.541722577 | F89: 138615852.2 | H89: 0 | I89: =IF(OR(C89<0,C89=""),"",-E89*INDEX('Replacement Costs'!$A$16:$H$57,MATCH(C89,'Replacement Costs'!$C$16:$C$57,0),MATCH("Total Yearly Replacement Costs",'Replacement Costs'!$A$16:$H$16,0))) -> -1252457.052 | J89: =IF(AND(C89>=1,C89<anal_period),WorkingCap*SUM(N89:R89)-WorkingCap*SUM(N88:R88),IF(C89<0,0,IF(B89="","",-SUM(J$65:J88)))) -> -118437.2035 | N89: -12385377.26 | O89: -113030278.2 | P89: 0 | Q89: 0 | R89: -302780.7601 | S89: =IF(B89="","",IF($B$31=0,"",-'Debt Financing Calculations'!E38)) -> -3539691.366 | T89: 9357724.569 | U89: =IF(C89="","",IF(C89<-1,0,IF(C89=anal_period,-LOOKUP(C89,depr_yr,depr_cost)-Depreciation!$C$141-Depreciation!$B$166,-LOOKUP(C89,depr_yr,depr_cost)))) -> -4683271.573 | V89: 4674452.996 | W89: 0.2574 | X89: -1203204.201 | Y89: 8154520.368 | Z89: =IF(C89="","",IF($B$31=0,"",-'Debt Financing Calculations'!F38)) -> 0 | AA89: 6783626.112 | AB89: 67729533.62 | AC89: 7986830.313 | AE89: 17702500 | AF89: 0
A90: 2039 | B90: =IF(MAX($B$65:B89)<(construct+anal_period),B89+1,"") -> 26 | C90: 25 | D90: 25 | E90: 1.571015306 | F90: 141249553.4 | H90: 0 | I90: =IF(OR(C90<0,C90=""),"",-E90*INDEX('Replacement Costs'!$A$16:$H$57,MATCH(C90,'Replacement Costs'!$C$16:$C$57,0),MATCH("Total Yearly Replacement Costs",'Replacement Costs'!$A$16:$H$16,0))) -> -1276253.736 | J90: =IF(AND(C90>=1,C90<anal_period),WorkingCap*SUM(N90:R90)-WorkingCap*SUM(N89:R89),IF(C90<0,0,IF(B90="","",-SUM(J$65:J89)))) -> -123889.4946 | N90: -12620699.43 | O90: -115266993.1 | P90: 0 | Q90: 0 | R90: -308533.5945 | S90: =IF(B90="","",IF($B$31=0,"",-'Debt Financing Calculations'!E39)) -> -3539691.366 | T90: 9513635.869 | U90: =IF(C90="","",IF(C90<-1,0,IF(C90=anal_period,-LOOKUP(C90,depr_yr,depr_cost)-Depreciation!$C$141-Depreciation!$B$166,-LOOKUP(C90,depr_yr,depr_cost)))) -> -4574217.588 | V90: 4939418.28 | W90: 0.2574 | X90: -1271406.265 | Y90: 8242229.603 | Z90: =IF(C90="","",IF($B$31=0,"",-'Debt Financing Calculations'!F39)) -> 0 | AA90: 6842086.372 | AB90: 74571619.99 | AC90: 8113492.638 | AE90: 17702500 | AF90: 0
A91: 2040 | B91: =IF(MAX($B$65:B90)<(construct+anal_period),B90+1,"") -> 27 | C91: 26 | D91: 26 | E91: 1.600864596 | F91: 143933294.9 | H91: 0 | I91: =IF(OR(C91<0,C91=""),"",-E91*INDEX('Replacement Costs'!$A$16:$H$57,MATCH(C91,'Replacement Costs'!$C$16:$C$57,0),MATCH("Total Yearly Replacement Costs",'Replacement Costs'!$A$16:$H$16,0))) -> -1300502.557 | J91: =IF(AND(C91>=1,C91<anal_period),WorkingCap*SUM(N91:R91)-WorkingCap*SUM(N90:R90),IF(C91<0,0,IF(B91="","",-SUM(J$65:J90)))) -> -108016.118 | N91: -12860492.72 | O91: -117181660.1 | P91: 0 | Q91: 0 | R91: -314395.7328 | S91: =IF(B91="","",IF($B$31=0,"",-'Debt Financing Calculations'!E40)) -> -3539691.366 | T91: 10037055.02 | U91: =IF(C91="","",IF(C91<-1,0,IF(C91=anal_period,-LOOKUP(C91,depr_yr,depr_cost)-Depreciation!$C$141-Depreciation!$B$166,-LOOKUP(C91,depr_yr,depr_cost)))) -> -4474795.431 | V91: 5562259.591 | W91: 0.2574 | X91: -1431725.619 | Y91: 8605329.403 | Z91: =IF(C91="","",IF($B$31=0,"",-'Debt Financing Calculations'!F40)) -> 0 | AA91: 7196810.728 | AB91: 81768430.72 | AC91: 8628536.347 | AE91: 17702500 | AF91: 0
A92: 2041 | B92: =IF(MAX($B$65:B91)<(construct+anal_period),B91+1,"") -> 28 | C92: 27 | D92: 27 | E92: 1.631281024 | F92: 146668027.5 | H92: 0 | I92: =IF(OR(C92<0,C92=""),"",-E92*INDEX('Replacement Costs'!$A$16:$H$57,MATCH(C92,'Replacement Costs'!$C$16:$C$57,0),MATCH("Total Yearly Replacement Costs",'Replacement Costs'!$A$16:$H$16,0))) -> -1325212.106 | J92: =IF(AND(C92>=1,C92<anal_period),WorkingCap*SUM(N92:R92)-WorkingCap*SUM(N91:R91),IF(C92<0,0,IF(B92="","",-SUM(J$65:J91)))) -> -106280.1656 | N92: -13104842.08 | O92: -119056940.5 | P92: 0 | Q92: 0 | R92: -320369.2518 | S92: =IF(B92="","",IF($B$31=0,"",-'Debt Financing Calculations'!E41)) -> -3539691.366 | T92: 10646184.31 | U92: =IF(C92="","",IF(C92<-1,0,IF(C92=anal_period,-LOOKUP(C92,depr_yr,depr_cost)-Depreciation!$C$141-Depreciation!$B$166,-LOOKUP(C92,depr_yr,depr_cost)))) -> -4385124.244 | V92: 6261060.069 | W92: 0.2574 | X92: -1611596.862 | Y92: 9034587.452 | Z92: =IF(C92="","",IF($B$31=0,"",-'Debt Financing Calculations'!F41)) -> 0 | AA92: 7603095.18 | AB92: 89371525.9 | AC92: 9214692.042 | AE92: 17702500 | AF92: 0
A93: 2042 | B93: =IF(MAX($B$65:B92)<(construct+anal_period),B92+1,"") -> 29 | C93: 28 | D93: 28 | E93: 1.662275363 | F93: 149454720 | H93: 0 | I93: =IF(OR(C93<0,C93=""),"",-E93*INDEX('Replacement Costs'!$A$16:$H$57,MATCH(C93,'Replacement Costs'!$C$16:$C$57,0),MATCH("Total Yearly Replacement Costs",'Replacement Costs'!$A$16:$H$16,0))) -> -1350391.136 | J93: =IF(AND(C93>=1,C93<anal_period),WorkingCap*SUM(N93:R93)-WorkingCap*SUM(N92:R92),IF(C93<0,0,IF(B93="","",-SUM(J$65:J92)))) -> -132893.6168 | N93: -13353834.08 | O93: -121459733.8 | P93: 0 | Q93: 0 | R93: -326456.2675 | S93: =IF(B93="","",IF($B$31=0,"",-'Debt Financing Calculations'!E42)) -> -3539691.366 | T93: 10775004.5 | U93: =IF(C93="","",IF(C93<-1,0,IF(C93=anal_period,-LOOKUP(C93,depr_yr,depr_cost)-Depreciation!$C$141-Depreciation!$B$166,-LOOKUP(C93,depr_yr,depr_cost)))) -> -3860740.962 | V93: 6914263.538 | W93: 0.2574 | X93: -1779731.435 | Y93: 8995273.066 | Z93: =IF(C93="","",IF($B$31=0,"",-'Debt Financing Calculations'!F42)) -> 0 | AA93: 7511988.313 | AB93: 96883514.21 | AC93: 9291719.748 | AE93: 17702500 | AF93: 0
A94: 2043 | B94: =IF(MAX($B$65:B93)<(construct+anal_period),B93+1,"") -> 30 | C94: 29 | D94: 29 | E94: 1.693858595 | F94: 152294359.7 | H94: 0 | I94: =IF(OR(C94<0,C94=""),"",-E94*INDEX('Replacement Costs'!$A$16:$H$57,MATCH(C94,'Replacement Costs'!$C$16:$C$57,0),MATCH("Total Yearly Replacement Costs",'Replacement Costs'!$A$16:$H$16,0))) -> -30862803.59 | J94: =IF(AND(C94>=1,C94<anal_period),WorkingCap*SUM(N94:R94)-WorkingCap*SUM(N93:R93),IF(C94<0,0,IF(B94="","",-SUM(J$65:J93)))) -> -147268.5772 | N94: -13607556.93 | O94: -124145179.8 | P94: 0 | Q94: 0 | R94: -332658.9366 | S94: =IF(B94="","",IF($B$31=0,"",-'Debt Financing Calculations'!E43)) -> -3539691.366 | T94: 10669272.64 | U94: =IF(C94="","",IF(C94<-1,0,IF(C94=anal_period,-LOOKUP(C94,depr_yr,depr_cost)-Depreciation!$C$141-Depreciation!$B$166,-LOOKUP(C94,depr_yr,depr_cost)))) -> -4450783.184 | V94: 6218489.452 | W94: 0.2574 | X94: -1600639.185 | Y94: 9068633.451 | Z94: =IF(C94="","",IF($B$31=0,"",-'Debt Financing Calculations'!F43)) -> 0 | AA94: -21941438.71 | AB94: 74942075.5 | AC94: -20340799.53 | AE94: 17702500 | AF94: 0
A95: 2044 | B95: =IF(MAX($B$65:B94)<(construct+anal_period),B94+1,"") -> 31 | C95: 30 | D95: 30 | E95: 1.726041908 | F95: 155187952.5 | H95: 0 | I95: =IF(OR(C95<0,C95=""),"",-E95*INDEX('Replacement Costs'!$A$16:$H$57,MATCH(C95,'Replacement Costs'!$C$16:$C$57,0),MATCH("Total Yearly Replacement Costs",'Replacement Costs'!$A$16:$H$16,0))) -> -1402193.49 | J95: =IF(AND(C95>=1,C95<anal_period),WorkingCap*SUM(N95:R95)-WorkingCap*SUM(N94:R94),IF(C95<0,0,IF(B95="","",-SUM(J$65:J94)))) -> -155013.6783 | N95: -13866100.51 | O95: -126980589.3 | P95: 0 | Q95: 0 | R95: -338979.4564 | S95: =IF(B95="","",IF($B$31=0,"",-'Debt Financing Calculations'!E44)) -> -3539691.366 | T95: 10462591.9 | U95: =IF(C95="","",IF(C95<-1,0,IF(C95=anal_period,-LOOKUP(C95,depr_yr,depr_cost)-Depreciation!$C$141-Depreciation!$B$166,-LOOKUP(C95,depr_yr,depr_cost)))) -> -5480084.975 | V95: 4982506.929 | W95: 0.2574 | X95: -1282497.283 | Y95: 9180094.62 | Z95: =IF(C95="","",IF($B$31=0,"",-'Debt Financing Calculations'!F44)) -> 0 | AA95: 7622887.452 | AB95: 82564962.95 | AC95: 8905384.735 | AE95: 17702500 | AF95: 0
A96: 2045 | B96: =IF(MAX($B$65:B95)<(construct+anal_period),B95+1,"") -> 32 | C96: 31 | D96: 31 | E96: 1.758836705 | F96: 158136523.6 | H96: 0 | I96: =IF(OR(C96<0,C96=""),"",-E96*INDEX('Replacement Costs'!$A$16:$H$57,MATCH(C96,'Replacement Costs'!$C$16:$C$57,0),MATCH("Total Yearly Replacement Costs",'Replacement Costs'!$A$16:$H$16,0))) -> -1428835.167 | J96: =IF(AND(C96>=1,C96<anal_period),WorkingCap*SUM(N96:R96)-WorkingCap*SUM(N95:R95),IF(C96<0,0,IF(B96="","",-SUM(J$65:J95)))) -> -157759.8631 | N96: -14129556.42 | O96: -129865890 | P96: 0 | Q96: 0 | R96: -345420.0661 | S96: =IF(B96="","",IF($B$31=0,"",-'Debt Financing Calculations'!E45)) -> -3539691.366 | T96: 10255965.74 | U96: =IF(C96="","",IF(C96<-1,0,IF(C96=anal_period,-LOOKUP(C96,depr_yr,depr_cost)-Depreciation!$C$141-Depreciation!$B$166,-LOOKUP(C96,depr_yr,depr_cost)))) -> -5342796.47 | V96: 4913169.269 | W96: 0.2574 | X96: -1264649.77 | Y96: 8991315.969 | Z96: =IF(C96="","",IF($B$31=0,"",-'Debt Financing Calculations'!F45)) -> 0 | AA96: 7404720.939 | AB96: 89969683.89 | AC96: 8669370.709 | AE96: 17702500 | AF96: 0
A97: 2046 | B97: =IF(MAX($B$65:B96)<(construct+anal_period),B96+1,"") -> 33 | C97: 32 | D97: =IF(C97="","",IF(C97<=plant_life,C97,IF(D96=plant_life,1,D96+1))) -> 32 | E97: =IF(C97="","",(1+inflation_rate)^(A97-$B$25)) -> 1.792254602 | F97: =IF(C97="","",IF(C97<0,0,IF(AND(C97=1,start_time<1),E97*(H2_price_nominal*output_kgyear*start_time*percnt_revs+H2_price_nominal*output_kgyear*(1-start_time)),IF(C97<=start_time,H2_price_nominal*E97*output_kgyear*percnt_revs,H2_price_nominal*output_kgyear*E97)))) -> 161141117.6 | H97: 0 | I97: =IF(OR(C97<0,C97=""),"",-E97*INDEX('Replacement Costs'!$A$16:$H$57,MATCH(C97,'Replacement Costs'!$C$16:$C$57,0),MATCH("Total Yearly Replacement Costs",'Replacement Costs'!$A$16:$H$16,0))) -> -1455983.035 | J97: =IF(AND(C97>=1,C97<anal_period),WorkingCap*SUM(N97:R97)-WorkingCap*SUM(N96:R96),IF(C97<0,0,IF(B97="","",-SUM(J$65:J96)))) -> -161608.7118 | K97: =IF(C97=-construct,-E97*non_dep_infl,"") ->  | L97: =IF(C97=anal_period,salvage*E97,"") ->  | M97: =IF(D97=plant_life,-E97*decom,"") ->  | N97: =IF(C97="","",IF(C97<0,0,IF(AND(C97=1,start_time<1),-(inflated_fixed*percnt_fixed*start_time+(inflated_fixed*(1-start_time))),IF(C97<=start_time,-inflated_fixed*percnt_fixed*E97,-inflated_fixed*E97)))) -> -14398017.99 | O97: =IF(C97="","",IF(C97<0,0,IF(AND(C97=1,start_time<1),-(SUM(B171:E171)*output_kgyear*E97*percnt_var*start_time+SUM(B171:E171)*output_kgyear*E97*(1-start_time)),IF(C97<=start_time,-SUM(B171:E171)*output_kgyear*E97*percnt_var,-SUM(B171:E171)*output_kgyear*E97)))) -> -132823039.7 | P97: =IF(C97="","",IF(C97<0,0,IF(AND(C97=1,start_time<1),-(inflated_otherraw*E97*percnt_var*start_time+inflated_otherraw*E97*(1-start_time)),IF(C97<=start_time,-inflated_otherraw*E97*percnt_var,-(inflated_otherraw*E97))))) -> 0 | Q97: 0 | R97: =IF(C97="","",IF(C97<0,0,IF(AND(C97=1,start_time<1),-((SUM(F171:J171,P171:R171)*output_kgyear+inflated_othervar)*E97*percnt_var*start_time+(SUM(F171:J171,P171:R171)*output_kgyear+inflated_othervar)*E97*(1-start_time)),IF(C97<=start_time,-(SUM(F171:J171,P171:R171)*output_kgyear+inflated_othervar)*E97*percnt_var,-E97*(SUM(F171:J171,P171:R171)*output_kgyear+inflated_othervar))))) -> -351983.0473 | S97: =IF(B97="","",IF($B$31=0,"",-'Debt Financing Calculations'!E46)) -> -3539691.366 | T97: =IF(C97="","",F97+SUM(L97:S97)) -> 10028385.45 | U97: =IF(C97="","",IF(C97<-1,0,IF(C97=anal_period,-LOOKUP(C97,depr_yr,depr_cost)-Depreciation!$C$141-Depreciation!$B$166,-LOOKUP(C97,depr_yr,depr_cost)))) -> -5218384.884 | V97: =IF(C97="","",SUM(T97:U97)) -> 4810000.569 | W97: =IF(C97="","",$B$33) -> 0.2574 | X97: =IF(C97="","",tax_credit-(V97*W97 +Upstream_CO2_taxpYear + Proc_CO2_taxpYear)) -> -1238094.146 | Y97: =IF(C97="","",SUM(T97,X97)) -> 8790291.306 | Z97: =IF(C97="","",IF($B$31=0,"",-'Debt Financing Calculations'!F46)) -> 0 | AA97: =IF(C97="","",SUM(H97,I97,J97,K97,T97,X97,Z97)) -> 7172699.56 | AB97: 97142383.45 | AC97: =IF(C97="","",SUM(H97,I97,J97,K97,T97,Z97)) -> 8410793.706 | AE97: =IF(C97="","",IF(C97<0,0,IF(AND(C97=1,start_time<1),(output_kgyear*start_time*percnt_revs+output_kgyear*(1-start_time)),IF(C97<=start_time,output_kgyear*percnt_revs,output_kgyear)))) -> 17702500 | AF97: =IF(C97="","",tax_credit) -> 0
A98: 2047 | B98: =IF(MAX($B$65:B97)<(construct+anal_period),B97+1,"") -> 34 | C98: 33 | D98: 33 | E98: 1.826307439 | F98: 164202798.8 | H98: 0 | I98: =IF(OR(C98<0,C98=""),"",-E98*INDEX('Replacement Costs'!$A$16:$H$57,MATCH(C98,'Replacement Costs'!$C$16:$C$57,0),MATCH("Total Yearly Replacement Costs",'Replacement Costs'!$A$16:$H$16,0))) -> -1483646.713 | J98: =IF(AND(C98>=1,C98<anal_period),WorkingCap*SUM(N98:R98)-WorkingCap*SUM(N97:R97),IF(C98<0,0,IF(B98="","",-SUM(J$65:J97)))) -> -162583.8474 | N98: -14671580.33 | O98: -135794466.7 | P98: 0 | Q98: 0 | R98: -358670.7252 | S98: =IF(B98="","",IF($B$31=0,"",-'Debt Financing Calculations'!E47)) -> -3539691.366 | T98: 9838389.739 | U98: =IF(C98="","",IF(C98<-1,0,IF(C98=anal_period,-LOOKUP(C98,depr_yr,depr_cost)-Depreciation!$C$141-Depreciation!$B$166,-LOOKUP(C98,depr_yr,depr_cost)))) -> -5104961.534 | V98: 4733428.205 | W98: 0.2574 | X98: -1218384.42 | Y98: 8620005.319 | Z98: =IF(C98="","",IF($B$31=0,"",-'Debt Financing Calculations'!F47)) -> 0 | AA98: 6973774.759 | AB98: 104116158.2 | AC98: 8192159.179 | AE98: 17702500 | AF98: 0
A99: 2048 | B99: =IF(MAX($B$65:B98)<(construct+anal_period),B98+1,"") -> 35 | C99: 34 | D99: 34 | E99: 1.861007281 | F99: 167322652 | H99: 0 | I99: =IF(OR(C99<0,C99=""),"",-E99*INDEX('Replacement Costs'!$A$16:$H$57,MATCH(C99,'Replacement Costs'!$C$16:$C$57,0),MATCH("Total Yearly Replacement Costs",'Replacement Costs'!$A$16:$H$16,0))) -> -1511836 | J99: =IF(AND(C99>=1,C99<anal_period),WorkingCap*SUM(N99:R99)-WorkingCap*SUM(N98:R98),IF(C99<0,0,IF(B99="","",-SUM(J$65:J98)))) -> -168946.9404 | N99: -14950340.36 | O99: -138887830.7 | P99: 0 | Q99: 0 | R99: -365485.469 | S99: =IF(B99="","",IF($B$31=0,"",-'Debt Financing Calculations'!E48)) -> -3539691.366 | T99: 9579304.109 | U99: =IF(C99="","",IF(C99<-1,0,IF(C99=anal_period,-LOOKUP(C99,depr_yr,depr_cost)-Depreciation!$C$141-Depreciation!$B$166,-LOOKUP(C99,depr_yr,depr_cost)))) -> -5002662.342 | V99: 4576641.767 | W99: 0.2574 | X99: -1178027.591 | Y99: 8401276.518 | Z99: =IF(C99="","",IF($B$31=0,"",-'Debt Financing Calculations'!F48)) -> 0 | AA99: 6720493.578 | AB99: 110836651.8 | AC99: 7898521.169 | AE99: 17702500 | AF99: 0
A100: 2049 | B100: =IF(MAX($B$65:B99)<(construct+anal_period),B99+1,"") -> 36 | C100: 35 | D100: 35 | E100: 1.896366419 | F100: 170501782.4 | H100: 0 | I100: =IF(OR(C100<0,C100=""),"",-E100*INDEX('Replacement Costs'!$A$16:$H$57,MATCH(C100,'Replacement Costs'!$C$16:$C$57,0),MATCH("Total Yearly Replacement Costs",'Replacement Costs'!$A$16:$H$16,0))) -> -1540560.884 | J100: =IF(AND(C100>=1,C100<anal_period),WorkingCap*SUM(N100:R100)-WorkingCap*SUM(N99:R99),IF(C100<0,0,IF(B100="","",-SUM(J$65:J99)))) -> -169150.6488 | N100: -15234396.83 | O100: -141979843 | P100: 0 | Q100: 0 | R100: -372429.6929 | S100: =IF(B100="","",IF($B$31=0,"",-'Debt Financing Calculations'!E49)) -> -3539691.366 | T100: 9375421.521 | U100: =IF(C100="","",IF(C100<-1,0,IF(C100=anal_period,-LOOKUP(C100,depr_yr,depr_cost)-Depreciation!$C$141-Depreciation!$B$166,-LOOKUP(C100,depr_yr,depr_cost)))) -> -4404432.428 | V100: 4970989.093 | W100: 0.2574 | X100: -1279532.593 | Y100: 8095888.928 | Z100: =IF(C100="","",IF($B$31=0,"",-'Debt Financing Calculations'!F49)) -> 0 | AA100: 6386177.395 | AB100: 117222829.2 | AC100: 7665709.988 | AE100: 17702500 | AF100: 0
A101: 2050 | B101: =IF(MAX($B$65:B100)<(construct+anal_period),B100+1,"") -> 37 | C101: 36 | D101: 36 | E101: 1.932397381 | F101: 173741316.2 | H101: 0 | I101: =IF(OR(C101<0,C101=""),"",-E101*INDEX('Replacement Costs'!$A$16:$H$57,MATCH(C101,'Replacement Costs'!$C$16:$C$57,0),MATCH("Total Yearly Replacement Costs",'Replacement Costs'!$A$16:$H$16,0))) -> -35209078.84 | J101: =IF(AND(C101>=1,C101<anal_period),WorkingCap*SUM(N101:R101)-WorkingCap*SUM(N100:R100),IF(C101<0,0,IF(B101="","",-SUM(J$65:J100)))) -> -172090.2824 | N101: -15523850.37 | O101: -145125118.9 | P101: 0 | Q101: 0 | R101: -379505.8571 | S101: =IF(B101="","",IF($B$31=0,"",-'Debt Financing Calculations'!E50)) -> -3539691.366 | T101: 9173149.739 | U101: =IF(C101="","",IF(C101<-1,0,IF(C101=anal_period,-LOOKUP(C101,depr_yr,depr_cost)-Depreciation!$C$141-Depreciation!$B$166,-LOOKUP(C101,depr_yr,depr_cost)))) -> -5077567.746 | V101: 4095581.993 | W101: 0.2574 | X101: -1054202.805 | Y101: 8118946.934 | Z101: =IF(C101="","",IF($B$31=0,"",-'Debt Financing Calculations'!F50)) -> 0 | AA101: -27262222.19 | AB101: 89960606.99 | AC101: -26208019.39 | AE101: 17702500 | AF101: 0
A102: 2051 | B102: =IF(MAX($B$65:B101)<(construct+anal_period),B101+1,"") -> 38 | C102: 37 | D102: 37 | E102: 1.969112931 | F102: 177042401.3 | H102: 0 | I102: =IF(OR(C102<0,C102=""),"",-E102*INDEX('Replacement Costs'!$A$16:$H$57,MATCH(C102,'Replacement Costs'!$C$16:$C$57,0),MATCH("Total Yearly Replacement Costs",'Replacement Costs'!$A$16:$H$16,0))) -> -1599658.34 | J102: =IF(AND(C102>=1,C102<anal_period),WorkingCap*SUM(N102:R102)-WorkingCap*SUM(N101:R101),IF(C102<0,0,IF(B102="","",-SUM(J$65:J101)))) -> -159683.1928 | N102: -15818803.52 | O102: -148016619 | P102: 0 | Q102: 0 | R102: -386716.4684 | S102: =IF(B102="","",IF($B$31=0,"",-'Debt Financing Calculations'!E51)) -> -3539691.366 | T102: 9280570.89 | U102: =IF(C102="","",IF(C102<-1,0,IF(C102=anal_period,-LOOKUP(C102,depr_yr,depr_cost)-Depreciation!$C$141-Depreciation!$B$166,-LOOKUP(C102,depr_yr,depr_cost)))) -> -6251821.66 | V102: 3028749.23 | W102: 0.2574 | X102: -779600.0518 | Y102: 8500970.839 | Z102: =IF(C102="","",IF($B$31=0,"",-'Debt Financing Calculations'!F51)) -> 0 | AA102: 6741629.306 | AB102: 96702236.29 | AC102: 7521229.357 | AE102: 17702500 | AF102: 0
A103: 2052 | B103: =IF(MAX($B$65:B102)<(construct+anal_period),B102+1,"") -> 39 | C103: 38 | D103: 38 | E103: 2.006526077 | F103: 180406206.9 | H103: 0 | I103: =IF(OR(C103<0,C103=""),"",-E103*INDEX('Replacement Costs'!$A$16:$H$57,MATCH(C103,'Replacement Costs'!$C$16:$C$57,0),MATCH("Total Yearly Replacement Costs",'Replacement Costs'!$A$16:$H$16,0))) -> -1630051.849 | J103: =IF(AND(C103>=1,C103<anal_period),WorkingCap*SUM(N103:R103)-WorkingCap*SUM(N102:R102),IF(C103<0,0,IF(B103="","",-SUM(J$65:J102)))) -> -162850.7879 | N103: -16119360.79 | O103: -150965729.9 | P103: 0 | Q103: 0 | R103: -394064.0813 | S103: =IF(B103="","",IF($B$31=0,"",-'Debt Financing Calculations'!E52)) -> -3539691.366 | T103: 9387360.756 | U103: =IF(C103="","",IF(C103<-1,0,IF(C103=anal_period,-LOOKUP(C103,depr_yr,depr_cost)-Depreciation!$C$141-Depreciation!$B$166,-LOOKUP(C103,depr_yr,depr_cost)))) -> -6095199.408 | V103: 3292161.347 | W103: 0.2574 | X103: -847402.3308 | Y103: 8539958.425 | Z103: =IF(C103="","",IF($B$31=0,"",-'Debt Financing Calculations'!F52)) -> 0 | AA103: 6747055.788 | AB103: 103449292.1 | AC103: 7594458.119 | AE103: 17702500 | AF103: 0
A104: 2053 | B104: =IF(MAX($B$65:B103)<(construct+anal_period),B103+1,"") -> 40 | C104: 39 | D104: 39 | E104: 2.044650072 | F104: 183833924.8 | H104: 0 | I104: =IF(OR(C104<0,C104=""),"",-E104*INDEX('Replacement Costs'!$A$16:$H$57,MATCH(C104,'Replacement Costs'!$C$16:$C$57,0),MATCH("Total Yearly Replacement Costs",'Replacement Costs'!$A$16:$H$16,0))) -> -1661022.834 | J104: =IF(AND(C104>=1,C104<anal_period),WorkingCap*SUM(N104:R104)-WorkingCap*SUM(N103:R103),IF(C104<0,0,IF(B104="","",-SUM(J$65:J103)))) -> -166081.2295 | N104: -16425628.64 | O104: -153973599.4 | P104: 0 | Q104: 0 | R104: -401551.2988 | S104: =IF(B104="","",IF($B$31=0,"",-'Debt Financing Calculations'!E53)) -> -3539691.366 | T104: 9493454.097 | U104: =IF(C104="","",IF(C104<-1,0,IF(C104=anal_period,-LOOKUP(C104,depr_yr,depr_cost)-Depreciation!$C$141-Depreciation!$B$166,-LOOKUP(C104,depr_yr,depr_cost)))) -> -5953267.476 | V104: 3540186.62 | W104: 0.2574 | X104: -911244.0361 | Y104: 8582210.061 | Z104: =IF(C104="","",IF($B$31=0,"",-'Debt Financing Calculations'!F53)) -> 0 | AA104: 6755105.997 | AB104: 110204398.1 | AC104: 7666350.034 | AE104: 17702500 | AF104: 0
A105: 2054 | B105: =IF(MAX($B$65:B104)<(construct+anal_period),B104+1,"") -> 41 | C105: 40 | D105: 40 | E105: 2.083498424 | F105: 187326769.4 | H105: 0 | I105: =IF(OR(C105<0,C105=""),"",-E105*INDEX('Replacement Costs'!$A$16:$H$57,MATCH(C105,'Replacement Costs'!$C$16:$C$57,0),MATCH("Total Yearly Replacement Costs",'Replacement Costs'!$A$16:$H$16,0))) -> -1692582.268 | J105: =IF(AND(C105>=1,C105<anal_period),WorkingCap*SUM(N105:R105)-WorkingCap*SUM(N104:R104),IF(C105<0,0,IF(B105="","",-SUM(J$65:J104)))) -> 8540038.967 | L105: 33907910.25 | M105: -33851645.35 | N105: -16737715.59 | O105: -157041398.3 | P105: 0 | Q105: 0 | R105: -409180.7735 | S105: =IF(B105="","",IF($B$31=0,"",-'Debt Financing Calculations'!E54)) -> -3539691.366 | T105: 9655048.27 | U105: =IF(C105="","",IF(C105<-1,0,IF(C105=anal_period,-LOOKUP(C105,depr_yr,depr_cost)-Depreciation!$C$141-Depreciation!$B$166,-LOOKUP(C105,depr_yr,depr_cost)))) -> -56341314.87 | V105: -46686266.6 | W105: 0.2574 | X105: 12017045.02 | Y105: 21672093.29 | Z105: =IF(C105="","",IF($B$31=0,"",-'Debt Financing Calculations'!F54)) -> -95667334.21 | AA105: -67147784.22 | AB105: 43056613.86 | AC105: -79164829.24 | AE105: 17702500 | AF105: 0
B106: =IF(MAX($B$65:B105)<(construct+anal_period),B105+1,"") ->  | I106: =IF(OR(C106<0,C106=""),"",-E106*INDEX('Replacement Costs'!$A$16:$H$57,MATCH(C106,'Replacement Costs'!$C$16:$C$57,0),MATCH("Total Yearly Replacement Costs",'Replacement Costs'!$A$16:$H$16,0))) ->  | J106: =IF(AND(C106>=1,C106<anal_period),WorkingCap*SUM(N106:R106)-WorkingCap*SUM(N105:R105),IF(C106<0,0,IF(B106="","",-SUM(J$65:J105)))) ->  | S106: =IF(B106="","",IF($B$31=0,"",-'Debt Financing Calculations'!E55)) ->  | T106: =IF(C106="","",F106+SUM(L106:S106)) ->  | U106: =IF(C106="","",IF(C106<-1,0,IF(C106=anal_period,-LOOKUP(C106,depr_yr,depr_cost)-Depreciation!$C$141-Depreciation!$B$166,-LOOKUP(C106,depr_yr,depr_cost)))) ->  | Z106: =IF(C106="","",IF($B$31=0,"",-'Debt Financing Calculations'!F55)) ->  | AC106: =IF(C106="","",SUM(H106,I106,J106,K106,T106,Z106)) -> 
B107: =IF(MAX($B$65:B106)<(construct+anal_period),B106+1,"") ->  | I107: =IF(OR(C107<0,C107=""),"",-E107*INDEX('Replacement Costs'!$A$16:$H$57,MATCH(C107,'Replacement Costs'!$C$16:$C$57,0),MATCH("Total Yearly Replacement Costs",'Replacement Costs'!$A$16:$H$16,0))) ->  | J107: =IF(AND(C107>=1,C107<anal_period),WorkingCap*SUM(N107:R107)-WorkingCap*SUM(N106:R106),IF(C107<0,0,IF(B107="","",-SUM(J$65:J106)))) ->  | S107: =IF(B107="","",IF($B$31=0,"",-'Debt Financing Calculations'!E56)) ->  | U107: =IF(C107="","",IF(C107<-1,0,IF(C107=anal_period,-LOOKUP(C107,depr_yr,depr_cost)-Depreciation!$C$141-Depreciation!$B$166,-LOOKUP(C107,depr_yr,depr_cost)))) ->  | Z107: =IF(C107="","",IF($B$31=0,"",-'Debt Financing Calculations'!F56)) -> 
B108: =IF(MAX($B$65:B107)<(construct+anal_period),B107+1,"") ->  | I108: =IF(OR(C108<0,C108=""),"",-E108*INDEX('Replacement Costs'!$A$16:$H$57,MATCH(C108,'Replacement Costs'!$C$16:$C$57,0),MATCH("Total Yearly Replacement Costs",'Replacement Costs'!$A$16:$H$16,0))) ->  | J108: =IF(AND(C108>=1,C108<anal_period),WorkingCap*SUM(N108:R108)-WorkingCap*SUM(N107:R107),IF(C108<0,0,IF(B108="","",-SUM(J$65:J107)))) ->  | S108: =IF(B108="","",IF($B$31=0,"",-'Debt Financing Calculations'!E57)) ->  | U108: =IF(C108="","",IF(C108<-1,0,IF(C108=anal_period,-LOOKUP(C108,depr_yr,depr_cost)-Depreciation!$C$141-Depreciation!$B$166,-LOOKUP(C108,depr_yr,depr_cost)))) ->  | Z108: =IF(C108="","",IF($B$31=0,"",-'Debt Financing Calculations'!F57)) -> 
B109: =IF(MAX($B$65:B108)<(construct+anal_period),B108+1,"") ->  | I109: =IF(OR(C109<0,C109=""),"",-E109*INDEX('Replacement Costs'!$A$16:$H$57,MATCH(C109,'Replacement Costs'!$C$16:$C$57,0),MATCH("Total Yearly Replacement Costs",'Replacement Costs'!$A$16:$H$16,0))) ->  | J109: =IF(AND(C109>=1,C109<anal_period),WorkingCap*SUM(N109:R109)-WorkingCap*SUM(N108:R108),IF(C109<0,0,IF(B109="","",-SUM(J$65:J108)))) ->  | S109: =IF(B109="","",IF($B$31=0,"",-'Debt Financing Calculations'!E58)) ->  | U109: =IF(C109="","",IF(C109<-1,0,IF(C109=anal_period,-LOOKUP(C109,depr_yr,depr_cost)-Depreciation!$C$141-Depreciation!$B$166,-LOOKUP(C109,depr_yr,depr_cost)))) ->  | Z109: =IF(C109="","",IF($B$31=0,"",-'Debt Financing Calculations'!F58)) -> 
B110: =IF(MAX($B$65:B109)<(construct+anal_period),B109+1,"") ->  | I110: =IF(OR(C110<0,C110=""),"",-E110*INDEX('Replacement Costs'!$A$16:$H$57,MATCH(C110,'Replacement Costs'!$C$16:$C$57,0),MATCH("Total Yearly Replacement Costs",'Replacement Costs'!$A$16:$H$16,0))) ->  | J110: =IF(AND(C110>=1,C110<anal_period),WorkingCap*SUM(N110:R110)-WorkingCap*SUM(N109:R109),IF(C110<0,0,IF(B110="","",-SUM(J$65:J109)))) ->  | O110: =IF(C110="","",IF(C110<0,0,IF(AND(C110=1,start_time<1),-(SUM(B185:E185)*output_kgyear*E110*percnt_var*start_time+SUM(B185:E185)*output_kgyear*E110*(1-start_time)),IF(C110<=start_time,-SUM(B185:E185)*output_kgyear*E110*percnt_var,-SUM(B185:E185)*output_kgyear*E110)))) ->  | Q110: =IF(C110="","",IF(C110<0,0,IF(AND(C110=1,start_time<1),SUM(K185:N185,T185:V185)*output_kgyear*E110*percnt_revs*start_time+SUM(K185:N185,T185:V185)*output_kgyear*E110*(1-start_time),IF(C110<=start_time,SUM(K185:N185,T185:V185)*output_kgyear*E110*percnt_revs,SUM(K185:N185,T185:V185)*output_kgyear*E110)))) ->  | R110: =IF(C110="","",IF(C110<0,0,IF(AND(C110=1,start_time<1),-((SUM(F185:J185,P185:R185)*output_kgyear+inflated_othervar)*E110*percnt_var*start_time+(SUM(F185:J185,P185:R185)*output_kgyear+inflated_othervar)*E110*(1-start_time)),IF(C110<=start_time,-(SUM(F185:J185,P185:R185)*output_kgyear+inflated_othervar)*E110*percnt_var,-E110*(SUM(F185:J185,P185:R185)*output_kgyear+inflated_othervar))))) ->  | S110: =IF(B110="","",IF($B$31=0,"",-'Debt Financing Calculations'!E59)) ->  | U110: =IF(C110="","",IF(C110<-1,0,IF(C110=anal_period,-LOOKUP(C110,depr_yr,depr_cost)-Depreciation!$C$141-Depreciation!$B$166,-LOOKUP(C110,depr_yr,depr_cost)))) ->  | Z110: =IF(C110="","",IF($B$31=0,"",-'Debt Financing Calculations'!F59)) -> 
B111: =IF(MAX($B$65:B110)<(construct+anal_period),B110+1,"") ->  | I111: =IF(OR(C111<0,C111=""),"",-E111*INDEX('Replacement Costs'!$A$16:$H$57,MATCH(C111,'Replacement Costs'!$C$16:$C$57,0),MATCH("Total Yearly Replacement Costs",'Replacement Costs'!$A$16:$H$16,0))) ->  | J111: =IF(AND(C111>=1,C111<anal_period),WorkingCap*SUM(N111:R111)-WorkingCap*SUM(N110:R110),IF(C111<0,0,IF(B111="","",-SUM(J$65:J110)))) ->  | O111: =IF(C111="","",IF(C111<0,0,IF(AND(C111=1,start_time<1),-(SUM(B278:E278)*output_kgyear*E111*percnt_var*start_time+SUM(B278:E278)*output_kgyear*E111*(1-start_time)),IF(C111<=start_time,-SUM(B278:E278)*output_kgyear*E111*percnt_var,-SUM(B278:E278)*output_kgyear*E111)))) ->  | Q111: =IF(C111="","",IF(C111<0,0,IF(AND(C111=1,start_time<1),SUM(K278:N278,T278:V278)*output_kgyear*E111*percnt_revs*start_time+SUM(K278:N278,T278:V278)*output_kgyear*E111*(1-start_time),IF(C111<=start_time,SUM(K278:N278,T278:V278)*output_kgyear*E111*percnt_revs,SUM(K278:N278,T278:V278)*output_kgyear*E111)))) ->  | R111: =IF(C111="","",IF(C111<0,0,IF(AND(C111=1,start_time<1),-((SUM(F278:J278,P278:R278)*output_kgyear+inflated_othervar)*E111*percnt_var*start_time+(SUM(F278:J278,P278:R278)*output_kgyear+inflated_othervar)*E111*(1-start_time)),IF(C111<=start_time,-(SUM(F278:J278,P278:R278)*output_kgyear+inflated_othervar)*E111*percnt_var,-E111*(SUM(F278:J278,P278:R278)*output_kgyear+inflated_othervar))))) ->  | S111: =IF(B111="","",IF($B$31=0,"",-'Debt Financing Calculations'!E60)) ->  | U111: =IF(C111="","",IF(C111<-1,0,IF(C111=anal_period,-LOOKUP(C111,depr_yr,depr_cost)-Depreciation!$C$141-Depreciation!$B$166,-LOOKUP(C111,depr_yr,depr_cost)))) ->  | Z111: =IF(C111="","",IF($B$31=0,"",-'Debt Financing Calculations'!F60)) -> 
B112: =IF(MAX($B$65:B111)<(construct+anal_period),B111+1,"") ->  | I112: =IF(OR(C112<0,C112=""),"",-E112*INDEX('Replacement Costs'!$A$16:$H$57,MATCH(C112,'Replacement Costs'!$C$16:$C$57,0),MATCH("Total Yearly Replacement Costs",'Replacement Costs'!$A$16:$H$16,0))) ->  | J112: =IF(AND(C112>=1,C112<anal_period),WorkingCap*SUM(N112:R112)-WorkingCap*SUM(N111:R111),IF(C112<0,0,IF(B112="","",-SUM(J$65:J111)))) ->  | O112: =IF(C112="","",IF(C112<0,0,IF(AND(C112=1,start_time<1),-(SUM(B279:E279)*output_kgyear*E112*percnt_var*start_time+SUM(B279:E279)*output_kgyear*E112*(1-start_time)),IF(C112<=start_time,-SUM(B279:E279)*output_kgyear*E112*percnt_var,-SUM(B279:E279)*output_kgyear*E112)))) ->  | Q112: =IF(C112="","",IF(C112<0,0,IF(AND(C112=1,start_time<1),SUM(K279:N279,T279:V279)*output_kgyear*E112*percnt_revs*start_time+SUM(K279:N279,T279:V279)*output_kgyear*E112*(1-start_time),IF(C112<=start_time,SUM(K279:N279,T279:V279)*output_kgyear*E112*percnt_revs,SUM(K279:N279,T279:V279)*output_kgyear*E112)))) ->  | R112: =IF(C112="","",IF(C112<0,0,IF(AND(C112=1,start_time<1),-((SUM(F279:J279,P279:R279)*output_kgyear+inflated_othervar)*E112*percnt_var*start_time+(SUM(F279:J279,P279:R279)*output_kgyear+inflated_othervar)*E112*(1-start_time)),IF(C112<=start_time,-(SUM(F279:J279,P279:R279)*output_kgyear+inflated_othervar)*E112*percnt_var,-E112*(SUM(F279:J279,P279:R279)*output_kgyear+inflated_othervar))))) ->  | S112: =IF(B112="","",IF($B$31=0,"",-'Debt Financing Calculations'!E61)) ->  | U112: =IF(C112="","",IF(C112<-1,0,IF(C112=anal_period,-LOOKUP(C112,depr_yr,depr_cost)-Depreciation!$C$141-Depreciation!$B$166,-LOOKUP(C112,depr_yr,depr_cost)))) ->  | Z112: =IF(C112="","",IF($B$31=0,"",-'Debt Financing Calculations'!F61)) -> 
B113: =IF(MAX($B$65:B112)<(construct+anal_period),B112+1,"") ->  | I113: =IF(OR(C113<0,C113=""),"",-E113*INDEX('Replacement Costs'!$A$16:$H$57,MATCH(C113,'Replacement Costs'!$C$16:$C$57,0),MATCH("Total Yearly Replacement Costs",'Replacement Costs'!$A$16:$H$16,0))) ->  | J113: =IF(AND(C113>=1,C113<anal_period),WorkingCap*SUM(N113:R113)-WorkingCap*SUM(N112:R112),IF(C113<0,0,IF(B113="","",-SUM(J$65:J112)))) ->  | O113: =IF(C113="","",IF(C113<0,0,IF(AND(C113=1,start_time<1),-(SUM(B280:E280)*output_kgyear*E113*percnt_var*start_time+SUM(B280:E280)*output_kgyear*E113*(1-start_time)),IF(C113<=start_time,-SUM(B280:E280)*output_kgyear*E113*percnt_var,-SUM(B280:E280)*output_kgyear*E113)))) ->  | Q113: =IF(C113="","",IF(C113<0,0,IF(AND(C113=1,start_time<1),SUM(K280:N280,T280:V280)*output_kgyear*E113*percnt_revs*start_time+SUM(K280:N280,T280:V280)*output_kgyear*E113*(1-start_time),IF(C113<=start_time,SUM(K280:N280,T280:V280)*output_kgyear*E113*percnt_revs,SUM(K280:N280,T280:V280)*output_kgyear*E113)))) ->  | R113: =IF(C113="","",IF(C113<0,0,IF(AND(C113=1,start_time<1),-((SUM(F280:J280,P280:R280)*output_kgyear+inflated_othervar)*E113*percnt_var*start_time+(SUM(F280:J280,P280:R280)*output_kgyear+inflated_othervar)*E113*(1-start_time)),IF(C113<=start_time,-(SUM(F280:J280,P280:R280)*output_kgyear+inflated_othervar)*E113*percnt_var,-E113*(SUM(F280:J280,P280:R280)*output_kgyear+inflated_othervar))))) ->  | S113: =IF(B113="","",IF($B$31=0,"",-'Debt Financing Calculations'!E62)) ->  | U113: =IF(C113="","",IF(C113<-1,0,IF(C113=anal_period,-LOOKUP(C113,depr_yr,depr_cost)-Depreciation!$C$141-Depreciation!$B$166,-LOOKUP(C113,depr_yr,depr_cost)))) ->  | Z113: =IF(C113="","",IF($B$31=0,"",-'Debt Financing Calculations'!F62)) -> 
E114: Cumulative Total | F114: =SUM(F65:F113) -> 5314539655 | G114: -95667334.21 | H114: -63778222.81 | I114: -179507937.8 | J114: 0 | K114: -265014.8134 | L114: 33907910.25 | M114: -33851645.35 | N114: -474856068.5 | O114: -4285712609 | P114: 0 | Q114: 0 | R114: -11608631.56 | S114: -145127346 | T114: 397291265.7 | U114: -338953494.8 | V114: 58337770.9 | W114: 10.5534 | X114: -15016142.23 | Y114: 382275123.5 | Z114: -95667334.21 | AA114: 43056613.86 | AB114: 1921219533 | AC114: 58072756.09
E115: PV of Cash Flow | F115: =NPV(nominal_irr,F65:F113) -> 956046133 | G115: -86929210.02 | H115: -57952806.68 | I115: -27411964.44 | J115: -3754607.137 | K115: -240808.7208 | L115: 668013.9097 | M115: -666905.4447 | N115: -85423072.83 | O115: -738049253.1 | P115: 0 | Q115: 0 | R115: -2088306.426 | S115: -34520060.83 | T115: 95966548.28 | U115: -77622975.66 | V115: 18343572.61 | W115: 2.510236837 | X115: -4721635.591 | Y115: 91244912.69 | Z115: -1884725.703 | AA115: 6.954115561e-07 | AB115: -8438628.597 | AC115: 4721635.591
E116: Discounted Values | F116: =+F65+NPV($X$59,F66:F113) -> 1052147890 | G116: -95667334.21 | H116: =+H65+NPV($X$59,H66:H113) -> -63778222.81 | I116: -30167415.11 | J116: -4132020.247 | K116: -265014.8134 | L116: 735162.668 | M116: -733942.78 | N116: -94009800.11 | O116: -812237964 | P116: 0 | Q116: 0 | R116: -2298222.988 | S116: -37990017.35 | T116: 105613105.7 | U116: -85425637.18 | V116: 20187468.53 | W116: 2.762565844 | X116: -5196254.401 | Y116: 100416851.3 | Z116: -2074178.33 | AA116: 7.599592209e-07 | AB116: -9286879.544 | AC116: 5196254.401 | AE116: =+AE65+NPV(real_irr,AE66:AE113) -> 211095467.5 | AF116: =+AF65+NPV($X$59,AF66:AF113) -> 0
A117: Specific Item Cost Calculation | E117: Expenses $/kg H2 | H117: =-H116/$AE$116*(1+inflation_rate)^construct/INFLATION_FACTOR -> 0.3137197591 | I117: =-I116/$AE$116*(1+inflation_rate)^construct/INFLATION_FACTOR -> 0.148390999 | J117: =-J116/$AE$116*(1+inflation_rate)^construct/INFLATION_FACTOR -> 0.02032506299 | K117: =-K116/$AE$116*(1+inflation_rate)^construct/INFLATION_FACTOR -> 0.001303585766 | M117: =-M116/$AE$116*(1+inflation_rate)^construct/INFLATION_FACTOR -> 0.003610203326 | N117: =-N116/$AE$116*(1+inflation_rate)^construct/INFLATION_FACTOR -> 0.4624263665 | O117: =-O116/$AE$116*(1+inflation_rate)^construct/INFLATION_FACTOR -> 3.995330806 | P117: =-P116/$AE$116*(1+inflation_rate)^construct/INFLATION_FACTOR -> 0 | R117: =-R116/$AE$116*(1+inflation_rate)^construct/INFLATION_FACTOR -> 0.01130476721 | S117: =-S116/$AE$116*(1+inflation_rate)^construct/INFLATION_FACTOR -> 0.1868697271 | X117: =-X116/$AE$116*(1+inflation_rate)^construct/INFLATION_FACTOR -> 0.02555994204 | Z117: =-Z116/$AE$116*(1+inflation_rate)^construct/INFLATION_FACTOR -> 0.01020271023 | AG117: =+SUM(F117:AC117) -> 5.17904393
A118: Cost Component | B118: After Tax Present Value | C118: % of Total | D118: $/kg of H2 | E118: Revenues $/kg H2 | F118: =F116/$AE$116*(1+inflation_rate)^construct/INFLATION_FACTOR -> 5.175427726 | L118: =L116/$AE$116*(1+inflation_rate)^construct/INFLATION_FACTOR -> 0.003616203853 | Q118: =Q116/$AE$116*(1+inflation_rate)^construct/INFLATION_FACTOR -> 0 | AG118: =+SUM(F118:AC118) -> 5.17904393
A119: Capital-Related Costs | B119: =(SUM(H115:K115)+L115*(1-total_tax_rate)+S115*(1-total_tax_rate)+U115*(-total_tax_rate)+Z115)/(1-total_tax_rate) -> -129818595.2 | C119: =B119/SUM($B$118:$B$125) -> 0.1357869571 | D119: =H2_price_real*C119 -> 0.7027555823
A120: Decommissioning Costs | B120: =M115 -> -666905.4447 | C120: 0.0006975661757 | D120: 0.003610203326
A121: Fixed O&M | B121: =N115 -> -85423072.83 | C121: 0.08935036698 | D121: 0.4624263665
A122: Feedstock Costs | B122: =O115 -> -738049253.1 | C122: 0.7719807943 | D122: 3.995330806
A123: Other Raw Material Costs | B123: =P115 -> 0 | C123: 0 | D123: 0
A124: Byproduct Credits | B124: =Q115 -> 0 | C124: 0 | D124: 0
A125: Other Variable Costs (including utilities) | B125: =R115 -> -2088306.426 | C125: 0.00218431554 | D125: 0.01130476721
A128: INFLATION FACTOR (1 + inflation rate)^(startup year - reference year) = | B128: =(1+inflation_rate)^(startup_year-ref_year) -> 0.9813542689
A129: Feedstock, Utility and Byproduct Cost Information (Start-Up Year $)
B130: Energy Feedstocks | F130: Energy Utilities | J130: Carbon Sequestration Electricity Usage | K130: Energy Byproducts | O130: Other Material Inputs | S130: Other Material Byproducts
A131: Feedstock Name | B131: =Input_Sheet_Template!$B$75 -> Industrial Electricity | J131: =IF(CO2_CashFlow_eUse>0,'HyARC Physical Property Data'!A77,"") ->  | O131: Type | P131: =Input_Sheet_Template!$B$136 -> Process Water | S131: Type
A132: LHV (GJ or mmBtu/usage unit) | B132: =Input_Sheet_Template!$C$75 -> 0.0036 | J132: =IF(J131="",0,VLOOKUP(J131,MASTER_PROPERTY_TABLE,9,FALSE)) -> 0 | O132: Usage (/kg H2) | P132: =Input_Sheet_Template!$D$136 -> 4.76 | S132: Usage (/kg H2)
A133: Usage (/kg H2) | B133: =feedstockIndustrial_Electricity_Usage -> 54.3 | J133: =CO2_eUse_kWhpkg -> 0 | O133: Cost (/usage unit) | P133: =Input_Sheet_Template!$C$136 -> 0.002374951095 | S133: Price (/usage unit)
A134: Price ($/ usage unit) | B134: =feedstockIndustrial_Electricity_Price -> 0.06998061126 | J134: =IF(J131="",0,CO2_eCost) -> 0 | O134: Lookup Price? | P134: =Input_Sheet_Template!$F$136 -> Yes | S134: Lookup Price?
A135: Lookup Price? | B135: =Input_Sheet_Template!$G$75 -> yes | J135: =IF(J131="","","yes") -> 
A136: CO2 Emissions (kg CO2/kg H2) | B136: =IF(B131="",0,VLOOKUP(B131,MASTER_PROPERTY_TABLE,11,FALSE)*B132*B133) -> 0 | C136: =IF(C131="",0,VLOOKUP(C131,MASTER_PROPERTY_TABLE,11,FALSE)*C132*C133) -> 0 | D136: =IF(D131="",0,VLOOKUP(D131,MASTER_PROPERTY_TABLE,11,FALSE)*D132*D133) -> 0 | E136: =IF(E131="",0,VLOOKUP(E131,MASTER_PROPERTY_TABLE,11,FALSE)*E132*E133) -> 0 | F136: =IF(F131="",,VLOOKUP(F131,MASTER_PROPERTY_TABLE,11,FALSE)*F132*F133) -> 0 | G136: =IF(G131="",,VLOOKUP(G131,MASTER_PROPERTY_TABLE,11,FALSE)*G132*G133) -> 0 | H136: =IF(H131="",,VLOOKUP(H131,MASTER_PROPERTY_TABLE,11,FALSE)*H132*H133) -> 0 | I136: =IF(I131="",,VLOOKUP(I131,MASTER_PROPERTY_TABLE,11,FALSE)*I132*I133) -> 0 | J136: =IF($J$131="",0,VLOOKUP($J$131,MASTER_PROPERTY_TABLE,12,FALSE)*$J$132*$J$133) -> 0
A137: Unit System Conversion Factor | B137: =IF(B131="",0,IF(VLOOKUP(B131,MASTER_PROPERTY_TABLE,12,FALSE)="English",mmBTU_to_GJ,1)) -> 1 | C137: =IF(C131="",0,IF(VLOOKUP(C131,MASTER_PROPERTY_TABLE,12,FALSE)="English",mmBTU_to_GJ,1)) -> 0 | D137: =IF(D131="",0,IF(VLOOKUP(D131,MASTER_PROPERTY_TABLE,12,FALSE)="English",mmBTU_to_GJ,1)) -> 0 | E137: =IF(E131="",,IF(VLOOKUP(E131,MASTER_PROPERTY_TABLE,12,FALSE)="English",mmBTU_to_GJ,1)) -> 0 | F137: =IF(F131="",,IF(VLOOKUP(F131,MASTER_PROPERTY_TABLE,12,FALSE)="English",mmBTU_to_GJ,1)) -> 0 | G137: =IF(G131="",,IF(VLOOKUP(G131,MASTER_PROPERTY_TABLE,12,FALSE)="English",mmBTU_to_GJ,1)) -> 0 | H137: =IF(H131="",,IF(VLOOKUP(H131,MASTER_PROPERTY_TABLE,12,FALSE)="English",mmBTU_to_GJ,1)) -> 0 | I137: =IF(I131="",,IF(VLOOKUP(I131,MASTER_PROPERTY_TABLE,12,FALSE)="English",mmBTU_to_GJ,1)) -> 0 | J137: =IF($J$131="",0,IF(VLOOKUP($J$131,MASTER_PROPERTY_TABLE,12,FALSE)="English",mmBTU_to_GJ,1)) -> 0 | K137: =IF(K131="",,IF(VLOOKUP(K131,MASTER_PROPERTY_TABLE,12,FALSE)="English",mmBTU_to_GJ,1)) -> 0 | L137: =IF(L131="",,IF(VLOOKUP(L131,MASTER_PROPERTY_TABLE,12,FALSE)="English",mmBTU_to_GJ,1)) -> 0 | M137: =IF(M131="",,IF(VLOOKUP(M131,MASTER_PROPERTY_TABLE,12,FALSE)="English",mmBTU_to_GJ,1)) -> 0 | N137: =IF(N131="",,IF(VLOOKUP(N131,MASTER_PROPERTY_TABLE,12,FALSE)="English",mmBTU_to_GJ,1)) -> 0
A138: Actual Year | B138: =IF(B$131="","",B$131&" ($/kg of H2)") -> Industrial Electricity ($/kg of H2) | P138: =IF(P$131="","",P$131&" ($/kg of H2)") -> Process Water ($/kg of H2) | Q138: =IF(Q$131="","",Q$131&" ($/kg of H2)") ->  | R138: =IF(R$131="","",R$131&" ($/kg of H2)") ->  | T138: =IF(T$131="","",T$131&" ($/kg of H2)") ->  | U138: =IF(U$131="","",U$131&" ($/kg of H2)") ->  | V138: =IF(V$131="","",V$131&" ($/kg of H2)") -> 
A139: =IF(A65="","",A65) -> 2014 | B139: =IF($A139="","",IF($B$131="","",IF($B$135="no",INFLATION_FACTOR*$B$133*$B$134,INFLATION_FACTOR*$B$133*$B$132*INDEX(FEEDPRICETABLE,MATCH($B$131,List_Energy_Feedstocks,0),MATCH($A139,Feedstock_Year,0))))) -> 3.873282609 | C139: =IF($A139="","",IF($C$131="","",IF($C$135="no",INFLATION_FACTOR*$C$133*$C$134,INFLATION_FACTOR*$C$133*$C$132*INDEX(FEEDPRICETABLE,MATCH($C$131,List_Energy_Feedstocks,0),MATCH($A139,Feedstock_Year,0))))) ->  | D139: =IF($A139="","",IF($D$131="","",IF($D$135="no",INFLATION_FACTOR*$D$133*$D$134,INFLATION_FACTOR*$D$133*$D$132*INDEX(FEEDPRICETABLE,MATCH($D$131,List_Energy_Feedstocks,0),MATCH($A139,Feedstock_Year,0))))) ->  | E139: =IF($A139="","",IF($E$131="","",IF($E$135="no",INFLATION_FACTOR*$E$133*$E$134,INFLATION_FACTOR*$E$133*$E$132*INDEX(FEEDPRICETABLE,MATCH($E$131,List_Energy_Feedstocks,0),MATCH($A139,Feedstock_Year,0))))) ->  | F139: =IF($A139="","",IF($F$131="","",IF($F$135="no",INFLATION_FACTOR*$F$133*$F$134,INFLATION_FACTOR*$F$133*$F$132*INDEX(FEEDPRICETABLE,MATCH($F$131,List_Energy_Feedstocks,0),MATCH($A139,Feedstock_Year,0))))) ->  | G139: =IF($A139="","",IF($G$131="","",IF($G$135="no",INFLATION_FACTOR*$G$133*$G$134,INFLATION_FACTOR*$G$133*$G$132*INDEX(FEEDPRICETABLE,MATCH($G$131,List_Energy_Feedstocks,0),MATCH($A139,Feedstock_Year,0))))) ->  | H139: =IF($A139="","",IF($H$131="","",IF($H$135="no",INFLATION_FACTOR*$H$133*$H$134,INFLATION_FACTOR*$H$133*$H$132*INDEX(FEEDPRICETABLE,MATCH(H$131,List_Energy_Feedstocks,0),MATCH($A139,Feedstock_Year,0))))) ->  | I139: =IF($A139="","",IF($I$131="","",IF($I$135="no",INFLATION_FACTOR*$I$133*$I$134,INFLATION_FACTOR*$I$133*$I$132*INDEX(FEEDPRICETABLE,MATCH($I$131,List_Energy_Feedstocks,0),MATCH($A139,Feedstock_Year,0))))) ->  | J139: =IF($A139="","",IF($J$131="","",IF($J$135="no",INFLATION_FACTOR*$J$133*$J$134,INFLATION_FACTOR*$J$133*$J$132*INDEX(FEEDPRICETABLE,MATCH($J$131,List_Energy_Feedstocks,0),MATCH($A139,Feedstock_Year,0))))) ->  | K139: =IF($A139="","",IF($K$131="","",IF($K$135="no",INFLATION_FACTOR*$K$133*$K$134,INFLATION_FACTOR*$K$133*$K$132*INDEX(FEEDPRICETABLE,MATCH($K$131,List_Energy_Feedstocks,0),MATCH($A139,Feedstock_Year,0))))) ->  | L139: =IF($A139="","",IF($L$131="","",IF($L$135="no",INFLATION_FACTOR*$L$133*$L$134,INFLATION_FACTOR*$L$133*$L$132*INDEX(FEEDPRICETABLE,MATCH($L$131,List_Energy_Feedstocks,0),MATCH($A139,Feedstock_Year,0))))) ->  | M139: =IF($A139="","",IF(M$131="","",IF($M$135="no",INFLATION_FACTOR*$M$133*$M$134,INFLATION_FACTOR*$M$133*$M$132*INDEX(FEEDPRICETABLE,MATCH($M$131,List_Energy_Feedstocks,0),MATCH($A139,Feedstock_Year,0))))) ->  | N139: =IF($A139="","",IF($N$131="","",IF($N$135="no",INFLATION_FACTOR*$N$133*$N$134,INFLATION_FACTOR*$N$133*$N$132*INDEX(FEEDPRICETABLE,MATCH($N$131,List_Energy_Feedstocks,0),MATCH($A139,Feedstock_Year,0))))) ->  | P139: =IF(OR($A139="",$P$131=""),"",IF($P$134="No",INFLATION_FACTOR*$P$132*$P$133,INFLATION_FACTOR*$P$132*INDEX(Tbl_Other_Inputs_and_Byproducts,MATCH($P$131,Other_Inputs_List,0),MATCH($A139,Other_Inputs_years,0)))) -> 0.01109398156 | Q139: =IF(OR($A139="",$Q$131=""),"",IF($Q$134="No",INFLATION_FACTOR*$Q$132*$Q$133,INFLATION_FACTOR*$Q$132*INDEX(Tbl_Other_Inputs_and_Byproducts,MATCH($Q$131,Other_Inputs_List,0),MATCH($A139,Other_Inputs_years,0)))) ->  | R139: =IF(OR($A139="",$R$131=""),"",IF($R$134="No",INFLATION_FACTOR*$R$132*$R$133,INFLATION_FACTOR*$R$132*INDEX(Tbl_Other_Inputs_and_Byproducts,MATCH($R$131,Other_Inputs_List,0),MATCH($A139,Other_Inputs_years,0)))) ->  | T139: =IF(OR($A139="",$T$131=""),"",IF($T$134="No",INFLATION_FACTOR*$T$132*$T$133,INFLATION_FACTOR*$T$132*INDEX(Tbl_Other_Inputs_and_Byproducts,MATCH($T$131,Other_Inputs_List,0),MATCH($A139,Other_Inputs_years,0)))) ->  | U139: =IF(OR($A139="",$U$131=""),"",IF($U$134="No",INFLATION_FACTOR*$U$132*$U$133,INFLATION_FACTOR*$U$132*INDEX(Tbl_Other_Inputs_and_Byproducts,MATCH($U$131,Other_Inputs_List,0),MATCH($A139,Other_Inputs_years,0)))) ->  | V139: =IF(OR($A139="",$V$131=""),"",IF($V$134="No",INFLATION_FACTOR*$V$132*$V$133,INFLATION_FACTOR*$V$132*INDEX(Tbl_Other_Inputs_and_Byproducts,MATCH($V$131,Other_Inputs_List,0),MATCH($A139,Other_Inputs_years,0)))) -> 
A140: 2015 | B140: =IF($A140="","",IF($B$131="","",IF($B$135="no",INFLATION_FACTOR*$B$133*$B$134,INFLATION_FACTOR*$B$133*$B$132*INDEX(FEEDPRICETABLE,MATCH($B$131,List_Energy_Feedstocks,0),MATCH($A140,Feedstock_Year,0))))) -> 3.729094398 | F140: =IF($A140="","",IF($F$131="","",IF($F$135="no",INFLATION_FACTOR*$F$133*$F$134,INFLATION_FACTOR*$F$133*$F$132*INDEX(FEEDPRICETABLE,MATCH($F$131,List_Energy_Feedstocks,0),MATCH($A140,Feedstock_Year,0))))) ->  | P140: =IF(OR($A140="",$P$131=""),"",IF($P$134="No",INFLATION_FACTOR*$P$132*$P$133,INFLATION_FACTOR*$P$132*INDEX(Tbl_Other_Inputs_and_Byproducts,MATCH($P$131,Other_Inputs_List,0),MATCH($A140,Other_Inputs_years,0)))) -> 0.01109398156 | Q140: =IF(OR($A140="",$Q$131=""),"",IF($Q$134="No",INFLATION_FACTOR*$Q$132*$Q$133,INFLATION_FACTOR*$Q$132*INDEX(Tbl_Other_Inputs_and_Byproducts,MATCH($Q$131,Other_Inputs_List,0),MATCH($A140,Other_Inputs_years,0)))) -> 
A141: 2016 | B141: 3.602236479 | P141: 0.01109398156
A142: 2017 | B142: 3.747977701 | P142: 0.01109398156
A143: 2018 | B143: 3.663032158 | P143: 0.01109398156
A144: 2019 | B144: 3.71026037 | P144: 0.01109398156
A145: 2020 | B145: 3.779291533 | P145: 0.01109398156
A146: 2021 | B146: 3.800106631 | P146: 0.01109398156
A147: 2022 | B147: 3.922765323 | P147: 0.01109398156
A148: 2023 | B148: 3.935198125 | P148: 0.01109398156
A149: 2024 | B149: 3.924824304 | P149: 0.01109398156
A150: 2025 | B150: 4.019065448 | P150: 0.01109398156
A151: 2026 | B151: 4.059880706 | P151: 0.01109398156
A152: 2027 | B152: 4.083272623 | P152: 0.01109398156
A153: 2028 | B153: 4.10980374 | P153: 0.01109398156
A154: 2029 | B154: 4.130648294 | P154: 0.01109398156
A155: 2030 | B155: 4.145129714 | P155: 0.01109398156
A156: 2031 | B156: 4.15038099 | P156: 0.01109398156
A157: 2032 | B157: 4.140911929 | P157: 0.01109398156
A158: 2033 | B158: 4.12611068 | P158: 0.01109398156
A159: 2034 | B159: 4.114118984 | P159: 0.01109398156
A160: 2035 | B160: 4.128666588 | P160: 0.01109398156
A161: 2036 | B161: 4.143678027 | P161: 0.01109398156
A162: 2037 | B162: 4.140545007 | P162: 0.01109398156
A163: 2038 | B163: 4.141464676 | P163: 0.01109398156
A164: 2039 | B164: 4.14466988 | P164: 0.01109398156
A165: 2040 | B165: 4.134951719 | P165: 0.01109398156
A166: 2041 | B166: 4.122791108 | P166: 0.01109398156
A167: 2042 | B167: 4.127572913 | P167: 0.01109398156
A168: 2043 | B168: 4.140169357 | P168: 0.01109398156
A169: 2044 | B169: 4.155768999 | P169: 0.01109398156
A170: 2045 | B170: 4.170949898 | P170: 0.01109398156
A171: 2046 | B171: 4.186384443 | P171: 0.01109398156
A172: 2047 | B172: 4.200234931 | P172: 0.01109398156
A173: 2048 | B173: 4.215814754 | P173: 0.01109398156
A174: 2049 | B174: 4.229313048 | P174: 0.01109398156
A175: 2050 | B175: 4.242399328 | P175: 0.01109398156
A176: 2051 | B176: 4.246246995 | P176: 0.01109398156
A177: 2052 | B177: 4.250098152 | P177: 0.01109398156
A178: 2053 | B178: 4.253952801 | P178: 0.01109398156
A179: 2054 | B179: 4.257810947 | P179: 0.01109398156
A184: Tables to calculate equivalent price in startup year
A185: Actual Year | B185: =IF(B$131="","",B$131&" ($/year)") -> Industrial Electricity ($/year) | C185: =IF(C$131="","",C$131&" ($/year)") -> 
A186: =+A139 -> 2014 | B186: =IF($C65="","",IF($C65<0,0,IF(AND($C65=1,start_time<1),-(SUM(B139)*output_kgyear*$E65*percnt_var*start_time+SUM(B139)*output_kgyear*$E65*(1-start_time)),IF($C65<=start_time,-SUM(B139)*output_kgyear*$E65*percnt_var,-SUM(B139)*output_kgyear*$E65)))) -> 0 | C186: =IF($C65="","",IF($C65<0,0,IF(AND($C65=1,start_time<1),-(SUM(C139)*output_kgyear*$E65*percnt_var*start_time+SUM(C139)*output_kgyear*$E65*(1-start_time)),IF($C65<=start_time,-SUM(C139)*output_kgyear*$E65*percnt_var,-SUM(C139)*output_kgyear*$E65)))) -> 0 | D186: 0 | E186: 0 | F186: 0 | G186: 0 | H186: 0 | I186: 0 | J186: 0 | K186: 0 | L186: 0 | M186: 0 | N186: 0
A187: =+A140 -> 2015 | B187: =IF($C66="","",IF($C66<0,0,IF(AND($C66=1,start_time<1),-(SUM(B140)*output_kgyear*$E66*percnt_var*start_time+SUM(B140)*output_kgyear*$E66*(1-start_time)),IF($C66<=start_time,-SUM(B140)*output_kgyear*$E66*percnt_var,-SUM(B140)*output_kgyear*$E66)))) -> -66014293.58 | C187: 0 | D187: 0 | E187: 0 | F187: 0 | G187: 0 | H187: 0 | I187: 0 | J187: 0 | K187: 0 | L187: 0 | M187: 0 | N187: 0
A188: 2016 | B188: =IF($C67="","",IF($C67<0,0,IF(AND($C67=1,start_time<1),-(SUM(B141)*output_kgyear*$E67*percnt_var*start_time+SUM(B141)*output_kgyear*$E67*(1-start_time)),IF($C67<=start_time,-SUM(B141)*output_kgyear*$E67*percnt_var,-SUM(B141)*output_kgyear*$E67)))) -> -64980194.51 | C188: 0 | D188: 0 | E188: 0 | F188: 0 | G188: 0 | H188: 0 | I188: 0 | J188: 0 | K188: 0 | L188: 0 | M188: 0 | N188: 0
A189: 2017 | B189: =IF($C68="","",IF($C68<0,0,IF(AND($C68=1,start_time<1),-(SUM(B142)*output_kgyear*$E68*percnt_var*start_time+SUM(B142)*output_kgyear*$E68*(1-start_time)),IF($C68<=start_time,-SUM(B142)*output_kgyear*$E68*percnt_var,-SUM(B142)*output_kgyear*$E68)))) -> -68893772.94 | C189: 0 | D189: 0 | E189: 0 | F189: =IF($C68="","",IF($C68<0,0,IF(AND($C68=1,start_time<1),-(SUM(F142)*output_kgyear*$E68*percnt_var*start_time+SUM(F142)*output_kgyear*$E68*(1-start_time)),IF($C68<=start_time,-SUM(F142)*output_kgyear*$E68*percnt_var,-SUM(F142)*output_kgyear*$E68)))) -> 0 | G189: 0 | H189: 0 | I189: 0 | J189: 0 | K189: 0 | L189: 0 | M189: 0 | N189: 0
A190: 2018 | B190: =IF($C69="","",IF($C69<0,0,IF(AND($C69=1,start_time<1),-(SUM(B143)*output_kgyear*$E69*percnt_var*start_time+SUM(B143)*output_kgyear*$E69*(1-start_time)),IF($C69<=start_time,-SUM(B143)*output_kgyear*$E69*percnt_var,-SUM(B143)*output_kgyear*$E69)))) -> -68611653.62 | C190: 0 | D190: 0 | E190: 0 | F190: 0 | G190: 0 | H190: 0 | I190: 0 | J190: 0 | K190: 0 | L190: 0 | M190: 0 | N190: 0
A191: 2019 | B191: =IF($C70="","",IF($C70<0,0,IF(AND($C70=1,start_time<1),-(SUM(B144)*output_kgyear*$E70*percnt_var*start_time+SUM(B144)*output_kgyear*$E70*(1-start_time)),IF($C70<=start_time,-SUM(B144)*output_kgyear*$E70*percnt_var,-SUM(B144)*output_kgyear*$E70)))) -> -70816706.77 | C191: 0 | D191: 0 | E191: 0 | F191: 0 | G191: 0 | H191: 0 | I191: 0 | J191: 0 | K191: 0 | L191: 0 | M191: 0 | N191: 0
A192: 2020 | B192: =IF($C71="","",IF($C71<0,0,IF(AND($C71=1,start_time<1),-(SUM(B145)*output_kgyear*$E71*percnt_var*start_time+SUM(B145)*output_kgyear*$E71*(1-start_time)),IF($C71<=start_time,-SUM(B145)*output_kgyear*$E71*percnt_var,-SUM(B145)*output_kgyear*$E71)))) -> -73504836.79 | C192: 0 | D192: 0 | E192: 0 | F192: 0 | G192: 0 | H192: 0 | I192: 0 | J192: 0 | K192: 0 | L192: 0 | M192: 0 | N192: 0
A193: 2021 | B193: =IF($C72="","",IF($C72<0,0,IF(AND($C72=1,start_time<1),-(SUM(B146)*output_kgyear*$E72*percnt_var*start_time+SUM(B146)*output_kgyear*$E72*(1-start_time)),IF($C72<=start_time,-SUM(B146)*output_kgyear*$E72*percnt_var,-SUM(B146)*output_kgyear*$E72)))) -> -75313961.19 | C193: 0 | D193: 0 | E193: 0 | F193: 0 | G193: 0 | H193: 0 | I193: 0 | J193: 0 | K193: 0 | L193: 0 | M193: 0 | N193: 0
A194: 2022 | B194: =IF($C73="","",IF($C73<0,0,IF(AND($C73=1,start_time<1),-(SUM(B147)*output_kgyear*$E73*percnt_var*start_time+SUM(B147)*output_kgyear*$E73*(1-start_time)),IF($C73<=start_time,-SUM(B147)*output_kgyear*$E73*percnt_var,-SUM(B147)*output_kgyear*$E73)))) -> -79222075.96 | C194: 0 | D194: 0 | E194: 0 | F194: 0 | G194: 0 | H194: 0 | I194: 0 | J194: 0 | K194: 0 | L194: 0 | M194: 0 | N194: 0
A195: 2023 | B195: =IF($C74="","",IF($C74<0,0,IF(AND($C74=1,start_time<1),-(SUM(B148)*output_kgyear*$E74*percnt_var*start_time+SUM(B148)*output_kgyear*$E74*(1-start_time)),IF($C74<=start_time,-SUM(B148)*output_kgyear*$E74*percnt_var,-SUM(B148)*output_kgyear*$E74)))) -> -80983152.28 | C195: 0 | D195: 0 | E195: 0 | F195: 0 | G195: 0 | H195: 0 | I195: 0 | J195: 0 | K195: 0 | L195: 0 | M195: 0 | N195: 0
A196: 2024 | B196: =IF($C75="","",IF($C75<0,0,IF(AND($C75=1,start_time<1),-(SUM(B149)*output_kgyear*$E75*percnt_var*start_time+SUM(B149)*output_kgyear*$E75*(1-start_time)),IF($C75<=start_time,-SUM(B149)*output_kgyear*$E75*percnt_var,-SUM(B149)*output_kgyear*$E75)))) -> -82304291.24 | C196: 0 | D196: 0 | E196: 0 | F196: 0 | G196: 0 | H196: 0 | I196: 0 | J196: 0 | K196: 0 | L196: 0 | M196: 0 | N196: 0
A197: 2025 | B197: =IF($C76="","",IF($C76<0,0,IF(AND($C76=1,start_time<1),-(SUM(B150)*output_kgyear*$E76*percnt_var*start_time+SUM(B150)*output_kgyear*$E76*(1-start_time)),IF($C76<=start_time,-SUM(B150)*output_kgyear*$E76*percnt_var,-SUM(B150)*output_kgyear*$E76)))) -> -85881875.8 | C197: 0 | D197: 0 | E197: 0 | F197: 0 | G197: 0 | H197: 0 | I197: 0 | J197: 0 | K197: 0 | L197: 0 | M197: 0 | N197: 0
A198: 2026 | B198: =IF($C77="","",IF($C77<0,0,IF(AND($C77=1,start_time<1),-(SUM(B151)*output_kgyear*$E77*percnt_var*start_time+SUM(B151)*output_kgyear*$E77*(1-start_time)),IF($C77<=start_time,-SUM(B151)*output_kgyear*$E77*percnt_var,-SUM(B151)*output_kgyear*$E77)))) -> -88402368.27 | C198: 0 | D198: 0 | E198: 0 | F198: 0 | G198: 0 | H198: 0 | I198: 0 | J198: 0 | K198: 0 | L198: 0 | M198: 0 | N198: 0
A199: 2027 | B199: =IF($C78="","",IF($C78<0,0,IF(AND($C78=1,start_time<1),-(SUM(B152)*output_kgyear*$E78*percnt_var*start_time+SUM(B152)*output_kgyear*$E78*(1-start_time)),IF($C78<=start_time,-SUM(B152)*output_kgyear*$E78*percnt_var,-SUM(B152)*output_kgyear*$E78)))) -> -90601041.06 | C199: 0 | D199: 0 | E199: 0 | F199: 0 | G199: 0 | H199: 0 | I199: 0 | J199: 0 | K199: 0 | L199: 0 | M199: 0 | N199: 0
A200: 2028 | B200: =IF($C79="","",IF($C79<0,0,IF(AND($C79=1,start_time<1),-(SUM(B153)*output_kgyear*$E79*percnt_var*start_time+SUM(B153)*output_kgyear*$E79*(1-start_time)),IF($C79<=start_time,-SUM(B153)*output_kgyear*$E79*percnt_var,-SUM(B153)*output_kgyear*$E79)))) -> -92922327.25 | C200: 0 | D200: 0 | E200: 0 | F200: 0 | G200: 0 | H200: 0 | I200: 0 | J200: 0 | K200: 0 | L200: 0 | M200: 0 | N200: 0
A201: 2029 | B201: =IF($C80="","",IF($C80<0,0,IF(AND($C80=1,start_time<1),-(SUM(B154)*output_kgyear*$E80*percnt_var*start_time+SUM(B154)*output_kgyear*$E80*(1-start_time)),IF($C80<=start_time,-SUM(B154)*output_kgyear*$E80*percnt_var,-SUM(B154)*output_kgyear*$E80)))) -> -95168099.71 | C201: 0 | D201: 0 | E201: 0 | F201: 0 | G201: 0 | H201: 0 | I201: 0 | J201: 0 | K201: 0 | L201: 0 | M201: 0 | N201: 0
A202: 2030 | B202: =IF($C81="","",IF($C81<0,0,IF(AND($C81=1,start_time<1),-(SUM(B155)*output_kgyear*$E81*percnt_var*start_time+SUM(B155)*output_kgyear*$E81*(1-start_time)),IF($C81<=start_time,-SUM(B155)*output_kgyear*$E81*percnt_var,-SUM(B155)*output_kgyear*$E81)))) -> -97316277.63 | C202: 0 | D202: 0 | E202: 0 | F202: 0 | G202: 0 | H202: 0 | I202: 0 | J202: 0 | K202: 0 | L202: 0 | M202: 0 | N202: 0
A203: 2031 | B203: =IF($C82="","",IF($C82<0,0,IF(AND($C82=1,start_time<1),-(SUM(B156)*output_kgyear*$E82*percnt_var*start_time+SUM(B156)*output_kgyear*$E82*(1-start_time)),IF($C82<=start_time,-SUM(B156)*output_kgyear*$E82*percnt_var,-SUM(B156)*output_kgyear*$E82)))) -> -99290914.89 | C203: 0 | D203: 0 | E203: 0 | F203: 0 | G203: 0 | H203: 0 | I203: 0 | J203: 0 | K203: 0 | L203: 0 | M203: 0 | N203: 0
A204: 2032 | B204: =IF($C83="","",IF($C83<0,0,IF(AND($C83=1,start_time<1),-(SUM(B157)*output_kgyear*$E83*percnt_var*start_time+SUM(B157)*output_kgyear*$E83*(1-start_time)),IF($C83<=start_time,-SUM(B157)*output_kgyear*$E83*percnt_var,-SUM(B157)*output_kgyear*$E83)))) -> -100946606.7 | C204: 0 | D204: 0 | E204: 0 | F204: 0 | G204: 0 | H204: 0 | I204: 0 | J204: 0 | K204: 0 | L204: 0 | M204: 0 | N204: 0
A205: 2033 | B205: =IF($C84="","",IF($C84<0,0,IF(AND($C84=1,start_time<1),-(SUM(B158)*output_kgyear*$E84*percnt_var*start_time+SUM(B158)*output_kgyear*$E84*(1-start_time)),IF($C84<=start_time,-SUM(B158)*output_kgyear*$E84*percnt_var,-SUM(B158)*output_kgyear*$E84)))) -> -102496913.7 | C205: 0 | D205: 0 | E205: 0 | F205: 0 | G205: 0 | H205: 0 | I205: 0 | J205: 0 | K205: 0 | L205: 0 | M205: 0 | N205: 0
A206: 2034 | B206: =IF($C85="","",IF($C85<0,0,IF(AND($C85=1,start_time<1),-(SUM(B159)*output_kgyear*$E85*percnt_var*start_time+SUM(B159)*output_kgyear*$E85*(1-start_time)),IF($C85<=start_time,-SUM(B159)*output_kgyear*$E85*percnt_var,-SUM(B159)*output_kgyear*$E85)))) -> -104140808.9 | C206: 0 | D206: 0 | E206: 0 | F206: 0 | G206: 0 | H206: 0 | I206: 0 | J206: 0 | K206: 0 | L206: 0 | M206: 0 | N206: 0
A207: 2035 | B207: =IF($C86="","",IF($C86<0,0,IF(AND($C86=1,start_time<1),-(SUM(B160)*output_kgyear*$E86*percnt_var*start_time+SUM(B160)*output_kgyear*$E86*(1-start_time)),IF($C86<=start_time,-SUM(B160)*output_kgyear*$E86*percnt_var,-SUM(B160)*output_kgyear*$E86)))) -> -106494724.9 | C207: 0 | D207: 0 | E207: 0 | F207: 0 | G207: 0 | H207: 0 | I207: 0 | J207: 0 | K207: 0 | L207: 0 | M207: 0 | N207: 0
A208: 2036 | B208: =IF($C87="","",IF($C87<0,0,IF(AND($C87=1,start_time<1),-(SUM(B161)*output_kgyear*$E87*percnt_var*start_time+SUM(B161)*output_kgyear*$E87*(1-start_time)),IF($C87<=start_time,-SUM(B161)*output_kgyear*$E87*percnt_var,-SUM(B161)*output_kgyear*$E87)))) -> -108912686.2 | C208: 0 | D208: 0 | E208: 0 | F208: 0 | G208: 0 | H208: 0 | I208: 0 | J208: 0 | K208: 0 | L208: 0 | M208: 0 | N208: 0
A209: 2037 | B209: =IF($C88="","",IF($C88<0,0,IF(AND($C88=1,start_time<1),-(SUM(B162)*output_kgyear*$E88*percnt_var*start_time+SUM(B162)*output_kgyear*$E88*(1-start_time)),IF($C88<=start_time,-SUM(B162)*output_kgyear*$E88*percnt_var,-SUM(B162)*output_kgyear*$E88)))) -> -110898114.1 | C209: 0 | D209: 0 | E209: 0 | F209: 0 | G209: 0 | H209: 0 | I209: 0 | J209: 0 | K209: 0 | L209: 0 | M209: 0 | N209: 0
A210: 2038 | B210: =IF($C89="","",IF($C89<0,0,IF(AND($C89=1,start_time<1),-(SUM(B163)*output_kgyear*$E89*percnt_var*start_time+SUM(B163)*output_kgyear*$E89*(1-start_time)),IF($C89<=start_time,-SUM(B163)*output_kgyear*$E89*percnt_var,-SUM(B163)*output_kgyear*$E89)))) -> -113030278.2 | C210: 0 | D210: 0 | E210: 0 | F210: 0 | G210: 0 | H210: 0 | I210: 0 | J210: 0 | K210: 0 | L210: 0 | M210: 0 | N210: 0
A211: 2039 | B211: =IF($C90="","",IF($C90<0,0,IF(AND($C90=1,start_time<1),-(SUM(B164)*output_kgyear*$E90*percnt_var*start_time+SUM(B164)*output_kgyear*$E90*(1-start_time)),IF($C90<=start_time,-SUM(B164)*output_kgyear*$E90*percnt_var,-SUM(B164)*output_kgyear*$E90)))) -> -115266993.1 | C211: 0 | D211: 0 | E211: 0 | F211: 0 | G211: 0 | H211: 0 | I211: 0 | J211: 0 | K211: 0 | L211: 0 | M211: 0 | N211: 0
A212: 2040 | B212: =IF($C91="","",IF($C91<0,0,IF(AND($C91=1,start_time<1),-(SUM(B165)*output_kgyear*$E91*percnt_var*start_time+SUM(B165)*output_kgyear*$E91*(1-start_time)),IF($C91<=start_time,-SUM(B165)*output_kgyear*$E91*percnt_var,-SUM(B165)*output_kgyear*$E91)))) -> -117181660.1 | C212: 0 | D212: 0 | E212: 0 | F212: 0 | G212: 0 | H212: 0 | I212: 0 | J212: 0 | K212: 0 | L212: 0 | M212: 0 | N212: 0
A213: 2041 | B213: =IF($C92="","",IF($C92<0,0,IF(AND($C92=1,start_time<1),-(SUM(B166)*output_kgyear*$E92*percnt_var*start_time+SUM(B166)*output_kgyear*$E92*(1-start_time)),IF($C92<=start_time,-SUM(B166)*output_kgyear*$E92*percnt_var,-SUM(B166)*output_kgyear*$E92)))) -> -119056940.5 | C213: 0 | D213: 0 | E213: 0 | F213: 0 | G213: 0 | H213: 0 | I213: 0 | J213: 0 | K213: 0 | L213: 0 | M213: 0 | N213: 0
A214: 2042 | B214: =IF($C93="","",IF($C93<0,0,IF(AND($C93=1,start_time<1),-(SUM(B167)*output_kgyear*$E93*percnt_var*start_time+SUM(B167)*output_kgyear*$E93*(1-start_time)),IF($C93<=start_time,-SUM(B167)*output_kgyear*$E93*percnt_var,-SUM(B167)*output_kgyear*$E93)))) -> -121459733.8 | C214: 0 | D214: 0 | E214: 0 | F214: 0 | G214: 0 | H214: 0 | I214: 0 | J214: 0 | K214: 0 | L214: 0 | M214: 0 | N214: 0
A215: 2043 | B215: =IF($C94="","",IF($C94<0,0,IF(AND($C94=1,start_time<1),-(SUM(B168)*output_kgyear*$E94*percnt_var*start_time+SUM(B168)*output_kgyear*$E94*(1-start_time)),IF($C94<=start_time,-SUM(B168)*output_kgyear*$E94*percnt_var,-SUM(B168)*output_kgyear*$E94)))) -> -124145179.8 | C215: 0 | D215: 0 | E215: 0 | F215: 0 | G215: 0 | H215: 0 | I215: 0 | J215: 0 | K215: 0 | L215: 0 | M215: 0 | N215: 0
A216: 2044 | B216: =IF($C95="","",IF($C95<0,0,IF(AND($C95=1,start_time<1),-(SUM(B169)*output_kgyear*$E95*percnt_var*start_time+SUM(B169)*output_kgyear*$E95*(1-start_time)),IF($C95<=start_time,-SUM(B169)*output_kgyear*$E95*percnt_var,-SUM(B169)*output_kgyear*$E95)))) -> -126980589.3 | C216: 0 | D216: 0 | E216: 0 | F216: 0 | G216: 0 | H216: 0 | I216: 0 | J216: 0 | K216: 0 | L216: 0 | M216: 0 | N216: 0
A217: 2045 | B217: =IF($C96="","",IF($C96<0,0,IF(AND($C96=1,start_time<1),-(SUM(B170)*output_kgyear*$E96*percnt_var*start_time+SUM(B170)*output_kgyear*$E96*(1-start_time)),IF($C96<=start_time,-SUM(B170)*output_kgyear*$E96*percnt_var,-SUM(B170)*output_kgyear*$E96)))) -> -129865890 | C217: 0 | D217: 0 | E217: 0 | F217: 0 | G217: 0 | H217: 0 | I217: 0 | J217: 0 | K217: 0 | L217: 0 | M217: 0 | N217: 0
A218: 2046 | B218: =IF($C97="","",IF($C97<0,0,IF(AND($C97=1,start_time<1),-(SUM(B171)*output_kgyear*$E97*percnt_var*start_time+SUM(B171)*output_kgyear*$E97*(1-start_time)),IF($C97<=start_time,-SUM(B171)*output_kgyear*$E97*percnt_var,-SUM(B171)*output_kgyear*$E97)))) -> -132823039.7 | C218: 0 | D218: 0 | E218: 0 | F218: 0 | G218: 0 | H218: 0 | I218: 0 | J218: 0 | K218: 0 | L218: 0 | M218: 0 | N218: 0
A219: 2047 | B219: =IF($C98="","",IF($C98<0,0,IF(AND($C98=1,start_time<1),-(SUM(B172)*output_kgyear*$E98*percnt_var*start_time+SUM(B172)*output_kgyear*$E98*(1-start_time)),IF($C98<=start_time,-SUM(B172)*output_kgyear*$E98*percnt_var,-SUM(B172)*output_kgyear*$E98)))) -> -135794466.7 | C219: 0 | D219: 0 | E219: 0 | F219: 0 | G219: 0 | H219: 0 | I219: 0 | J219: 0 | K219: 0 | L219: 0 | M219: 0 | N219: 0
A220: 2048 | B220: =IF($C99="","",IF($C99<0,0,IF(AND($C99=1,start_time<1),-(SUM(B173)*output_kgyear*$E99*percnt_var*start_time+SUM(B173)*output_kgyear*$E99*(1-start_time)),IF($C99<=start_time,-SUM(B173)*output_kgyear*$E99*percnt_var,-SUM(B173)*output_kgyear*$E99)))) -> -138887830.7 | C220: 0 | D220: 0 | E220: 0 | F220: 0 | G220: 0 | H220: 0 | I220: 0 | J220: 0 | K220: 0 | L220: 0 | M220: 0 | N220: 0
A221: 2049 | B221: =IF($C100="","",IF($C100<0,0,IF(AND($C100=1,start_time<1),-(SUM(B174)*output_kgyear*$E100*percnt_var*start_time+SUM(B174)*output_kgyear*$E100*(1-start_time)),IF($C100<=start_time,-SUM(B174)*output_kgyear*$E100*percnt_var,-SUM(B174)*output_kgyear*$E100)))) -> -141979843 | C221: 0 | D221: 0 | E221: 0 | F221: 0 | G221: 0 | H221: 0 | I221: 0 | J221: 0 | K221: 0 | L221: 0 | M221: 0 | N221: 0
... 15 more rows

Sheet Energy Feed & Utility Prices
BW3: Further extrapolated to allow 2040 comission year using GCAM
A4: AEO_2009_Reference_Case | B4: ="Prices are in $(" & ref_year&")/GJ LHV" -> Prices are in $(2016)/GJ LHV | AH4: Except as noted,values are extrapolated based on PNNL mini-CAM model (see AEO Data tab)
A5: Year | B5: Source Data Year | C5: Reference year Conversion | D5: Display Units | E5: Use Category | F5: LHV (MJ/kg) | G5: HHV (MJ/kg) | H5: 2004 | I5: 2005 | J5: 2006 | K5: 2007 | L5: 2008 | M5: 2009 | N5: 2010 | O5: 2011 | P5: 2012 | Q5: 2013 | R5: 2014 | S5: 2015 | T5: 2016 | U5: 2017 | V5: 2018 | W5: 2019 | X5: 2020 | Y5: 2021 | Z5: 2022 | AA5: 2023 | AB5: 2024 | AC5: 2025 | AD5: 2026 | AE5: 2027 | AF5: 2028 | AG5: 2029 | AH5: 2030 | AI5: 2031 | AJ5: 2032 | AK5: 2033 | AL5: 2034 | AM5: 2035 | AN5: 2036 | AO5: 2037 | AP5: 2038 | AQ5: 2039 | AR5: 2040 | AS5: 2041 | AT5: 2042 | AU5: 2043 | AV5: 2044 | AW5: 2045 | AX5: 2046 | AY5: 2047 | AZ5: 2048 | BA5: 2049 | BB5: 2050 | BC5: 2051 | BD5: 2052 | BE5: 2053 | BF5: 2054 | BG5: 2055 | BH5: 2056 | BI5: 2057 | BJ5: 2058 | BK5: 2059 | BL5: 2060 | BM5: 2061 | BN5: 2062 | BO5: 2063 | BP5: 2064 | BQ5: 2065 | BR5: 2066 | BS5: 2067 | BT5: 2068 | BU5: 2069 | BV5: 2070 | BW5: =+BV5+1 -> 2071 | BX5: =+BW5+1 -> 2072 | BY5: =+BX5+1 -> 2073 | BZ5: =+BY5+1 -> 2074 | CA5: =+BZ5+1 -> 2075 | CB5: =+CA5+1 -> 2076 | CC5: =+CB5+1 -> 2077 | CD5: =+CC5+1 -> 2078 | CE5: =+CD5+1 -> 2079 | CF5: =+CE5+1 -> 2080 | CG5: =+CF5+1 -> 2081 | CH5: =+CG5+1 -> 2082 | CI5: =+CH5+1 -> 2083 | CJ5: =+CI5+1 -> 2084 | CK5: =+CJ5+1 -> 2085 | CL5: =+CK5+1 -> 2086 | CM5: =+CL5+1 -> 2087 | CN5: =+CM5+1 -> 2088 | CO5: =+CN5+1 -> 2089 | CP5: =+CO5+1 -> 2090 | CQ5: =+CP5+1 -> 2091 | CR5: =+CQ5+1 -> 2092 | CS5: =+CR5+1 -> 2093 | CT5: =+CS5+1 -> 2094 | CU5: =+CT5+1 -> 2095 | CV5: =+CU5+1 -> 2096 | CW5: =+CV5+1 -> 2097 | CX5: =+CW5+1 -> 2098 | CY5: =+CX5+1 -> 2099 | CZ5: =+CY5+1 -> 2100
A6: Feedstock Type
A7: ='HyARC Physical Property Data'!A73 -> Residential Natural Gas | B7: 2007 | C7: =VLOOKUP(ref_year,DeflatorTable,2,FALSE)/VLOOKUP(B7,DeflatorTable,2,FALSE) -> 1.144635996 | D7: ='HyARC Physical Property Data'!H73 -> mmBtu | E7: Feed Utility | F7: ='HyARC Physical Property Data'!$E$6 -> 47.14126905 | G7: ='HyARC Physical Property Data'!$I$6 -> 52.22466124 | H7: =((13.7000589370728/(mmBTU_to_GJ))*($C$7))*($G$7/$F$7) -> 16.46689578 | I7: =((13.7000589370728/(mmBTU_to_GJ))*($C$7))*($G$7/$F$7) -> 16.46689578 | J7: =((13.7000589370728/(mmBTU_to_GJ))*($C$7))*($G$7/$F$7) -> 16.46689578 | K7: =((12.6911582946777/(mmBTU_to_GJ))*($C$7))*($G$7/$F$7) -> 15.25423956 | L7: =((12.9778490066528/(mmBTU_to_GJ))*($C$7))*($G$7/$F$7) -> 15.59882976 | M7: =((10.7176141738892/(mmBTU_to_GJ))*($C$7))*($G$7/$F$7) -> 12.88212237 | N7: =((11.192774772644/(mmBTU_to_GJ))*($C$7))*($G$7/$F$7) -> 13.45324546 | O7: =((11.4872808456421/(mmBTU_to_GJ))*($C$7))*($G$7/$F$7) -> 13.8072294 | P7: =((11.3991556167603/(mmBTU_to_GJ))*($C$7))*($G$7/$F$7) -> 13.70130657 | Q7: =((11.3077983856201/(mmBTU_to_GJ))*($C$7))*($G$7/$F$7) -> 13.59149902 | R7: =((11.2896461486816/(mmBTU_to_GJ))*($C$7))*($G$7/$F$7) -> 13.56968079 | S7: =((11.3454151153564/(mmBTU_to_GJ))*($C$7))*($G$7/$F$7) -> 13.63671275 | T7: =((11.5382986068726/(mmBTU_to_GJ))*($C$7))*($G$7/$F$7) -> 13.86855061 | U7: =((11.7583208084106/(mmBTU_to_GJ))*($C$7))*($G$7/$F$7) -> 14.13300806 | V7: =((11.9751005172729/(mmBTU_to_GJ))*($C$7))*($G$7/$F$7) -> 14.39356817 | W7: =((12.23952293396/(mmBTU_to_GJ))*($C$7))*($G$7/$F$7) -> 14.71139281 | X7: =((12.557071685791/(mmBTU_to_GJ))*($C$7))*($G$7/$F$7) -> 15.09307308 | Y7: =((12.7957820892334/(mmBTU_to_GJ))*($C$7))*($G$7/$F$7) -> 15.37999297 | Z7: =((12.8716516494751/(mmBTU_to_GJ))*($C$7))*($G$7/$F$7) -> 15.471185 | AA7: =((12.6602811813354/(mmBTU_to_GJ))*($C$7))*($G$7/$F$7) -> 15.21712657 | AB7: =((12.6240320205688/(mmBTU_to_GJ))*($C$7))*($G$7/$F$7) -> 15.1735566 | AC7: =((12.5992183685303/(mmBTU_to_GJ))*($C$7))*($G$7/$F$7) -> 15.14373163 | AD7: =((12.7868556976318/(mmBTU_to_GJ))*($C$7))*($G$7/$F$7) -> 15.36926382 | AE7: =((13.07555103302/(mmBTU_to_GJ))*($C$7))*($G$7/$F$7) -> 15.7162635 | AF7: =((13.407883644104/(mmBTU_to_GJ))*($C$7))*($G$7/$F$7) -> 16.11571335 | AG7: =((13.6725673675537/(mmBTU_to_GJ))*($C$7))*($G$7/$F$7) -> 16.43385207 | AH7: =((13.9620389938354/(mmBTU_to_GJ))*($C$7))*($G$7/$F$7) -> 16.78178481 | AI7: =($BB7-$AH7)/20+AH7 -> 16.92425292 | AJ7: =($BB7-$AH7)/20+AI7 -> 17.06672102 | AK7: 17.20918913 | AL7: 17.35165723 | AM7: 17.49412534 | AN7: 17.63659344 | AO7: 17.77906155 | AP7: 17.92152965 | AQ7: 18.06399776 | AR7: 18.20646586 | AS7: 18.34893397 | AT7: 18.49140207 | AU7: 18.63387018 | AV7: 18.77633828 | AW7: 18.91880639 | AX7: 19.06127449 | AY7: 19.2037426 | AZ7: =($BB7-$AH7)/20+AY7 -> 19.3462107 | BA7: 19.48867881 | BB7: =1.16978897829057*AH7 -> 19.63114691 | BC7: =($BQ7-$BB7)/15+BB7 -> 19.82552969 | BD7: =($BQ7-$BB7)/15+BC7 -> 20.01991246 | BE7: 20.21429523 | BF7: 20.40867801 | BG7: 20.60306078 | BH7: 20.79744355 | BI7: 20.99182633 | BJ7: 21.1862091 | BK7: 21.38059187 | BL7: 21.57497465 | BM7: 21.76935742 | BN7: 21.96374019 | BO7: 22.15812296 | BP7: 22.35250574 | BQ7: =1.14852629914794*BB7 -> 22.54688851 | BR7: =($BV7-$BQ7)/5+BQ7 -> 22.77014224 | BS7: =($BV7-$BQ7)/5+BR7 -> 22.99339597 | BT7: =($BV7-$BQ7)/5+BS7 -> 23.21664969 | BU7: =($BV7-$BQ7)/5+BT7 -> 23.43990342 | BV7: =1.04950876638265*BQ7 -> 23.66315715 | BW7: =+BV7*BW$133/BV$133 -> 23.74172579 | BX7: =+BW7*BX$133/BW$133 -> 23.8205553 | BY7: 23.89964655 | BZ7: 23.9790004 | CA7: 24.05861773 | CB7: 24.1099571 | CC7: 24.16140601 | CD7: 24.21296472 | CE7: 24.26463345 | CF7: 24.31641244 | CG7: 24.33322474 | CH7: 24.35004868 | CI7: 24.36688424 | CJ7: 24.38373145 | CK7: 24.4005903 | CL7: 24.4063047 | CM7: 24.41202044 | CN7: 24.41773752 | CO7: 24.42345594 | CP7: 24.4291757 | CQ7: 24.43784454 | CR7: 24.44651646 | CS7: 24.45519145 | CT7: 24.46386953 | CU7: 24.47255068 | CV7: 24.48591101 | CW7: 24.49927864 | CX7: 24.51265356 | CY7: 24.52603578 | CZ7: 24.53942532
A8: ='HyARC Physical Property Data'!A71 -> Commercial Natural Gas | B8: 2007 | C8: =VLOOKUP(ref_year,DeflatorTable,2,FALSE)/VLOOKUP(B8,DeflatorTable,2,FALSE) -> 1.144635996 | D8: ='HyARC Physical Property Data'!H71 -> mmBtu | E8: Feed Utility | F8: ='HyARC Physical Property Data'!$E$6 -> 47.14126905 | G8: ='HyARC Physical Property Data'!$I$6 -> 52.22466124 | H8: =((11.8960943222046/(mmBTU_to_GJ))*($C$8))*($G$8/$F$8) -> 14.29860604 | I8: =((11.8960943222046/(mmBTU_to_GJ))*($C$8))*($G$8/$F$8) -> 14.29860604 | J8: =((11.8960943222046/(mmBTU_to_GJ))*($C$8))*($G$8/$F$8) -> 14.29860604 | K8: =((10.9898433685303/(mmBTU_to_GJ))*($C$8))*($G$8/$F$8) -> 13.20933043 | L8: =((11.3387994766235/(mmBTU_to_GJ))*($C$8))*($G$8/$F$8) -> 13.62876103 | M8: =((8.90759468078613/(mmBTU_to_GJ))*($C$8))*($G$8/$F$8) -> 10.70655491 | N8: =((9.46560573577881/(mmBTU_to_GJ))*($C$8))*($G$8/$F$8) -> 11.37726078 | O8: =((9.74632167816162/(mmBTU_to_GJ))*($C$8))*($G$8/$F$8) -> 11.71466956 | P8: =((9.72109222412109/(mmBTU_to_GJ))*($C$8))*($G$8/$F$8) -> 11.68434481 | Q8: =((9.67193412780762/(mmBTU_to_GJ))*($C$8))*($G$8/$F$8) -> 11.62525884 | R8: =((9.71388721466064/(mmBTU_to_GJ))*($C$8))*($G$8/$F$8) -> 11.67568469 | S8: =((9.83065605163574/(mmBTU_to_GJ))*($C$8))*($G$8/$F$8) -> 11.81603593 | T8: =((10.0382099151611/(mmBTU_to_GJ))*($C$8))*($G$8/$F$8) -> 12.06550696 | U8: =((10.2545003890991/(mmBTU_to_GJ))*($C$8))*($G$8/$F$8) -> 12.32547904 | V8: =((10.476261138916/(mmBTU_to_GJ))*($C$8))*($G$8/$F$8) -> 12.59202615 | W8: =((10.746561050415/(mmBTU_to_GJ))*($C$8))*($G$8/$F$8) -> 12.9169153 | X8: =((11.0803880691528/(mmBTU_to_GJ))*($C$8))*($G$8/$F$8) -> 13.31816136 | Y8: =((11.3143692016602/(mmBTU_to_GJ))*($C$8))*($G$8/$F$8) -> 13.59939686 | Z8: =((11.4017143249512/(mmBTU_to_GJ))*($C$8))*($G$8/$F$8) -> 13.70438203 | AA8: =((11.2125005722046/(mmBTU_to_GJ))*($C$8))*($G$8/$F$8) -> 13.47695504 | AB8: =((11.1975994110107/(mmBTU_to_GJ))*($C$8))*($G$8/$F$8) -> 13.45904447 | AC8: =((11.159740447998/(mmBTU_to_GJ))*($C$8))*($G$8/$F$8) -> 13.41353959 | AD8: =((11.3503875732422/(mmBTU_to_GJ))*($C$8))*($G$8/$F$8) -> 13.64268943 | AE8: =((11.6409521102905/(mmBTU_to_GJ))*($C$8))*($G$8/$F$8) -> 13.99193581 | AF8: =((11.9785671234131/(mmBTU_to_GJ))*($C$8))*($G$8/$F$8) -> 14.39773488 | AG8: =((12.2332496643066/(mmBTU_to_GJ))*($C$8))*($G$8/$F$8) -> 14.70385261 | AH8: =((12.5188312530518/(mmBTU_to_GJ))*($C$8))*($G$8/$F$8) -> 15.04710969 | AI8: =($BB8-$AH8)/20+AH8 -> 15.17485136 | AJ8: 15.30259303 | AK8: 15.4303347 | AL8: 15.55807637 | AM8: 15.68581803 | AN8: 15.8135597 | AO8: 15.94130137 | AP8: 16.06904304 | AQ8: 16.19678471 | AR8: 16.32452638 | AS8: 16.45226805 | AT8: 16.58000972 | AU8: 16.70775139 | AV8: 16.83549306 | AW8: 16.96323472 | AX8: 17.09097639 | AY8: 17.21871806 | AZ8: 17.34645973 | BA8: 17.4742014 | BB8: =1.16978897829057*AH8 -> 17.60194307 | BC8: =($BQ8-$BB8)/15+BB8 -> 17.77623317 | BD8: 17.95052326 | BE8: 18.12481336 | BF8: 18.29910346 | BG8: 18.47339356 | BH8: 18.64768365 | BI8: 18.82197375 | BJ8: 18.99626385 | BK8: 19.17055395 | BL8: 19.34484404 | BM8: 19.51913414 | BN8: 19.69342424 | BO8: 19.86771434 | BP8: 20.04200443 | BQ8: =1.14852629914794*BB8 -> 20.21629453 | BR8: =($BV8-$BQ8)/5+BQ8 -> 20.41647129 | BS8: 20.61664805 | BT8: 20.81682481 | BU8: 21.01700157 | BV8: =1.04950876638265*BQ8 -> 21.21717833 | BW8: =+BV8*BW$134/BV$134 -> 21.2876256 | BX8: =+BW8*BX$134/BW$134 -> 21.35830678 | BY8: 21.42922264 | BZ8: 21.50037396 | CA8: 21.57176152 | CB8: 21.61779412 | CC8: 21.66392494 | CD8: 21.7101542 | CE8: 21.75648211 | CF8: 21.80290888 | CG8: 21.81798336 | CH8: 21.83306826 | CI8: 21.84816359 | CJ8: 21.86326936 | CK8: 21.87838557 | CL8: 21.88350929 | CM8: 21.88863422 | CN8: 21.89376034 | CO8: 21.89888767 | CP8: 21.90401619 | CQ8: 21.91178897 | CR8: 21.9195645 | CS8: 21.92734279 | CT8: 21.93512384 | CU8: 21.94290765 | CV8: 21.95488697 | CW8: 21.96687283 | CX8: 21.97886524 | CY8: 21.99086419 | CZ8: 22.00286969
A9: ='HyARC Physical Property Data'!A72 -> Industrial Natural Gas | B9: 2007 | C9: =VLOOKUP(ref_year,DeflatorTable,2,FALSE)/VLOOKUP(B9,DeflatorTable,2,FALSE) -> 1.144635996 | D9: ='HyARC Physical Property Data'!H72 -> mmBtu | E9: Feed Utility | F9: ='HyARC Physical Property Data'!$E$6 -> 47.14126905 | G9: ='HyARC Physical Property Data'!$I$6 -> 52.22466124 | H9: =((7.95407009124756/(mmBTU_to_GJ))*($C$9))*($G$9/$F$9) -> 9.560458378 | I9: =((7.95407009124756/(mmBTU_to_GJ))*($C$9))*($G$9/$F$9) -> 9.560458378 | J9: =((7.95407009124756/(mmBTU_to_GJ))*($C$9))*($G$9/$F$9) -> 9.560458378 | K9: =((7.51525163650513/(mmBTU_to_GJ))*($C$9))*($G$9/$F$9) -> 9.033017015 | L9: =((8.80127239227294/(mmBTU_to_GJ))*($C$9))*($G$9/$F$9) -> 10.57875998 | M9: =((4.84856796264648/(mmBTU_to_GJ))*($C$9))*($G$9/$F$9) -> 5.827775173 | N9: =((5.49891996383666/(mmBTU_to_GJ))*($C$9))*($G$9/$F$9) -> 6.60947098 | O9: =((5.82616424560547/(mmBTU_to_GJ))*($C$9))*($G$9/$F$9) -> 7.00280487 | P9: =((5.87778615951538/(mmBTU_to_GJ))*($C$9))*($G$9/$F$9) -> 7.064852244 | Q9: =((5.95383930206299/(mmBTU_to_GJ))*($C$9))*($G$9/$F$9) -> 7.156264929 | R9: =((6.10985708236694/(mmBTU_to_GJ))*($C$9))*($G$9/$F$9) -> 7.343791752 | S9: =((6.32948446273804/(mmBTU_to_GJ))*($C$9))*($G$9/$F$9) -> 7.607774644 | T9: =((6.51258134841919/(mmBTU_to_GJ))*($C$9))*($G$9/$F$9) -> 7.827849416 | U9: =((6.70273017883301/(mmBTU_to_GJ))*($C$9))*($G$9/$F$9) -> 8.056400328 | V9: =((6.89887094497681/(mmBTU_to_GJ))*($C$9))*($G$9/$F$9) -> 8.292153296 | W9: =((7.15282821655273/(mmBTU_to_GJ))*($C$9))*($G$9/$F$9) -> 8.597399277 | X9: =((7.46860218048096/(mmBTU_to_GJ))*($C$9))*($G$9/$F$9) -> 8.976946327 | Y9: =((7.67867755889893/(mmBTU_to_GJ))*($C$9))*($G$9/$F$9) -> 9.229448114 | Z9: =((7.75380706787109/(mmBTU_to_GJ))*($C$9))*($G$9/$F$9) -> 9.31975063 | AA9: =((7.55847835540771/(mmBTU_to_GJ))*($C$9))*($G$9/$F$9) -> 9.084973717 | AB9: =((7.54617786407471/(mmBTU_to_GJ))*($C$9))*($G$9/$F$9) -> 9.070189042 | AC9: =((7.45927095413208/(mmBTU_to_GJ))*($C$9))*($G$9/$F$9) -> 8.965730584 | AD9: =((7.60022306442261/(mmBTU_to_GJ))*($C$9))*($G$9/$F$9) -> 9.135149105 | AE9: =((7.85960483551025/(mmBTU_to_GJ))*($C$9))*($G$9/$F$9) -> 9.446915106 | AF9: =((8.19417572021484/(mmBTU_to_GJ))*($C$9))*($G$9/$F$9) -> 9.849055266 | AG9: =((8.42161273956299/(mmBTU_to_GJ))*($C$9))*($G$9/$F$9) -> 10.12242502 | AH9: =((8.69355010986328/(mmBTU_to_GJ))*($C$9))*($G$9/$F$9) -> 10.44928232 | AI9: =($BB9-$AH9)/20+AH9 -> 10.53799097 | AJ9: 10.62669962 | AK9: 10.71540827 | AL9: 10.80411691 | AM9: 10.89282556 | AN9: 10.98153421 | AO9: 11.07024286 | AP9: 11.15895151 | AQ9: 11.24766016 | AR9: 11.33636881 | AS9: 11.42507745 | AT9: 11.5137861 | AU9: 11.60249475 | AV9: 11.6912034 | AW9: 11.77991205 | AX9: 11.8686207 | AY9: 11.95732934 | AZ9: 12.04603799 | BA9: 12.13474664 | BB9: =1.16978897829057*AH9 -> 12.22345529 | BC9: 12.34448893 | BD9: 12.46552257 | BE9: 12.58655621 | BF9: 12.70758984 | BG9: 12.82862348 | BH9: 12.94965712 | BI9: 13.07069076 | BJ9: 13.1917244 | BK9: 13.31275804 | BL9: 13.43379167 | BM9: 13.55482531 | BN9: 13.67585895 | BO9: 13.79689259 | BP9: 13.91792623 | BQ9: =1.14852629914794*BB9 -> 14.03895987 | BR9: 14.17797018 | BS9: 14.3169805 | BT9: 14.45599082 | BU9: 14.59500113 | BV9: =1.04950876638265*BQ9 -> 14.73401145 | BW9: =+BV9*BW$135/BV$135 -> 14.7829327 | BX9: =+BW9*BX$135/BW$135 -> 14.83201638 | BY9: 14.88126304 | BZ9: 14.93067321 | CA9: 14.98024743 | CB9: 15.01221421 | CC9: 15.0442492 | CD9: 15.07635254 | CE9: 15.1085244 | CF9: 15.14076491 | CG9: 15.15123319 | CH9: 15.16170872 | CI9: 15.17219149 | CJ9: 15.1826815 | CK9: 15.19317877 | CL9: 15.19673688 | CM9: 15.20029582 | CN9: 15.2038556 | CO9: 15.20741621 | CP9: 15.21097765 | CQ9: 15.21637536 | CR9: 15.22177498 | CS9: 15.22717652 | CT9: 15.23257998 | CU9: 15.23798535 | CV9: 15.24630424 | CW9: 15.25462768 | CX9: 15.26295566 | CY9: 15.27128818 | CZ9: 15.27962526
A10: ='HyARC Physical Property Data'!A74 -> Electric Utility Natural Gas | B10: 2007 | C10: 1.144635996 | D10: ='HyARC Physical Property Data'!H74 -> mmBtu | E10: Feed Utility | F10: ='HyARC Physical Property Data'!$E$6 -> 47.14126905 | G10: ='HyARC Physical Property Data'!$I$6 -> 52.22466124 | H10: =((7.05463790893555/(mmBTU_to_GJ))*($C$10))*($G$10/$F$10) -> 8.479378649 | I10: =((7.05463790893555/(mmBTU_to_GJ))*($C$10))*($G$10/$F$10) -> 8.479378649 | J10: =((7.05463790893555/(mmBTU_to_GJ))*($C$10))*($G$10/$F$10) -> 8.479378649 | K10: =((7.01915979385375/(mmBTU_to_GJ))*($C$10))*($G$10/$F$10) -> 8.436735443 | L10: =((8.87161254882813/(mmBTU_to_GJ))*($C$10))*($G$10/$F$10) -> 10.6633059 | M10: =((4.55562210083008/(mmBTU_to_GJ))*($C$10))*($G$10/$F$10) -> 5.475666543 | N10: =((5.12931346893311/(mmBTU_to_GJ))*($C$10))*($G$10/$F$10) -> 6.165219487 | O10: =((5.45354604721069/(mmBTU_to_GJ))*($C$10))*($G$10/$F$10) -> 6.554933436 | P10: =((5.51876354217529/(mmBTU_to_GJ))*($C$10))*($G$10/$F$10) -> 6.633322128 | Q10: =((5.53977298736572/(mmBTU_to_GJ))*($C$10))*($G$10/$F$10) -> 6.658574599 | R10: =((5.68350362777709/(mmBTU_to_GJ))*($C$10))*($G$10/$F$10) -> 6.831332796 | S10: =((5.8920464515686/(mmBTU_to_GJ))*($C$10))*($G$10/$F$10) -> 7.081992516 | T10: =((6.08193254470825/(mmBTU_to_GJ))*($C$10))*($G$10/$F$10) -> 7.31022763 | U10: =((6.26939964294434/(mmBTU_to_GJ))*($C$10))*($G$10/$F$10) -> 7.535555213 | V10: =((6.47751331329346/(mmBTU_to_GJ))*($C$10))*($G$10/$F$10) -> 7.785699109 | W10: =((6.73541975021362/(mmBTU_to_GJ))*($C$10))*($G$10/$F$10) -> 8.095691821 | X10: =((7.02784395217896/(mmBTU_to_GJ))*($C$10))*($G$10/$F$10) -> 8.447173437 | Y10: =((7.25390911102295/(mmBTU_to_GJ))*($C$10))*($G$10/$F$10) -> 8.718894269 | Z10: =((7.3283839225769/(mmBTU_to_GJ))*($C$10))*($G$10/$F$10) -> 8.808409866 | AA10: =((7.15062761306763/(mmBTU_to_GJ))*($C$10))*($G$10/$F$10) -> 8.594754244 | AB10: =((7.19241189956665/(mmBTU_to_GJ))*($C$10))*($G$10/$F$10) -> 8.644977202 | AC10: =((7.13988399505615/(mmBTU_to_GJ))*($C$10))*($G$10/$F$10) -> 8.581840866 | AD10: =((7.28062534332275/(mmBTU_to_GJ))*($C$10))*($G$10/$F$10) -> 8.751006059 | AE10: =((7.5354790687561/(mmBTU_to_GJ))*($C$10))*($G$10/$F$10) -> 9.057329539 | AF10: =((7.86007928848267/(mmBTU_to_GJ))*($C$10))*($G$10/$F$10) -> 9.447485378 | AG10: =((8.07421207427979/(mmBTU_to_GJ))*($C$10))*($G$10/$F$10) -> 9.704863999 | AH10: =((8.33951759338379/(mmBTU_to_GJ))*($C$10))*($G$10/$F$10) -> 10.0237501 | AI10: =($BB10-$AH10)/20+AH10 -> 10.10884621 | AJ10: 10.19394233 | AK10: 10.27903844 | AL10: 10.36413455 | AM10: 10.44923067 | AN10: 10.53432678 | AO10: 10.6194229 | AP10: 10.70451901 | AQ10: 10.78961513 | AR10: 10.87471124 | AS10: 10.95980735 | AT10: 11.04490347 | AU10: 11.12999958 | AV10: 11.2150957 | AW10: 11.30019181 | AX10: 11.38528793 | AY10: 11.47038404 | AZ10: 11.55548016 | BA10: 11.64057627 | BB10: =1.16978897829057*AH10 -> 11.72567238 | BC10: 11.8417771 | BD10: 11.95788181 | BE10: 12.07398653 | BF10: 12.19009124 | BG10: 12.30619596 | BH10: 12.42230067 | BI10: 12.53840539 | BJ10: 12.6545101 | BK10: 12.77061482 | BL10: 12.88671953 | BM10: 13.00282425 | BN10: 13.11892896 | BO10: 13.23503368 | BP10: 13.35113839 | BQ10: =1.14852629914794*BB10 -> 13.46724311 | BR10: 13.60059243 | BS10: 13.73394175 | BT10: 13.86729106 | BU10: 14.00064038 | BV10: =1.04950876638265*BQ10 -> 14.1339897 | BW10: =+BV10*BW$136/BV$136 -> 14.1809187 | BX10: =+BW10*BX$136/BW$136 -> 14.22800352 | BY10: 14.27524468 | BZ10: 14.32264269 | CA10: 14.37019807 | CB10: 14.40086304 | CC10: 14.43159345 | CD10: 14.46238944 | CE10: 14.49325114 | CF10: 14.5241787 | CG10: 14.53422068 | CH10: 14.5442696 | CI10: 14.55432548 | CJ10: 14.5643883 | CK10: 14.57445808 | CL10: 14.57787129 | CM10: 14.5812853 | CN10: 14.58470011 | CO10: 14.58811572 | CP10: 14.59153213 | CQ10: 14.59671002 | CR10: 14.60188975 | CS10: 14.60707132 | CT10: 14.61225473 | CU10: 14.61743998 | CV10: 14.6254201 | CW10: 14.63340457 | CX10: 14.6413934 | CY10: 14.6493866 | CZ10: 14.65738416
A11: ='HyARC Physical Property Data'!A75 -> Bio Methane | B11: 2007 | C11: 1.144635996 | D11: ='HyARC Physical Property Data'!H75 -> mmBtu | E11: Feed Utility | F11: ='HyARC Physical Property Data'!$E$6 -> 47.14126905 | G11: ='HyARC Physical Property Data'!$I$6 -> 52.22466124 | H11: =13.11*($C$11/mmBTU_to_GJ) -> 14.22386531 | I11: 14.22386531 | J11: 14.22386531 | K11: 14.22386531 | L11: 14.22386531 | M11: 14.22386531 | N11: 14.22386531 | O11: 14.22386531 | P11: 14.22386531 | Q11: 14.22386531 | R11: 14.22386531 | S11: 14.22386531 | T11: 14.22386531 | U11: 14.22386531 | V11: 14.22386531 | W11: 14.22386531 | X11: 14.22386531 | Y11: 14.22386531 | Z11: 14.22386531 | AA11: 14.22386531 | AB11: 14.22386531 | AC11: 14.22386531 | AD11: 14.22386531 | AE11: 14.22386531 | AF11: 14.22386531 | AG11: 14.22386531 | AH11: 14.22386531 | AI11: 14.22386531 | AJ11: 14.22386531 | AK11: 14.22386531 | AL11: 14.22386531 | AM11: 14.22386531 | AN11: =13.11*($C$11/mmBTU_to_GJ) -> 14.22386531 | AO11: 14.22386531 | AP11: 14.22386531 | AQ11: 14.22386531 | AR11: 14.22386531 | AS11: 14.22386531 | AT11: 14.22386531 | AU11: 14.22386531 | AV11: 14.22386531 | AW11: 14.22386531 | AX11: 14.22386531 | AY11: 14.22386531 | AZ11: 14.22386531 | BA11: 14.22386531 | BB11: 14.22386531 | BC11: 14.22386531 | BD11: 14.22386531 | BE11: 14.22386531 | BF11: 14.22386531 | BG11: 14.22386531 | BH11: 14.22386531 | BI11: 14.22386531 | BJ11: 14.22386531 | BK11: 14.22386531 | BL11: 14.22386531 | BM11: 14.22386531 | BN11: 14.22386531 | BO11: 14.22386531 | BP11: 14.22386531 | BQ11: 14.22386531 | BR11: 14.22386531 | BS11: 14.22386531 | BT11: 14.22386531 | BU11: 14.22386531 | BV11: 14.22386531 | BW11: =+BV11*BW$136/BV$136 -> 14.27109273 | BX11: =+BW11*BX$136/BW$136 -> 14.31847695 | BY11: 14.3660185 | BZ11: 14.41371791 | CA11: 14.46157569 | CB11: 14.49243566 | CC11: 14.52336147 | CD11: 14.55435328 | CE11: 14.58541123 | CF11: 14.61653545 | CG11: 14.62664129 | CH11: 14.63675411 | CI11: 14.64687393 | CJ11: 14.65700074 | CK11: 14.66713456 | CL11: 14.67056947 | CM11: 14.67400519 | CN11: 14.67744171 | CO11: 14.68087904 | CP11: 14.68431717 | CQ11: 14.68952799 | CR11: 14.69474066 | CS11: 14.69995518 | CT11: 14.70517154 | CU11: 14.71038976 | CV11: 14.71842063 | CW11: 14.72645587 | CX11: 14.73449551 | CY11: 14.74253953 | CZ11: 14.75058794
A12: ='HyARC Physical Property Data'!A85 -> Woody Biomass | B12: 2005 | C12: =VLOOKUP(ref_year,DeflatorTable,2,FALSE)/VLOOKUP(B12,DeflatorTable,2,FALSE) -> 1.211250149 | D12: =+'HyARC Physical Property Data'!$H$85 -> kg | E12: Feed | F12: ='HyARC Physical Property Data'!$E$45 -> 19.55106924 | G12: ='HyARC Physical Property Data'!$I$45 -> 20.58865638 | H12: =1.27*($C$12) -> 1.53828769 | I12: 1.53828769 | J12: 1.53828769 | K12: 1.53828769 | L12: 1.53828769 | M12: 1.53828769 | N12: 1.53828769 | O12: 1.53828769 | P12: =1.28*($C$12) -> 1.550400191 | Q12: =1.32*($C$12) -> 1.598850197 | R12: =1.32*($C$12) -> 1.598850197 | S12: =1.34*($C$12) -> 1.6230752 | T12: =1.34*($C$12) -> 1.6230752 | U12: =1.36*($C$12) -> 1.647300203 | V12: =1.36*($C$12) -> 1.647300203 | W12: =1.38*($C$12) -> 1.671525206 | X12: =1.4*($C$12) -> 1.695750209 | Y12: =1.46*($C$12) -> 1.768425218 | Z12: =1.48*($C$12) -> 1.792650221 | AA12: =1.48*($C$12) -> 1.792650221 | AB12: =1.51*($C$12) -> 1.828987726 | AC12: =1.52*($C$12) -> 1.841100227 | AD12: =1.62*($C$12) -> 1.962225242 | AE12: =1.72*($C$12) -> 2.083350257 | AF12: =1.82*($C$12) -> 2.204475272 | AG12: =1.91*($C$12) -> 2.313487786 | AH12: =2.01*($C$12) -> 2.4346128 | AI12: =2.11*($C$12) -> 2.555737815 | AJ12: =2.2*($C$12) -> 2.664750329 | AK12: =2.3*($C$12) -> 2.785875344 | AL12: =2.4*($C$12) -> 2.907000359 | AM12: =2.5*($C$12) -> 3.028125374 | AN12: =2.57*($C$12) -> 3.112912884 | AO12: =2.64*($C$12) -> 3.197700395 | AP12: =2.71*($C$12) -> 3.282487905 | AQ12: =2.78*($C$12) -> 3.367275416 | AR12: =2.85*($C$12) -> 3.452062926 | AS12: =2.92*($C$12) -> 3.536850437 | AT12: =2.99*($C$12) -> 3.621637947 | AU12: =3.07*($C$12) -> 3.718537959 | AV12: =3.14*($C$12) -> 3.803325469 | AW12: =3.21*($C$12) -> 3.88811298 | AX12: =3.28*($C$12) -> 3.97290049 | AY12: =3.35*($C$12) -> 4.057688001 | AZ12: =3.42*($C$12) -> 4.142475511 | BA12: =3.49*($C$12) -> 4.227263022 | BB12: =3.56*($C$12) -> 4.312050532 | BC12: =3.64*($C$12) -> 4.408950544 | BD12: =3.71*($C$12) -> 4.493738055 | BE12: =3.78*($C$12) -> 4.578525565 | BF12: =3.85*($C$12) -> 4.663313076 | BG12: =3.92*($C$12) -> 4.748100586 | BH12: =3.99*($C$12) -> 4.832888096 | BI12: =4.06*($C$12) -> 4.917675607 | BJ12: =4.14*($C$12) -> 5.014575619 | BK12: =4.21*($C$12) -> 5.099363129 | BL12: =4.28*($C$12) -> 5.18415064 | BM12: =4.35*($C$12) -> 5.26893815 | BN12: =4.42*($C$12) -> 5.353725661 | BO12: =4.49*($C$12) -> 5.438513171 | BP12: =4.56*($C$12) -> 5.523300682 | BQ12: =4.63*($C$12) -> 5.608088192 | BR12: =4.71*($C$12) -> 5.704988204 | BS12: =4.78*($C$12) -> 5.789775715 | BT12: =4.85*($C$12) -> 5.874563225 | BU12: =4.92*($C$12) -> 5.959350735 | BV12: =4.99*($C$12) -> 6.044138246 | BW12: =+BV12*BW$137/BV$137 -> 6.058665976 | BX12: =+BW12*BX$137/BW$137 -> 6.073228626 | BY12: 6.087826278 | BZ12: 6.102459018 | CA12: 6.117126928 | CB12: 6.129966715 | CC12: 6.142833453 | CD12: 6.155727198 | CE12: 6.168648006 | CF12: 6.181595935 | CG12: 6.197524392 | CH12: 6.213493892 | CI12: 6.229504542 | CJ12: 6.245556447 | CK12: 6.261649715 | CL12: 6.275052266 | CM12: 6.288483504 | CN12: 6.30194349 | CO12: 6.315432287 | CP12: 6.328949955 | CQ12: 6.341322549 | CR12: 6.35371933 | CS12: 6.366140346 | CT12: 6.378585644 | CU12: 6.391055272 | CV12: 6.405777239 | CW12: 6.420533119 | CX12: 6.435322989 | CY12: 6.450146929 | CZ12: 6.465005015
A13: ='HyARC Physical Property Data'!A86 -> Woody Biomass B2A | B13: 2007 | C13: =VLOOKUP(ref_year,DeflatorTable,2,FALSE)/VLOOKUP(B13,DeflatorTable,2,FALSE) -> 1.144635996 | D13: =+'HyARC Physical Property Data'!$H$86 -> kg | E13: Feed | F13: ='HyARC Physical Property Data'!$E$45 -> 19.55106924 | G13: ='HyARC Physical Property Data'!$I$45 -> 20.58865638 | H13: =3.80872262322035*($C$13) -> 4.359601012 | I13: =3.80872262322035*($C$13) -> 4.359601012 | J13: =3.80872262322035*($C$13) -> 4.359601012 | K13: =3.80872262322035*($C$13) -> 4.359601012 | L13: =3.58036841709093*($C$13) -> 4.098218568 | M13: =3.28153451771169*($C$13) -> 3.75616253 | N13: =3.05599949931226*($C$13) -> 3.49800703 | O13: =2.9206784882726*($C$13) -> 3.343113729 | P13: =2.85865635821276*($C$13) -> 3.272120967 | Q13: 3.272120967 | R13: 3.272120967 | S13: 3.272120967 | T13: 3.272120967 | U13: 3.272120967 | V13: 3.272120967 | W13: 3.272120967 | X13: 3.272120967 | Y13: 3.272120967 | Z13: 3.272120967 | AA13: 3.272120967 | AB13: 3.272120967 | AC13: 3.272120967 | AD13: 3.272120967 | AE13: 3.272120967 | AF13: 3.272120967 | AG13: 3.272120967 | AH13: 3.272120967 | AI13: 3.272120967 | AJ13: 3.272120967 | AK13: 3.272120967 | AL13: 3.272120967 | AM13: 3.272120967 | AN13: 3.272120967 | AO13: 3.272120967 | AP13: 3.272120967 | AQ13: 3.272120967 | AR13: 3.272120967 | AS13: 3.272120967 | AT13: 3.272120967 | AU13: 3.272120967 | AV13: 3.272120967 | AW13: 3.272120967 | AX13: 3.272120967 | AY13: 3.272120967 | AZ13: 3.272120967 | BA13: 3.272120967 | BB13: 3.272120967 | BC13: 3.272120967 | BD13: 3.272120967 | BE13: 3.272120967 | BF13: 3.272120967 | BG13: 3.272120967 | BH13: 3.272120967 | BI13: 3.272120967 | BJ13: 3.272120967 | BK13: 3.272120967 | BL13: 3.272120967 | BM13: 3.272120967 | BN13: 3.272120967 | BO13: 3.272120967 | BP13: 3.272120967 | BQ13: 3.272120967 | BR13: 3.272120967 | BS13: 3.272120967 | BT13: 3.272120967 | BU13: 3.272120967 | BV13: 3.272120967 | BW13: =+BV13*BW$137/BV$137 -> 3.279985858 | BX13: =+BW13*BX$137/BW$137 -> 3.287869654 | BY13: 3.295772399 | BZ13: 3.303694139 | CA13: 3.31163492 | CB13: 3.318586008 | CC13: 3.325551686 | CD13: 3.332531985 | CE13: 3.339526936 | CF13: 3.346536569 | CG13: 3.355159773 | CH13: 3.363805197 | CI13: 3.372472898 | CJ13: 3.381162933 | CK13: 3.389875361 | CL13: 3.397131113 | CM13: 3.404402395 | CN13: 3.411689241 | CO13: 3.418991684 | CP13: 3.426309757 | CQ13: 3.43300792 | CR13: 3.439719178 | CS13: 3.446443555 | CT13: 3.453181078 | CU13: 3.459931773 | CV13: 3.467901818 | CW13: 3.475890223 | CX13: 3.48389703 | CY13: 3.49192228 | CZ13: 3.499966017
A14: ='HyARC Physical Property Data'!$A$87 -> Woody Biomass MYPP | B14: 2007 | C14: =VLOOKUP(ref_year,DeflatorTable,2,FALSE)/VLOOKUP(B14,DeflatorTable,2,FALSE) -> 1.144635996 | D14: =+'HyARC Physical Property Data'!$H$87 -> kg | E14: Feed | F14: 18.608 | H14: =4.44432502149613*$C$14 -> 5.087134396 | I14: =4.44432502149613*$C$14 -> 5.087134396 | J14: 5.087134396 | K14: 5.087134396 | L14: 5.087134396 | M14: 5.087134396 | N14: 5.087134396 | O14: =N14-($N$14-$U$14)/7 -> 4.96648082 | P14: 4.845827244 | Q14: 4.725173667 | R14: 4.604520091 | S14: 4.483866515 | T14: 4.363212939 | U14: =3.70647033533964*$C$14 -> 4.242559363 | V14: =3.70647033533964*$C$14 -> 4.242559363 | W14: 4.242559363 | X14: 4.242559363 | Y14: 4.242559363 | Z14: 4.242559363 | AA14: 4.242559363 | AB14: 4.242559363 | AC14: 4.242559363 | AD14: 4.242559363 | AE14: 4.242559363 | AF14: 4.242559363 | AG14: 4.242559363 | AH14: 4.242559363 | AI14: 4.242559363 | AJ14: 4.242559363 | AK14: 4.242559363 | AL14: 4.242559363 | AM14: 4.242559363 | AN14: 4.242559363 | AO14: 4.242559363 | AP14: 4.242559363 | AQ14: 4.242559363 | AR14: 4.242559363 | AS14: 4.242559363 | AT14: 4.242559363 | AU14: 4.242559363 | AV14: 4.242559363 | AW14: 4.242559363 | AX14: 4.242559363 | AY14: 4.242559363 | AZ14: 4.242559363 | BA14: 4.242559363 | BB14: 4.242559363 | BC14: 4.242559363 | BD14: 4.242559363 | BE14: 4.242559363 | BF14: 4.242559363 | BG14: 4.242559363 | BH14: 4.242559363 | BI14: 4.242559363 | BJ14: 4.242559363 | BK14: 4.242559363 | BL14: 4.242559363 | BM14: 4.242559363 | BN14: 4.242559363 | BO14: 4.242559363 | BP14: 4.242559363 | BQ14: 4.242559363 | BR14: 4.242559363 | BS14: 4.242559363 | BT14: 4.242559363 | BU14: 4.242559363 | BV14: 4.242559363 | BW14: =+BV14*BW$137/BV$137 -> 4.252756806 | BX14: =+BW14*BX$137/BW$137 -> 4.262978761 | BY14: 4.273225284 | BZ14: 4.283496437 | CA14: 4.293792277 | CB14: 4.302804903 | CC14: 4.311836447 | CD14: 4.320886948 | CE14: 4.329956445 | CF14: 4.33904498 | CG14: 4.350225634 | CH14: 4.361435099 | CI14: 4.372673447 | CJ14: 4.383940754 | CK14: 4.395237094 | CL14: 4.404644741 | CM14: 4.414072524 | CN14: 4.423520487 | CO14: 4.432988672 | CP14: 4.442477123 | CQ14: 4.451161813 | CR14: 4.45986348 | CS14: 4.468582158 | CT14: 4.477317881 | CU14: 4.486070682 | CV14: 4.496404466 | CW14: 4.506762054 | CX14: 4.517143502 | CY14: 4.527548863 | CZ14: 4.537978193
A15: ='HyARC Physical Property Data'!A79 -> Electric Utility Steam Coal | B15: 2007 | C15: =VLOOKUP(ref_year,DeflatorTable,2,FALSE)/VLOOKUP(B15,DeflatorTable,2,FALSE) -> 1.144635996 | D15: =+'HyARC Physical Property Data'!$H$79 -> kg | E15: Feed | F15: ='HyARC Physical Property Data'!E42 -> 22.732203 | G15: ='HyARC Physical Property Data'!I42 -> 23.96761519 | H15: =1.73552525043488*($C$15/mmBTU_to_GJ*$G$15/$F$15) -> 1.985313857 | I15: =1.73552525043488*($C$15/mmBTU_to_GJ*$G$15/$F$15) -> 1.985313857 | J15: =1.73552525043488*($C$15/mmBTU_to_GJ*$G$15/$F$15) -> 1.985313857 | K15: =1.78000020980835*($C$15/mmBTU_to_GJ*$G$15/$F$15) -> 2.036189955 | L15: =1.9310736656189*($C$15/mmBTU_to_GJ*$G$15/$F$15) -> 2.209006931 | M15: =1.98230564594269*($C$15/mmBTU_to_GJ*$G$15/$F$15) -> 2.267612566 | N15: =1.86225914955139*($C$15/mmBTU_to_GJ*$G$15/$F$15) -> 2.130288161 | O15: =1.87335216999054*($C$15/mmBTU_to_GJ*$G$15/$F$15) -> 2.142977765 | P15: =1.85759365558624*($C$15/mmBTU_to_GJ*$G$15/$F$15) -> 2.124951178 | Q15: =1.88174879550934*($C$15/mmBTU_to_GJ*$G$15/$F$15) -> 2.15258289 | R15: =1.90431761741638*($C$15/mmBTU_to_GJ*$G$15/$F$15) -> 2.17839997 | S15: =1.90719401836395*($C$15/mmBTU_to_GJ*$G$15/$F$15) -> 2.181690362 | T15: =1.91704928874969*($C$15/mmBTU_to_GJ*$G$15/$F$15) -> 2.19296407 | U15: =1.92595064640045*($C$15/mmBTU_to_GJ*$G$15/$F$15) -> 2.203146572 | V15: =1.94080138206482*($C$15/mmBTU_to_GJ*$G$15/$F$15) -> 2.220134726 | W15: =1.94636797904968*($C$15/mmBTU_to_GJ*$G$15/$F$15) -> 2.226502506 | X15: =1.95628917217255*($C$15/mmBTU_to_GJ*$G$15/$F$15) -> 2.237851625 | Y15: =1.96225011348724*($C$15/mmBTU_to_GJ*$G$15/$F$15) -> 2.244670505 | Z15: =1.97535526752472*($C$15/mmBTU_to_GJ*$G$15/$F$15) -> 2.259661842 | AA15: =1.98115420341492*($C$15/mmBTU_to_GJ*$G$15/$F$15) -> 2.2662954 | AB15: =1.98549652099609*($C$15/mmBTU_to_GJ*$G$15/$F$15) -> 2.271262694 | AC15: =1.98988306522369*($C$15/mmBTU_to_GJ*$G$15/$F$15) -> 2.276280579 | AD15: =1.99634909629822*($C$15/mmBTU_to_GJ*$G$15/$F$15) -> 2.283677246 | AE15: =2.00744533538818*($C$15/mmBTU_to_GJ*$G$15/$F$15) -> 2.296370531 | AF15: =2.02021908760071*($C$15/mmBTU_to_GJ*$G$15/$F$15) -> 2.310982769 | AG15: =2.03361201286316*($C$15/mmBTU_to_GJ*$G$15/$F$15) -> 2.326303295 | AH15: =2.04451942443848*($C$15/mmBTU_to_GJ*$G$15/$F$15) -> 2.338780575 | AI15: =(($BB$15-$AH$15)/20+AH15) -> 2.343923258 | AJ15: =(($BB$15-$AH$15)/20+AI15) -> 2.349065942 | AK15: 2.354208625 | AL15: 2.359351308 | AM15: 2.364493991 | AN15: 2.369636674 | AO15: 2.374779357 | AP15: 2.37992204 | AQ15: 2.385064723 | AR15: 2.390207406 | AS15: 2.395350089 | AT15: 2.400492772 | AU15: 2.405635456 | AV15: 2.410778139 | AW15: 2.415920822 | AX15: 2.421063505 | AY15: 2.426206188 | AZ15: 2.431348871 | BA15: 2.436491554 | BB15: =(1.04397747398165*AH15) -> 2.441634237 | BC15: =(($BQ$15-$BB$15)/15+BB15) -> 2.446264979 | BD15: =(($BQ$15-$BB$15)/15+BC15) -> 2.450895721 | BE15: 2.455526463 | BF15: 2.460157204 | BG15: 2.464787946 | BH15: 2.469418688 | BI15: 2.47404943 | BJ15: 2.478680172 | BK15: 2.483310913 | BL15: 2.487941655 | BM15: 2.492572397 | BN15: 2.497203139 | BO15: 2.501833881 | BP15: 2.506464622 | BQ15: =(1.02844862093285*BB15) -> 2.511095364 | BR15: =(($BV$15-$BQ$15)/5+BQ15) -> 2.515857844 | BS15: =(($BV$15-$BQ$15)/5+BR15) -> 2.520620324 | BT15: =(($BV$15-$BQ$15)/5+BS15) -> 2.525382804 | BU15: =(($BV$15-$BQ$15)/5+BT15) -> 2.530145284 | BV15: =(1.00948287364428*BQ15) -> 2.534907764 | BW15: =+BV15*BW$138/BV$138 -> 2.543478174 | BX15: =+BW15*BX$138/BW$138 -> 2.55207756 | BY15: 2.56070602 | BZ15: 2.569363652 | CA15: 2.578050556 | CB15: 2.585431919 | CC15: 2.592834417 | CD15: 2.600258109 | CE15: 2.607703056 | CF15: 2.615169319 | CG15: 2.620869819 | CH15: 2.626582745 | CI15: 2.632308123 | CJ15: 2.638045982 | CK15: 2.643796348 | CL15: 2.647694616 | CM15: 2.651598633 | CN15: 2.655508406 | CO15: 2.659423944 | CP15: 2.663345255 | CQ15: 2.664658441 | CR15: 2.665972275 | CS15: 2.667286756 | CT15: 2.668601885 | CU15: 2.669917663 | CV15: 2.668026607 | CW15: 2.66613689 | CX15: 2.664248511 | CY15: 2.66236147 | CZ15: 2.660475766
A16: ='HyARC Physical Property Data'!A76 -> Commercial Electricity | B16: 2007 | C16: 1.144635996 | D16: ='HyARC Physical Property Data'!$H$76 -> kWh | E16: Feed Utility Byprod | H16: =(28.3762531280518/(mmBTU_to_GJ))*($C$16) -> 30.78718555 | I16: =(28.3762531280518/(mmBTU_to_GJ))*($C$16) -> 30.78718555 | J16: =(28.3762531280518/(mmBTU_to_GJ))*($C$16) -> 30.78718555 | K16: =(28.0297355651855/(mmBTU_to_GJ))*($C$16) -> 30.4112268 | L16: =(29.057315826416/(mmBTU_to_GJ))*($C$16) -> 31.52611339 | M16: =(27.6067714691162/(mmBTU_to_GJ))*($C$16) -> 29.9523264 | N16: =(24.8355846405029/(mmBTU_to_GJ))*($C$16) -> 26.94569114 | O16: =(25.5812511444092/(mmBTU_to_GJ))*($C$16) -> 27.75471173 | P16: =(25.4402256011963/(mmBTU_to_GJ))*($C$16) -> 27.60170423 | Q16: =(25.4701290130615/(mmBTU_to_GJ))*($C$16) -> 27.63414832 | R16: =(25.6722831726074/(mmBTU_to_GJ))*($C$16) -> 27.85347811 | S16: =(25.7632827758789/(mmBTU_to_GJ))*($C$16) -> 27.95220932 | T16: =(26.1006698608398/(mmBTU_to_GJ))*($C$16) -> 28.31826183 | U16: =(26.4680442810059/(mmBTU_to_GJ))*($C$16) -> 28.7168495 | V16: =(26.885612487793/(mmBTU_to_GJ))*($C$16) -> 29.16989556 | W16: =(27.1694507598877/(mmBTU_to_GJ))*($C$16) -> 29.47784959 | X16: =(27.6201095581055/(mmBTU_to_GJ))*($C$16) -> 29.96679773 | Y16: =(28.0024471282958/(mmBTU_to_GJ))*($C$16) -> 30.38161986 | Z16: =(28.2454071044922/(mmBTU_to_GJ))*($C$16) -> 30.64522245 | AA16: =(28.1863746643066/(mmBTU_to_GJ))*($C$16) -> 30.58117443 | AB16: =(28.2032489776611/(mmBTU_to_GJ))*($C$16) -> 30.59948244 | AC16: =(28.1397113800049/(mmBTU_to_GJ))*($C$16) -> 30.5305465 | AD16: =(28.178466796875/(mmBTU_to_GJ))*($C$16) -> 30.57259469 | AE16: =(28.4951820373535/(mmBTU_to_GJ))*($C$16) -> 30.91621902 | AF16: =(28.9155654907227/(mmBTU_to_GJ))*($C$16) -> 31.37231952 | AG16: =(29.2894115447998/(mmBTU_to_GJ))*($C$16) -> 31.77792867 | AH16: =(29.6516952514648/(mmBTU_to_GJ))*($C$16) -> 32.1709931 | AI16: =($BB16-$AH16)/20+AH16 -> 32.16150778 | AJ16: 32.15202247 | AK16: 32.14253716 | AL16: 32.13305184 | AM16: 32.12356653 | AN16: 32.11408122 | AO16: 32.1045959 | AP16: 32.09511059 | AQ16: 32.08562528 | AR16: 32.07613996 | AS16: 32.06665465 | AT16: 32.05716934 | AU16: 32.04768402 | AV16: 32.03819871 | AW16: 32.0287134 | AX16: 32.01922809 | AY16: 32.00974277 | AZ16: 32.00025746 | BA16: 31.99077215 | BB16: =0.994103189054944*AH16 -> 31.98128683 | BC16: =($BQ16-$BB16)/15+BB16 -> 32.00160286 | BD16: 32.0219189 | BE16: 32.04223493 | BF16: 32.06255096 | BG16: 32.08286699 | BH16: 32.10318302 | BI16: 32.12349905 | BJ16: 32.14381509 | BK16: 32.16413112 | BL16: 32.18444715 | BM16: 32.20476318 | BN16: 32.22507921 | BO16: 32.24539524 | BP16: 32.26571127 | BQ16: =1.00952871208344*BB16 -> 32.28602731 | BR16: =($BV16-$BQ16)/5+BQ16 -> 32.30653692 | BS16: 32.32704654 | BT16: 32.34755616 | BU16: 32.36806578 | BV16: =1.00317623736115*BQ16 -> 32.38857539 | BW16: =+BV16*BW$139/BV$139 -> 32.37431458 | BX16: =+BW16*BX$139/BW$139 -> 32.36006005 | BY16: 32.34581179 | BZ16: 32.33156981 | CA16: 32.3173341 | CB16: 32.29144842 | CC16: 32.26558347 | CD16: 32.23973924 | CE16: 32.21391571 | CF16: 32.18811287 | CG16: 32.15256801 | CH16: 32.1170624 | CI16: 32.08159599 | CJ16: 32.04616876 | CK16: 32.01078064 | CL16: 31.97219895 | CM16: 31.93366375 | CN16: 31.895175 | CO16: 31.85673265 | CP16: 31.81833662 | CQ16: 31.773864 | CR16: 31.72945353 | CS16: 31.68510514 | CT16: 31.64081874 | CU16: 31.59659423 | CV16: 31.55342324 | CW16: 31.51031123 | CX16: 31.46725813 | CY16: 31.42426386 | CZ16: 31.38132832
A17: ='HyARC Physical Property Data'!A77 -> Industrial Electricity | B17: 2007 | C17: 1.144635996 | D17: ='HyARC Physical Property Data'!$H$77 -> kWh | E17: Feed Utility Byprod | H17: =(18.4008941650391/(mmBTU_to_GJ))*($C$17) -> 19.96428987 | I17: =(18.4008941650391/(mmBTU_to_GJ))*($C$17) -> 19.96428987 | J17: =(18.4008941650391/(mmBTU_to_GJ))*($C$17) -> 19.96428987 | K17: =(18.6226921081543/(mmBTU_to_GJ))*($C$17) -> 20.20493244 | L17: =(20.3344097137451/(mmBTU_to_GJ))*($C$17) -> 22.06208276 | M17: =(19.1594867706299/(mmBTU_to_GJ))*($C$17) -> 20.7873348 | N17: =(16.8281726837158/(mmBTU_to_GJ))*($C$17) -> 18.25794521 | O17: =(17.2643089294434/(mmBTU_to_GJ))*($C$17) -> 18.73113691 | P17: =(17.1560707092285/(mmBTU_to_GJ))*($C$17) -> 18.61370244 | Q17: =(17.0836048126221/(mmBTU_to_GJ))*($C$17) -> 18.53507962 | R17: =(17.1988334655762/(mmBTU_to_GJ))*($C$17) -> 18.66009845 | S17: =(17.3181438446045/(mmBTU_to_GJ))*($C$17) -> 18.7895458 | T17: =(17.6150741577148/(mmBTU_to_GJ))*($C$17) -> 19.11170422 | U17: =(17.9101543426514/(mmBTU_to_GJ))*($C$17) -> 19.43185531 | V17: =(18.2101707458496/(mmBTU_to_GJ))*($C$17) -> 19.75736201 | W17: =(18.456880569458/(mmBTU_to_GJ))*($C$17) -> 20.02503305 | X17: =(18.8030014038086/(mmBTU_to_GJ))*($C$17) -> 20.40056136 | Y17: =(19.0852069854736/(mmBTU_to_GJ))*($C$17) -> 20.70674398 | Z17: =(19.30615234375/(mmBTU_to_GJ))*($C$17) -> 20.94646153 | AA17: =(19.3043308258057/(mmBTU_to_GJ))*($C$17) -> 20.94448525 | AB17: =(19.3253479003906/(mmBTU_to_GJ))*($C$17) -> 20.967288 | AC17: =(19.3248138427734/(mmBTU_to_GJ))*($C$17) -> 20.96670856 | AD17: =(19.3542194366455/(mmBTU_to_GJ))*($C$17) -> 20.99861254 | AE17: =(19.6148834228516/(mmBTU_to_GJ))*($C$17) -> 21.28142333 | AF17: =(19.97239112854/(mmBTU_to_GJ))*($C$17) -> 21.66930598 | AG17: =(20.29469871521/(mmBTU_to_GJ))*($C$17) -> 22.01899779 | AH17: =(20.5609893798828/(mmBTU_to_GJ))*($C$17) -> 22.30791332 | AI17: 22.30133604 | AJ17: 22.29475876 | AK17: 22.28818149 | AL17: 22.28160421 | AM17: 22.27502693 | AN17: 22.26844965 | AO17: 22.26187238 | AP17: 22.2552951 | AQ17: 22.24871782 | AR17: 22.24214054 | AS17: 22.23556327 | AT17: 22.22898599 | AU17: 22.22240871 | AV17: 22.21583143 | AW17: 22.20925416 | AX17: 22.20267688 | AY17: 22.1960996 | AZ17: 22.18952233 | BA17: 22.18294505 | BB17: =0.994103189054944*AH17 -> 22.17636777 | BC17: 22.19045525 | BD17: 22.20454273 | BE17: 22.21863022 | BF17: 22.2327177 | BG17: 22.24680518 | BH17: 22.26089266 | BI17: 22.27498014 | BJ17: 22.28906762 | BK17: 22.3031551 | BL17: 22.31724259 | BM17: 22.33133007 | BN17: 22.34541755 | BO17: 22.35950503 | BP17: 22.37359251 | BQ17: =1.00952871208344*BB17 -> 22.38767999 | BR17: 22.40190171 | BS17: 22.41612343 | BT17: 22.43034515 | BU17: 22.44456686 | BV17: =1.00317623736115*BQ17 -> 22.45878858 | BW17: =+BV17*BW$140/BV$140 -> 22.46557472 | BX17: =+BW17*BX$140/BW$140 -> 22.47236291 | BY17: 22.47915315 | BZ17: 22.48594544 | CA17: 22.49273979 | CB17: 22.49019603 | CC17: 22.48765257 | CD17: 22.48510938 | CE17: 22.48256649 | CF17: 22.48002389 | CG17: 22.46982675 | CH17: 22.45963424 | CI17: 22.44944635 | CJ17: 22.43926308 | CK17: 22.42908443 | CL17: 22.41659732 | CM17: 22.40411716 | CN17: 22.39164395 | CO17: 22.37917768 | CP17: 22.36671836 | CQ17: 22.34964846 | CR17: 22.33259159 | CS17: 22.31554774 | CT17: 22.2985169 | CU17: 22.28149905 | CV17: 22.26549905 | CW17: 22.24951054 | CX17: 22.23353351 | CY17: 22.21756795 | CZ17: 22.20161385
A18: ='HyARC Physical Property Data'!A78 -> Residential Electricity | B18: 2007 | C18: 1.144635996 | D18: ='HyARC Physical Property Data'!$H$78 -> kWh | E18: Feed Utility Byprod | H18: =(31.2067794799805/(mmBTU_to_GJ))*($C$18) -> 33.85820199 | I18: =(31.2067794799805/(mmBTU_to_GJ))*($C$18) -> 33.85820199 | J18: =(31.2067794799805/(mmBTU_to_GJ))*($C$18) -> 33.85820199 | K18: =(31.181957244873/(mmBTU_to_GJ))*($C$18) -> 33.83127078 | L18: =(31.772819519043/(mmBTU_to_GJ))*($C$18) -> 34.47233451 | M18: =(30.736837387085/(mmBTU_to_GJ))*($C$18) -> 33.34833219 | N18: =(28.6163578033447/(mmBTU_to_GJ))*($C$18) -> 31.04769024 | O18: =(29.8736190795898/(mmBTU_to_GJ))*($C$18) -> 32.41177225 | P18: =(30.101655960083/(mmBTU_to_GJ))*($C$18) -> 32.65918383 | Q18: =(30.4253902435303/(mmBTU_to_GJ))*($C$18) -> 33.01042356 | R18: =(30.7938537597656/(mmBTU_to_GJ))*($C$18) -> 33.41019285 | S18: =(30.8830280303955/(mmBTU_to_GJ))*($C$18) -> 33.50694364 | T18: =(31.1491451263428/(mmBTU_to_GJ))*($C$18) -> 33.79567085 | U18: =(31.4898681640625/(mmBTU_to_GJ))*($C$18) -> 34.16534275 | V18: =(31.8156299591064/(mmBTU_to_GJ))*($C$18) -> 34.51878225 | W18: =(32.0206985473633/(mmBTU_to_GJ))*($C$18) -> 34.74127409 | X18: =(32.4303588867188/(mmBTU_to_GJ))*($C$18) -> 35.18574041 | Y18: =(32.7907905578613/(mmBTU_to_GJ))*($C$18) -> 35.57679545 | Z18: =(32.9940071105957/(mmBTU_to_GJ))*($C$18) -> 35.7972779 | AA18: =(32.9234657287598/(mmBTU_to_GJ))*($C$18) -> 35.7207431 | AB18: =(32.9201545715332/(mmBTU_to_GJ))*($C$18) -> 35.71715062 | AC18: =(32.902271270752/(mmBTU_to_GJ))*($C$18) -> 35.6977479 | AD18: =(32.9582405090332/(mmBTU_to_GJ))*($C$18) -> 35.75847245 | AE18: =(33.321102142334/(mmBTU_to_GJ))*($C$18) -> 36.15216391 | AF18: =(33.7343635559082/(mmBTU_to_GJ))*($C$18) -> 36.60053727 | AG18: =(34.1495399475098/(mmBTU_to_GJ))*($C$18) -> 37.0509883 | AH18: =(34.4904899597167/(mmBTU_to_GJ))*($C$18) -> 37.42090646 | AI18: 37.40987326 | AJ18: 37.39884006 | AK18: 37.38780686 | AL18: 37.37677366 | AM18: 37.36574046 | AN18: 37.35470726 | AO18: 37.34367406 | AP18: 37.33264086 | AQ18: 37.32160766 | AR18: 37.31057445 | AS18: 37.29954125 | AT18: 37.28850805 | AU18: 37.27747485 | AV18: 37.26644165 | AW18: 37.25540845 | AX18: 37.24437525 | AY18: 37.23334205 | AZ18: 37.22230885 | BA18: 37.21127565 | BB18: =0.994103189054944*AH18 -> 37.20024245 | BC18: 37.22387381 | BD18: 37.24750517 | BE18: 37.27113653 | BF18: 37.29476789 | BG18: 37.31839925 | BH18: 37.34203061 | BI18: 37.36566197 | BJ18: 37.38929333 | BK18: 37.41292469 | BL18: 37.43655605 | BM18: 37.46018741 | BN18: 37.48381877 | BO18: 37.50745013 | BP18: 37.53108149 | BQ18: =1.00952871208344*BB18 -> 37.55471285 | BR18: 37.57856939 | BS18: 37.60242592 | BT18: 37.62628246 | BU18: 37.65013899 | BV18: =1.00317623736115*BQ18 -> 37.67399553 | BW18: =+BV18*BW$141/BV$141 -> 37.65740753 | BX18: =+BW18*BX$141/BW$141 -> 37.64082683 | BY18: 37.62425343 | BZ18: 37.60768733 | CA18: 37.59112852 | CB18: 37.56101862 | CC18: 37.53093283 | CD18: 37.50087114 | CE18: 37.47083353 | CF18: 37.44081997 | CG18: 37.39947462 | CH18: 37.35817493 | CI18: 37.31692084 | CJ18: 37.27571231 | CK18: 37.23454929 | CL18: 37.18967153 | CM18: 37.14484786 | CN18: 37.10007822 | CO18: 37.05536254 | CP18: 37.01070075 | CQ18: 36.95897074 | CR18: 36.90731303 | CS18: 36.85572752 | CT18: 36.80421412 | CU18: 36.75277271 | CV18: 36.70255674 | CW18: 36.65240938 | CX18: 36.60233054 | CY18: 36.55232012 | CZ18: 36.50237804
A22: AEO_2013_Reference_Case | B22: ="Prices are in $(" & ref_year&")/GJ LHV" -> Prices are in $(2016)/GJ LHV | AS22: Except as noted,values are extrapolated based on PNNL mini-CAM model (see AEO Data tab)
A23: Year | B23: Source Data Year | C23: Reference year Conversion | D23: Display Units | E23: Use Category | F23: LHV (MJ/kg) | G23: HHV (MJ/kg) | H23: 2004 | I23: 2005 | J23: 2006 | K23: 2007 | L23: 2008 | M23: 2009 | N23: 2010 | O23: 2011 | P23: 2012 | Q23: 2013 | R23: 2014 | S23: 2015 | T23: 2016 | U23: 2017 | V23: 2018 | W23: 2019 | X23: 2020 | Y23: 2021 | Z23: 2022 | AA23: 2023 | AB23: 2024 | AC23: 2025 | AD23: 2026 | AE23: 2027 | AF23: 2028 | AG23: 2029 | AH23: 2030 | AI23: 2031 | AJ23: 2032 | AK23: 2033 | AL23: 2034 | AM23: 2035 | AN23: 2036 | AO23: 2037 | AP23: 2038 | AQ23: 2039 | AR23: 2040 | AS23: 2041 | AT23: 2042 | AU23: 2043 | AV23: 2044 | AW23: 2045 | AX23: 2046 | AY23: 2047 | AZ23: 2048 | BA23: 2049 | BB23: 2050 | BC23: 2051 | BD23: 2052 | BE23: 2053 | BF23: 2054 | BG23: 2055 | BH23: 2056 | BI23: 2057 | BJ23: 2058 | BK23: 2059 | BL23: 2060 | BM23: 2061 | BN23: 2062 | BO23: 2063 | BP23: 2064 | BQ23: 2065 | BR23: 2066 | BS23: 2067 | BT23: 2068 | BU23: 2069 | BV23: 2070 | BW23: =+BV23+1 -> 2071 | BX23: =+BW23+1 -> 2072 | BY23: =+BX23+1 -> 2073 | BZ23: =+BY23+1 -> 2074 | CA23: =+BZ23+1 -> 2075 | CB23: =+CA23+1 -> 2076 | CC23: =+CB23+1 -> 2077 | CD23: =+CC23+1 -> 2078 | CE23: =+CD23+1 -> 2079 | CF23: =+CE23+1 -> 2080 | CG23: =+CF23+1 -> 2081 | CH23: =+CG23+1 -> 2082 | CI23: =+CH23+1 -> 2083 | CJ23: =+CI23+1 -> 2084 | CK23: =+CJ23+1 -> 2085 | CL23: =+CK23+1 -> 2086 | CM23: =+CL23+1 -> 2087 | CN23: =+CM23+1 -> 2088 | CO23: =+CN23+1 -> 2089 | CP23: =+CO23+1 -> 2090 | CQ23: =+CP23+1 -> 2091 | CR23: =+CQ23+1 -> 2092 | CS23: =+CR23+1 -> 2093 | CT23: =+CS23+1 -> 2094 | CU23: =+CT23+1 -> 2095 | CV23: =+CU23+1 -> 2096 | CW23: =+CV23+1 -> 2097 | CX23: =+CW23+1 -> 2098 | CY23: =+CX23+1 -> 2099 | CZ23: =+CY23+1 -> 2100
A24: Feedstock Type
A25: ='HyARC Physical Property Data'!A73 -> Residential Natural Gas | B25: 2011 | C25: =VLOOKUP(ref_year,DeflatorTable,2,FALSE)/VLOOKUP(B25,DeflatorTable,2,FALSE) -> 1.078455477 | D25: ='HyARC Physical Property Data'!H73 -> mmBtu | E25: Feed Utility | F25: ='HyARC Physical Property Data'!$E$6 -> 47.14126905 | G25: ='HyARC Physical Property Data'!$I$6 -> 52.22466124 | H25: 14.38614184 | I25: 14.38614184 | J25: 14.38614184 | K25: 13.32671663 | L25: 13.62776448 | M25: 11.25433973 | N25: =((N42/(mmBTU_to_GJ))*($C25))*($G25/$F25) -> 12.86407262 | O25: 12.23325661 | P25: 11.85052706 | Q25: 11.8658425 | R25: 11.61169509 | S25: 11.50138751 | T25: 12.07520438 | U25: 12.4463443 | V25: 12.90727044 | W25: 13.16477786 | X25: 13.33616259 | Y25: 13.54426403 | Z25: 13.81965192 | AA25: 14.0790868 | AB25: 14.25151905 | AC25: 14.35320746 | AD25: 14.54298905 | AE25: 14.64658339 | AF25: 14.81893751 | AG25: 14.98745483 | AH25: 15.13989911 | AI25: 15.34158063 | AJ25: 15.53944234 | AK25: 15.78188914 | AL25: 16.13639091 | AM25: 16.53263527 | AN25: 17.01379174 | AO25: 17.45793477 | AP25: 17.94079446 | AQ25: 18.18255951 | AR25: 18.53057906 | AS25: =($BB25-$AR25)/10+AR25 -> 18.5378192 | AT25: =($BB25-$AR25)/10+AS25 -> 18.54505934 | AU25: 18.55229949 | AV25: 18.55953963 | AW25: 18.56677977 | AX25: 18.57401992 | AY25: 18.58126006 | AZ25: 18.5885002 | BA25: 18.59574035 | BB25: ='AEO Data'!$B$30*AM25 -> 18.60298049 | BC25: =($BQ25-$BB25)/15+BB25 -> 18.75456373 | BD25: =($BQ25-$BB25)/15+BC25 -> 18.90614697 | BE25: 19.05773021 | BF25: 19.20931345 | BG25: 19.36089669 | BH25: 19.51247993 | BI25: 19.66406317 | BJ25: 19.81564641 | BK25: 19.96722965 | BL25: 20.11881289 | BM25: 20.27039613 | BN25: 20.42197937 | BO25: 20.57356261 | BP25: 20.72514585 | BQ25: ='AEO Data'!$C$30*BB25 -> 20.87672909 | BR25: =($BV25-$BQ25)/5+BQ25 -> 20.99605775 | BS25: =($BV25-$BQ25)/5+BR25 -> 21.11538641 | BT25: =($BV25-$BQ25)/5+BS25 -> 21.23471506 | BU25: =($BV25-$BQ25)/5+BT25 -> 21.35404372 | BV25: ='AEO Data'!$D$30*BQ25 -> 21.47337238 | BW25: =+BV25*BW$133/BV$133 -> 21.54467029 | BX25: =+BW25*BX$133/BW$133 -> 21.61620493 | BY25: 21.68797708 | BZ25: 21.75998754 | CA25: 21.8322371 | CB25: 21.87882553 | CC25: 21.92551337 | CD25: 21.97230084 | CE25: 22.01918816 | CF25: 22.06617553 | CG25: 22.08143203 | CH25: 22.09669907 | CI25: 22.11197668 | CJ25: 22.12726484 | CK25: 22.14256358 | CL25: 22.14774917 | CM25: 22.15293598 | CN25: 22.158124 | CO25: 22.16331324 | CP25: 22.16850369 | CQ25: 22.17637032 | CR25: 22.18423974 | CS25: 22.19211195 | CT25: 22.19998696 | CU25: 22.20786476 | CV25: 22.21998873 | CW25: 22.23211932 | CX25: 22.24425653 | CY25: 22.25640036 | CZ25: 22.26855083
A26: ='HyARC Physical Property Data'!A71 -> Commercial Natural Gas | B26: 2011 | C26: =VLOOKUP(ref_year,DeflatorTable,2,FALSE)/VLOOKUP(B26,DeflatorTable,2,FALSE) -> 1.078455477 | D26: ='HyARC Physical Property Data'!H71 -> mmBtu | E26: Feed Utility | F26: ='HyARC Physical Property Data'!$E$6 -> 47.14126905 | G26: ='HyARC Physical Property Data'!$I$6 -> 52.22466124 | H26: 12.49183679 | I26: 12.49183679 | J26: 12.49183679 | K26: 11.54020185 | L26: 11.90663327 | M26: 9.353676585 | N26: =((N43/(mmBTU_to_GJ))*($C26))*($G26/$F26) -> 10.64172898 | O26: 10.00742045 | P26: 9.142144908 | Q26: 9.583735368 | R26: 9.326131684 | S26: 9.177892243 | T26: 9.695062169 | U26: 9.99375162 | V26: 10.38727015 | W26: 10.58945448 | X26: 10.72218596 | Y26: 10.88403875 | Z26: 11.1198629 | AA26: 11.33776695 | AB26: 11.47527064 | AC26: 11.54393868 | AD26: 11.70461936 | AE26: 11.7640499 | AF26: 11.89086993 | AG26: 12.0101387 | AH26: 12.11420981 | AI26: 12.26730752 | AJ26: 12.40568434 | AK26: 12.59127015 | AL26: 12.89129025 | AM26: 13.22904741 | AN26: 13.65874475 | AO26: 14.04402007 | AP26: 14.47460299 | AQ26: 14.66414676 | AR26: 14.96314877 | AS26: =($BB26-$AR26)/10+AR26 -> 14.95540306 | AT26: 14.94765735 | AU26: 14.93991164 | AV26: 14.93216593 | AW26: 14.92442022 | AX26: 14.9166745 | AY26: 14.90892879 | AZ26: 14.90118308 | BA26: 14.89343737 | BB26: ='AEO Data'!$B$30*AM26 -> 14.88569166 | BC26: =($BQ26-$BB26)/15+BB26 -> 15.0069852 | BD26: 15.12827874 | BE26: 15.24957228 | BF26: 15.37086582 | BG26: 15.49215936 | BH26: 15.6134529 | BI26: 15.73474644 | BJ26: 15.85603998 | BK26: 15.97733352 | BL26: 16.09862706 | BM26: 16.2199206 | BN26: 16.34121415 | BO26: 16.46250769 | BP26: 16.58380123 | BQ26: ='AEO Data'!$C$30*BB26 -> 16.70509477 | BR26: =($BV26-$BQ26)/5+BQ26 -> 16.80057891 | BS26: 16.89606305 | BT26: 16.99154719 | BU26: 17.08703133 | BV26: ='AEO Data'!$D$30*BQ26 -> 17.18251547 | BW26: =+BV26*BW$134/BV$134 -> 17.23956647 | BX26: =+BW26*BX$134/BW$134 -> 17.2968069 | BY26: 17.35423739 | BZ26: 17.41185856 | CA26: 17.46967105 | CB26: 17.50695007 | CC26: 17.54430865 | CD26: 17.58174694 | CE26: 17.61926513 | CF26: 17.65686338 | CG26: 17.66907129 | CH26: 17.68128764 | CI26: 17.69351244 | CJ26: 17.70574569 | CK26: 17.7179874 | CL26: 17.7221368 | CM26: 17.72628717 | CN26: 17.73043851 | CO26: 17.73459082 | CP26: 17.7387441 | CQ26: 17.7450388 | CR26: 17.75133574 | CS26: 17.75763491 | CT26: 17.76393631 | CU26: 17.77023995 | CV26: 17.77994128 | CW26: 17.78964791 | CX26: 17.79935984 | CY26: 17.80907706 | CZ26: 17.8187996
A27: ='HyARC Physical Property Data'!A72 -> Industrial Natural Gas | B27: 2011 | C27: =VLOOKUP(ref_year,DeflatorTable,2,FALSE)/VLOOKUP(B27,DeflatorTable,2,FALSE) -> 1.078455477 | D27: ='HyARC Physical Property Data'!H72 -> mmBtu | E27: Feed Utility | F27: ='HyARC Physical Property Data'!$E$6 -> 47.14126905 | G27: ='HyARC Physical Property Data'!$I$6 -> 52.22466124 | H27: 8.352400601 | I27: 8.352400601 | J27: 8.352400601 | K27: 7.891606632 | L27: 9.242029801 | M27: 5.091378565 | N27: =((N44/(mmBTU_to_GJ))*($C27))*($G27/$F27) -> 6.210383241 | O27: 5.53753359 | P27: 4.257706279 | Q27: 4.908082196 | R27: 4.954585668 | S27: 5.008358421 | T27: 5.510607011 | U27: 5.739257006 | V27: 6.026128071 | W27: 6.171696031 | X27: 6.261855961 | Y27: 6.387867414 | Z27: 6.599741098 | AA27: 6.806902603 | AB27: 6.919360735 | AC27: 6.966006897 | AD27: 7.084418388 | AE27: 7.12876112 | AF27: 7.244120623 | AG27: 7.345442111 | AH27: 7.430638455 | AI27: 7.561039335 | AJ27: 7.66806051 | AK27: 7.832106874 | AL27: 8.118350553 | AM27: 8.431658973 | AN27: 8.848167636 | AO27: 9.233720417 | AP27: 9.624713551 | AQ27: 9.783781606 | AR27: 10.05751157 | AS27: =($BB27-$AR27)/10+AR27 -> 10.0005141 | AT27: 9.943516635 | AU27: 9.886519169 | AV27: 9.829521703 | AW27: 9.772524237 | AX27: 9.715526772 | AY27: 9.658529306 | AZ27: 9.60153184 | BA27: 9.544534374 | BB27: ='AEO Data'!$B$30*AM27 -> 9.487536908 | BC27: 9.564844498 | BD27: 9.642152088 | BE27: 9.719459678 | BF27: 9.796767268 | BG27: 9.874074858 | BH27: 9.951382447 | BI27: 10.02869004 | BJ27: 10.10599763 | BK27: 10.18330522 | BL27: 10.26061281 | BM27: 10.3379204 | BN27: 10.41522799 | BO27: 10.49253558 | BP27: 10.56984317 | BQ27: ='AEO Data'!$C$30*BB27 -> 10.64715076 | BR27: 10.70800848 | BS27: 10.7688662 | BT27: 10.82972393 | BU27: 10.89058165 | BV27: ='AEO Data'!$D$30*BQ27 -> 10.95143937 | BW27: =+BV27*BW$135/BV$135 -> 10.98780137 | BX27: =+BW27*BX$135/BW$135 -> 11.0242841 | BY27: 11.06088797 | BZ27: 11.09761337 | CA27: 11.13446071 | CB27: 11.15822085 | CC27: 11.18203169 | CD27: 11.20589334 | CE27: 11.22980592 | CF27: 11.25376952 | CG27: 11.26155034 | CH27: 11.26933655 | CI27: 11.27712814 | CJ27: 11.28492512 | CK27: 11.29272749 | CL27: 11.29537215 | CM27: 11.29801743 | CN27: 11.30066332 | CO27: 11.30330984 | CP27: 11.30595697 | CQ27: 11.30996896 | CR27: 11.31398237 | CS27: 11.31799721 | CT27: 11.32201347 | CU27: 11.32603115 | CV27: 11.33221439 | CW27: 11.338401 | CX27: 11.34459099 | CY27: 11.35078435 | CZ27: 11.3569811
A28: ='HyARC Physical Property Data'!A74 -> Electric Utility Natural Gas | B28: 2011 | C28: 1.078455477 | D28: ='HyARC Physical Property Data'!H74 -> mmBtu | E28: Feed Utility | F28: ='HyARC Physical Property Data'!$E$6 -> 47.14126905 | G28: ='HyARC Physical Property Data'!$I$6 -> 52.22466124 | H28: 7.407925909 | I28: 7.407925909 | J28: 7.407925909 | K28: 7.370671092 | L28: 9.31589251 | M28: 4.783762318 | N28: =((N45/(mmBTU_to_GJ))*($C28))*($G28/$F28) -> 5.954678698 | O28: 5.407188201 | P28: 3.761766642 | Q28: 4.207701231 | R28: 4.256044955 | S28: 4.351004265 | T28: 4.849907559 | U28: 5.037958746 | V28: 5.325534202 | W28: 5.46100059 | X28: 5.54539968 | Y28: 5.670718065 | Z28: 5.891470261 | AA28: 6.102590858 | AB28: 6.24885868 | AC28: 6.31683592 | AD28: 6.465015341 | AE28: 6.523862662 | AF28: 6.643985305 | AG28: 6.755164886 | AH28: 6.854630267 | AI28: 7.002792701 | AJ28: 7.126792899 | AK28: 7.299714377 | AL28: 7.585633039 | AM28: 7.905098661 | AN28: 8.31813859 | AO28: 8.691597795 | AP28: 9.084597654 | AQ28: 9.235224328 | AR28: 9.487531481 | AS28: =($BB28-$AR28)/10+AR28 -> 9.428281995 | AT28: 9.369032508 | AU28: 9.309783022 | AV28: 9.250533536 | AW28: 9.19128405 | AX28: 9.132034563 | AY28: 9.072785077 | AZ28: 9.013535591 | BA28: 8.954286104 | BB28: ='AEO Data'!$B$30*AM28 -> 8.895036618 | BC28: 8.96751632 | BD28: 9.039996021 | BE28: 9.112475722 | BF28: 9.184955424 | BG28: 9.257435125 | BH28: 9.329914827 | BI28: 9.402394528 | BJ28: 9.47487423 | BK28: 9.547353931 | BL28: 9.619833632 | BM28: 9.692313334 | BN28: 9.764793035 | BO28: 9.837272737 | BP28: 9.909752438 | BQ28: ='AEO Data'!$C$30*BB28 -> 9.98223214 | BR28: 10.03928927 | BS28: 10.09634641 | BT28: 10.15340355 | BU28: 10.21046068 | BV28: ='AEO Data'!$D$30*BQ28 -> 10.26751782 | BW28: =+BV28*BW$136/BV$136 -> 10.30160899 | BX28: =+BW28*BX$136/BW$136 -> 10.33581336 | BY28: 10.3701313 | BZ28: 10.40456319 | CA28: 10.4391094 | CB28: 10.46138571 | CC28: 10.48370956 | CD28: 10.50608104 | CE28: 10.52850026 | CF28: 10.55096733 | CG28: 10.55826224 | CH28: 10.5655622 | CI28: 10.5728672 | CJ28: 10.58017726 | CK28: 10.58749236 | CL28: 10.58997186 | CM28: 10.59245194 | CN28: 10.5949326 | CO28: 10.59741384 | CP28: 10.59989566 | CQ28: 10.6036571 | CR28: 10.60741987 | CS28: 10.61118398 | CT28: 10.61494942 | CU28: 10.6187162 | CV28: 10.62451329 | CW28: 10.63031354 | CX28: 10.63611696 | CY28: 10.64192355 | CZ28: 10.64773331
A29: ='HyARC Physical Property Data'!A75 -> Bio Methane | B29: 2007 | C29: 1.144635996 | D29: ='HyARC Physical Property Data'!H75 -> mmBtu | E29: Feed Utility | F29: ='HyARC Physical Property Data'!$E$6 -> 47.14126905 | G29: ='HyARC Physical Property Data'!$I$6 -> 52.22466124 | H29: 12.42654028 | I29: 12.42654028 | J29: 12.42654028 | K29: 12.42654028 | L29: 12.42654028 | M29: 12.42654028 | N29: =13.11*($C$29/mmBTU_to_GJ) -> 14.22386531 | O29: 14.22386531 | P29: 14.22386531 | Q29: 14.22386531 | R29: 14.22386531 | S29: 14.22386531 | T29: 14.22386531 | U29: 14.22386531 | V29: 14.22386531 | W29: 14.22386531 | X29: 14.22386531 | Y29: 14.22386531 | Z29: 14.22386531 | AA29: 14.22386531 | AB29: 14.22386531 | AC29: 14.22386531 | AD29: 14.22386531 | AE29: 14.22386531 | AF29: 14.22386531 | AG29: 14.22386531 | AH29: 14.22386531 | AI29: 14.22386531 | AJ29: 14.22386531 | AK29: 14.22386531 | AL29: 14.22386531 | AM29: 14.22386531 | AN29: =13.11*($C$29/mmBTU_to_GJ) -> 14.22386531 | AO29: 14.22386531 | AP29: 14.22386531 | AQ29: 14.22386531 | AR29: 14.22386531 | AS29: 14.22386531 | AT29: 14.22386531 | AU29: 14.22386531 | AV29: 14.22386531 | AW29: 14.22386531 | AX29: 14.22386531 | AY29: 14.22386531 | AZ29: 14.22386531 | BA29: 14.22386531 | BB29: 14.22386531 | BC29: 14.22386531 | BD29: 14.22386531 | BE29: 14.22386531 | BF29: 14.22386531 | BG29: 14.22386531 | BH29: 14.22386531 | BI29: 14.22386531 | BJ29: 14.22386531 | BK29: 14.22386531 | BL29: 14.22386531 | BM29: 14.22386531 | BN29: 14.22386531 | BO29: 14.22386531 | BP29: 14.22386531 | BQ29: 14.22386531 | BR29: 14.22386531 | BS29: 14.22386531 | BT29: 14.22386531 | BU29: 14.22386531 | BV29: 14.22386531 | BW29: =+BV29*BW$136/BV$136 -> 14.27109273 | BX29: =+BW29*BX$136/BW$136 -> 14.31847695 | BY29: 14.3660185 | BZ29: 14.41371791 | CA29: 14.46157569 | CB29: 14.49243566 | CC29: 14.52336147 | CD29: 14.55435328 | CE29: 14.58541123 | CF29: 14.61653545 | CG29: 14.62664129 | CH29: 14.63675411 | CI29: 14.64687393 | CJ29: 14.65700074 | CK29: 14.66713456 | CL29: 14.67056947 | CM29: 14.67400519 | CN29: 14.67744171 | CO29: 14.68087904 | CP29: 14.68431717 | CQ29: 14.68952799 | CR29: 14.69474066 | CS29: 14.69995518 | CT29: 14.70517154 | CU29: 14.71038976 | CV29: 14.71842063 | CW29: 14.72645587 | CX29: 14.73449551 | CY29: 14.74253953 | CZ29: 14.75058794
A30: ='HyARC Physical Property Data'!A85 -> Woody Biomass | B30: 2005 | C30: =VLOOKUP(ref_year,DeflatorTable,2,FALSE)/VLOOKUP(B30,DeflatorTable,2,FALSE) -> 1.211250149 | D30: =+'HyARC Physical Property Data'!$H$85 -> kg | E30: Feed | F30: ='HyARC Physical Property Data'!$E$45 -> 19.55106924 | G30: ='HyARC Physical Property Data'!$I$45 -> 20.58865638 | H30: 1.343823884 | I30: 1.343823884 | J30: 1.343823884 | K30: 1.343823884 | L30: 1.343823884 | M30: 1.343823884 | N30: =1.27*($C$30) -> 1.53828769 | O30: =1.27*($C$30) -> 1.53828769 | P30: =1.28*($C$30) -> 1.550400191 | Q30: =1.32*($C$30) -> 1.598850197 | R30: =1.32*($C$30) -> 1.598850197 | S30: =1.34*($C$30) -> 1.6230752 | T30: =1.34*($C$30) -> 1.6230752 | U30: =1.36*($C$30) -> 1.647300203 | V30: =1.36*($C$30) -> 1.647300203 | W30: =1.38*($C$30) -> 1.671525206 | X30: =1.4*($C$30) -> 1.695750209 | Y30: =1.46*($C$30) -> 1.768425218 | Z30: =1.48*($C$30) -> 1.792650221 | AA30: =1.48*($C$30) -> 1.792650221 | AB30: =1.51*($C$30) -> 1.828987726 | AC30: =1.52*($C$30) -> 1.841100227 | AD30: =1.62*($C$30) -> 1.962225242 | AE30: =1.72*($C$30) -> 2.083350257 | AF30: =1.82*($C$30) -> 2.204475272 | AG30: =1.91*($C$30) -> 2.313487786 | AH30: =2.01*($C$30) -> 2.4346128 | AI30: =2.11*($C$30) -> 2.555737815 | AJ30: =2.2*($C$30) -> 2.664750329 | AK30: =2.3*($C$30) -> 2.785875344 | AL30: =2.4*($C$30) -> 2.907000359 | AM30: =2.5*($C$30) -> 3.028125374 | AN30: =2.57*($C$30) -> 3.112912884 | AO30: =2.64*($C$30) -> 3.197700395 | AP30: =2.71*($C$30) -> 3.282487905 | AQ30: =2.78*($C$30) -> 3.367275416 | AR30: =2.85*($C$30) -> 3.452062926 | AS30: =2.92*($C$30) -> 3.536850437 | AT30: =2.99*($C$30) -> 3.621637947 | AU30: =3.07*($C$30) -> 3.718537959 | AV30: =3.14*($C$30) -> 3.803325469 | AW30: =3.21*($C$30) -> 3.88811298 | AX30: =3.28*($C$30) -> 3.97290049 | AY30: =3.35*($C$30) -> 4.057688001 | AZ30: =3.42*($C$30) -> 4.142475511 | BA30: =3.49*($C$30) -> 4.227263022 | BB30: =3.56*($C$30) -> 4.312050532 | BC30: =3.64*($C$30) -> 4.408950544 | BD30: =3.71*($C$30) -> 4.493738055 | BE30: =3.78*($C$30) -> 4.578525565 | BF30: =3.85*($C$30) -> 4.663313076 | BG30: =3.92*($C$30) -> 4.748100586 | BH30: =3.99*($C$30) -> 4.832888096 | BI30: =4.06*($C$30) -> 4.917675607 | BJ30: =4.14*($C$30) -> 5.014575619 | BK30: =4.21*($C$30) -> 5.099363129 | BL30: =4.28*($C$30) -> 5.18415064 | BM30: =4.35*($C$30) -> 5.26893815 | BN30: =4.42*($C$30) -> 5.353725661 | BO30: =4.49*($C$30) -> 5.438513171 | BP30: =4.56*($C$30) -> 5.523300682 | BQ30: =4.63*($C$30) -> 5.608088192 | BR30: =4.71*($C$30) -> 5.704988204 | BS30: =4.78*($C$30) -> 5.789775715 | BT30: =4.85*($C$30) -> 5.874563225 | BU30: =4.92*($C$30) -> 5.959350735 | BV30: =4.99*($C$30) -> 6.044138246 | BW30: =+BV30*BW$137/BV$137 -> 6.058665976 | BX30: =+BW30*BX$137/BW$137 -> 6.073228626 | BY30: 6.087826278 | BZ30: 6.102459018 | CA30: 6.117126928 | CB30: 6.129966715 | CC30: 6.142833453 | CD30: 6.155727198 | CE30: 6.168648006 | CF30: 6.181595935 | CG30: 6.197524392 | CH30: 6.213493892 | CI30: 6.229504542 | CJ30: 6.245556447 | CK30: 6.261649715 | CL30: 6.275052266 | CM30: 6.288483504 | CN30: 6.30194349 | CO30: 6.315432287 | CP30: 6.328949955 | CQ30: 6.341322549 | CR30: 6.35371933 | CS30: 6.366140346 | CT30: 6.378585644 | CU30: 6.391055272 | CV30: 6.405777239 | CW30: 6.420533119 | CX30: 6.435322989 | CY30: 6.450146929 | CZ30: 6.465005015
A31: ='HyARC Physical Property Data'!$A$87 -> Woody Biomass MYPP | B31: 2007 | C31: =VLOOKUP(ref_year,DeflatorTable,2,FALSE)/VLOOKUP(B31,DeflatorTable,2,FALSE) -> 1.144635996 | D31: =+'HyARC Physical Property Data'!$H$87 -> kg | E31: Feed | F31: 18.608 | H31: 4.444325021 | I31: 4.444325021 | J31: 4.444325021 | K31: 4.444325021 | L31: 4.444325021 | M31: 4.444325021 | N31: =4.44432502149613*$C$31 -> 5.087134396 | O31: =N31-($N$31-$U$31)/7 -> 4.96648082 | P31: 4.845827244 | Q31: 4.725173667 | R31: 4.604520091 | S31: 4.483866515 | T31: 4.363212939 | U31: =3.70647033533964*$C$31 -> 4.242559363 | V31: =3.70647033533964*$C$31 -> 4.242559363 | W31: 4.242559363 | X31: 4.242559363 | Y31: 4.242559363 | Z31: 4.242559363 | AA31: 4.242559363 | AB31: 4.242559363 | AC31: 4.242559363 | AD31: 4.242559363 | AE31: 4.242559363 | AF31: 4.242559363 | AG31: 4.242559363 | AH31: 4.242559363 | AI31: 4.242559363 | AJ31: 4.242559363 | AK31: 4.242559363 | AL31: 4.242559363 | AM31: 4.242559363 | AN31: 4.242559363 | AO31: 4.242559363 | AP31: 4.242559363 | AQ31: 4.242559363 | AR31: 4.242559363 | AS31: 4.242559363 | AT31: 4.242559363 | AU31: 4.242559363 | AV31: 4.242559363 | AW31: 4.242559363 | AX31: 4.242559363 | AY31: 4.242559363 | AZ31: 4.242559363 | BA31: 4.242559363 | BB31: 4.242559363 | BC31: 4.242559363 | BD31: 4.242559363 | BE31: 4.242559363 | BF31: 4.242559363 | BG31: 4.242559363 | BH31: 4.242559363 | BI31: 4.242559363 | BJ31: 4.242559363 | BK31: 4.242559363 | BL31: 4.242559363 | BM31: 4.242559363 | BN31: 4.242559363 | BO31: 4.242559363 | BP31: 4.242559363 | BQ31: 4.242559363 | BR31: 4.242559363 | BS31: 4.242559363 | BT31: 4.242559363 | BU31: 4.242559363 | BV31: 4.242559363 | BW31: =+BV31*BW$137/BV$137 -> 4.252756806 | BX31: =+BW31*BX$137/BW$137 -> 4.262978761 | BY31: 4.273225284 | BZ31: 4.283496437 | CA31: 4.293792277 | CB31: 4.302804903 | CC31: 4.311836447 | CD31: 4.320886948 | CE31: 4.329956445 | CF31: 4.33904498 | CG31: 4.350225634 | CH31: 4.361435099 | CI31: 4.372673447 | CJ31: 4.383940754 | CK31: 4.395237094 | CL31: 4.404644741 | CM31: 4.414072524 | CN31: 4.423520487 | CO31: 4.432988672 | CP31: 4.442477123 | CQ31: 4.451161813 | CR31: 4.45986348 | CS31: 4.468582158 | CT31: 4.477317881 | CU31: 4.486070682 | CV31: 4.496404466 | CW31: 4.506762054 | CX31: 4.517143502 | CY31: 4.527548863 | CZ31: 4.537978193
A32: ='HyARC Physical Property Data'!A79 -> Electric Utility Steam Coal | B32: 2011 | C32: =VLOOKUP(ref_year,DeflatorTable,2,FALSE)/VLOOKUP(B32,DeflatorTable,2,FALSE) -> 1.078455477 | D32: =+'HyARC Physical Property Data'!$H$79 -> kg | E32: Feed | F32: ='HyARC Physical Property Data'!E42 -> 22.732203 | G32: ='HyARC Physical Property Data'!I42 -> 23.96761519 | H32: 1.73444996 | I32: 1.73444996 | J32: 1.73444996 | K32: 1.778897364 | L32: 1.929877218 | M32: 1.981077456 | N32: =N50*($C32/mmBTU_to_GJ*$G32/$F32) -> 2.476743341 | O32: 2.565133754 | P32: 2.59237375 | Q32: 2.518692978 | R32: 2.581316731 | S32: 2.582493674 | T32: 2.649529888 | U32: 2.664595199 | V32: 2.673194864 | W32: 2.677033942 | X32: 2.71177426 | Y32: 2.744537916 | Z32: 2.793041577 | AA32: 2.83250907 | AB32: 2.86626429 | AC32: 2.901018619 | AD32: 2.940829926 | AE32: 2.97671701 | AF32: 3.009172419 | AG32: 3.048265919 | AH32: 3.090113166 | AI32: 3.122349784 | AJ32: 3.151280829 | AK32: 3.184025084 | AL32: 3.219986535 | AM32: 3.26591644 | AN32: 3.30558548 | AO32: 3.342505083 | AP32: 3.378857771 | AQ32: 3.416579248 | AR32: 3.450583437 | AS32: =($BB32-$AR32)/10+AR32 -> 3.447867869 | AT32: 3.4451523 | AU32: 3.442436731 | AV32: 3.439721162 | AW32: 3.437005594 | AX32: 3.434290025 | AY32: 3.431574456 | AZ32: 3.428858888 | BA32: 3.426143319 | BB32: =('AEO Data'!$B$28*AM32) -> 3.42342775 | BC32: =(($BQ$32-$BB$32)/15+BB32) -> 3.435442053 | BD32: =(($BQ$32-$BB$32)/15+BC32) -> 3.447456355 | BE32: 3.459470657 | BF32: 3.47148496 | BG32: 3.483499262 | BH32: 3.495513564 | BI32: 3.507527867 | BJ32: 3.519542169 | BK32: 3.531556471 | BL32: 3.543570774 | BM32: 3.555585076 | BN32: 3.567599378 | BO32: 3.579613681 | BP32: 3.591627983 | BQ32: =('AEO Data'!$C$28*BB32) -> 3.603642285 | BR32: =(($BV$32-$BQ$32)/5+BQ32) -> 3.615195206 | BS32: =(($BV$32-$BQ$32)/5+BR32) -> 3.626748126 | BT32: =(($BV$32-$BQ$32)/5+BS32) -> 3.638301046 | BU32: =(($BV$32-$BQ$32)/5+BT32) -> 3.649853966 | BV32: =('AEO Data'!$D$28*BQ32) -> 3.661406886 | BW32: =+BV32*BW$138/BV$138 -> 3.673785939 | BX32: =+BW32*BX$138/BW$138 -> 3.686206845 | BY32: 3.698669745 | BZ32: 3.711174782 | CA32: 3.723722098 | CB32: 3.734383699 | CC32: 3.745075826 | CD32: 3.755798566 | CE32: 3.766552007 | CF32: 3.777336237 | CG32: 3.785570007 | CH32: 3.793821726 | CI32: 3.802091431 | CJ32: 3.810379163 | CK32: 3.81868496 | CL32: 3.824315598 | CM32: 3.829954538 | CN32: 3.835601793 | CO32: 3.841257374 | CP32: 3.846921295 | CQ32: 3.848818053 | CR32: 3.850715747 | CS32: 3.852614377 | CT32: 3.854513942 | CU32: 3.856414444 | CV32: 3.853683013 | CW32: 3.850953516 | CX32: 3.848225952 | CY32: 3.845500321 | CZ32: 3.84277662
A33: ='HyARC Physical Property Data'!A76 -> Commercial Electricity | B33: 2011 | C33: 1.078455477 | D33: ='HyARC Physical Property Data'!$H$76 -> kWh | E33: Feed Utility Byprod | H33: 26.8969224 | I33: 26.8969224 | J33: 26.8969224 | K33: 26.56846973 | L33: 27.54247946 | M33: 26.16755589 | N33: =(N51/(mmBTU_to_GJ))*($C33) -> 31.17051075 | O33: 30.64720224 | P33: 29.0962882 | Q33: 28.38790548 | R33: 28.46330434 | S33: 28.35059501 | T33: 28.85790865 | U33: 29.15179134 | V33: 29.28185205 | W33: 29.21215214 | X33: 29.20167016 | Y33: 29.31328366 | Z33: 29.3019011 | AA33: 29.26493001 | AB33: 29.26934197 | AC33: 29.11915861 | AD33: 29.00960593 | AE33: 29.00042424 | AF33: 29.11621662 | AG33: 29.2126837 | AH33: 29.28931946 | AI33: 29.42095339 | AJ33: 29.55537085 | AK33: 29.72829071 | AL33: 29.92188727 | AM33: 30.31786341 | AN33: 30.77094555 | AO33: 31.18123397 | AP33: 31.63203858 | AQ33: 32.17637033 | AR33: 32.45297116 | AS33: =($BB33-$AR33)/10+AR33 -> 32.1638826 | AT33: 31.87479404 | AU33: 31.58570548 | AV33: 31.29661692 | AW33: 31.00752836 | AX33: 30.7184398 | AY33: 30.42935123 | AZ33: 30.14026267 | BA33: 29.85117411 | BB33: ='AEO Data'!$B$33*AM33 -> 29.56208555 | BC33: =($BQ33-$BB33)/15+BB33 -> 29.57930913 | BD33: 29.5965327 | BE33: 29.61375628 | BF33: 29.63097985 | BG33: 29.64820343 | BH33: 29.665427 | BI33: 29.68265058 | BJ33: 29.69987415 | BK33: 29.71709773 | BL33: 29.7343213 | BM33: 29.75154488 | BN33: 29.76876845 | BO33: 29.78599203 | BP33: 29.8032156 | BQ33: ='AEO Data'!$C$33*BB33 -> 29.82043918 | BR33: =($BV33-$BQ33)/5+BQ33 -> 29.80035958 | BS33: 29.78027998 | BT33: 29.76020038 | BU33: 29.74012078 | BV33: ='AEO Data'!$D$33*BQ33 -> 29.72004118 | BW33: =+BV33*BW$139/BV$139 -> 29.70695533 | BX33: =+BW33*BX$139/BW$139 -> 29.69387525 | BY33: 29.68080093 | BZ33: 29.66773236 | CA33: 29.65466954 | CB33: 29.63091661 | CC33: 29.60718271 | CD33: 29.58346782 | CE33: 29.55977193 | CF33: 29.53609501 | CG33: 29.50347873 | CH33: 29.47089847 | CI33: 29.43835419 | CJ33: 29.40584585 | CK33: 29.3733734 | CL33: 29.3379705 | CM33: 29.30261027 | CN33: 29.26729265 | CO33: 29.23201761 | CP33: 29.19678508 | CQ33: 29.15597661 | CR33: 29.11522517 | CS33: 29.0745307 | CT33: 29.03389311 | CU33: 28.99331231 | CV33: 28.95369823 | CW33: 28.91413828 | CX33: 28.87463237 | CY33: 28.83518045 | CZ33: 28.79578243
A34: ='HyARC Physical Property Data'!A77 -> Industrial Electricity | B34: 2011 | C34: 1.078455477 | D34: ='HyARC Physical Property Data'!$H$77 -> kWh | E34: Feed Utility Byprod | H34: 17.44160584 | I34: 17.44160584 | J34: 17.44160584 | K34: 17.65184086 | L34: 19.274322 | M34: 18.16065097 | N34: =(N52/(mmBTU_to_GJ))*($C34) -> 20.71088695 | O34: 20.41985423 | P34: 18.84589804 | Q34: 18.54633173 | R34: 18.44732543 | S34: 18.28211116 | T34: 18.77648538 | U34: 19.0506124 | V34: 19.20070274 | W34: 19.14348735 | X34: 19.13649324 | Y34: 19.27362575 | Z34: 19.38316105 | AA34: 19.51427159 | AB34: 19.58471671 | AC34: 19.6084274 | AD34: 19.70286534 | AE34: 19.79295267 | AF34: 19.8998046 | AG34: 20.04636517 | AH34: 20.1649278 | AI34: 20.30858012 | AJ34: 20.47470724 | AK34: 20.6540181 | AL34: 20.8828643 | AM34: 21.257348 | AN34: 21.73672606 | AO34: 22.15261121 | AP34: 22.55807366 | AQ34: 22.98862989 | AR34: 23.25010066 | AS34: =($BB34-$AR34)/10+AR34 -> 22.99783408 | AT34: 22.74556751 | AU34: 22.49330093 | AV34: 22.24103436 | AW34: 21.98876778 | AX34: 21.73650121 | AY34: 21.48423463 | AZ34: 21.23196806 | BA34: 20.97970148 | BB34: ='AEO Data'!$B$33*AM34 -> 20.72743491 | BC34: =($BQ34-$BB34)/15+BB34 -> 20.7395112 | BD34: 20.7515875 | BE34: 20.7636638 | BF34: 20.7757401 | BG34: 20.78781639 | BH34: 20.79989269 | BI34: 20.81196899 | BJ34: 20.82404528 | BK34: 20.83612158 | BL34: 20.84819788 | BM34: 20.86027418 | BN34: 20.87235047 | BO34: 20.88442677 | BP34: 20.89650307 | BQ34: ='AEO Data'!$C$33*BB34 -> 20.90857936 | BR34: 20.89450057 | BS34: 20.88042177 | BT34: 20.86634298 | BU34: 20.85226418 | BV34: ='AEO Data'!$D$33*BQ34 -> 20.83818538 | BW34: =+BV34*BW$140/BV$140 -> 20.84448184 | BX34: =+BW34*BX$140/BW$140 -> 20.8507802 | BY34: 20.85708047 | BZ34: 20.86338264 | CA34: 20.86968671 | CB34: 20.86732651 | CC34: 20.86496657 | CD34: 20.8626069 | CE34: 20.8602475 | CF34: 20.85788837 | CG34: 20.84842705 | CH34: 20.83897002 | CI34: 20.82951728 | CJ34: 20.82006882 | CK34: 20.81062465 | CL34: 20.7990386 | CM34: 20.787459 | CN34: 20.77588584 | CO34: 20.76431913 | CP34: 20.75275885 | CQ34: 20.7369207 | CR34: 20.72109464 | CS34: 20.70528066 | CT34: 20.68947874 | CU34: 20.67368889 | CV34: 20.65884343 | CW34: 20.64400863 | CX34: 20.62918448 | CY34: 20.61437098 | CZ34: 20.59956812
A35: ='HyARC Physical Property Data'!A78 -> Residential Electricity | B35: 2011 | C35: 1.078455477 | D35: ='HyARC Physical Property Data'!$H$78 -> kWh | E35: Feed Utility Byprod | H35: 29.57988576 | I35: 29.57988576 | J35: 29.57988576 | K35: 29.55635758 | L35: 30.11641661 | M35: 29.13444302 | N35: =(N53/(mmBTU_to_GJ))*($C35) -> 35.29035788 | O35: 35.09925454 | P35: 34.00632425 | Q35: 33.27306857 | R35: 33.74133292 | S35: 33.79742794 | T35: 34.32483969 | U35: 34.57830841 | V35: 34.58686757 | W35: 34.39055494 | X35: 34.36280541 | Y35: 34.40713862 | Z35: 34.44029678 | AA35: 34.45280584 | AB35: 34.59232322 | AC35: 34.71438496 | AD35: 34.88479013 | AE35: 35.02752345 | AF35: 35.17875869 | AG35: 35.27823828 | AH35: 35.32998881 | AI35: 35.45757265 | AJ35: 35.58126894 | AK35: 35.70016891 | AL35: 35.8625056 | AM35: 36.20879816 | AN35: 36.63270579 | AO35: 36.9802649 | AP35: 37.31435507 | AQ35: 37.7266072 | AR35: 37.92339619 | AS35: =($BB35-$AR35)/10+AR35 -> 37.6616734 | AT35: 37.39995062 | AU35: 37.13822783 | AV35: 36.87650505 | AW35: 36.61478226 | AX35: 36.35305948 | AY35: 36.09133669 | AZ35: 35.82961391 | BA35: 35.56789112 | BB35: ='AEO Data'!$B$33*AM35 -> 35.30616834 | BC35: =($BQ35-$BB35)/15+BB35 -> 35.32673855 | BD35: 35.34730876 | BE35: 35.36787898 | BF35: 35.38844919 | BG35: 35.40901941 | BH35: 35.42958962 | BI35: 35.45015984 | BJ35: 35.47073005 | BK35: 35.49130027 | BL35: 35.51187048 | BM35: 35.53244069 | BN35: 35.55301091 | BO35: 35.57358112 | BP35: 35.59415134 | BQ35: ='AEO Data'!$C$33*BB35 -> 35.61472155 | BR35: 35.59074037 | BS35: 35.56675919 | BT35: 35.54277801 | BU35: 35.51879683 | BV35: ='AEO Data'!$D$33*BQ35 -> 35.49481565 | BW35: =+BV35*BW$141/BV$141 -> 35.47918715 | BX35: =+BW35*BX$141/BW$141 -> 35.46356553 | BY35: 35.44795079 | BZ35: 35.43234292 | CA35: 35.41674193 | CB35: 35.38837367 | CC35: 35.36002813 | CD35: 35.3317053 | CE35: 35.30340516 | CF35: 35.27512768 | CG35: 35.23617387 | CH35: 35.19726308 | CI35: 35.15839526 | CJ35: 35.11957036 | CK35: 35.08078833 | CL35: 35.03850644 | CM35: 34.99627551 | CN35: 34.95409548 | CO35: 34.91196629 | CP35: 34.86988788 | CQ35: 34.82115009 | CR35: 34.77248042 | CS35: 34.72387878 | CT35: 34.67534507 | CU35: 34.62687919 | CV35: 34.57956787 | CW35: 34.53232119 | CX35: 34.48513906 | CY35: 34.4380214 | CZ35: 34.39096812
A39: AEO 2013 Reference Case Values:
A40: 2011 $/MMBtu
A42: Residential Natural Gas | N42: 11.359373 | O42: 10.802343 | P42: 10.464381 | Q42: 10.477905 | R42: 10.253485 | S42: 10.15608 | T42: 10.662778 | U42: 10.990506 | V42: 11.397518 | W42: 11.624905 | X42: 11.776243 | Y42: 11.960003 | Z42: 12.203179 | AA42: 12.432268 | AB42: 12.584531 | AC42: 12.674325 | AD42: 12.841908 | AE42: 12.933385 | AF42: 13.085579 | AG42: 13.234385 | AH42: 13.368998 | AI42: 13.547089 | AJ42: 13.721807 | AK42: 13.935895 | AL42: 14.248931 | AM42: 14.598827 | AN42: 15.023703 | AO42: 15.415895 | AP42: 15.842275 | AQ42: 16.055761 | AR42: 16.363073
A43: Commercial Natural Gas | N43: 9.396975 | O43: 8.836861 | P43: 8.072796 | Q43: 8.462734 | R43: 8.235262 | S43: 8.104362 | T43: 8.561039 | U43: 8.824791 | V43: 9.17228 | W43: 9.350815 | X43: 9.468021 | Y43: 9.610942 | Z43: 9.819182 | AA43: 10.011598 | AB43: 10.133018 | AC43: 10.193654 | AD43: 10.33554 | AE43: 10.388019 | AF43: 10.500005 | AG43: 10.605323 | AH43: 10.697221 | AI43: 10.832411 | AJ43: 10.954602 | AK43: 11.11848 | AL43: 11.383407 | AM43: 11.681657 | AN43: 12.061093 | AO43: 12.401303 | AP43: 12.781521 | AQ43: 12.948894 | AR43: 13.212922
A44: Industrial Natural Gas | N44: 5.48396 | O44: 4.889813 | P44: 3.759686 | Q44: 4.333988 | R44: 4.375052 | S44: 4.422535 | T44: 4.866036 | U44: 5.067941 | V44: 5.321257 | W44: 5.449798 | X44: 5.529412 | Y44: 5.640684 | Z44: 5.827775 | AA44: 6.010705 | AB44: 6.110009 | AC44: 6.151199 | AD44: 6.25576 | AE44: 6.294916 | AF44: 6.396782 | AG44: 6.486252 | AH44: 6.561483 | AI44: 6.676631 | AJ44: 6.771134 | AK44: 6.915992 | AL44: 7.168754 | AM44: 7.445415 | AN44: 7.813205 | AO44: 8.15366 | AP44: 8.498919 | AQ44: 8.639381 | AR44: 8.881093
A45: ='HyARC Physical Property Data'!$A$74 -> Electric Utility Natural Gas | N45: 5.258165 | O45: 4.774714 | P45: 3.321756 | Q45: 3.71553 | R45: 3.758219 | S45: 3.842071 | T45: 4.282618 | U45: 4.448673 | V45: 4.702611 | W45: 4.822232 | X45: 4.896759 | Y45: 5.007419 | Z45: 5.20235 | AA45: 5.388776 | AB45: 5.517935 | AC45: 5.577961 | AD45: 5.708808 | AE45: 5.760772 | AF45: 5.866844 | AG45: 5.965019 | AH45: 6.05285 | AI45: 6.183682 | AJ45: 6.293178 | AK45: 6.445873 | AL45: 6.698348 | AM45: 6.980446 | AN45: 7.345173 | AO45: 7.674949 | AP45: 8.02198 | AQ45: 8.154988 | AR45: 8.377783
A46: ='HyARC Physical Property Data'!$A$85 -> Woody Biomass
A47: Pyrolysis Oil | N47: 13.6 | O47: 13.6 | P47: 13.6 | Q47: 13.6 | R47: 13.6 | S47: 13.6 | T47: 13.6 | U47: 14.11 | V47: 14.11 | W47: 14.11 | X47: 14.11 | Y47: 14.11 | Z47: 14.11 | AA47: 14.11 | AB47: 14.11 | AC47: 14.11 | AD47: 14.11 | AE47: 14.11 | AF47: 14.11 | AG47: 14.11 | AH47: 14.11 | AI47: 14.11 | AJ47: 14.11 | AK47: 14.11 | AL47: 14.11 | AM47: 14.11 | AN47: 14.11 | AO47: 14.11 | AP47: 14.11 | AQ47: 14.11 | AR47: 14.11 | AS47: 14.11 | AT47: 14.11 | AU47: 14.11 | AV47: 14.11 | AW47: 14.11 | AX47: 14.11 | AY47: 14.11 | AZ47: 14.11 | BA47: 14.11 | BB47: 14.11 | BC47: 14.11 | BD47: 14.11 | BE47: 14.11 | BF47: 14.11 | BG47: 14.11 | BH47: 14.11 | BI47: 14.11 | BJ47: 14.11 | BK47: 14.11 | BL47: 14.11 | BM47: 14.11 | BN47: 14.11 | BO47: 14.11 | BP47: 14.11 | BQ47: 14.11 | BR47: 14.11 | BS47: 14.11 | BT47: 14.11 | BU47: 14.11 | BV47: 14.11
A48: Methanol | N48: 23.6 | O48: 23.6 | P48: 23.6 | Q48: 23.6 | R48: 23.6 | S48: 23.6 | T48: 23.6 | U48: 23.6 | V48: 23.6 | W48: 23.6 | X48: 23.6 | Y48: 23.6 | Z48: 23.6 | AA48: 23.6 | AB48: 23.6 | AC48: 23.6 | AD48: 23.6 | AE48: 23.6 | AF48: 23.6 | AG48: 23.6 | AH48: 23.6 | AI48: 23.6 | AJ48: 23.6 | AK48: 23.6 | AL48: 23.6 | AM48: 23.6 | AN48: 23.6 | AO48: 23.6 | AP48: 23.6 | AQ48: 23.6 | AR48: 23.6 | AS48: 23.6 | AT48: 23.6 | AU48: 23.6 | AV48: 23.6 | AW48: 23.6 | AX48: 23.6 | AY48: 23.6 | AZ48: 23.6 | BA48: 23.6 | BB48: 23.6 | BC48: 23.6 | BD48: 23.6 | BE48: 23.6 | BF48: 23.6 | BG48: 23.6 | BH48: 23.6 | BI48: 23.6 | BJ48: 23.6 | BK48: 23.6 | BL48: 23.6 | BM48: 23.6 | BN48: 23.6 | BO48: 23.6 | BP48: 23.6 | BQ48: 23.6 | BR48: 23.6 | BS48: 23.6 | BT48: 23.6 | BU48: 23.6 | BV48: 23.6
A49: Ethanol (E85) | N49: 25.561684 | O49: 25.303816 | P49: 33.642014 | Q49: 31.120285 | R49: 24.805428 | S49: 24.941547 | T49: 24.510408 | U49: 24.773121 | V49: 25.840998 | W49: 26.808552 | X49: 29.644617 | Y49: 29.383793 | Z49: 28.224442 | AA49: 28.253483 | AB49: 27.145426 | AC49: 27.272446 | AD49: 27.519344 | AE49: 26.363682 | AF49: 26.241467 | AG49: 26.599018 | AH49: 26.941008 | AI49: 27.294556 | AJ49: 27.667862 | AK49: 28.194492 | AL49: 28.632065 | AM49: 29.186733 | AN49: 29.790071 | AO49: 30.397635 | AP49: 30.990225 | AQ49: 31.671036 | AR49: 30.576361
A50: Electric Utility Steam Coal | N50: 2.297989 | O50: 2.38 | P50: 2.405274 | Q50: 2.336911 | R50: 2.395015 | S50: 2.396107 | T50: 2.458305 | U50: 2.472283 | V50: 2.480262 | W50: 2.483824 | X50: 2.516057 | Y50: 2.546456 | Z50: 2.591459 | AA50: 2.628078 | AB50: 2.659397 | AC50: 2.691643 | AD50: 2.728581 | AE50: 2.761878 | AF50: 2.791991 | AG50: 2.828263 | AH50: 2.86709 | AI50: 2.897 | AJ50: 2.923843 | AK50: 2.954224 | AL50: 2.98759 | AM50: 3.030205 | AN50: 3.067011 | AO50: 3.101266 | AP50: 3.134995 | AQ50: 3.169994 | AR50: 3.201544
A51: Commercial Electricity | N51: 30.492579 | O51: 29.980652 | P51: 28.463469 | Q51: 27.770493 | R51: 27.844252 | S51: 27.733994 | T51: 28.230274 | U51: 28.517765 | V51: 28.644997 | W51: 28.576813 | X51: 28.566559 | Y51: 28.675745 | Z51: 28.66461 | AA51: 28.628443 | AB51: 28.632759 | AC51: 28.485842 | AD51: 28.378672 | AE51: 28.36969 | AF51: 28.482964 | AG51: 28.577333 | AH51: 28.652302 | AI51: 28.781073 | AJ51: 28.912567 | AK51: 29.081726 | AL51: 29.271112 | AM51: 29.658476 | AN51: 30.101704 | AO51: 30.503069 | AP51: 30.944069 | AQ51: 31.476562 | AR51: 31.747147
A52: Industrial Electricity | N52: 20.260443 | O52: 19.97574 | P52: 18.436016 | Q52: 18.142965 | R52: 18.046112 | S52: 17.884491 | T52: 18.368113 | U52: 18.636278 | V52: 18.783104 | W52: 18.727133 | X52: 18.720291 | Y52: 18.854441 | Z52: 18.961594 | AA52: 19.089853 | AB52: 19.158766 | AC52: 19.181961 | AD52: 19.274345 | AE52: 19.362473 | AF52: 19.467001 | AG52: 19.610374 | AH52: 19.726358 | AI52: 19.866886 | AJ52: 20.0294 | AK52: 20.204811 | AL52: 20.42868 | AM52: 20.795019 | AN52: 21.263971 | AO52: 21.670811 | AP52: 22.067455 | AQ52: 22.488647 | AR52: 22.744431
A53: Residential Electricity | N53: 34.522823 | O53: 34.335876 | P53: 33.266716 | Q53: 32.549408 | R53: 33.007488 | S53: 33.062363 | T53: 33.578304 | U53: 33.82626 | V53: 33.834633 | W53: 33.64259 | X53: 33.615444 | Y53: 33.658813 | Z53: 33.69125 | AA53: 33.703487 | AB53: 33.83997 | AC53: 33.959377 | AD53: 34.126076 | AE53: 34.265705 | AF53: 34.413651 | AG53: 34.510967 | AH53: 34.561592 | AI53: 34.686401 | AJ53: 34.807407 | AK53: 34.923721 | AL53: 35.082527 | AM53: 35.421288 | AN53: 35.835976 | AO53: 36.175976 | AP53: 36.5028 | AQ53: 36.906086 | AR53: 37.098595
A56: AEO_2013_High_Price_Case | B56: ="Prices are in $(" & ref_year&")/GJ LHV" -> Prices are in $(2016)/GJ LHV | AS56: Except as noted,values are extrapolated based on PNNL mini-CAM model (see AEO Data tab)
